Workbook

Sheet base
A1: 01-06-2025
A2: 30-12-2025
A3: TxnDate | B3: RefNumber | C3: CustomerRefFullName | D3: CustomerMsgRefFullName | E3: SalesOrderLineSeqNo | F3: CustomFieldSalesOrderLineCodigo | G3: SalesOrderLineItemRefFullName | H3: SalesOrderLineDesc | I3: SalesOrderLineInventorySiteRefFullName | J3: SalesOrderLineQuantity | K3: SalesOrderLineUnitOfMeasure | L3: SalesOrderLineRate | M3: SalesOrderLineAmount | N3: SalesOrderLineOverrideUOMSetRefFullName | O3: SalesOrderLineInvoiced | P3: Subtotal | Q3: TotalAmount | R3: ItemSalesTaxRefFullName | S3: pide | T3: facturado | U3: diferecia | V3: estado | W3: U/M | X3: ERROR | Y3: week | Z3: TOTAL SIN IVA | AA3: DESC | AB3: WMS
A4: 2025-06-02 | B4: 28728 | C4: PRODUCTOS OLE DEL ECUADOR PRODUCTOSOLE C | D4: Comercl -Daniela-make up | E4: 1 | F4: 705424000116 | G4: P.T:110250 | H4: AJÍ CON MARACUYA OLE 30G SACHET | I4: Bodega Producto Terminado | J4: 25 | K4: UN | L4: 1.27 | M4: 31.75 | N4: UNIDAD SALSA | O4: 0 | P4: 63.5 | Q4: 73.03 | R4: IVA EN VENTAS 15% | S4: =IFERROR(IF(Tabla_Consulta_desde_QuickBooks_Data_64_Bit_QRemote[[#This Row],[SalesOrderLineUnitOfMeasure]]="un",Tabla_Consulta_desde_QuickBooks_Data_64_Bit_QRemote[[#This Row],[SalesOrderLineQuantity]],Tabla_Consulta_desde_QuickBooks_Data_64_Bit_QRemote[[#This Row],[SalesOrderLineQuantity]]/MID(Tabla_Consulta_desde_QuickBooks_Data_64_Bit_QRemote[[#This Row],[SalesOrderLineUnitOfMeasure]],2,2)),0) -> 25 | T4: =IFERROR(IF(Tabla_Consulta_desde_QuickBooks_Data_64_Bit_QRemote[[#This Row],[SalesOrderLineUnitOfMeasure]]="un",Tabla_Consulta_desde_QuickBooks_Data_64_Bit_QRemote[[#This Row],[SalesOrderLineInvoiced]],Tabla_Consulta_desde_QuickBooks_Data_64_Bit_QRemote[[#This Row],[SalesOrderLineInvoiced]]/MID(Tabla_Consulta_desde_QuickBooks_Data_64_Bit_QRemote[[#This Row],[SalesOrderLineUnitOfMeasure]],2,2)),0) -> 0 | U4: =+Tabla_Consulta_desde_QuickBooks_Data_64_Bit_QRemote[[#This Row],[facturado]]-Tabla_Consulta_desde_QuickBooks_Data_64_Bit_QRemote[[#This Row],[pide]] -> -25 | V4: =IF(Tabla_Consulta_desde_QuickBooks_Data_64_Bit_QRemote[[#This Row],[diferecia]]=0,"ok","diferen") -> diferen | W4: =IFERROR(INDEX(um!A:C,MATCH(Tabla_Consulta_desde_QuickBooks_Data_64_Bit_QRemote[[#This Row],[SalesOrderLineItemRefFullName]],um!A:A,0),3),"") ->  | X4: =IFERROR(IF(OR(Tabla_Consulta_desde_QuickBooks_Data_64_Bit_QRemote[[#This Row],[SalesOrderLineUnitOfMeasure]]="UN",Tabla_Consulta_desde_QuickBooks_Data_64_Bit_QRemote[[#This Row],[SalesOrderLineUnitOfMeasure]]=Tabla_Consulta_desde_QuickBooks_Data_64_Bit_QRemote[[#This Row],[U/M]]),"","ERROR"),"") ->  | Y4: =+WEEKNUM(Tabla_Consulta_desde_QuickBooks_Data_64_Bit_QRemote[[#This Row],[TxnDate]]) -> 23 | Z4: =+Tabla_Consulta_desde_QuickBooks_Data_64_Bit_QRemote[[#This Row],[SalesOrderLineRate]]*Tabla_Consulta_desde_QuickBooks_Data_64_Bit_QRemote[[#This Row],[SalesOrderLineInvoiced]] -> 0 | AA4: =+IFERROR(IF(Tabla_Consulta_desde_QuickBooks_Data_64_Bit_QRemote[[#This Row],[CustomerRefFullName]]="GRUVALCORP SA",VLOOKUP(Tabla_Consulta_desde_QuickBooks_Data_64_Bit_QRemote[[#This Row],[SalesOrderLineItemRefFullName]],Hoja1!A:E,5,FALSE),"")*-Tabla_Consulta_desde_QuickBooks_Data_64_Bit_QRemote[[#This Row],[SalesOrderLineAmount]],"") ->  | AB4: =IF(COUNTIF(wms!E:E,Tabla_Consulta_desde_QuickBooks_Data_64_Bit_QRemote[[#This Row],[RefNumber]])>0,"OK","FALTA") -> OK
A5: 2025-06-02 | B5: 28728 | C5: PRODUCTOS OLE DEL ECUADOR PRODUCTOSOLE C | D5: Comercl -Daniela-make up | E5: 2 | F5: 705424000147 | G5: P.T:110251 | H5: AJÍ CON TOMATE DE ÁRBOL OLE 30G SACHET | I5: Bodega Producto Terminado | J5: 25 | K5: UN | L5: 1.27 | M5: 31.75 | N5: UNIDAD SALSA | O5: 0 | P5: 63.5 | Q5: 73.03 | R5: IVA EN VENTAS 15% | S5: =IFERROR(IF(Tabla_Consulta_desde_QuickBooks_Data_64_Bit_QRemote[[#This Row],[SalesOrderLineUnitOfMeasure]]="un",Tabla_Consulta_desde_QuickBooks_Data_64_Bit_QRemote[[#This Row],[SalesOrderLineQuantity]],Tabla_Consulta_desde_QuickBooks_Data_64_Bit_QRemote[[#This Row],[SalesOrderLineQuantity]]/MID(Tabla_Consulta_desde_QuickBooks_Data_64_Bit_QRemote[[#This Row],[SalesOrderLineUnitOfMeasure]],2,2)),0) -> 25 | T5: =IFERROR(IF(Tabla_Consulta_desde_QuickBooks_Data_64_Bit_QRemote[[#This Row],[SalesOrderLineUnitOfMeasure]]="un",Tabla_Consulta_desde_QuickBooks_Data_64_Bit_QRemote[[#This Row],[SalesOrderLineInvoiced]],Tabla_Consulta_desde_QuickBooks_Data_64_Bit_QRemote[[#This Row],[SalesOrderLineInvoiced]]/MID(Tabla_Consulta_desde_QuickBooks_Data_64_Bit_QRemote[[#This Row],[SalesOrderLineUnitOfMeasure]],2,2)),0) -> 0 | U5: =+Tabla_Consulta_desde_QuickBooks_Data_64_Bit_QRemote[[#This Row],[facturado]]-Tabla_Consulta_desde_QuickBooks_Data_64_Bit_QRemote[[#This Row],[pide]] -> -25 | V5: =IF(Tabla_Consulta_desde_QuickBooks_Data_64_Bit_QRemote[[#This Row],[diferecia]]=0,"ok","diferen") -> diferen | W5: =IFERROR(INDEX(um!A:C,MATCH(Tabla_Consulta_desde_QuickBooks_Data_64_Bit_QRemote[[#This Row],[SalesOrderLineItemRefFullName]],um!A:A,0),3),"") ->  | X5: =IFERROR(IF(OR(Tabla_Consulta_desde_QuickBooks_Data_64_Bit_QRemote[[#This Row],[SalesOrderLineUnitOfMeasure]]="UN",Tabla_Consulta_desde_QuickBooks_Data_64_Bit_QRemote[[#This Row],[SalesOrderLineUnitOfMeasure]]=Tabla_Consulta_desde_QuickBooks_Data_64_Bit_QRemote[[#This Row],[U/M]]),"","ERROR"),"") ->  | Y5: =+WEEKNUM(Tabla_Consulta_desde_QuickBooks_Data_64_Bit_QRemote[[#This Row],[TxnDate]]) -> 23 | Z5: =+Tabla_Consulta_desde_QuickBooks_Data_64_Bit_QRemote[[#This Row],[SalesOrderLineRate]]*Tabla_Consulta_desde_QuickBooks_Data_64_Bit_QRemote[[#This Row],[SalesOrderLineInvoiced]] -> 0 | AA5: =+IFERROR(IF(Tabla_Consulta_desde_QuickBooks_Data_64_Bit_QRemote[[#This Row],[CustomerRefFullName]]="GRUVALCORP SA",VLOOKUP(Tabla_Consulta_desde_QuickBooks_Data_64_Bit_QRemote[[#This Row],[SalesOrderLineItemRefFullName]],Hoja1!A:E,5,FALSE),"")*-Tabla_Consulta_desde_QuickBooks_Data_64_Bit_QRemote[[#This Row],[SalesOrderLineAmount]],"") ->  | AB5: =IF(COUNTIF(wms!E:E,Tabla_Consulta_desde_QuickBooks_Data_64_Bit_QRemote[[#This Row],[RefNumber]])>0,"OK","FALTA") -> OK
A6: 2025-06-02 | B6: 28728 | C6: PRODUCTOS OLE DEL ECUADOR PRODUCTOSOLE C | D6: Comercl -Daniela-make up | E6: 3 | G6: INFOADICIONAL | H6: Comercl -Daniela-make up Japón y Alfonso Pereira edificio Zaigen piso 7 oficina # 714 | L6: 0 | M6: 0 | O6: 0 | P6: 63.5 | Q6: 73.03 | R6: IVA EN VENTAS 15% | S6: =IFERROR(IF(Tabla_Consulta_desde_QuickBooks_Data_64_Bit_QRemote[[#This Row],[SalesOrderLineUnitOfMeasure]]="un",Tabla_Consulta_desde_QuickBooks_Data_64_Bit_QRemote[[#This Row],[SalesOrderLineQuantity]],Tabla_Consulta_desde_QuickBooks_Data_64_Bit_QRemote[[#This Row],[SalesOrderLineQuantity]]/MID(Tabla_Consulta_desde_QuickBooks_Data_64_Bit_QRemote[[#This Row],[SalesOrderLineUnitOfMeasure]],2,2)),0) -> 0 | T6: =IFERROR(IF(Tabla_Consulta_desde_QuickBooks_Data_64_Bit_QRemote[[#This Row],[SalesOrderLineUnitOfMeasure]]="un",Tabla_Consulta_desde_QuickBooks_Data_64_Bit_QRemote[[#This Row],[SalesOrderLineInvoiced]],Tabla_Consulta_desde_QuickBooks_Data_64_Bit_QRemote[[#This Row],[SalesOrderLineInvoiced]]/MID(Tabla_Consulta_desde_QuickBooks_Data_64_Bit_QRemote[[#This Row],[SalesOrderLineUnitOfMeasure]],2,2)),0) -> 0 | U6: =+Tabla_Consulta_desde_QuickBooks_Data_64_Bit_QRemote[[#This Row],[facturado]]-Tabla_Consulta_desde_QuickBooks_Data_64_Bit_QRemote[[#This Row],[pide]] -> 0 | V6: =IF(Tabla_Consulta_desde_QuickBooks_Data_64_Bit_QRemote[[#This Row],[diferecia]]=0,"ok","diferen") -> ok | W6: =IFERROR(INDEX(um!A:C,MATCH(Tabla_Consulta_desde_QuickBooks_Data_64_Bit_QRemote[[#This Row],[SalesOrderLineItemRefFullName]],um!A:A,0),3),"") ->  | X6: =IFERROR(IF(OR(Tabla_Consulta_desde_QuickBooks_Data_64_Bit_QRemote[[#This Row],[SalesOrderLineUnitOfMeasure]]="UN",Tabla_Consulta_desde_QuickBooks_Data_64_Bit_QRemote[[#This Row],[SalesOrderLineUnitOfMeasure]]=Tabla_Consulta_desde_QuickBooks_Data_64_Bit_QRemote[[#This Row],[U/M]]),"","ERROR"),"") ->  | Y6: =+WEEKNUM(Tabla_Consulta_desde_QuickBooks_Data_64_Bit_QRemote[[#This Row],[TxnDate]]) -> 23 | Z6: =+Tabla_Consulta_desde_QuickBooks_Data_64_Bit_QRemote[[#This Row],[SalesOrderLineRate]]*Tabla_Consulta_desde_QuickBooks_Data_64_Bit_QRemote[[#This Row],[SalesOrderLineInvoiced]] -> 0 | AA6: =+IFERROR(IF(Tabla_Consulta_desde_QuickBooks_Data_64_Bit_QRemote[[#This Row],[CustomerRefFullName]]="GRUVALCORP SA",VLOOKUP(Tabla_Consulta_desde_QuickBooks_Data_64_Bit_QRemote[[#This Row],[SalesOrderLineItemRefFullName]],Hoja1!A:E,5,FALSE),"")*-Tabla_Consulta_desde_QuickBooks_Data_64_Bit_QRemote[[#This Row],[SalesOrderLineAmount]],"") ->  | AB6: =IF(COUNTIF(wms!E:E,Tabla_Consulta_desde_QuickBooks_Data_64_Bit_QRemote[[#This Row],[RefNumber]])>0,"OK","FALTA") -> OK
A7: 2025-06-02 | B7: 28999 | C7: PRODUCTOS OLE DEL ECUADOR PRODUCTOSOLE C | D7: ID – Lanzamiento de Producto – Jefferson | E7: 1 | F7: 7862112523296 | G7: P.T:110622 | H7: PEPINILLOS CON JALAPEÑO OLE 225G | I7: Bodega Producto Terminado | J7: 96 | K7: X24 | L7: 1.16 | M7: 111.36 | N7: UNIDAD SALSA | O7: 96 | P7: 345.18 | Q7: 396.96 | R7: IVA EN VENTAS 15% | S7: =IFERROR(IF(Tabla_Consulta_desde_QuickBooks_Data_64_Bit_QRemote[[#This Row],[SalesOrderLineUnitOfMeasure]]="un",Tabla_Consulta_desde_QuickBooks_Data_64_Bit_QRemote[[#This Row],[SalesOrderLineQuantity]],Tabla_Consulta_desde_QuickBooks_Data_64_Bit_QRemote[[#This Row],[SalesOrderLineQuantity]]/MID(Tabla_Consulta_desde_QuickBooks_Data_64_Bit_QRemote[[#This Row],[SalesOrderLineUnitOfMeasure]],2,2)),0) -> 4 | T7: =IFERROR(IF(Tabla_Consulta_desde_QuickBooks_Data_64_Bit_QRemote[[#This Row],[SalesOrderLineUnitOfMeasure]]="un",Tabla_Consulta_desde_QuickBooks_Data_64_Bit_QRemote[[#This Row],[SalesOrderLineInvoiced]],Tabla_Consulta_desde_QuickBooks_Data_64_Bit_QRemote[[#This Row],[SalesOrderLineInvoiced]]/MID(Tabla_Consulta_desde_QuickBooks_Data_64_Bit_QRemote[[#This Row],[SalesOrderLineUnitOfMeasure]],2,2)),0) -> 4 | U7: =+Tabla_Consulta_desde_QuickBooks_Data_64_Bit_QRemote[[#This Row],[facturado]]-Tabla_Consulta_desde_QuickBooks_Data_64_Bit_QRemote[[#This Row],[pide]] -> 0 | V7: =IF(Tabla_Consulta_desde_QuickBooks_Data_64_Bit_QRemote[[#This Row],[diferecia]]=0,"ok","diferen") -> ok | W7: =IFERROR(INDEX(um!A:C,MATCH(Tabla_Consulta_desde_QuickBooks_Data_64_Bit_QRemote[[#This Row],[SalesOrderLineItemRefFullName]],um!A:A,0),3),"") -> X24 | X7: =IFERROR(IF(OR(Tabla_Consulta_desde_QuickBooks_Data_64_Bit_QRemote[[#This Row],[SalesOrderLineUnitOfMeasure]]="UN",Tabla_Consulta_desde_QuickBooks_Data_64_Bit_QRemote[[#This Row],[SalesOrderLineUnitOfMeasure]]=Tabla_Consulta_desde_QuickBooks_Data_64_Bit_QRemote[[#This Row],[U/M]]),"","ERROR"),"") ->  | Y7: =+WEEKNUM(Tabla_Consulta_desde_QuickBooks_Data_64_Bit_QRemote[[#This Row],[TxnDate]]) -> 23 | Z7: =+Tabla_Consulta_desde_QuickBooks_Data_64_Bit_QRemote[[#This Row],[SalesOrderLineRate]]*Tabla_Consulta_desde_QuickBooks_Data_64_Bit_QRemote[[#This Row],[SalesOrderLineInvoiced]] -> 111.36 | AA7: =+IFERROR(IF(Tabla_Consulta_desde_QuickBooks_Data_64_Bit_QRemote[[#This Row],[CustomerRefFullName]]="GRUVALCORP SA",VLOOKUP(Tabla_Consulta_desde_QuickBooks_Data_64_Bit_QRemote[[#This Row],[SalesOrderLineItemRefFullName]],Hoja1!A:E,5,FALSE),"")*-Tabla_Consulta_desde_QuickBooks_Data_64_Bit_QRemote[[#This Row],[SalesOrderLineAmount]],"") ->  | AB7: =IF(COUNTIF(wms!E:E,Tabla_Consulta_desde_QuickBooks_Data_64_Bit_QRemote[[#This Row],[RefNumber]])>0,"OK","FALTA") -> OK
A8: 2025-06-02 | B8: 28999 | C8: PRODUCTOS OLE DEL ECUADOR PRODUCTOSOLE C | D8: ID – Lanzamiento de Producto – Jefferson | E8: 2 | F8: 7862112523234 | G8: P.T:110730 | H8: CHIMICHURRI HAWAIANO OLE 230G | I8: Bodega Producto Terminado | J8: 96 | K8: X12 | L8: 1.47 | M8: 141.12 | N8: UNIDAD SALSA | O8: 96 | P8: 345.18 | Q8: 396.96 | R8: IVA EN VENTAS 15% | S8: =IFERROR(IF(Tabla_Consulta_desde_QuickBooks_Data_64_Bit_QRemote[[#This Row],[SalesOrderLineUnitOfMeasure]]="un",Tabla_Consulta_desde_QuickBooks_Data_64_Bit_QRemote[[#This Row],[SalesOrderLineQuantity]],Tabla_Consulta_desde_QuickBooks_Data_64_Bit_QRemote[[#This Row],[SalesOrderLineQuantity]]/MID(Tabla_Consulta_desde_QuickBooks_Data_64_Bit_QRemote[[#This Row],[SalesOrderLineUnitOfMeasure]],2,2)),0) -> 8 | T8: =IFERROR(IF(Tabla_Consulta_desde_QuickBooks_Data_64_Bit_QRemote[[#This Row],[SalesOrderLineUnitOfMeasure]]="un",Tabla_Consulta_desde_QuickBooks_Data_64_Bit_QRemote[[#This Row],[SalesOrderLineInvoiced]],Tabla_Consulta_desde_QuickBooks_Data_64_Bit_QRemote[[#This Row],[SalesOrderLineInvoiced]]/MID(Tabla_Consulta_desde_QuickBooks_Data_64_Bit_QRemote[[#This Row],[SalesOrderLineUnitOfMeasure]],2,2)),0) -> 8 | U8: =+Tabla_Consulta_desde_QuickBooks_Data_64_Bit_QRemote[[#This Row],[facturado]]-Tabla_Consulta_desde_QuickBooks_Data_64_Bit_QRemote[[#This Row],[pide]] -> 0 | V8: =IF(Tabla_Consulta_desde_QuickBooks_Data_64_Bit_QRemote[[#This Row],[diferecia]]=0,"ok","diferen") -> ok | W8: =IFERROR(INDEX(um!A:C,MATCH(Tabla_Consulta_desde_QuickBooks_Data_64_Bit_QRemote[[#This Row],[SalesOrderLineItemRefFullName]],um!A:A,0),3),"") -> X12 | X8: =IFERROR(IF(OR(Tabla_Consulta_desde_QuickBooks_Data_64_Bit_QRemote[[#This Row],[SalesOrderLineUnitOfMeasure]]="UN",Tabla_Consulta_desde_QuickBooks_Data_64_Bit_QRemote[[#This Row],[SalesOrderLineUnitOfMeasure]]=Tabla_Consulta_desde_QuickBooks_Data_64_Bit_QRemote[[#This Row],[U/M]]),"","ERROR"),"") ->  | Y8: =+WEEKNUM(Tabla_Consulta_desde_QuickBooks_Data_64_Bit_QRemote[[#This Row],[TxnDate]]) -> 23 | Z8: =+Tabla_Consulta_desde_QuickBooks_Data_64_Bit_QRemote[[#This Row],[SalesOrderLineRate]]*Tabla_Consulta_desde_QuickBooks_Data_64_Bit_QRemote[[#This Row],[SalesOrderLineInvoiced]] -> 141.12 | AA8: =+IFERROR(IF(Tabla_Consulta_desde_QuickBooks_Data_64_Bit_QRemote[[#This Row],[CustomerRefFullName]]="GRUVALCORP SA",VLOOKUP(Tabla_Consulta_desde_QuickBooks_Data_64_Bit_QRemote[[#This Row],[SalesOrderLineItemRefFullName]],Hoja1!A:E,5,FALSE),"")*-Tabla_Consulta_desde_QuickBooks_Data_64_Bit_QRemote[[#This Row],[SalesOrderLineAmount]],"") ->  | AB8: =IF(COUNTIF(wms!E:E,Tabla_Consulta_desde_QuickBooks_Data_64_Bit_QRemote[[#This Row],[RefNumber]])>0,"OK","FALTA") -> OK
A9: 2025-06-02 | B9: 28999 | C9: PRODUCTOS OLE DEL ECUADOR PRODUCTOSOLE C | D9: ID – Lanzamiento de Producto – Jefferson | E9: 3 | F9: 7862112523289 | G9: PT:221008 | H9: CHEDARITOS OLE 90G | I9: Bodega Producto Terminado | J9: 90 | K9: X10 | L9: 0.57 | M9: 51.3 | N9: UNIDAD SNCKS | O9: 90 | P9: 345.18 | Q9: 396.96 | R9: IVA EN VENTAS 15% | S9: =IFERROR(IF(Tabla_Consulta_desde_QuickBooks_Data_64_Bit_QRemote[[#This Row],[SalesOrderLineUnitOfMeasure]]="un",Tabla_Consulta_desde_QuickBooks_Data_64_Bit_QRemote[[#This Row],[SalesOrderLineQuantity]],Tabla_Consulta_desde_QuickBooks_Data_64_Bit_QRemote[[#This Row],[SalesOrderLineQuantity]]/MID(Tabla_Consulta_desde_QuickBooks_Data_64_Bit_QRemote[[#This Row],[SalesOrderLineUnitOfMeasure]],2,2)),0) -> 9 | T9: =IFERROR(IF(Tabla_Consulta_desde_QuickBooks_Data_64_Bit_QRemote[[#This Row],[SalesOrderLineUnitOfMeasure]]="un",Tabla_Consulta_desde_QuickBooks_Data_64_Bit_QRemote[[#This Row],[SalesOrderLineInvoiced]],Tabla_Consulta_desde_QuickBooks_Data_64_Bit_QRemote[[#This Row],[SalesOrderLineInvoiced]]/MID(Tabla_Consulta_desde_QuickBooks_Data_64_Bit_QRemote[[#This Row],[SalesOrderLineUnitOfMeasure]],2,2)),0) -> 9 | U9: =+Tabla_Consulta_desde_QuickBooks_Data_64_Bit_QRemote[[#This Row],[facturado]]-Tabla_Consulta_desde_QuickBooks_Data_64_Bit_QRemote[[#This Row],[pide]] -> 0 | V9: =IF(Tabla_Consulta_desde_QuickBooks_Data_64_Bit_QRemote[[#This Row],[diferecia]]=0,"ok","diferen") -> ok | W9: =IFERROR(INDEX(um!A:C,MATCH(Tabla_Consulta_desde_QuickBooks_Data_64_Bit_QRemote[[#This Row],[SalesOrderLineItemRefFullName]],um!A:A,0),3),"") -> X10 | X9: =IFERROR(IF(OR(Tabla_Consulta_desde_QuickBooks_Data_64_Bit_QRemote[[#This Row],[SalesOrderLineUnitOfMeasure]]="UN",Tabla_Consulta_desde_QuickBooks_Data_64_Bit_QRemote[[#This Row],[SalesOrderLineUnitOfMeasure]]=Tabla_Consulta_desde_QuickBooks_Data_64_Bit_QRemote[[#This Row],[U/M]]),"","ERROR"),"") ->  | Y9: =+WEEKNUM(Tabla_Consulta_desde_QuickBooks_Data_64_Bit_QRemote[[#This Row],[TxnDate]]) -> 23 | Z9: =+Tabla_Consulta_desde_QuickBooks_Data_64_Bit_QRemote[[#This Row],[SalesOrderLineRate]]*Tabla_Consulta_desde_QuickBooks_Data_64_Bit_QRemote[[#This Row],[SalesOrderLineInvoiced]] -> 51.3 | AA9: =+IFERROR(IF(Tabla_Consulta_desde_QuickBooks_Data_64_Bit_QRemote[[#This Row],[CustomerRefFullName]]="GRUVALCORP SA",VLOOKUP(Tabla_Consulta_desde_QuickBooks_Data_64_Bit_QRemote[[#This Row],[SalesOrderLineItemRefFullName]],Hoja1!A:E,5,FALSE),"")*-Tabla_Consulta_desde_QuickBooks_Data_64_Bit_QRemote[[#This Row],[SalesOrderLineAmount]],"") ->  | AB9: =IF(COUNTIF(wms!E:E,Tabla_Consulta_desde_QuickBooks_Data_64_Bit_QRemote[[#This Row],[RefNumber]])>0,"OK","FALTA") -> OK
A10: 2025-06-02 | B10: 28999 | C10: PRODUCTOS OLE DEL ECUADOR PRODUCTOSOLE C | D10: ID – Lanzamiento de Producto – Jefferson | E10: 4 | F10: 7862112523265 | G10: PT:220143 | H10: TOTOPOS NATURAL MINI OLE 45G | I10: Bodega Producto Terminado | J10: 90 | K10: X30 | L10: 0.23 | M10: 20.7 | N10: UNIDAD SNCKS | O10: 90 | P10: 345.18 | Q10: 396.96 | R10: IVA EN VENTAS 15% | S10: =IFERROR(IF(Tabla_Consulta_desde_QuickBooks_Data_64_Bit_QRemote[[#This Row],[SalesOrderLineUnitOfMeasure]]="un",Tabla_Consulta_desde_QuickBooks_Data_64_Bit_QRemote[[#This Row],[SalesOrderLineQuantity]],Tabla_Consulta_desde_QuickBooks_Data_64_Bit_QRemote[[#This Row],[SalesOrderLineQuantity]]/MID(Tabla_Consulta_desde_QuickBooks_Data_64_Bit_QRemote[[#This Row],[SalesOrderLineUnitOfMeasure]],2,2)),0) -> 3 | T10: =IFERROR(IF(Tabla_Consulta_desde_QuickBooks_Data_64_Bit_QRemote[[#This Row],[SalesOrderLineUnitOfMeasure]]="un",Tabla_Consulta_desde_QuickBooks_Data_64_Bit_QRemote[[#This Row],[SalesOrderLineInvoiced]],Tabla_Consulta_desde_QuickBooks_Data_64_Bit_QRemote[[#This Row],[SalesOrderLineInvoiced]]/MID(Tabla_Consulta_desde_QuickBooks_Data_64_Bit_QRemote[[#This Row],[SalesOrderLineUnitOfMeasure]],2,2)),0) -> 3 | U10: =+Tabla_Consulta_desde_QuickBooks_Data_64_Bit_QRemote[[#This Row],[facturado]]-Tabla_Consulta_desde_QuickBooks_Data_64_Bit_QRemote[[#This Row],[pide]] -> 0 | V10: =IF(Tabla_Consulta_desde_QuickBooks_Data_64_Bit_QRemote[[#This Row],[diferecia]]=0,"ok","diferen") -> ok | W10: =IFERROR(INDEX(um!A:C,MATCH(Tabla_Consulta_desde_QuickBooks_Data_64_Bit_QRemote[[#This Row],[SalesOrderLineItemRefFullName]],um!A:A,0),3),"") -> X30 | X10: =IFERROR(IF(OR(Tabla_Consulta_desde_QuickBooks_Data_64_Bit_QRemote[[#This Row],[SalesOrderLineUnitOfMeasure]]="UN",Tabla_Consulta_desde_QuickBooks_Data_64_Bit_QRemote[[#This Row],[SalesOrderLineUnitOfMeasure]]=Tabla_Consulta_desde_QuickBooks_Data_64_Bit_QRemote[[#This Row],[U/M]]),"","ERROR"),"") ->  | Y10: =+WEEKNUM(Tabla_Consulta_desde_QuickBooks_Data_64_Bit_QRemote[[#This Row],[TxnDate]]) -> 23 | Z10: =+Tabla_Consulta_desde_QuickBooks_Data_64_Bit_QRemote[[#This Row],[SalesOrderLineRate]]*Tabla_Consulta_desde_QuickBooks_Data_64_Bit_QRemote[[#This Row],[SalesOrderLineInvoiced]] -> 20.7 | AA10: =+IFERROR(IF(Tabla_Consulta_desde_QuickBooks_Data_64_Bit_QRemote[[#This Row],[CustomerRefFullName]]="GRUVALCORP SA",VLOOKUP(Tabla_Consulta_desde_QuickBooks_Data_64_Bit_QRemote[[#This Row],[SalesOrderLineItemRefFullName]],Hoja1!A:E,5,FALSE),"")*-Tabla_Consulta_desde_QuickBooks_Data_64_Bit_QRemote[[#This Row],[SalesOrderLineAmount]],"") ->  | AB10: =IF(COUNTIF(wms!E:E,Tabla_Consulta_desde_QuickBooks_Data_64_Bit_QRemote[[#This Row],[RefNumber]])>0,"OK","FALTA") -> OK
A11: 2025-06-02 | B11: 28999 | C11: PRODUCTOS OLE DEL ECUADOR PRODUCTOSOLE C | D11: ID – Lanzamiento de Producto – Jefferson | E11: 5 | F11: 7862112523258 | G11: PT:220142 | H11: TOTOPOS SABOR GUACAMOLE OLE 45G | I11: Producto CF | J11: 90 | K11: X30 | L11: 0.23 | M11: 20.7 | N11: UNIDAD SNCKS | O11: 90 | P11: 345.18 | Q11: 396.96 | R11: IVA EN VENTAS 15% | S11: =IFERROR(IF(Tabla_Consulta_desde_QuickBooks_Data_64_Bit_QRemote[[#This Row],[SalesOrderLineUnitOfMeasure]]="un",Tabla_Consulta_desde_QuickBooks_Data_64_Bit_QRemote[[#This Row],[SalesOrderLineQuantity]],Tabla_Consulta_desde_QuickBooks_Data_64_Bit_QRemote[[#This Row],[SalesOrderLineQuantity]]/MID(Tabla_Consulta_desde_QuickBooks_Data_64_Bit_QRemote[[#This Row],[SalesOrderLineUnitOfMeasure]],2,2)),0) -> 3 | T11: =IFERROR(IF(Tabla_Consulta_desde_QuickBooks_Data_64_Bit_QRemote[[#This Row],[SalesOrderLineUnitOfMeasure]]="un",Tabla_Consulta_desde_QuickBooks_Data_64_Bit_QRemote[[#This Row],[SalesOrderLineInvoiced]],Tabla_Consulta_desde_QuickBooks_Data_64_Bit_QRemote[[#This Row],[SalesOrderLineInvoiced]]/MID(Tabla_Consulta_desde_QuickBooks_Data_64_Bit_QRemote[[#This Row],[SalesOrderLineUnitOfMeasure]],2,2)),0) -> 3 | U11: =+Tabla_Consulta_desde_QuickBooks_Data_64_Bit_QRemote[[#This Row],[facturado]]-Tabla_Consulta_desde_QuickBooks_Data_64_Bit_QRemote[[#This Row],[pide]] -> 0 | V11: =IF(Tabla_Consulta_desde_QuickBooks_Data_64_Bit_QRemote[[#This Row],[diferecia]]=0,"ok","diferen") -> ok | W11: =IFERROR(INDEX(um!A:C,MATCH(Tabla_Consulta_desde_QuickBooks_Data_64_Bit_QRemote[[#This Row],[SalesOrderLineItemRefFullName]],um!A:A,0),3),"") -> X30 | X11: =IFERROR(IF(OR(Tabla_Consulta_desde_QuickBooks_Data_64_Bit_QRemote[[#This Row],[SalesOrderLineUnitOfMeasure]]="UN",Tabla_Consulta_desde_QuickBooks_Data_64_Bit_QRemote[[#This Row],[SalesOrderLineUnitOfMeasure]]=Tabla_Consulta_desde_QuickBooks_Data_64_Bit_QRemote[[#This Row],[U/M]]),"","ERROR"),"") ->  | Y11: =+WEEKNUM(Tabla_Consulta_desde_QuickBooks_Data_64_Bit_QRemote[[#This Row],[TxnDate]]) -> 23 | Z11: =+Tabla_Consulta_desde_QuickBooks_Data_64_Bit_QRemote[[#This Row],[SalesOrderLineRate]]*Tabla_Consulta_desde_QuickBooks_Data_64_Bit_QRemote[[#This Row],[SalesOrderLineInvoiced]] -> 20.7 | AA11: =+IFERROR(IF(Tabla_Consulta_desde_QuickBooks_Data_64_Bit_QRemote[[#This Row],[CustomerRefFullName]]="GRUVALCORP SA",VLOOKUP(Tabla_Consulta_desde_QuickBooks_Data_64_Bit_QRemote[[#This Row],[SalesOrderLineItemRefFullName]],Hoja1!A:E,5,FALSE),"")*-Tabla_Consulta_desde_QuickBooks_Data_64_Bit_QRemote[[#This Row],[SalesOrderLineAmount]],"") ->  | AB11: =IF(COUNTIF(wms!E:E,Tabla_Consulta_desde_QuickBooks_Data_64_Bit_QRemote[[#This Row],[RefNumber]])>0,"OK","FALTA") -> OK
A12: 2025-06-02 | B12: 28999 | C12: PRODUCTOS OLE DEL ECUADOR PRODUCTOSOLE C | D12: ID – Lanzamiento de Producto – Jefferson | E12: 6 | G12: INFOADICIONAL | H12: ID – Lanzamiento de Producto – Jefferson | L12: 0 | M12: 0 | O12: 1 | P12: 345.18 | Q12: 396.96 | R12: IVA EN VENTAS 15% | S12: =IFERROR(IF(Tabla_Consulta_desde_QuickBooks_Data_64_Bit_QRemote[[#This Row],[SalesOrderLineUnitOfMeasure]]="un",Tabla_Consulta_desde_QuickBooks_Data_64_Bit_QRemote[[#This Row],[SalesOrderLineQuantity]],Tabla_Consulta_desde_QuickBooks_Data_64_Bit_QRemote[[#This Row],[SalesOrderLineQuantity]]/MID(Tabla_Consulta_desde_QuickBooks_Data_64_Bit_QRemote[[#This Row],[SalesOrderLineUnitOfMeasure]],2,2)),0) -> 0 | T12: =IFERROR(IF(Tabla_Consulta_desde_QuickBooks_Data_64_Bit_QRemote[[#This Row],[SalesOrderLineUnitOfMeasure]]="un",Tabla_Consulta_desde_QuickBooks_Data_64_Bit_QRemote[[#This Row],[SalesOrderLineInvoiced]],Tabla_Consulta_desde_QuickBooks_Data_64_Bit_QRemote[[#This Row],[SalesOrderLineInvoiced]]/MID(Tabla_Consulta_desde_QuickBooks_Data_64_Bit_QRemote[[#This Row],[SalesOrderLineUnitOfMeasure]],2,2)),0) -> 0 | U12: =+Tabla_Consulta_desde_QuickBooks_Data_64_Bit_QRemote[[#This Row],[facturado]]-Tabla_Consulta_desde_QuickBooks_Data_64_Bit_QRemote[[#This Row],[pide]] -> 0 | V12: =IF(Tabla_Consulta_desde_QuickBooks_Data_64_Bit_QRemote[[#This Row],[diferecia]]=0,"ok","diferen") -> ok | W12: =IFERROR(INDEX(um!A:C,MATCH(Tabla_Consulta_desde_QuickBooks_Data_64_Bit_QRemote[[#This Row],[SalesOrderLineItemRefFullName]],um!A:A,0),3),"") ->  | X12: =IFERROR(IF(OR(Tabla_Consulta_desde_QuickBooks_Data_64_Bit_QRemote[[#This Row],[SalesOrderLineUnitOfMeasure]]="UN",Tabla_Consulta_desde_QuickBooks_Data_64_Bit_QRemote[[#This Row],[SalesOrderLineUnitOfMeasure]]=Tabla_Consulta_desde_QuickBooks_Data_64_Bit_QRemote[[#This Row],[U/M]]),"","ERROR"),"") ->  | Y12: =+WEEKNUM(Tabla_Consulta_desde_QuickBooks_Data_64_Bit_QRemote[[#This Row],[TxnDate]]) -> 23 | Z12: =+Tabla_Consulta_desde_QuickBooks_Data_64_Bit_QRemote[[#This Row],[SalesOrderLineRate]]*Tabla_Consulta_desde_QuickBooks_Data_64_Bit_QRemote[[#This Row],[SalesOrderLineInvoiced]] -> 0 | AA12: =+IFERROR(IF(Tabla_Consulta_desde_QuickBooks_Data_64_Bit_QRemote[[#This Row],[CustomerRefFullName]]="GRUVALCORP SA",VLOOKUP(Tabla_Consulta_desde_QuickBooks_Data_64_Bit_QRemote[[#This Row],[SalesOrderLineItemRefFullName]],Hoja1!A:E,5,FALSE),"")*-Tabla_Consulta_desde_QuickBooks_Data_64_Bit_QRemote[[#This Row],[SalesOrderLineAmount]],"") ->  | AB12: =IF(COUNTIF(wms!E:E,Tabla_Consulta_desde_QuickBooks_Data_64_Bit_QRemote[[#This Row],[RefNumber]])>0,"OK","FALTA") -> OK
A13: 2025-06-02 | B13: 29038 | C13: ZAMBRANO ZAMBRANO CLEYTON ELIECER | D13: RETIRA TRANSPORTES CARREÑO | E13: 1 | F13: 705424000116 | G13: P.T:110207 | H13: AJÍ CON MARACUYA OLE 185G | I13: Bodega Producto Terminado | J13: 72 | K13: X24 | L13: 1.48 | M13: 106.56 | N13: UNIDAD SALSA | O13: 72 | P13: 833.4 | Q13: 958.41 | R13: IVA EN VENTAS 15% | S13: =IFERROR(IF(Tabla_Consulta_desde_QuickBooks_Data_64_Bit_QRemote[[#This Row],[SalesOrderLineUnitOfMeasure]]="un",Tabla_Consulta_desde_QuickBooks_Data_64_Bit_QRemote[[#This Row],[SalesOrderLineQuantity]],Tabla_Consulta_desde_QuickBooks_Data_64_Bit_QRemote[[#This Row],[SalesOrderLineQuantity]]/MID(Tabla_Consulta_desde_QuickBooks_Data_64_Bit_QRemote[[#This Row],[SalesOrderLineUnitOfMeasure]],2,2)),0) -> 3 | T13: =IFERROR(IF(Tabla_Consulta_desde_QuickBooks_Data_64_Bit_QRemote[[#This Row],[SalesOrderLineUnitOfMeasure]]="un",Tabla_Consulta_desde_QuickBooks_Data_64_Bit_QRemote[[#This Row],[SalesOrderLineInvoiced]],Tabla_Consulta_desde_QuickBooks_Data_64_Bit_QRemote[[#This Row],[SalesOrderLineInvoiced]]/MID(Tabla_Consulta_desde_QuickBooks_Data_64_Bit_QRemote[[#This Row],[SalesOrderLineUnitOfMeasure]],2,2)),0) -> 3 | U13: =+Tabla_Consulta_desde_QuickBooks_Data_64_Bit_QRemote[[#This Row],[facturado]]-Tabla_Consulta_desde_QuickBooks_Data_64_Bit_QRemote[[#This Row],[pide]] -> 0 | V13: =IF(Tabla_Consulta_desde_QuickBooks_Data_64_Bit_QRemote[[#This Row],[diferecia]]=0,"ok","diferen") -> ok | W13: =IFERROR(INDEX(um!A:C,MATCH(Tabla_Consulta_desde_QuickBooks_Data_64_Bit_QRemote[[#This Row],[SalesOrderLineItemRefFullName]],um!A:A,0),3),"") -> X24 | X13: =IFERROR(IF(OR(Tabla_Consulta_desde_QuickBooks_Data_64_Bit_QRemote[[#This Row],[SalesOrderLineUnitOfMeasure]]="UN",Tabla_Consulta_desde_QuickBooks_Data_64_Bit_QRemote[[#This Row],[SalesOrderLineUnitOfMeasure]]=Tabla_Consulta_desde_QuickBooks_Data_64_Bit_QRemote[[#This Row],[U/M]]),"","ERROR"),"") ->  | Y13: =+WEEKNUM(Tabla_Consulta_desde_QuickBooks_Data_64_Bit_QRemote[[#This Row],[TxnDate]]) -> 23 | Z13: =+Tabla_Consulta_desde_QuickBooks_Data_64_Bit_QRemote[[#This Row],[SalesOrderLineRate]]*Tabla_Consulta_desde_QuickBooks_Data_64_Bit_QRemote[[#This Row],[SalesOrderLineInvoiced]] -> 106.56 | AA13: =+IFERROR(IF(Tabla_Consulta_desde_QuickBooks_Data_64_Bit_QRemote[[#This Row],[CustomerRefFullName]]="GRUVALCORP SA",VLOOKUP(Tabla_Consulta_desde_QuickBooks_Data_64_Bit_QRemote[[#This Row],[SalesOrderLineItemRefFullName]],Hoja1!A:E,5,FALSE),"")*-Tabla_Consulta_desde_QuickBooks_Data_64_Bit_QRemote[[#This Row],[SalesOrderLineAmount]],"") ->  | AB13: =IF(COUNTIF(wms!E:E,Tabla_Consulta_desde_QuickBooks_Data_64_Bit_QRemote[[#This Row],[RefNumber]])>0,"OK","FALTA") -> OK
A14: 2025-06-02 | B14: 29038 | C14: ZAMBRANO ZAMBRANO CLEYTON ELIECER | D14: RETIRA TRANSPORTES CARREÑO | E14: 2 | F14: 705424000147 | G14: P.T:110209 | H14: AJÍ CON TOMATE DE ÁRBOL OLE 180G | I14: Bodega Producto Terminado | J14: 48 | K14: X24 | L14: 1.48 | M14: 71.04 | N14: UNIDAD SALSA | O14: 48 | P14: 833.4 | Q14: 958.41 | R14: IVA EN VENTAS 15% | S14: =IFERROR(IF(Tabla_Consulta_desde_QuickBooks_Data_64_Bit_QRemote[[#This Row],[SalesOrderLineUnitOfMeasure]]="un",Tabla_Consulta_desde_QuickBooks_Data_64_Bit_QRemote[[#This Row],[SalesOrderLineQuantity]],Tabla_Consulta_desde_QuickBooks_Data_64_Bit_QRemote[[#This Row],[SalesOrderLineQuantity]]/MID(Tabla_Consulta_desde_QuickBooks_Data_64_Bit_QRemote[[#This Row],[SalesOrderLineUnitOfMeasure]],2,2)),0) -> 2 | T14: =IFERROR(IF(Tabla_Consulta_desde_QuickBooks_Data_64_Bit_QRemote[[#This Row],[SalesOrderLineUnitOfMeasure]]="un",Tabla_Consulta_desde_QuickBooks_Data_64_Bit_QRemote[[#This Row],[SalesOrderLineInvoiced]],Tabla_Consulta_desde_QuickBooks_Data_64_Bit_QRemote[[#This Row],[SalesOrderLineInvoiced]]/MID(Tabla_Consulta_desde_QuickBooks_Data_64_Bit_QRemote[[#This Row],[SalesOrderLineUnitOfMeasure]],2,2)),0) -> 2 | U14: =+Tabla_Consulta_desde_QuickBooks_Data_64_Bit_QRemote[[#This Row],[facturado]]-Tabla_Consulta_desde_QuickBooks_Data_64_Bit_QRemote[[#This Row],[pide]] -> 0 | V14: =IF(Tabla_Consulta_desde_QuickBooks_Data_64_Bit_QRemote[[#This Row],[diferecia]]=0,"ok","diferen") -> ok | W14: =IFERROR(INDEX(um!A:C,MATCH(Tabla_Consulta_desde_QuickBooks_Data_64_Bit_QRemote[[#This Row],[SalesOrderLineItemRefFullName]],um!A:A,0),3),"") -> X24 | X14: =IFERROR(IF(OR(Tabla_Consulta_desde_QuickBooks_Data_64_Bit_QRemote[[#This Row],[SalesOrderLineUnitOfMeasure]]="UN",Tabla_Consulta_desde_QuickBooks_Data_64_Bit_QRemote[[#This Row],[SalesOrderLineUnitOfMeasure]]=Tabla_Consulta_desde_QuickBooks_Data_64_Bit_QRemote[[#This Row],[U/M]]),"","ERROR"),"") ->  | Y14: =+WEEKNUM(Tabla_Consulta_desde_QuickBooks_Data_64_Bit_QRemote[[#This Row],[TxnDate]]) -> 23 | Z14: =+Tabla_Consulta_desde_QuickBooks_Data_64_Bit_QRemote[[#This Row],[SalesOrderLineRate]]*Tabla_Consulta_desde_QuickBooks_Data_64_Bit_QRemote[[#This Row],[SalesOrderLineInvoiced]] -> 71.04 | AA14: =+IFERROR(IF(Tabla_Consulta_desde_QuickBooks_Data_64_Bit_QRemote[[#This Row],[CustomerRefFullName]]="GRUVALCORP SA",VLOOKUP(Tabla_Consulta_desde_QuickBooks_Data_64_Bit_QRemote[[#This Row],[SalesOrderLineItemRefFullName]],Hoja1!A:E,5,FALSE),"")*-Tabla_Consulta_desde_QuickBooks_Data_64_Bit_QRemote[[#This Row],[SalesOrderLineAmount]],"") ->  | AB14: =IF(COUNTIF(wms!E:E,Tabla_Consulta_desde_QuickBooks_Data_64_Bit_QRemote[[#This Row],[RefNumber]])>0,"OK","FALTA") -> OK
A15: 2025-06-02 | B15: 29038 | C15: ZAMBRANO ZAMBRANO CLEYTON ELIECER | D15: RETIRA TRANSPORTES CARREÑO | E15: 3 | F15: 7862112521599 | G15: P.T:110214 | H15: SALSA AJÍ MANABA OLE 300G | I15: Bodega Producto Terminado | J15: 12 | K15: X12 | L15: 2.18 | M15: 26.16 | N15: UNIDAD SALSA | O15: 12 | P15: 833.4 | Q15: 958.41 | R15: IVA EN VENTAS 15% | S15: =IFERROR(IF(Tabla_Consulta_desde_QuickBooks_Data_64_Bit_QRemote[[#This Row],[SalesOrderLineUnitOfMeasure]]="un",Tabla_Consulta_desde_QuickBooks_Data_64_Bit_QRemote[[#This Row],[SalesOrderLineQuantity]],Tabla_Consulta_desde_QuickBooks_Data_64_Bit_QRemote[[#This Row],[SalesOrderLineQuantity]]/MID(Tabla_Consulta_desde_QuickBooks_Data_64_Bit_QRemote[[#This Row],[SalesOrderLineUnitOfMeasure]],2,2)),0) -> 1 | T15: =IFERROR(IF(Tabla_Consulta_desde_QuickBooks_Data_64_Bit_QRemote[[#This Row],[SalesOrderLineUnitOfMeasure]]="un",Tabla_Consulta_desde_QuickBooks_Data_64_Bit_QRemote[[#This Row],[SalesOrderLineInvoiced]],Tabla_Consulta_desde_QuickBooks_Data_64_Bit_QRemote[[#This Row],[SalesOrderLineInvoiced]]/MID(Tabla_Consulta_desde_QuickBooks_Data_64_Bit_QRemote[[#This Row],[SalesOrderLineUnitOfMeasure]],2,2)),0) -> 1 | U15: =+Tabla_Consulta_desde_QuickBooks_Data_64_Bit_QRemote[[#This Row],[facturado]]-Tabla_Consulta_desde_QuickBooks_Data_64_Bit_QRemote[[#This Row],[pide]] -> 0 | V15: =IF(Tabla_Consulta_desde_QuickBooks_Data_64_Bit_QRemote[[#This Row],[diferecia]]=0,"ok","diferen") -> ok | W15: =IFERROR(INDEX(um!A:C,MATCH(Tabla_Consulta_desde_QuickBooks_Data_64_Bit_QRemote[[#This Row],[SalesOrderLineItemRefFullName]],um!A:A,0),3),"") -> X12 | X15: =IFERROR(IF(OR(Tabla_Consulta_desde_QuickBooks_Data_64_Bit_QRemote[[#This Row],[SalesOrderLineUnitOfMeasure]]="UN",Tabla_Consulta_desde_QuickBooks_Data_64_Bit_QRemote[[#This Row],[SalesOrderLineUnitOfMeasure]]=Tabla_Consulta_desde_QuickBooks_Data_64_Bit_QRemote[[#This Row],[U/M]]),"","ERROR"),"") ->  | Y15: =+WEEKNUM(Tabla_Consulta_desde_QuickBooks_Data_64_Bit_QRemote[[#This Row],[TxnDate]]) -> 23 | Z15: =+Tabla_Consulta_desde_QuickBooks_Data_64_Bit_QRemote[[#This Row],[SalesOrderLineRate]]*Tabla_Consulta_desde_QuickBooks_Data_64_Bit_QRemote[[#This Row],[SalesOrderLineInvoiced]] -> 26.16 | AA15: =+IFERROR(IF(Tabla_Consulta_desde_QuickBooks_Data_64_Bit_QRemote[[#This Row],[CustomerRefFullName]]="GRUVALCORP SA",VLOOKUP(Tabla_Consulta_desde_QuickBooks_Data_64_Bit_QRemote[[#This Row],[SalesOrderLineItemRefFullName]],Hoja1!A:E,5,FALSE),"")*-Tabla_Consulta_desde_QuickBooks_Data_64_Bit_QRemote[[#This Row],[SalesOrderLineAmount]],"") ->  | AB15: =IF(COUNTIF(wms!E:E,Tabla_Consulta_desde_QuickBooks_Data_64_Bit_QRemote[[#This Row],[RefNumber]])>0,"OK","FALTA") -> OK
A16: 2025-06-02 | B16: 29038 | C16: ZAMBRANO ZAMBRANO CLEYTON ELIECER | D16: RETIRA TRANSPORTES CARREÑO | E16: 4 | F16: 7862112521544 | G16: P.T:110224 | H16: SALSA SRIRACHA PICANTE OLE 285G | I16: Bodega Producto Terminado | J16: 12 | K16: X12 | L16: 2.87 | M16: 34.44 | N16: UNIDAD SALSA | O16: 12 | P16: 833.4 | Q16: 958.41 | R16: IVA EN VENTAS 15% | S16: =IFERROR(IF(Tabla_Consulta_desde_QuickBooks_Data_64_Bit_QRemote[[#This Row],[SalesOrderLineUnitOfMeasure]]="un",Tabla_Consulta_desde_QuickBooks_Data_64_Bit_QRemote[[#This Row],[SalesOrderLineQuantity]],Tabla_Consulta_desde_QuickBooks_Data_64_Bit_QRemote[[#This Row],[SalesOrderLineQuantity]]/MID(Tabla_Consulta_desde_QuickBooks_Data_64_Bit_QRemote[[#This Row],[SalesOrderLineUnitOfMeasure]],2,2)),0) -> 1 | T16: =IFERROR(IF(Tabla_Consulta_desde_QuickBooks_Data_64_Bit_QRemote[[#This Row],[SalesOrderLineUnitOfMeasure]]="un",Tabla_Consulta_desde_QuickBooks_Data_64_Bit_QRemote[[#This Row],[SalesOrderLineInvoiced]],Tabla_Consulta_desde_QuickBooks_Data_64_Bit_QRemote[[#This Row],[SalesOrderLineInvoiced]]/MID(Tabla_Consulta_desde_QuickBooks_Data_64_Bit_QRemote[[#This Row],[SalesOrderLineUnitOfMeasure]],2,2)),0) -> 1 | U16: =+Tabla_Consulta_desde_QuickBooks_Data_64_Bit_QRemote[[#This Row],[facturado]]-Tabla_Consulta_desde_QuickBooks_Data_64_Bit_QRemote[[#This Row],[pide]] -> 0 | V16: =IF(Tabla_Consulta_desde_QuickBooks_Data_64_Bit_QRemote[[#This Row],[diferecia]]=0,"ok","diferen") -> ok | W16: =IFERROR(INDEX(um!A:C,MATCH(Tabla_Consulta_desde_QuickBooks_Data_64_Bit_QRemote[[#This Row],[SalesOrderLineItemRefFullName]],um!A:A,0),3),"") -> X12 | X16: =IFERROR(IF(OR(Tabla_Consulta_desde_QuickBooks_Data_64_Bit_QRemote[[#This Row],[SalesOrderLineUnitOfMeasure]]="UN",Tabla_Consulta_desde_QuickBooks_Data_64_Bit_QRemote[[#This Row],[SalesOrderLineUnitOfMeasure]]=Tabla_Consulta_desde_QuickBooks_Data_64_Bit_QRemote[[#This Row],[U/M]]),"","ERROR"),"") ->  | Y16: =+WEEKNUM(Tabla_Consulta_desde_QuickBooks_Data_64_Bit_QRemote[[#This Row],[TxnDate]]) -> 23 | Z16: =+Tabla_Consulta_desde_QuickBooks_Data_64_Bit_QRemote[[#This Row],[SalesOrderLineRate]]*Tabla_Consulta_desde_QuickBooks_Data_64_Bit_QRemote[[#This Row],[SalesOrderLineInvoiced]] -> 34.44 | AA16: =+IFERROR(IF(Tabla_Consulta_desde_QuickBooks_Data_64_Bit_QRemote[[#This Row],[CustomerRefFullName]]="GRUVALCORP SA",VLOOKUP(Tabla_Consulta_desde_QuickBooks_Data_64_Bit_QRemote[[#This Row],[SalesOrderLineItemRefFullName]],Hoja1!A:E,5,FALSE),"")*-Tabla_Consulta_desde_QuickBooks_Data_64_Bit_QRemote[[#This Row],[SalesOrderLineAmount]],"") ->  | AB16: =IF(COUNTIF(wms!E:E,Tabla_Consulta_desde_QuickBooks_Data_64_Bit_QRemote[[#This Row],[RefNumber]])>0,"OK","FALTA") -> OK
A17: 2025-06-02 | B17: 29038 | C17: ZAMBRANO ZAMBRANO CLEYTON ELIECER | D17: RETIRA TRANSPORTES CARREÑO | E17: 5 | F17: 7862112522244 | G17: P.T:110736 | H17: TERIYAKI SALSA ASIATICA OLE 300G | I17: Bodega Producto Terminado | J17: 12 | K17: X12 | L17: 2.15 | M17: 25.8 | N17: UNIDAD SALSA | O17: 12 | P17: 833.4 | Q17: 958.41 | R17: IVA EN VENTAS 15% | S17: =IFERROR(IF(Tabla_Consulta_desde_QuickBooks_Data_64_Bit_QRemote[[#This Row],[SalesOrderLineUnitOfMeasure]]="un",Tabla_Consulta_desde_QuickBooks_Data_64_Bit_QRemote[[#This Row],[SalesOrderLineQuantity]],Tabla_Consulta_desde_QuickBooks_Data_64_Bit_QRemote[[#This Row],[SalesOrderLineQuantity]]/MID(Tabla_Consulta_desde_QuickBooks_Data_64_Bit_QRemote[[#This Row],[SalesOrderLineUnitOfMeasure]],2,2)),0) -> 1 | T17: =IFERROR(IF(Tabla_Consulta_desde_QuickBooks_Data_64_Bit_QRemote[[#This Row],[SalesOrderLineUnitOfMeasure]]="un",Tabla_Consulta_desde_QuickBooks_Data_64_Bit_QRemote[[#This Row],[SalesOrderLineInvoiced]],Tabla_Consulta_desde_QuickBooks_Data_64_Bit_QRemote[[#This Row],[SalesOrderLineInvoiced]]/MID(Tabla_Consulta_desde_QuickBooks_Data_64_Bit_QRemote[[#This Row],[SalesOrderLineUnitOfMeasure]],2,2)),0) -> 1 | U17: =+Tabla_Consulta_desde_QuickBooks_Data_64_Bit_QRemote[[#This Row],[facturado]]-Tabla_Consulta_desde_QuickBooks_Data_64_Bit_QRemote[[#This Row],[pide]] -> 0 | V17: =IF(Tabla_Consulta_desde_QuickBooks_Data_64_Bit_QRemote[[#This Row],[diferecia]]=0,"ok","diferen") -> ok | W17: =IFERROR(INDEX(um!A:C,MATCH(Tabla_Consulta_desde_QuickBooks_Data_64_Bit_QRemote[[#This Row],[SalesOrderLineItemRefFullName]],um!A:A,0),3),"") -> X12 | X17: =IFERROR(IF(OR(Tabla_Consulta_desde_QuickBooks_Data_64_Bit_QRemote[[#This Row],[SalesOrderLineUnitOfMeasure]]="UN",Tabla_Consulta_desde_QuickBooks_Data_64_Bit_QRemote[[#This Row],[SalesOrderLineUnitOfMeasure]]=Tabla_Consulta_desde_QuickBooks_Data_64_Bit_QRemote[[#This Row],[U/M]]),"","ERROR"),"") ->  | Y17: =+WEEKNUM(Tabla_Consulta_desde_QuickBooks_Data_64_Bit_QRemote[[#This Row],[TxnDate]]) -> 23 | Z17: =+Tabla_Consulta_desde_QuickBooks_Data_64_Bit_QRemote[[#This Row],[SalesOrderLineRate]]*Tabla_Consulta_desde_QuickBooks_Data_64_Bit_QRemote[[#This Row],[SalesOrderLineInvoiced]] -> 25.8 | AA17: =+IFERROR(IF(Tabla_Consulta_desde_QuickBooks_Data_64_Bit_QRemote[[#This Row],[CustomerRefFullName]]="GRUVALCORP SA",VLOOKUP(Tabla_Consulta_desde_QuickBooks_Data_64_Bit_QRemote[[#This Row],[SalesOrderLineItemRefFullName]],Hoja1!A:E,5,FALSE),"")*-Tabla_Consulta_desde_QuickBooks_Data_64_Bit_QRemote[[#This Row],[SalesOrderLineAmount]],"") ->  | AB17: =IF(COUNTIF(wms!E:E,Tabla_Consulta_desde_QuickBooks_Data_64_Bit_QRemote[[#This Row],[RefNumber]])>0,"OK","FALTA") -> OK
A18: 2025-06-02 | B18: 29038 | C18: ZAMBRANO ZAMBRANO CLEYTON ELIECER | D18: RETIRA TRANSPORTES CARREÑO | E18: 6 | F18: 7862112522527 | G18: P.T:110803 | H18: SALSA GUACAMOLE ORIGINAL OLE DP 200G | I18: Bodega Producto Terminado | J18: 24 | K18: X12 | L18: 1.6 | M18: 38.4 | N18: UNIDAD SALSA | O18: 24 | P18: 833.4 | Q18: 958.41 | R18: IVA EN VENTAS 15% | S18: =IFERROR(IF(Tabla_Consulta_desde_QuickBooks_Data_64_Bit_QRemote[[#This Row],[SalesOrderLineUnitOfMeasure]]="un",Tabla_Consulta_desde_QuickBooks_Data_64_Bit_QRemote[[#This Row],[SalesOrderLineQuantity]],Tabla_Consulta_desde_QuickBooks_Data_64_Bit_QRemote[[#This Row],[SalesOrderLineQuantity]]/MID(Tabla_Consulta_desde_QuickBooks_Data_64_Bit_QRemote[[#This Row],[SalesOrderLineUnitOfMeasure]],2,2)),0) -> 2 | T18: =IFERROR(IF(Tabla_Consulta_desde_QuickBooks_Data_64_Bit_QRemote[[#This Row],[SalesOrderLineUnitOfMeasure]]="un",Tabla_Consulta_desde_QuickBooks_Data_64_Bit_QRemote[[#This Row],[SalesOrderLineInvoiced]],Tabla_Consulta_desde_QuickBooks_Data_64_Bit_QRemote[[#This Row],[SalesOrderLineInvoiced]]/MID(Tabla_Consulta_desde_QuickBooks_Data_64_Bit_QRemote[[#This Row],[SalesOrderLineUnitOfMeasure]],2,2)),0) -> 2 | U18: =+Tabla_Consulta_desde_QuickBooks_Data_64_Bit_QRemote[[#This Row],[facturado]]-Tabla_Consulta_desde_QuickBooks_Data_64_Bit_QRemote[[#This Row],[pide]] -> 0 | V18: =IF(Tabla_Consulta_desde_QuickBooks_Data_64_Bit_QRemote[[#This Row],[diferecia]]=0,"ok","diferen") -> ok | W18: =IFERROR(INDEX(um!A:C,MATCH(Tabla_Consulta_desde_QuickBooks_Data_64_Bit_QRemote[[#This Row],[SalesOrderLineItemRefFullName]],um!A:A,0),3),"") -> X12 | X18: =IFERROR(IF(OR(Tabla_Consulta_desde_QuickBooks_Data_64_Bit_QRemote[[#This Row],[SalesOrderLineUnitOfMeasure]]="UN",Tabla_Consulta_desde_QuickBooks_Data_64_Bit_QRemote[[#This Row],[SalesOrderLineUnitOfMeasure]]=Tabla_Consulta_desde_QuickBooks_Data_64_Bit_QRemote[[#This Row],[U/M]]),"","ERROR"),"") ->  | Y18: =+WEEKNUM(Tabla_Consulta_desde_QuickBooks_Data_64_Bit_QRemote[[#This Row],[TxnDate]]) -> 23 | Z18: =+Tabla_Consulta_desde_QuickBooks_Data_64_Bit_QRemote[[#This Row],[SalesOrderLineRate]]*Tabla_Consulta_desde_QuickBooks_Data_64_Bit_QRemote[[#This Row],[SalesOrderLineInvoiced]] -> 38.4 | AA18: =+IFERROR(IF(Tabla_Consulta_desde_QuickBooks_Data_64_Bit_QRemote[[#This Row],[CustomerRefFullName]]="GRUVALCORP SA",VLOOKUP(Tabla_Consulta_desde_QuickBooks_Data_64_Bit_QRemote[[#This Row],[SalesOrderLineItemRefFullName]],Hoja1!A:E,5,FALSE),"")*-Tabla_Consulta_desde_QuickBooks_Data_64_Bit_QRemote[[#This Row],[SalesOrderLineAmount]],"") ->  | AB18: =IF(COUNTIF(wms!E:E,Tabla_Consulta_desde_QuickBooks_Data_64_Bit_QRemote[[#This Row],[RefNumber]])>0,"OK","FALTA") -> OK
A19: 2025-06-02 | B19: 29038 | C19: ZAMBRANO ZAMBRANO CLEYTON ELIECER | D19: RETIRA TRANSPORTES CARREÑO | E19: 7 | F19: 7862112522183 | G19: P.T:110733 | H19: SALSA GUACAMOLE OLE 220G | I19: Bodega Producto Terminado | J19: 12 | K19: X12 | L19: 1.75 | M19: 21 | N19: UNIDAD SALSA | O19: 12 | P19: 833.4 | Q19: 958.41 | R19: IVA EN VENTAS 15% | S19: =IFERROR(IF(Tabla_Consulta_desde_QuickBooks_Data_64_Bit_QRemote[[#This Row],[SalesOrderLineUnitOfMeasure]]="un",Tabla_Consulta_desde_QuickBooks_Data_64_Bit_QRemote[[#This Row],[SalesOrderLineQuantity]],Tabla_Consulta_desde_QuickBooks_Data_64_Bit_QRemote[[#This Row],[SalesOrderLineQuantity]]/MID(Tabla_Consulta_desde_QuickBooks_Data_64_Bit_QRemote[[#This Row],[SalesOrderLineUnitOfMeasure]],2,2)),0) -> 1 | T19: =IFERROR(IF(Tabla_Consulta_desde_QuickBooks_Data_64_Bit_QRemote[[#This Row],[SalesOrderLineUnitOfMeasure]]="un",Tabla_Consulta_desde_QuickBooks_Data_64_Bit_QRemote[[#This Row],[SalesOrderLineInvoiced]],Tabla_Consulta_desde_QuickBooks_Data_64_Bit_QRemote[[#This Row],[SalesOrderLineInvoiced]]/MID(Tabla_Consulta_desde_QuickBooks_Data_64_Bit_QRemote[[#This Row],[SalesOrderLineUnitOfMeasure]],2,2)),0) -> 1 | U19: =+Tabla_Consulta_desde_QuickBooks_Data_64_Bit_QRemote[[#This Row],[facturado]]-Tabla_Consulta_desde_QuickBooks_Data_64_Bit_QRemote[[#This Row],[pide]] -> 0 | V19: =IF(Tabla_Consulta_desde_QuickBooks_Data_64_Bit_QRemote[[#This Row],[diferecia]]=0,"ok","diferen") -> ok | W19: =IFERROR(INDEX(um!A:C,MATCH(Tabla_Consulta_desde_QuickBooks_Data_64_Bit_QRemote[[#This Row],[SalesOrderLineItemRefFullName]],um!A:A,0),3),"") -> X12 | X19: =IFERROR(IF(OR(Tabla_Consulta_desde_QuickBooks_Data_64_Bit_QRemote[[#This Row],[SalesOrderLineUnitOfMeasure]]="UN",Tabla_Consulta_desde_QuickBooks_Data_64_Bit_QRemote[[#This Row],[SalesOrderLineUnitOfMeasure]]=Tabla_Consulta_desde_QuickBooks_Data_64_Bit_QRemote[[#This Row],[U/M]]),"","ERROR"),"") ->  | Y19: =+WEEKNUM(Tabla_Consulta_desde_QuickBooks_Data_64_Bit_QRemote[[#This Row],[TxnDate]]) -> 23 | Z19: =+Tabla_Consulta_desde_QuickBooks_Data_64_Bit_QRemote[[#This Row],[SalesOrderLineRate]]*Tabla_Consulta_desde_QuickBooks_Data_64_Bit_QRemote[[#This Row],[SalesOrderLineInvoiced]] -> 21 | AA19: =+IFERROR(IF(Tabla_Consulta_desde_QuickBooks_Data_64_Bit_QRemote[[#This Row],[CustomerRefFullName]]="GRUVALCORP SA",VLOOKUP(Tabla_Consulta_desde_QuickBooks_Data_64_Bit_QRemote[[#This Row],[SalesOrderLineItemRefFullName]],Hoja1!A:E,5,FALSE),"")*-Tabla_Consulta_desde_QuickBooks_Data_64_Bit_QRemote[[#This Row],[SalesOrderLineAmount]],"") ->  | AB19: =IF(COUNTIF(wms!E:E,Tabla_Consulta_desde_QuickBooks_Data_64_Bit_QRemote[[#This Row],[RefNumber]])>0,"OK","FALTA") -> OK
A20: 2025-06-02 | B20: 29038 | C20: ZAMBRANO ZAMBRANO CLEYTON ELIECER | D20: RETIRA TRANSPORTES CARREÑO | E20: 8 | F20: 7862112522787 | G20: P.T:311606 | H20: SALSA QUESO CHEDDAR OLE 200G | I20: Bodega Producto Terminado | J20: 24 | K20: X24 | L20: 0 | M20: 0 | N20: UNIDAD SALSA | O20: 24 | P20: 833.4 | Q20: 958.41 | R20: IVA EN VENTAS 15% | S20: =IFERROR(IF(Tabla_Consulta_desde_QuickBooks_Data_64_Bit_QRemote[[#This Row],[SalesOrderLineUnitOfMeasure]]="un",Tabla_Consulta_desde_QuickBooks_Data_64_Bit_QRemote[[#This Row],[SalesOrderLineQuantity]],Tabla_Consulta_desde_QuickBooks_Data_64_Bit_QRemote[[#This Row],[SalesOrderLineQuantity]]/MID(Tabla_Consulta_desde_QuickBooks_Data_64_Bit_QRemote[[#This Row],[SalesOrderLineUnitOfMeasure]],2,2)),0) -> 1 | T20: =IFERROR(IF(Tabla_Consulta_desde_QuickBooks_Data_64_Bit_QRemote[[#This Row],[SalesOrderLineUnitOfMeasure]]="un",Tabla_Consulta_desde_QuickBooks_Data_64_Bit_QRemote[[#This Row],[SalesOrderLineInvoiced]],Tabla_Consulta_desde_QuickBooks_Data_64_Bit_QRemote[[#This Row],[SalesOrderLineInvoiced]]/MID(Tabla_Consulta_desde_QuickBooks_Data_64_Bit_QRemote[[#This Row],[SalesOrderLineUnitOfMeasure]],2,2)),0) -> 1 | U20: =+Tabla_Consulta_desde_QuickBooks_Data_64_Bit_QRemote[[#This Row],[facturado]]-Tabla_Consulta_desde_QuickBooks_Data_64_Bit_QRemote[[#This Row],[pide]] -> 0 | V20: =IF(Tabla_Consulta_desde_QuickBooks_Data_64_Bit_QRemote[[#This Row],[diferecia]]=0,"ok","diferen") -> ok | W20: =IFERROR(INDEX(um!A:C,MATCH(Tabla_Consulta_desde_QuickBooks_Data_64_Bit_QRemote[[#This Row],[SalesOrderLineItemRefFullName]],um!A:A,0),3),"") -> X24 | X20: =IFERROR(IF(OR(Tabla_Consulta_desde_QuickBooks_Data_64_Bit_QRemote[[#This Row],[SalesOrderLineUnitOfMeasure]]="UN",Tabla_Consulta_desde_QuickBooks_Data_64_Bit_QRemote[[#This Row],[SalesOrderLineUnitOfMeasure]]=Tabla_Consulta_desde_QuickBooks_Data_64_Bit_QRemote[[#This Row],[U/M]]),"","ERROR"),"") ->  | Y20: =+WEEKNUM(Tabla_Consulta_desde_QuickBooks_Data_64_Bit_QRemote[[#This Row],[TxnDate]]) -> 23 | Z20: =+Tabla_Consulta_desde_QuickBooks_Data_64_Bit_QRemote[[#This Row],[SalesOrderLineRate]]*Tabla_Consulta_desde_QuickBooks_Data_64_Bit_QRemote[[#This Row],[SalesOrderLineInvoiced]] -> 0 | AA20: =+IFERROR(IF(Tabla_Consulta_desde_QuickBooks_Data_64_Bit_QRemote[[#This Row],[CustomerRefFullName]]="GRUVALCORP SA",VLOOKUP(Tabla_Consulta_desde_QuickBooks_Data_64_Bit_QRemote[[#This Row],[SalesOrderLineItemRefFullName]],Hoja1!A:E,5,FALSE),"")*-Tabla_Consulta_desde_QuickBooks_Data_64_Bit_QRemote[[#This Row],[SalesOrderLineAmount]],"") ->  | AB20: =IF(COUNTIF(wms!E:E,Tabla_Consulta_desde_QuickBooks_Data_64_Bit_QRemote[[#This Row],[RefNumber]])>0,"OK","FALTA") -> OK
A21: 2025-06-02 | B21: 29038 | C21: ZAMBRANO ZAMBRANO CLEYTON ELIECER | D21: RETIRA TRANSPORTES CARREÑO | E21: 9 | F21: 7861000227513 | G21: P.T:110603 | H21: JALAPEÑO ROJOS Y VERDES OLE 200G | I21: Bodega Producto Terminado | J21: 48 | K21: X24 | L21: 2.04 | M21: 97.92 | N21: UNIDAD SALSA | O21: 48 | P21: 833.4 | Q21: 958.41 | R21: IVA EN VENTAS 15% | S21: =IFERROR(IF(Tabla_Consulta_desde_QuickBooks_Data_64_Bit_QRemote[[#This Row],[SalesOrderLineUnitOfMeasure]]="un",Tabla_Consulta_desde_QuickBooks_Data_64_Bit_QRemote[[#This Row],[SalesOrderLineQuantity]],Tabla_Consulta_desde_QuickBooks_Data_64_Bit_QRemote[[#This Row],[SalesOrderLineQuantity]]/MID(Tabla_Consulta_desde_QuickBooks_Data_64_Bit_QRemote[[#This Row],[SalesOrderLineUnitOfMeasure]],2,2)),0) -> 2 | T21: =IFERROR(IF(Tabla_Consulta_desde_QuickBooks_Data_64_Bit_QRemote[[#This Row],[SalesOrderLineUnitOfMeasure]]="un",Tabla_Consulta_desde_QuickBooks_Data_64_Bit_QRemote[[#This Row],[SalesOrderLineInvoiced]],Tabla_Consulta_desde_QuickBooks_Data_64_Bit_QRemote[[#This Row],[SalesOrderLineInvoiced]]/MID(Tabla_Consulta_desde_QuickBooks_Data_64_Bit_QRemote[[#This Row],[SalesOrderLineUnitOfMeasure]],2,2)),0) -> 2 | U21: =+Tabla_Consulta_desde_QuickBooks_Data_64_Bit_QRemote[[#This Row],[facturado]]-Tabla_Consulta_desde_QuickBooks_Data_64_Bit_QRemote[[#This Row],[pide]] -> 0 | V21: =IF(Tabla_Consulta_desde_QuickBooks_Data_64_Bit_QRemote[[#This Row],[diferecia]]=0,"ok","diferen") -> ok | W21: =IFERROR(INDEX(um!A:C,MATCH(Tabla_Consulta_desde_QuickBooks_Data_64_Bit_QRemote[[#This Row],[SalesOrderLineItemRefFullName]],um!A:A,0),3),"") -> X24 | X21: =IFERROR(IF(OR(Tabla_Consulta_desde_QuickBooks_Data_64_Bit_QRemote[[#This Row],[SalesOrderLineUnitOfMeasure]]="UN",Tabla_Consulta_desde_QuickBooks_Data_64_Bit_QRemote[[#This Row],[SalesOrderLineUnitOfMeasure]]=Tabla_Consulta_desde_QuickBooks_Data_64_Bit_QRemote[[#This Row],[U/M]]),"","ERROR"),"") ->  | Y21: =+WEEKNUM(Tabla_Consulta_desde_QuickBooks_Data_64_Bit_QRemote[[#This Row],[TxnDate]]) -> 23 | Z21: =+Tabla_Consulta_desde_QuickBooks_Data_64_Bit_QRemote[[#This Row],[SalesOrderLineRate]]*Tabla_Consulta_desde_QuickBooks_Data_64_Bit_QRemote[[#This Row],[SalesOrderLineInvoiced]] -> 97.92 | AA21: =+IFERROR(IF(Tabla_Consulta_desde_QuickBooks_Data_64_Bit_QRemote[[#This Row],[CustomerRefFullName]]="GRUVALCORP SA",VLOOKUP(Tabla_Consulta_desde_QuickBooks_Data_64_Bit_QRemote[[#This Row],[SalesOrderLineItemRefFullName]],Hoja1!A:E,5,FALSE),"")*-Tabla_Consulta_desde_QuickBooks_Data_64_Bit_QRemote[[#This Row],[SalesOrderLineAmount]],"") ->  | AB21: =IF(COUNTIF(wms!E:E,Tabla_Consulta_desde_QuickBooks_Data_64_Bit_QRemote[[#This Row],[RefNumber]])>0,"OK","FALTA") -> OK
A22: 2025-06-02 | B22: 29038 | C22: ZAMBRANO ZAMBRANO CLEYTON ELIECER | D22: RETIRA TRANSPORTES CARREÑO | E22: 10 | F22: 705424000352 | G22: P.T:110608 | H22: JALAPEÑO ROJOS Y VERDES OLE 370G | I22: Bodega Producto Terminado | J22: 12 | K22: X12 | L22: 3.07 | M22: 36.84 | N22: UNIDAD SALSA | O22: 12 | P22: 833.4 | Q22: 958.41 | R22: IVA EN VENTAS 15% | S22: =IFERROR(IF(Tabla_Consulta_desde_QuickBooks_Data_64_Bit_QRemote[[#This Row],[SalesOrderLineUnitOfMeasure]]="un",Tabla_Consulta_desde_QuickBooks_Data_64_Bit_QRemote[[#This Row],[SalesOrderLineQuantity]],Tabla_Consulta_desde_QuickBooks_Data_64_Bit_QRemote[[#This Row],[SalesOrderLineQuantity]]/MID(Tabla_Consulta_desde_QuickBooks_Data_64_Bit_QRemote[[#This Row],[SalesOrderLineUnitOfMeasure]],2,2)),0) -> 1 | T22: =IFERROR(IF(Tabla_Consulta_desde_QuickBooks_Data_64_Bit_QRemote[[#This Row],[SalesOrderLineUnitOfMeasure]]="un",Tabla_Consulta_desde_QuickBooks_Data_64_Bit_QRemote[[#This Row],[SalesOrderLineInvoiced]],Tabla_Consulta_desde_QuickBooks_Data_64_Bit_QRemote[[#This Row],[SalesOrderLineInvoiced]]/MID(Tabla_Consulta_desde_QuickBooks_Data_64_Bit_QRemote[[#This Row],[SalesOrderLineUnitOfMeasure]],2,2)),0) -> 1 | U22: =+Tabla_Consulta_desde_QuickBooks_Data_64_Bit_QRemote[[#This Row],[facturado]]-Tabla_Consulta_desde_QuickBooks_Data_64_Bit_QRemote[[#This Row],[pide]] -> 0 | V22: =IF(Tabla_Consulta_desde_QuickBooks_Data_64_Bit_QRemote[[#This Row],[diferecia]]=0,"ok","diferen") -> ok | W22: =IFERROR(INDEX(um!A:C,MATCH(Tabla_Consulta_desde_QuickBooks_Data_64_Bit_QRemote[[#This Row],[SalesOrderLineItemRefFullName]],um!A:A,0),3),"") -> X12 | X22: =IFERROR(IF(OR(Tabla_Consulta_desde_QuickBooks_Data_64_Bit_QRemote[[#This Row],[SalesOrderLineUnitOfMeasure]]="UN",Tabla_Consulta_desde_QuickBooks_Data_64_Bit_QRemote[[#This Row],[SalesOrderLineUnitOfMeasure]]=Tabla_Consulta_desde_QuickBooks_Data_64_Bit_QRemote[[#This Row],[U/M]]),"","ERROR"),"") ->  | Y22: =+WEEKNUM(Tabla_Consulta_desde_QuickBooks_Data_64_Bit_QRemote[[#This Row],[TxnDate]]) -> 23 | Z22: =+Tabla_Consulta_desde_QuickBooks_Data_64_Bit_QRemote[[#This Row],[SalesOrderLineRate]]*Tabla_Consulta_desde_QuickBooks_Data_64_Bit_QRemote[[#This Row],[SalesOrderLineInvoiced]] -> 36.84 | AA22: =+IFERROR(IF(Tabla_Consulta_desde_QuickBooks_Data_64_Bit_QRemote[[#This Row],[CustomerRefFullName]]="GRUVALCORP SA",VLOOKUP(Tabla_Consulta_desde_QuickBooks_Data_64_Bit_QRemote[[#This Row],[SalesOrderLineItemRefFullName]],Hoja1!A:E,5,FALSE),"")*-Tabla_Consulta_desde_QuickBooks_Data_64_Bit_QRemote[[#This Row],[SalesOrderLineAmount]],"") ->  | AB22: =IF(COUNTIF(wms!E:E,Tabla_Consulta_desde_QuickBooks_Data_64_Bit_QRemote[[#This Row],[RefNumber]])>0,"OK","FALTA") -> OK
A23: 2025-06-02 | B23: 29038 | C23: ZAMBRANO ZAMBRANO CLEYTON ELIECER | D23: RETIRA TRANSPORTES CARREÑO | E23: 11 | F23: 7862112520509 | G23: P.T:110606 | H23: JALAPEÑO ROJOS Y VERDES AGRIDULCES OLE 250G | I23: Bodega Producto Terminado | J23: 12 | K23: X12 | L23: 1.81 | M23: 21.72 | N23: UNIDAD SALSA | O23: 12 | P23: 833.4 | Q23: 958.41 | R23: IVA EN VENTAS 15% | S23: =IFERROR(IF(Tabla_Consulta_desde_QuickBooks_Data_64_Bit_QRemote[[#This Row],[SalesOrderLineUnitOfMeasure]]="un",Tabla_Consulta_desde_QuickBooks_Data_64_Bit_QRemote[[#This Row],[SalesOrderLineQuantity]],Tabla_Consulta_desde_QuickBooks_Data_64_Bit_QRemote[[#This Row],[SalesOrderLineQuantity]]/MID(Tabla_Consulta_desde_QuickBooks_Data_64_Bit_QRemote[[#This Row],[SalesOrderLineUnitOfMeasure]],2,2)),0) -> 1 | T23: =IFERROR(IF(Tabla_Consulta_desde_QuickBooks_Data_64_Bit_QRemote[[#This Row],[SalesOrderLineUnitOfMeasure]]="un",Tabla_Consulta_desde_QuickBooks_Data_64_Bit_QRemote[[#This Row],[SalesOrderLineInvoiced]],Tabla_Consulta_desde_QuickBooks_Data_64_Bit_QRemote[[#This Row],[SalesOrderLineInvoiced]]/MID(Tabla_Consulta_desde_QuickBooks_Data_64_Bit_QRemote[[#This Row],[SalesOrderLineUnitOfMeasure]],2,2)),0) -> 1 | U23: =+Tabla_Consulta_desde_QuickBooks_Data_64_Bit_QRemote[[#This Row],[facturado]]-Tabla_Consulta_desde_QuickBooks_Data_64_Bit_QRemote[[#This Row],[pide]] -> 0 | V23: =IF(Tabla_Consulta_desde_QuickBooks_Data_64_Bit_QRemote[[#This Row],[diferecia]]=0,"ok","diferen") -> ok | W23: =IFERROR(INDEX(um!A:C,MATCH(Tabla_Consulta_desde_QuickBooks_Data_64_Bit_QRemote[[#This Row],[SalesOrderLineItemRefFullName]],um!A:A,0),3),"") -> X12 | X23: =IFERROR(IF(OR(Tabla_Consulta_desde_QuickBooks_Data_64_Bit_QRemote[[#This Row],[SalesOrderLineUnitOfMeasure]]="UN",Tabla_Consulta_desde_QuickBooks_Data_64_Bit_QRemote[[#This Row],[SalesOrderLineUnitOfMeasure]]=Tabla_Consulta_desde_QuickBooks_Data_64_Bit_QRemote[[#This Row],[U/M]]),"","ERROR"),"") ->  | Y23: =+WEEKNUM(Tabla_Consulta_desde_QuickBooks_Data_64_Bit_QRemote[[#This Row],[TxnDate]]) -> 23 | Z23: =+Tabla_Consulta_desde_QuickBooks_Data_64_Bit_QRemote[[#This Row],[SalesOrderLineRate]]*Tabla_Consulta_desde_QuickBooks_Data_64_Bit_QRemote[[#This Row],[SalesOrderLineInvoiced]] -> 21.72 | AA23: =+IFERROR(IF(Tabla_Consulta_desde_QuickBooks_Data_64_Bit_QRemote[[#This Row],[CustomerRefFullName]]="GRUVALCORP SA",VLOOKUP(Tabla_Consulta_desde_QuickBooks_Data_64_Bit_QRemote[[#This Row],[SalesOrderLineItemRefFullName]],Hoja1!A:E,5,FALSE),"")*-Tabla_Consulta_desde_QuickBooks_Data_64_Bit_QRemote[[#This Row],[SalesOrderLineAmount]],"") ->  | AB23: =IF(COUNTIF(wms!E:E,Tabla_Consulta_desde_QuickBooks_Data_64_Bit_QRemote[[#This Row],[RefNumber]])>0,"OK","FALTA") -> OK
A24: 2025-06-02 | B24: 29038 | C24: ZAMBRANO ZAMBRANO CLEYTON ELIECER | D24: RETIRA TRANSPORTES CARREÑO | E24: 12 | F24: 7862112522572 | G24: P.T:311408 | H24: VINAGRE DE MANZANA CON LA MADRE MIEL DE ABEJA Y JENGIBRE OLE 500ML | I24: Bodega Producto Terminado | J24: 12 | K24: X12 | L24: 5.11 | M24: 61.32 | N24: UNIDAD SALSA | O24: 12 | P24: 833.4 | Q24: 958.41 | R24: IVA EN VENTAS 15% | S24: =IFERROR(IF(Tabla_Consulta_desde_QuickBooks_Data_64_Bit_QRemote[[#This Row],[SalesOrderLineUnitOfMeasure]]="un",Tabla_Consulta_desde_QuickBooks_Data_64_Bit_QRemote[[#This Row],[SalesOrderLineQuantity]],Tabla_Consulta_desde_QuickBooks_Data_64_Bit_QRemote[[#This Row],[SalesOrderLineQuantity]]/MID(Tabla_Consulta_desde_QuickBooks_Data_64_Bit_QRemote[[#This Row],[SalesOrderLineUnitOfMeasure]],2,2)),0) -> 1 | T24: =IFERROR(IF(Tabla_Consulta_desde_QuickBooks_Data_64_Bit_QRemote[[#This Row],[SalesOrderLineUnitOfMeasure]]="un",Tabla_Consulta_desde_QuickBooks_Data_64_Bit_QRemote[[#This Row],[SalesOrderLineInvoiced]],Tabla_Consulta_desde_QuickBooks_Data_64_Bit_QRemote[[#This Row],[SalesOrderLineInvoiced]]/MID(Tabla_Consulta_desde_QuickBooks_Data_64_Bit_QRemote[[#This Row],[SalesOrderLineUnitOfMeasure]],2,2)),0) -> 1 | U24: =+Tabla_Consulta_desde_QuickBooks_Data_64_Bit_QRemote[[#This Row],[facturado]]-Tabla_Consulta_desde_QuickBooks_Data_64_Bit_QRemote[[#This Row],[pide]] -> 0 | V24: =IF(Tabla_Consulta_desde_QuickBooks_Data_64_Bit_QRemote[[#This Row],[diferecia]]=0,"ok","diferen") -> ok | W24: =IFERROR(INDEX(um!A:C,MATCH(Tabla_Consulta_desde_QuickBooks_Data_64_Bit_QRemote[[#This Row],[SalesOrderLineItemRefFullName]],um!A:A,0),3),"") -> X12 | X24: =IFERROR(IF(OR(Tabla_Consulta_desde_QuickBooks_Data_64_Bit_QRemote[[#This Row],[SalesOrderLineUnitOfMeasure]]="UN",Tabla_Consulta_desde_QuickBooks_Data_64_Bit_QRemote[[#This Row],[SalesOrderLineUnitOfMeasure]]=Tabla_Consulta_desde_QuickBooks_Data_64_Bit_QRemote[[#This Row],[U/M]]),"","ERROR"),"") ->  | Y24: =+WEEKNUM(Tabla_Consulta_desde_QuickBooks_Data_64_Bit_QRemote[[#This Row],[TxnDate]]) -> 23 | Z24: =+Tabla_Consulta_desde_QuickBooks_Data_64_Bit_QRemote[[#This Row],[SalesOrderLineRate]]*Tabla_Consulta_desde_QuickBooks_Data_64_Bit_QRemote[[#This Row],[SalesOrderLineInvoiced]] -> 61.32 | AA24: =+IFERROR(IF(Tabla_Consulta_desde_QuickBooks_Data_64_Bit_QRemote[[#This Row],[CustomerRefFullName]]="GRUVALCORP SA",VLOOKUP(Tabla_Consulta_desde_QuickBooks_Data_64_Bit_QRemote[[#This Row],[SalesOrderLineItemRefFullName]],Hoja1!A:E,5,FALSE),"")*-Tabla_Consulta_desde_QuickBooks_Data_64_Bit_QRemote[[#This Row],[SalesOrderLineAmount]],"") ->  | AB24: =IF(COUNTIF(wms!E:E,Tabla_Consulta_desde_QuickBooks_Data_64_Bit_QRemote[[#This Row],[RefNumber]])>0,"OK","FALTA") -> OK
A25: 2025-06-02 | B25: 29038 | C25: ZAMBRANO ZAMBRANO CLEYTON ELIECER | D25: RETIRA TRANSPORTES CARREÑO | E25: 13 | F25: 7862112521698 | G25: P.T:311407 | H25: VINAGRE DE MANZANA CON LA MADRE OLE 500ML | I25: Bodega Producto Terminado | J25: 24 | K25: X12 | L25: 4.92 | M25: 118.08 | N25: UNIDAD SALSA | O25: 24 | P25: 833.4 | Q25: 958.41 | R25: IVA EN VENTAS 15% | S25: =IFERROR(IF(Tabla_Consulta_desde_QuickBooks_Data_64_Bit_QRemote[[#This Row],[SalesOrderLineUnitOfMeasure]]="un",Tabla_Consulta_desde_QuickBooks_Data_64_Bit_QRemote[[#This Row],[SalesOrderLineQuantity]],Tabla_Consulta_desde_QuickBooks_Data_64_Bit_QRemote[[#This Row],[SalesOrderLineQuantity]]/MID(Tabla_Consulta_desde_QuickBooks_Data_64_Bit_QRemote[[#This Row],[SalesOrderLineUnitOfMeasure]],2,2)),0) -> 2 | T25: =IFERROR(IF(Tabla_Consulta_desde_QuickBooks_Data_64_Bit_QRemote[[#This Row],[SalesOrderLineUnitOfMeasure]]="un",Tabla_Consulta_desde_QuickBooks_Data_64_Bit_QRemote[[#This Row],[SalesOrderLineInvoiced]],Tabla_Consulta_desde_QuickBooks_Data_64_Bit_QRemote[[#This Row],[SalesOrderLineInvoiced]]/MID(Tabla_Consulta_desde_QuickBooks_Data_64_Bit_QRemote[[#This Row],[SalesOrderLineUnitOfMeasure]],2,2)),0) -> 2 | U25: =+Tabla_Consulta_desde_QuickBooks_Data_64_Bit_QRemote[[#This Row],[facturado]]-Tabla_Consulta_desde_QuickBooks_Data_64_Bit_QRemote[[#This Row],[pide]] -> 0 | V25: =IF(Tabla_Consulta_desde_QuickBooks_Data_64_Bit_QRemote[[#This Row],[diferecia]]=0,"ok","diferen") -> ok | W25: =IFERROR(INDEX(um!A:C,MATCH(Tabla_Consulta_desde_QuickBooks_Data_64_Bit_QRemote[[#This Row],[SalesOrderLineItemRefFullName]],um!A:A,0),3),"") -> X12 | X25: =IFERROR(IF(OR(Tabla_Consulta_desde_QuickBooks_Data_64_Bit_QRemote[[#This Row],[SalesOrderLineUnitOfMeasure]]="UN",Tabla_Consulta_desde_QuickBooks_Data_64_Bit_QRemote[[#This Row],[SalesOrderLineUnitOfMeasure]]=Tabla_Consulta_desde_QuickBooks_Data_64_Bit_QRemote[[#This Row],[U/M]]),"","ERROR"),"") ->  | Y25: =+WEEKNUM(Tabla_Consulta_desde_QuickBooks_Data_64_Bit_QRemote[[#This Row],[TxnDate]]) -> 23 | Z25: =+Tabla_Consulta_desde_QuickBooks_Data_64_Bit_QRemote[[#This Row],[SalesOrderLineRate]]*Tabla_Consulta_desde_QuickBooks_Data_64_Bit_QRemote[[#This Row],[SalesOrderLineInvoiced]] -> 118.08 | AA25: =+IFERROR(IF(Tabla_Consulta_desde_QuickBooks_Data_64_Bit_QRemote[[#This Row],[CustomerRefFullName]]="GRUVALCORP SA",VLOOKUP(Tabla_Consulta_desde_QuickBooks_Data_64_Bit_QRemote[[#This Row],[SalesOrderLineItemRefFullName]],Hoja1!A:E,5,FALSE),"")*-Tabla_Consulta_desde_QuickBooks_Data_64_Bit_QRemote[[#This Row],[SalesOrderLineAmount]],"") ->  | AB25: =IF(COUNTIF(wms!E:E,Tabla_Consulta_desde_QuickBooks_Data_64_Bit_QRemote[[#This Row],[RefNumber]])>0,"OK","FALTA") -> OK
A26: 2025-06-02 | B26: 29038 | C26: ZAMBRANO ZAMBRANO CLEYTON ELIECER | D26: RETIRA TRANSPORTES CARREÑO | E26: 14 | F26: 7862112522893 | G26: P.T:311409 | H26: VINAGRE DE MANZANA CON LA MADRE OLE 250ML | I26: Bodega Producto Terminado | J26: 12 | K26: X12 | L26: 0 | M26: 0 | N26: UNIDAD SALSA | O26: 12 | P26: 833.4 | Q26: 958.41 | R26: IVA EN VENTAS 15% | S26: =IFERROR(IF(Tabla_Consulta_desde_QuickBooks_Data_64_Bit_QRemote[[#This Row],[SalesOrderLineUnitOfMeasure]]="un",Tabla_Consulta_desde_QuickBooks_Data_64_Bit_QRemote[[#This Row],[SalesOrderLineQuantity]],Tabla_Consulta_desde_QuickBooks_Data_64_Bit_QRemote[[#This Row],[SalesOrderLineQuantity]]/MID(Tabla_Consulta_desde_QuickBooks_Data_64_Bit_QRemote[[#This Row],[SalesOrderLineUnitOfMeasure]],2,2)),0) -> 1 | T26: =IFERROR(IF(Tabla_Consulta_desde_QuickBooks_Data_64_Bit_QRemote[[#This Row],[SalesOrderLineUnitOfMeasure]]="un",Tabla_Consulta_desde_QuickBooks_Data_64_Bit_QRemote[[#This Row],[SalesOrderLineInvoiced]],Tabla_Consulta_desde_QuickBooks_Data_64_Bit_QRemote[[#This Row],[SalesOrderLineInvoiced]]/MID(Tabla_Consulta_desde_QuickBooks_Data_64_Bit_QRemote[[#This Row],[SalesOrderLineUnitOfMeasure]],2,2)),0) -> 1 | U26: =+Tabla_Consulta_desde_QuickBooks_Data_64_Bit_QRemote[[#This Row],[facturado]]-Tabla_Consulta_desde_QuickBooks_Data_64_Bit_QRemote[[#This Row],[pide]] -> 0 | V26: =IF(Tabla_Consulta_desde_QuickBooks_Data_64_Bit_QRemote[[#This Row],[diferecia]]=0,"ok","diferen") -> ok | W26: =IFERROR(INDEX(um!A:C,MATCH(Tabla_Consulta_desde_QuickBooks_Data_64_Bit_QRemote[[#This Row],[SalesOrderLineItemRefFullName]],um!A:A,0),3),"") -> X24 | X26: =IFERROR(IF(OR(Tabla_Consulta_desde_QuickBooks_Data_64_Bit_QRemote[[#This Row],[SalesOrderLineUnitOfMeasure]]="UN",Tabla_Consulta_desde_QuickBooks_Data_64_Bit_QRemote[[#This Row],[SalesOrderLineUnitOfMeasure]]=Tabla_Consulta_desde_QuickBooks_Data_64_Bit_QRemote[[#This Row],[U/M]]),"","ERROR"),"") -> ERROR | Y26: =+WEEKNUM(Tabla_Consulta_desde_QuickBooks_Data_64_Bit_QRemote[[#This Row],[TxnDate]]) -> 23 | Z26: =+Tabla_Consulta_desde_QuickBooks_Data_64_Bit_QRemote[[#This Row],[SalesOrderLineRate]]*Tabla_Consulta_desde_QuickBooks_Data_64_Bit_QRemote[[#This Row],[SalesOrderLineInvoiced]] -> 0 | AA26: =+IFERROR(IF(Tabla_Consulta_desde_QuickBooks_Data_64_Bit_QRemote[[#This Row],[CustomerRefFullName]]="GRUVALCORP SA",VLOOKUP(Tabla_Consulta_desde_QuickBooks_Data_64_Bit_QRemote[[#This Row],[SalesOrderLineItemRefFullName]],Hoja1!A:E,5,FALSE),"")*-Tabla_Consulta_desde_QuickBooks_Data_64_Bit_QRemote[[#This Row],[SalesOrderLineAmount]],"") ->  | AB26: =IF(COUNTIF(wms!E:E,Tabla_Consulta_desde_QuickBooks_Data_64_Bit_QRemote[[#This Row],[RefNumber]])>0,"OK","FALTA") -> OK
A27: 2025-06-02 | B27: 29038 | C27: ZAMBRANO ZAMBRANO CLEYTON ELIECER | D27: RETIRA TRANSPORTES CARREÑO | E27: 15 | F27: 7862112522626 | G27: P.T:110701 | H27: CHIMICHURRI ESTILO ARGENTINO OLE 380G | I27: Bodega Producto Terminado | J27: 24 | K27: X12 | L27: 3.08 | M27: 73.92 | N27: UNIDAD SALSA | O27: 24 | P27: 833.4 | Q27: 958.41 | R27: IVA EN VENTAS 15% | S27: =IFERROR(IF(Tabla_Consulta_desde_QuickBooks_Data_64_Bit_QRemote[[#This Row],[SalesOrderLineUnitOfMeasure]]="un",Tabla_Consulta_desde_QuickBooks_Data_64_Bit_QRemote[[#This Row],[SalesOrderLineQuantity]],Tabla_Consulta_desde_QuickBooks_Data_64_Bit_QRemote[[#This Row],[SalesOrderLineQuantity]]/MID(Tabla_Consulta_desde_QuickBooks_Data_64_Bit_QRemote[[#This Row],[SalesOrderLineUnitOfMeasure]],2,2)),0) -> 2 | T27: =IFERROR(IF(Tabla_Consulta_desde_QuickBooks_Data_64_Bit_QRemote[[#This Row],[SalesOrderLineUnitOfMeasure]]="un",Tabla_Consulta_desde_QuickBooks_Data_64_Bit_QRemote[[#This Row],[SalesOrderLineInvoiced]],Tabla_Consulta_desde_QuickBooks_Data_64_Bit_QRemote[[#This Row],[SalesOrderLineInvoiced]]/MID(Tabla_Consulta_desde_QuickBooks_Data_64_Bit_QRemote[[#This Row],[SalesOrderLineUnitOfMeasure]],2,2)),0) -> 2 | U27: =+Tabla_Consulta_desde_QuickBooks_Data_64_Bit_QRemote[[#This Row],[facturado]]-Tabla_Consulta_desde_QuickBooks_Data_64_Bit_QRemote[[#This Row],[pide]] -> 0 | V27: =IF(Tabla_Consulta_desde_QuickBooks_Data_64_Bit_QRemote[[#This Row],[diferecia]]=0,"ok","diferen") -> ok | W27: =IFERROR(INDEX(um!A:C,MATCH(Tabla_Consulta_desde_QuickBooks_Data_64_Bit_QRemote[[#This Row],[SalesOrderLineItemRefFullName]],um!A:A,0),3),"") -> X12 | X27: =IFERROR(IF(OR(Tabla_Consulta_desde_QuickBooks_Data_64_Bit_QRemote[[#This Row],[SalesOrderLineUnitOfMeasure]]="UN",Tabla_Consulta_desde_QuickBooks_Data_64_Bit_QRemote[[#This Row],[SalesOrderLineUnitOfMeasure]]=Tabla_Consulta_desde_QuickBooks_Data_64_Bit_QRemote[[#This Row],[U/M]]),"","ERROR"),"") ->  | Y27: =+WEEKNUM(Tabla_Consulta_desde_QuickBooks_Data_64_Bit_QRemote[[#This Row],[TxnDate]]) -> 23 | Z27: =+Tabla_Consulta_desde_QuickBooks_Data_64_Bit_QRemote[[#This Row],[SalesOrderLineRate]]*Tabla_Consulta_desde_QuickBooks_Data_64_Bit_QRemote[[#This Row],[SalesOrderLineInvoiced]] -> 73.92 | AA27: =+IFERROR(IF(Tabla_Consulta_desde_QuickBooks_Data_64_Bit_QRemote[[#This Row],[CustomerRefFullName]]="GRUVALCORP SA",VLOOKUP(Tabla_Consulta_desde_QuickBooks_Data_64_Bit_QRemote[[#This Row],[SalesOrderLineItemRefFullName]],Hoja1!A:E,5,FALSE),"")*-Tabla_Consulta_desde_QuickBooks_Data_64_Bit_QRemote[[#This Row],[SalesOrderLineAmount]],"") ->  | AB27: =IF(COUNTIF(wms!E:E,Tabla_Consulta_desde_QuickBooks_Data_64_Bit_QRemote[[#This Row],[RefNumber]])>0,"OK","FALTA") -> OK
A28: 2025-06-02 | B28: 29038 | C28: ZAMBRANO ZAMBRANO CLEYTON ELIECER | D28: RETIRA TRANSPORTES CARREÑO | E28: 16 | F28: 7862112522367 | G28: PT:220132 | H28: TOTOPOS NATURAL OLE 300G | I28: Bodega Producto Terminado | J28: 12 | K28: X12 | L28: 1.83 | M28: 21.96 | N28: UNIDAD SNCKS | O28: 12 | P28: 833.4 | Q28: 958.41 | R28: IVA EN VENTAS 15% | S28: =IFERROR(IF(Tabla_Consulta_desde_QuickBooks_Data_64_Bit_QRemote[[#This Row],[SalesOrderLineUnitOfMeasure]]="un",Tabla_Consulta_desde_QuickBooks_Data_64_Bit_QRemote[[#This Row],[SalesOrderLineQuantity]],Tabla_Consulta_desde_QuickBooks_Data_64_Bit_QRemote[[#This Row],[SalesOrderLineQuantity]]/MID(Tabla_Consulta_desde_QuickBooks_Data_64_Bit_QRemote[[#This Row],[SalesOrderLineUnitOfMeasure]],2,2)),0) -> 1 | T28: =IFERROR(IF(Tabla_Consulta_desde_QuickBooks_Data_64_Bit_QRemote[[#This Row],[SalesOrderLineUnitOfMeasure]]="un",Tabla_Consulta_desde_QuickBooks_Data_64_Bit_QRemote[[#This Row],[SalesOrderLineInvoiced]],Tabla_Consulta_desde_QuickBooks_Data_64_Bit_QRemote[[#This Row],[SalesOrderLineInvoiced]]/MID(Tabla_Consulta_desde_QuickBooks_Data_64_Bit_QRemote[[#This Row],[SalesOrderLineUnitOfMeasure]],2,2)),0) -> 1 | U28: =+Tabla_Consulta_desde_QuickBooks_Data_64_Bit_QRemote[[#This Row],[facturado]]-Tabla_Consulta_desde_QuickBooks_Data_64_Bit_QRemote[[#This Row],[pide]] -> 0 | V28: =IF(Tabla_Consulta_desde_QuickBooks_Data_64_Bit_QRemote[[#This Row],[diferecia]]=0,"ok","diferen") -> ok | W28: =IFERROR(INDEX(um!A:C,MATCH(Tabla_Consulta_desde_QuickBooks_Data_64_Bit_QRemote[[#This Row],[SalesOrderLineItemRefFullName]],um!A:A,0),3),"") -> X12 | X28: =IFERROR(IF(OR(Tabla_Consulta_desde_QuickBooks_Data_64_Bit_QRemote[[#This Row],[SalesOrderLineUnitOfMeasure]]="UN",Tabla_Consulta_desde_QuickBooks_Data_64_Bit_QRemote[[#This Row],[SalesOrderLineUnitOfMeasure]]=Tabla_Consulta_desde_QuickBooks_Data_64_Bit_QRemote[[#This Row],[U/M]]),"","ERROR"),"") ->  | Y28: =+WEEKNUM(Tabla_Consulta_desde_QuickBooks_Data_64_Bit_QRemote[[#This Row],[TxnDate]]) -> 23 | Z28: =+Tabla_Consulta_desde_QuickBooks_Data_64_Bit_QRemote[[#This Row],[SalesOrderLineRate]]*Tabla_Consulta_desde_QuickBooks_Data_64_Bit_QRemote[[#This Row],[SalesOrderLineInvoiced]] -> 21.96 | AA28: =+IFERROR(IF(Tabla_Consulta_desde_QuickBooks_Data_64_Bit_QRemote[[#This Row],[CustomerRefFullName]]="GRUVALCORP SA",VLOOKUP(Tabla_Consulta_desde_QuickBooks_Data_64_Bit_QRemote[[#This Row],[SalesOrderLineItemRefFullName]],Hoja1!A:E,5,FALSE),"")*-Tabla_Consulta_desde_QuickBooks_Data_64_Bit_QRemote[[#This Row],[SalesOrderLineAmount]],"") ->  | AB28: =IF(COUNTIF(wms!E:E,Tabla_Consulta_desde_QuickBooks_Data_64_Bit_QRemote[[#This Row],[RefNumber]])>0,"OK","FALTA") -> OK
A29: 2025-06-02 | B29: 29038 | C29: ZAMBRANO ZAMBRANO CLEYTON ELIECER | D29: RETIRA TRANSPORTES CARREÑO | E29: 17 | F29: 7862112522473 | G29: PT:220134 | H29: TOTOPOS MICHELADA OLE 120G | I29: Bodega Producto Terminado | J29: 12 | K29: X12 | L29: 1 | M29: 12 | N29: UNIDAD SNCKS | O29: 12 | P29: 833.4 | Q29: 958.41 | R29: IVA EN VENTAS 15% | S29: =IFERROR(IF(Tabla_Consulta_desde_QuickBooks_Data_64_Bit_QRemote[[#This Row],[SalesOrderLineUnitOfMeasure]]="un",Tabla_Consulta_desde_QuickBooks_Data_64_Bit_QRemote[[#This Row],[SalesOrderLineQuantity]],Tabla_Consulta_desde_QuickBooks_Data_64_Bit_QRemote[[#This Row],[SalesOrderLineQuantity]]/MID(Tabla_Consulta_desde_QuickBooks_Data_64_Bit_QRemote[[#This Row],[SalesOrderLineUnitOfMeasure]],2,2)),0) -> 1 | T29: =IFERROR(IF(Tabla_Consulta_desde_QuickBooks_Data_64_Bit_QRemote[[#This Row],[SalesOrderLineUnitOfMeasure]]="un",Tabla_Consulta_desde_QuickBooks_Data_64_Bit_QRemote[[#This Row],[SalesOrderLineInvoiced]],Tabla_Consulta_desde_QuickBooks_Data_64_Bit_QRemote[[#This Row],[SalesOrderLineInvoiced]]/MID(Tabla_Consulta_desde_QuickBooks_Data_64_Bit_QRemote[[#This Row],[SalesOrderLineUnitOfMeasure]],2,2)),0) -> 1 | U29: =+Tabla_Consulta_desde_QuickBooks_Data_64_Bit_QRemote[[#This Row],[facturado]]-Tabla_Consulta_desde_QuickBooks_Data_64_Bit_QRemote[[#This Row],[pide]] -> 0 | V29: =IF(Tabla_Consulta_desde_QuickBooks_Data_64_Bit_QRemote[[#This Row],[diferecia]]=0,"ok","diferen") -> ok | W29: =IFERROR(INDEX(um!A:C,MATCH(Tabla_Consulta_desde_QuickBooks_Data_64_Bit_QRemote[[#This Row],[SalesOrderLineItemRefFullName]],um!A:A,0),3),"") -> X12 | X29: =IFERROR(IF(OR(Tabla_Consulta_desde_QuickBooks_Data_64_Bit_QRemote[[#This Row],[SalesOrderLineUnitOfMeasure]]="UN",Tabla_Consulta_desde_QuickBooks_Data_64_Bit_QRemote[[#This Row],[SalesOrderLineUnitOfMeasure]]=Tabla_Consulta_desde_QuickBooks_Data_64_Bit_QRemote[[#This Row],[U/M]]),"","ERROR"),"") ->  | Y29: =+WEEKNUM(Tabla_Consulta_desde_QuickBooks_Data_64_Bit_QRemote[[#This Row],[TxnDate]]) -> 23 | Z29: =+Tabla_Consulta_desde_QuickBooks_Data_64_Bit_QRemote[[#This Row],[SalesOrderLineRate]]*Tabla_Consulta_desde_QuickBooks_Data_64_Bit_QRemote[[#This Row],[SalesOrderLineInvoiced]] -> 12 | AA29: =+IFERROR(IF(Tabla_Consulta_desde_QuickBooks_Data_64_Bit_QRemote[[#This Row],[CustomerRefFullName]]="GRUVALCORP SA",VLOOKUP(Tabla_Consulta_desde_QuickBooks_Data_64_Bit_QRemote[[#This Row],[SalesOrderLineItemRefFullName]],Hoja1!A:E,5,FALSE),"")*-Tabla_Consulta_desde_QuickBooks_Data_64_Bit_QRemote[[#This Row],[SalesOrderLineAmount]],"") ->  | AB29: =IF(COUNTIF(wms!E:E,Tabla_Consulta_desde_QuickBooks_Data_64_Bit_QRemote[[#This Row],[RefNumber]])>0,"OK","FALTA") -> OK
A30: 2025-06-02 | B30: 29038 | C30: ZAMBRANO ZAMBRANO CLEYTON ELIECER | D30: RETIRA TRANSPORTES CARREÑO | E30: 18 | F30: 7862112522442 | G30: PT:220133 | H30: TOTOPOS QUESO RANCHERO OLE 120G | I30: Bodega Producto Terminado | J30: 12 | K30: X12 | L30: 1 | M30: 12 | N30: UNIDAD SNCKS | O30: 12 | P30: 833.4 | Q30: 958.41 | R30: IVA EN VENTAS 15% | S30: =IFERROR(IF(Tabla_Consulta_desde_QuickBooks_Data_64_Bit_QRemote[[#This Row],[SalesOrderLineUnitOfMeasure]]="un",Tabla_Consulta_desde_QuickBooks_Data_64_Bit_QRemote[[#This Row],[SalesOrderLineQuantity]],Tabla_Consulta_desde_QuickBooks_Data_64_Bit_QRemote[[#This Row],[SalesOrderLineQuantity]]/MID(Tabla_Consulta_desde_QuickBooks_Data_64_Bit_QRemote[[#This Row],[SalesOrderLineUnitOfMeasure]],2,2)),0) -> 1 | T30: =IFERROR(IF(Tabla_Consulta_desde_QuickBooks_Data_64_Bit_QRemote[[#This Row],[SalesOrderLineUnitOfMeasure]]="un",Tabla_Consulta_desde_QuickBooks_Data_64_Bit_QRemote[[#This Row],[SalesOrderLineInvoiced]],Tabla_Consulta_desde_QuickBooks_Data_64_Bit_QRemote[[#This Row],[SalesOrderLineInvoiced]]/MID(Tabla_Consulta_desde_QuickBooks_Data_64_Bit_QRemote[[#This Row],[SalesOrderLineUnitOfMeasure]],2,2)),0) -> 1 | U30: =+Tabla_Consulta_desde_QuickBooks_Data_64_Bit_QRemote[[#This Row],[facturado]]-Tabla_Consulta_desde_QuickBooks_Data_64_Bit_QRemote[[#This Row],[pide]] -> 0 | V30: =IF(Tabla_Consulta_desde_QuickBooks_Data_64_Bit_QRemote[[#This Row],[diferecia]]=0,"ok","diferen") -> ok | W30: =IFERROR(INDEX(um!A:C,MATCH(Tabla_Consulta_desde_QuickBooks_Data_64_Bit_QRemote[[#This Row],[SalesOrderLineItemRefFullName]],um!A:A,0),3),"") -> X12 | X30: =IFERROR(IF(OR(Tabla_Consulta_desde_QuickBooks_Data_64_Bit_QRemote[[#This Row],[SalesOrderLineUnitOfMeasure]]="UN",Tabla_Consulta_desde_QuickBooks_Data_64_Bit_QRemote[[#This Row],[SalesOrderLineUnitOfMeasure]]=Tabla_Consulta_desde_QuickBooks_Data_64_Bit_QRemote[[#This Row],[U/M]]),"","ERROR"),"") ->  | Y30: =+WEEKNUM(Tabla_Consulta_desde_QuickBooks_Data_64_Bit_QRemote[[#This Row],[TxnDate]]) -> 23 | Z30: =+Tabla_Consulta_desde_QuickBooks_Data_64_Bit_QRemote[[#This Row],[SalesOrderLineRate]]*Tabla_Consulta_desde_QuickBooks_Data_64_Bit_QRemote[[#This Row],[SalesOrderLineInvoiced]] -> 12 | AA30: =+IFERROR(IF(Tabla_Consulta_desde_QuickBooks_Data_64_Bit_QRemote[[#This Row],[CustomerRefFullName]]="GRUVALCORP SA",VLOOKUP(Tabla_Consulta_desde_QuickBooks_Data_64_Bit_QRemote[[#This Row],[SalesOrderLineItemRefFullName]],Hoja1!A:E,5,FALSE),"")*-Tabla_Consulta_desde_QuickBooks_Data_64_Bit_QRemote[[#This Row],[SalesOrderLineAmount]],"") ->  | AB30: =IF(COUNTIF(wms!E:E,Tabla_Consulta_desde_QuickBooks_Data_64_Bit_QRemote[[#This Row],[RefNumber]])>0,"OK","FALTA") -> OK
A31: 2025-06-02 | B31: 29038 | C31: ZAMBRANO ZAMBRANO CLEYTON ELIECER | D31: RETIRA TRANSPORTES CARREÑO | E31: 19 | F31: 7862112522732 | G31: PT:220135 | H31: TOTOPOS SABOR GUACAMOLE OLE 120G | I31: Bodega Producto Terminado | J31: 12 | K31: X12 | L31: 1 | M31: 12 | N31: UNIDAD SNCKS | O31: 12 | P31: 833.4 | Q31: 958.41 | R31: IVA EN VENTAS 15% | S31: =IFERROR(IF(Tabla_Consulta_desde_QuickBooks_Data_64_Bit_QRemote[[#This Row],[SalesOrderLineUnitOfMeasure]]="un",Tabla_Consulta_desde_QuickBooks_Data_64_Bit_QRemote[[#This Row],[SalesOrderLineQuantity]],Tabla_Consulta_desde_QuickBooks_Data_64_Bit_QRemote[[#This Row],[SalesOrderLineQuantity]]/MID(Tabla_Consulta_desde_QuickBooks_Data_64_Bit_QRemote[[#This Row],[SalesOrderLineUnitOfMeasure]],2,2)),0) -> 1 | T31: =IFERROR(IF(Tabla_Consulta_desde_QuickBooks_Data_64_Bit_QRemote[[#This Row],[SalesOrderLineUnitOfMeasure]]="un",Tabla_Consulta_desde_QuickBooks_Data_64_Bit_QRemote[[#This Row],[SalesOrderLineInvoiced]],Tabla_Consulta_desde_QuickBooks_Data_64_Bit_QRemote[[#This Row],[SalesOrderLineInvoiced]]/MID(Tabla_Consulta_desde_QuickBooks_Data_64_Bit_QRemote[[#This Row],[SalesOrderLineUnitOfMeasure]],2,2)),0) -> 1 | U31: =+Tabla_Consulta_desde_QuickBooks_Data_64_Bit_QRemote[[#This Row],[facturado]]-Tabla_Consulta_desde_QuickBooks_Data_64_Bit_QRemote[[#This Row],[pide]] -> 0 | V31: =IF(Tabla_Consulta_desde_QuickBooks_Data_64_Bit_QRemote[[#This Row],[diferecia]]=0,"ok","diferen") -> ok | W31: =IFERROR(INDEX(um!A:C,MATCH(Tabla_Consulta_desde_QuickBooks_Data_64_Bit_QRemote[[#This Row],[SalesOrderLineItemRefFullName]],um!A:A,0),3),"") -> X12 | X31: =IFERROR(IF(OR(Tabla_Consulta_desde_QuickBooks_Data_64_Bit_QRemote[[#This Row],[SalesOrderLineUnitOfMeasure]]="UN",Tabla_Consulta_desde_QuickBooks_Data_64_Bit_QRemote[[#This Row],[SalesOrderLineUnitOfMeasure]]=Tabla_Consulta_desde_QuickBooks_Data_64_Bit_QRemote[[#This Row],[U/M]]),"","ERROR"),"") ->  | Y31: =+WEEKNUM(Tabla_Consulta_desde_QuickBooks_Data_64_Bit_QRemote[[#This Row],[TxnDate]]) -> 23 | Z31: =+Tabla_Consulta_desde_QuickBooks_Data_64_Bit_QRemote[[#This Row],[SalesOrderLineRate]]*Tabla_Consulta_desde_QuickBooks_Data_64_Bit_QRemote[[#This Row],[SalesOrderLineInvoiced]] -> 12 | AA31: =+IFERROR(IF(Tabla_Consulta_desde_QuickBooks_Data_64_Bit_QRemote[[#This Row],[CustomerRefFullName]]="GRUVALCORP SA",VLOOKUP(Tabla_Consulta_desde_QuickBooks_Data_64_Bit_QRemote[[#This Row],[SalesOrderLineItemRefFullName]],Hoja1!A:E,5,FALSE),"")*-Tabla_Consulta_desde_QuickBooks_Data_64_Bit_QRemote[[#This Row],[SalesOrderLineAmount]],"") ->  | AB31: =IF(COUNTIF(wms!E:E,Tabla_Consulta_desde_QuickBooks_Data_64_Bit_QRemote[[#This Row],[RefNumber]])>0,"OK","FALTA") -> OK
A32: 2025-06-02 | B32: 29038 | C32: ZAMBRANO ZAMBRANO CLEYTON ELIECER | D32: RETIRA TRANSPORTES CARREÑO | E32: 20 | F32: 7862112522756 | G32: PT:220136 | H32: TOTOPOS NATURAL MINI OLE 300G | I32: Bodega Producto Terminado | J32: 24 | K32: UN | L32: 1.76 | M32: 42.24 | N32: UNIDAD SNCKS | O32: 17 | P32: 833.4 | Q32: 958.41 | R32: IVA EN VENTAS 15% | S32: =IFERROR(IF(Tabla_Consulta_desde_QuickBooks_Data_64_Bit_QRemote[[#This Row],[SalesOrderLineUnitOfMeasure]]="un",Tabla_Consulta_desde_QuickBooks_Data_64_Bit_QRemote[[#This Row],[SalesOrderLineQuantity]],Tabla_Consulta_desde_QuickBooks_Data_64_Bit_QRemote[[#This Row],[SalesOrderLineQuantity]]/MID(Tabla_Consulta_desde_QuickBooks_Data_64_Bit_QRemote[[#This Row],[SalesOrderLineUnitOfMeasure]],2,2)),0) -> 24 | T32: =IFERROR(IF(Tabla_Consulta_desde_QuickBooks_Data_64_Bit_QRemote[[#This Row],[SalesOrderLineUnitOfMeasure]]="un",Tabla_Consulta_desde_QuickBooks_Data_64_Bit_QRemote[[#This Row],[SalesOrderLineInvoiced]],Tabla_Consulta_desde_QuickBooks_Data_64_Bit_QRemote[[#This Row],[SalesOrderLineInvoiced]]/MID(Tabla_Consulta_desde_QuickBooks_Data_64_Bit_QRemote[[#This Row],[SalesOrderLineUnitOfMeasure]],2,2)),0) -> 17 | U32: =+Tabla_Consulta_desde_QuickBooks_Data_64_Bit_QRemote[[#This Row],[facturado]]-Tabla_Consulta_desde_QuickBooks_Data_64_Bit_QRemote[[#This Row],[pide]] -> -7 | V32: =IF(Tabla_Consulta_desde_QuickBooks_Data_64_Bit_QRemote[[#This Row],[diferecia]]=0,"ok","diferen") -> diferen | W32: =IFERROR(INDEX(um!A:C,MATCH(Tabla_Consulta_desde_QuickBooks_Data_64_Bit_QRemote[[#This Row],[SalesOrderLineItemRefFullName]],um!A:A,0),3),"") -> X12 | X32: =IFERROR(IF(OR(Tabla_Consulta_desde_QuickBooks_Data_64_Bit_QRemote[[#This Row],[SalesOrderLineUnitOfMeasure]]="UN",Tabla_Consulta_desde_QuickBooks_Data_64_Bit_QRemote[[#This Row],[SalesOrderLineUnitOfMeasure]]=Tabla_Consulta_desde_QuickBooks_Data_64_Bit_QRemote[[#This Row],[U/M]]),"","ERROR"),"") ->  | Y32: =+WEEKNUM(Tabla_Consulta_desde_QuickBooks_Data_64_Bit_QRemote[[#This Row],[TxnDate]]) -> 23 | Z32: =+Tabla_Consulta_desde_QuickBooks_Data_64_Bit_QRemote[[#This Row],[SalesOrderLineRate]]*Tabla_Consulta_desde_QuickBooks_Data_64_Bit_QRemote[[#This Row],[SalesOrderLineInvoiced]] -> 29.92 | AA32: =+IFERROR(IF(Tabla_Consulta_desde_QuickBooks_Data_64_Bit_QRemote[[#This Row],[CustomerRefFullName]]="GRUVALCORP SA",VLOOKUP(Tabla_Consulta_desde_QuickBooks_Data_64_Bit_QRemote[[#This Row],[SalesOrderLineItemRefFullName]],Hoja1!A:E,5,FALSE),"")*-Tabla_Consulta_desde_QuickBooks_Data_64_Bit_QRemote[[#This Row],[SalesOrderLineAmount]],"") ->  | AB32: =IF(COUNTIF(wms!E:E,Tabla_Consulta_desde_QuickBooks_Data_64_Bit_QRemote[[#This Row],[RefNumber]])>0,"OK","FALTA") -> OK
A33: 2025-06-02 | B33: 29038 | C33: ZAMBRANO ZAMBRANO CLEYTON ELIECER | D33: RETIRA TRANSPORTES CARREÑO | E33: 21 | G33: INFOADICIONAL | H33: RETIRA TRANSPORTES CARREÑO | L33: 0 | M33: 0 | O33: 1 | P33: 833.4 | Q33: 958.41 | R33: IVA EN VENTAS 15% | S33: =IFERROR(IF(Tabla_Consulta_desde_QuickBooks_Data_64_Bit_QRemote[[#This Row],[SalesOrderLineUnitOfMeasure]]="un",Tabla_Consulta_desde_QuickBooks_Data_64_Bit_QRemote[[#This Row],[SalesOrderLineQuantity]],Tabla_Consulta_desde_QuickBooks_Data_64_Bit_QRemote[[#This Row],[SalesOrderLineQuantity]]/MID(Tabla_Consulta_desde_QuickBooks_Data_64_Bit_QRemote[[#This Row],[SalesOrderLineUnitOfMeasure]],2,2)),0) -> 0 | T33: =IFERROR(IF(Tabla_Consulta_desde_QuickBooks_Data_64_Bit_QRemote[[#This Row],[SalesOrderLineUnitOfMeasure]]="un",Tabla_Consulta_desde_QuickBooks_Data_64_Bit_QRemote[[#This Row],[SalesOrderLineInvoiced]],Tabla_Consulta_desde_QuickBooks_Data_64_Bit_QRemote[[#This Row],[SalesOrderLineInvoiced]]/MID(Tabla_Consulta_desde_QuickBooks_Data_64_Bit_QRemote[[#This Row],[SalesOrderLineUnitOfMeasure]],2,2)),0) -> 0 | U33: =+Tabla_Consulta_desde_QuickBooks_Data_64_Bit_QRemote[[#This Row],[facturado]]-Tabla_Consulta_desde_QuickBooks_Data_64_Bit_QRemote[[#This Row],[pide]] -> 0 | V33: =IF(Tabla_Consulta_desde_QuickBooks_Data_64_Bit_QRemote[[#This Row],[diferecia]]=0,"ok","diferen") -> ok | W33: =IFERROR(INDEX(um!A:C,MATCH(Tabla_Consulta_desde_QuickBooks_Data_64_Bit_QRemote[[#This Row],[SalesOrderLineItemRefFullName]],um!A:A,0),3),"") ->  | X33: =IFERROR(IF(OR(Tabla_Consulta_desde_QuickBooks_Data_64_Bit_QRemote[[#This Row],[SalesOrderLineUnitOfMeasure]]="UN",Tabla_Consulta_desde_QuickBooks_Data_64_Bit_QRemote[[#This Row],[SalesOrderLineUnitOfMeasure]]=Tabla_Consulta_desde_QuickBooks_Data_64_Bit_QRemote[[#This Row],[U/M]]),"","ERROR"),"") ->  | Y33: =+WEEKNUM(Tabla_Consulta_desde_QuickBooks_Data_64_Bit_QRemote[[#This Row],[TxnDate]]) -> 23 | Z33: =+Tabla_Consulta_desde_QuickBooks_Data_64_Bit_QRemote[[#This Row],[SalesOrderLineRate]]*Tabla_Consulta_desde_QuickBooks_Data_64_Bit_QRemote[[#This Row],[SalesOrderLineInvoiced]] -> 0 | AA33: =+IFERROR(IF(Tabla_Consulta_desde_QuickBooks_Data_64_Bit_QRemote[[#This Row],[CustomerRefFullName]]="GRUVALCORP SA",VLOOKUP(Tabla_Consulta_desde_QuickBooks_Data_64_Bit_QRemote[[#This Row],[SalesOrderLineItemRefFullName]],Hoja1!A:E,5,FALSE),"")*-Tabla_Consulta_desde_QuickBooks_Data_64_Bit_QRemote[[#This Row],[SalesOrderLineAmount]],"") ->  | AB33: =IF(COUNTIF(wms!E:E,Tabla_Consulta_desde_QuickBooks_Data_64_Bit_QRemote[[#This Row],[RefNumber]])>0,"OK","FALTA") -> OK
A34: 2025-06-02 | B34: 29054 | C34: ARMIJOS MONTESINOS RAQUEL | D34: FACTURACION COLABORADOR OLE | E34: 1 | F34: 7862112523289 | G34: PT:221008 | H34: CHEDARITOS OLE 90G | I34: Bodega Producto Terminado | J34: 2 | K34: UN | L34: 0.22 | M34: 0.44 | N34: UNIDAD SNCKS | O34: 0 | P34: 6.01 | Q34: 6.91 | R34: IVA EN VENTAS 15% | S34: =IFERROR(IF(Tabla_Consulta_desde_QuickBooks_Data_64_Bit_QRemote[[#This Row],[SalesOrderLineUnitOfMeasure]]="un",Tabla_Consulta_desde_QuickBooks_Data_64_Bit_QRemote[[#This Row],[SalesOrderLineQuantity]],Tabla_Consulta_desde_QuickBooks_Data_64_Bit_QRemote[[#This Row],[SalesOrderLineQuantity]]/MID(Tabla_Consulta_desde_QuickBooks_Data_64_Bit_QRemote[[#This Row],[SalesOrderLineUnitOfMeasure]],2,2)),0) -> 2 | T34: =IFERROR(IF(Tabla_Consulta_desde_QuickBooks_Data_64_Bit_QRemote[[#This Row],[SalesOrderLineUnitOfMeasure]]="un",Tabla_Consulta_desde_QuickBooks_Data_64_Bit_QRemote[[#This Row],[SalesOrderLineInvoiced]],Tabla_Consulta_desde_QuickBooks_Data_64_Bit_QRemote[[#This Row],[SalesOrderLineInvoiced]]/MID(Tabla_Consulta_desde_QuickBooks_Data_64_Bit_QRemote[[#This Row],[SalesOrderLineUnitOfMeasure]],2,2)),0) -> 0 | U34: =+Tabla_Consulta_desde_QuickBooks_Data_64_Bit_QRemote[[#This Row],[facturado]]-Tabla_Consulta_desde_QuickBooks_Data_64_Bit_QRemote[[#This Row],[pide]] -> -2 | V34: =IF(Tabla_Consulta_desde_QuickBooks_Data_64_Bit_QRemote[[#This Row],[diferecia]]=0,"ok","diferen") -> diferen | W34: =IFERROR(INDEX(um!A:C,MATCH(Tabla_Consulta_desde_QuickBooks_Data_64_Bit_QRemote[[#This Row],[SalesOrderLineItemRefFullName]],um!A:A,0),3),"") -> X10 | X34: =IFERROR(IF(OR(Tabla_Consulta_desde_QuickBooks_Data_64_Bit_QRemote[[#This Row],[SalesOrderLineUnitOfMeasure]]="UN",Tabla_Consulta_desde_QuickBooks_Data_64_Bit_QRemote[[#This Row],[SalesOrderLineUnitOfMeasure]]=Tabla_Consulta_desde_QuickBooks_Data_64_Bit_QRemote[[#This Row],[U/M]]),"","ERROR"),"") ->  | Y34: =+WEEKNUM(Tabla_Consulta_desde_QuickBooks_Data_64_Bit_QRemote[[#This Row],[TxnDate]]) -> 23 | Z34: =+Tabla_Consulta_desde_QuickBooks_Data_64_Bit_QRemote[[#This Row],[SalesOrderLineRate]]*Tabla_Consulta_desde_QuickBooks_Data_64_Bit_QRemote[[#This Row],[SalesOrderLineInvoiced]] -> 0 | AA34: =+IFERROR(IF(Tabla_Consulta_desde_QuickBooks_Data_64_Bit_QRemote[[#This Row],[CustomerRefFullName]]="GRUVALCORP SA",VLOOKUP(Tabla_Consulta_desde_QuickBooks_Data_64_Bit_QRemote[[#This Row],[SalesOrderLineItemRefFullName]],Hoja1!A:E,5,FALSE),"")*-Tabla_Consulta_desde_QuickBooks_Data_64_Bit_QRemote[[#This Row],[SalesOrderLineAmount]],"") ->  | AB34: =IF(COUNTIF(wms!E:E,Tabla_Consulta_desde_QuickBooks_Data_64_Bit_QRemote[[#This Row],[RefNumber]])>0,"OK","FALTA") -> FALTA
A35: 2025-06-02 | B35: 29054 | C35: ARMIJOS MONTESINOS RAQUEL | D35: FACTURACION COLABORADOR OLE | E35: 2 | F35: 853394001678 | G35: P.T:110501 | H35: CHOCHOS EN SALMUERA MAMATERE 500G | I35: Bodega Producto Terminado | J35: 2 | K35: UN | L35: 1.36 | M35: 2.72 | N35: UNIDAD SALSA | O35: 0 | P35: 6.01 | Q35: 6.91 | R35: IVA EN VENTAS 15% | S35: =IFERROR(IF(Tabla_Consulta_desde_QuickBooks_Data_64_Bit_QRemote[[#This Row],[SalesOrderLineUnitOfMeasure]]="un",Tabla_Consulta_desde_QuickBooks_Data_64_Bit_QRemote[[#This Row],[SalesOrderLineQuantity]],Tabla_Consulta_desde_QuickBooks_Data_64_Bit_QRemote[[#This Row],[SalesOrderLineQuantity]]/MID(Tabla_Consulta_desde_QuickBooks_Data_64_Bit_QRemote[[#This Row],[SalesOrderLineUnitOfMeasure]],2,2)),0) -> 2 | T35: =IFERROR(IF(Tabla_Consulta_desde_QuickBooks_Data_64_Bit_QRemote[[#This Row],[SalesOrderLineUnitOfMeasure]]="un",Tabla_Consulta_desde_QuickBooks_Data_64_Bit_QRemote[[#This Row],[SalesOrderLineInvoiced]],Tabla_Consulta_desde_QuickBooks_Data_64_Bit_QRemote[[#This Row],[SalesOrderLineInvoiced]]/MID(Tabla_Consulta_desde_QuickBooks_Data_64_Bit_QRemote[[#This Row],[SalesOrderLineUnitOfMeasure]],2,2)),0) -> 0 | U35: =+Tabla_Consulta_desde_QuickBooks_Data_64_Bit_QRemote[[#This Row],[facturado]]-Tabla_Consulta_desde_QuickBooks_Data_64_Bit_QRemote[[#This Row],[pide]] -> -2 | V35: =IF(Tabla_Consulta_desde_QuickBooks_Data_64_Bit_QRemote[[#This Row],[diferecia]]=0,"ok","diferen") -> diferen | W35: =IFERROR(INDEX(um!A:C,MATCH(Tabla_Consulta_desde_QuickBooks_Data_64_Bit_QRemote[[#This Row],[SalesOrderLineItemRefFullName]],um!A:A,0),3),"") -> X12 | X35: =IFERROR(IF(OR(Tabla_Consulta_desde_QuickBooks_Data_64_Bit_QRemote[[#This Row],[SalesOrderLineUnitOfMeasure]]="UN",Tabla_Consulta_desde_QuickBooks_Data_64_Bit_QRemote[[#This Row],[SalesOrderLineUnitOfMeasure]]=Tabla_Consulta_desde_QuickBooks_Data_64_Bit_QRemote[[#This Row],[U/M]]),"","ERROR"),"") ->  | Y35: =+WEEKNUM(Tabla_Consulta_desde_QuickBooks_Data_64_Bit_QRemote[[#This Row],[TxnDate]]) -> 23 | Z35: =+Tabla_Consulta_desde_QuickBooks_Data_64_Bit_QRemote[[#This Row],[SalesOrderLineRate]]*Tabla_Consulta_desde_QuickBooks_Data_64_Bit_QRemote[[#This Row],[SalesOrderLineInvoiced]] -> 0 | AA35: =+IFERROR(IF(Tabla_Consulta_desde_QuickBooks_Data_64_Bit_QRemote[[#This Row],[CustomerRefFullName]]="GRUVALCORP SA",VLOOKUP(Tabla_Consulta_desde_QuickBooks_Data_64_Bit_QRemote[[#This Row],[SalesOrderLineItemRefFullName]],Hoja1!A:E,5,FALSE),"")*-Tabla_Consulta_desde_QuickBooks_Data_64_Bit_QRemote[[#This Row],[SalesOrderLineAmount]],"") ->  | AB35: =IF(COUNTIF(wms!E:E,Tabla_Consulta_desde_QuickBooks_Data_64_Bit_QRemote[[#This Row],[RefNumber]])>0,"OK","FALTA") -> FALTA
A36: 2025-06-02 | B36: 29054 | C36: ARMIJOS MONTESINOS RAQUEL | D36: FACTURACION COLABORADOR OLE | E36: 3 | F36: 7861223804782 | G36: PT:221007 | H36: TORBELLINO DE QUESO KRASH 40G | I36: Bodega Producto Terminado | J36: 2 | K36: UN | L36: 0.22 | M36: 0.44 | N36: UNIDAD SNCKS | O36: 0 | P36: 6.01 | Q36: 6.91 | R36: IVA EN VENTAS 15% | S36: =IFERROR(IF(Tabla_Consulta_desde_QuickBooks_Data_64_Bit_QRemote[[#This Row],[SalesOrderLineUnitOfMeasure]]="un",Tabla_Consulta_desde_QuickBooks_Data_64_Bit_QRemote[[#This Row],[SalesOrderLineQuantity]],Tabla_Consulta_desde_QuickBooks_Data_64_Bit_QRemote[[#This Row],[SalesOrderLineQuantity]]/MID(Tabla_Consulta_desde_QuickBooks_Data_64_Bit_QRemote[[#This Row],[SalesOrderLineUnitOfMeasure]],2,2)),0) -> 2 | T36: =IFERROR(IF(Tabla_Consulta_desde_QuickBooks_Data_64_Bit_QRemote[[#This Row],[SalesOrderLineUnitOfMeasure]]="un",Tabla_Consulta_desde_QuickBooks_Data_64_Bit_QRemote[[#This Row],[SalesOrderLineInvoiced]],Tabla_Consulta_desde_QuickBooks_Data_64_Bit_QRemote[[#This Row],[SalesOrderLineInvoiced]]/MID(Tabla_Consulta_desde_QuickBooks_Data_64_Bit_QRemote[[#This Row],[SalesOrderLineUnitOfMeasure]],2,2)),0) -> 0 | U36: =+Tabla_Consulta_desde_QuickBooks_Data_64_Bit_QRemote[[#This Row],[facturado]]-Tabla_Consulta_desde_QuickBooks_Data_64_Bit_QRemote[[#This Row],[pide]] -> -2 | V36: =IF(Tabla_Consulta_desde_QuickBooks_Data_64_Bit_QRemote[[#This Row],[diferecia]]=0,"ok","diferen") -> diferen | W36: =IFERROR(INDEX(um!A:C,MATCH(Tabla_Consulta_desde_QuickBooks_Data_64_Bit_QRemote[[#This Row],[SalesOrderLineItemRefFullName]],um!A:A,0),3),"") -> X30 | X36: =IFERROR(IF(OR(Tabla_Consulta_desde_QuickBooks_Data_64_Bit_QRemote[[#This Row],[SalesOrderLineUnitOfMeasure]]="UN",Tabla_Consulta_desde_QuickBooks_Data_64_Bit_QRemote[[#This Row],[SalesOrderLineUnitOfMeasure]]=Tabla_Consulta_desde_QuickBooks_Data_64_Bit_QRemote[[#This Row],[U/M]]),"","ERROR"),"") ->  | Y36: =+WEEKNUM(Tabla_Consulta_desde_QuickBooks_Data_64_Bit_QRemote[[#This Row],[TxnDate]]) -> 23 | Z36: =+Tabla_Consulta_desde_QuickBooks_Data_64_Bit_QRemote[[#This Row],[SalesOrderLineRate]]*Tabla_Consulta_desde_QuickBooks_Data_64_Bit_QRemote[[#This Row],[SalesOrderLineInvoiced]] -> 0 | AA36: =+IFERROR(IF(Tabla_Consulta_desde_QuickBooks_Data_64_Bit_QRemote[[#This Row],[CustomerRefFullName]]="GRUVALCORP SA",VLOOKUP(Tabla_Consulta_desde_QuickBooks_Data_64_Bit_QRemote[[#This Row],[SalesOrderLineItemRefFullName]],Hoja1!A:E,5,FALSE),"")*-Tabla_Consulta_desde_QuickBooks_Data_64_Bit_QRemote[[#This Row],[SalesOrderLineAmount]],"") ->  | AB36: =IF(COUNTIF(wms!E:E,Tabla_Consulta_desde_QuickBooks_Data_64_Bit_QRemote[[#This Row],[RefNumber]])>0,"OK","FALTA") -> FALTA
A37: 2025-06-02 | B37: 29054 | C37: ARMIJOS MONTESINOS RAQUEL | D37: FACTURACION COLABORADOR OLE | E37: 4 | F37: 7862112520240 | G37: P.T:310112 | H37: TAPENADE MIX ACEITUNAS OLE 185G | I37: Bodega Producto Terminado | J37: 1 | K37: UN | L37: 0.77 | M37: 0.77 | N37: UNIDAD SALSA | O37: 0 | P37: 6.01 | Q37: 6.91 | R37: IVA EN VENTAS 15% | S37: =IFERROR(IF(Tabla_Consulta_desde_QuickBooks_Data_64_Bit_QRemote[[#This Row],[SalesOrderLineUnitOfMeasure]]="un",Tabla_Consulta_desde_QuickBooks_Data_64_Bit_QRemote[[#This Row],[SalesOrderLineQuantity]],Tabla_Consulta_desde_QuickBooks_Data_64_Bit_QRemote[[#This Row],[SalesOrderLineQuantity]]/MID(Tabla_Consulta_desde_QuickBooks_Data_64_Bit_QRemote[[#This Row],[SalesOrderLineUnitOfMeasure]],2,2)),0) -> 1 | T37: =IFERROR(IF(Tabla_Consulta_desde_QuickBooks_Data_64_Bit_QRemote[[#This Row],[SalesOrderLineUnitOfMeasure]]="un",Tabla_Consulta_desde_QuickBooks_Data_64_Bit_QRemote[[#This Row],[SalesOrderLineInvoiced]],Tabla_Consulta_desde_QuickBooks_Data_64_Bit_QRemote[[#This Row],[SalesOrderLineInvoiced]]/MID(Tabla_Consulta_desde_QuickBooks_Data_64_Bit_QRemote[[#This Row],[SalesOrderLineUnitOfMeasure]],2,2)),0) -> 0 | U37: =+Tabla_Consulta_desde_QuickBooks_Data_64_Bit_QRemote[[#This Row],[facturado]]-Tabla_Consulta_desde_QuickBooks_Data_64_Bit_QRemote[[#This Row],[pide]] -> -1 | V37: =IF(Tabla_Consulta_desde_QuickBooks_Data_64_Bit_QRemote[[#This Row],[diferecia]]=0,"ok","diferen") -> diferen | W37: =IFERROR(INDEX(um!A:C,MATCH(Tabla_Consulta_desde_QuickBooks_Data_64_Bit_QRemote[[#This Row],[SalesOrderLineItemRefFullName]],um!A:A,0),3),"") -> X12 | X37: =IFERROR(IF(OR(Tabla_Consulta_desde_QuickBooks_Data_64_Bit_QRemote[[#This Row],[SalesOrderLineUnitOfMeasure]]="UN",Tabla_Consulta_desde_QuickBooks_Data_64_Bit_QRemote[[#This Row],[SalesOrderLineUnitOfMeasure]]=Tabla_Consulta_desde_QuickBooks_Data_64_Bit_QRemote[[#This Row],[U/M]]),"","ERROR"),"") ->  | Y37: =+WEEKNUM(Tabla_Consulta_desde_QuickBooks_Data_64_Bit_QRemote[[#This Row],[TxnDate]]) -> 23 | Z37: =+Tabla_Consulta_desde_QuickBooks_Data_64_Bit_QRemote[[#This Row],[SalesOrderLineRate]]*Tabla_Consulta_desde_QuickBooks_Data_64_Bit_QRemote[[#This Row],[SalesOrderLineInvoiced]] -> 0 | AA37: =+IFERROR(IF(Tabla_Consulta_desde_QuickBooks_Data_64_Bit_QRemote[[#This Row],[CustomerRefFullName]]="GRUVALCORP SA",VLOOKUP(Tabla_Consulta_desde_QuickBooks_Data_64_Bit_QRemote[[#This Row],[SalesOrderLineItemRefFullName]],Hoja1!A:E,5,FALSE),"")*-Tabla_Consulta_desde_QuickBooks_Data_64_Bit_QRemote[[#This Row],[SalesOrderLineAmount]],"") ->  | AB37: =IF(COUNTIF(wms!E:E,Tabla_Consulta_desde_QuickBooks_Data_64_Bit_QRemote[[#This Row],[RefNumber]])>0,"OK","FALTA") -> FALTA
A38: 2025-06-02 | B38: 29054 | C38: ARMIJOS MONTESINOS RAQUEL | D38: FACTURACION COLABORADOR OLE | E38: 5 | F38: 705424000116 | G38: P.T:110207 | H38: AJÍ CON MARACUYA OLE 185G | I38: Bodega Producto Terminado | J38: 1 | K38: UN | L38: 0.82 | M38: 0.82 | N38: UNIDAD SALSA | O38: 0 | P38: 6.01 | Q38: 6.91 | R38: IVA EN VENTAS 15% | S38: =IFERROR(IF(Tabla_Consulta_desde_QuickBooks_Data_64_Bit_QRemote[[#This Row],[SalesOrderLineUnitOfMeasure]]="un",Tabla_Consulta_desde_QuickBooks_Data_64_Bit_QRemote[[#This Row],[SalesOrderLineQuantity]],Tabla_Consulta_desde_QuickBooks_Data_64_Bit_QRemote[[#This Row],[SalesOrderLineQuantity]]/MID(Tabla_Consulta_desde_QuickBooks_Data_64_Bit_QRemote[[#This Row],[SalesOrderLineUnitOfMeasure]],2,2)),0) -> 1 | T38: =IFERROR(IF(Tabla_Consulta_desde_QuickBooks_Data_64_Bit_QRemote[[#This Row],[SalesOrderLineUnitOfMeasure]]="un",Tabla_Consulta_desde_QuickBooks_Data_64_Bit_QRemote[[#This Row],[SalesOrderLineInvoiced]],Tabla_Consulta_desde_QuickBooks_Data_64_Bit_QRemote[[#This Row],[SalesOrderLineInvoiced]]/MID(Tabla_Consulta_desde_QuickBooks_Data_64_Bit_QRemote[[#This Row],[SalesOrderLineUnitOfMeasure]],2,2)),0) -> 0 | U38: =+Tabla_Consulta_desde_QuickBooks_Data_64_Bit_QRemote[[#This Row],[facturado]]-Tabla_Consulta_desde_QuickBooks_Data_64_Bit_QRemote[[#This Row],[pide]] -> -1 | V38: =IF(Tabla_Consulta_desde_QuickBooks_Data_64_Bit_QRemote[[#This Row],[diferecia]]=0,"ok","diferen") -> diferen | W38: =IFERROR(INDEX(um!A:C,MATCH(Tabla_Consulta_desde_QuickBooks_Data_64_Bit_QRemote[[#This Row],[SalesOrderLineItemRefFullName]],um!A:A,0),3),"") -> X24 | X38: =IFERROR(IF(OR(Tabla_Consulta_desde_QuickBooks_Data_64_Bit_QRemote[[#This Row],[SalesOrderLineUnitOfMeasure]]="UN",Tabla_Consulta_desde_QuickBooks_Data_64_Bit_QRemote[[#This Row],[SalesOrderLineUnitOfMeasure]]=Tabla_Consulta_desde_QuickBooks_Data_64_Bit_QRemote[[#This Row],[U/M]]),"","ERROR"),"") ->  | Y38: =+WEEKNUM(Tabla_Consulta_desde_QuickBooks_Data_64_Bit_QRemote[[#This Row],[TxnDate]]) -> 23 | Z38: =+Tabla_Consulta_desde_QuickBooks_Data_64_Bit_QRemote[[#This Row],[SalesOrderLineRate]]*Tabla_Consulta_desde_QuickBooks_Data_64_Bit_QRemote[[#This Row],[SalesOrderLineInvoiced]] -> 0 | AA38: =+IFERROR(IF(Tabla_Consulta_desde_QuickBooks_Data_64_Bit_QRemote[[#This Row],[CustomerRefFullName]]="GRUVALCORP SA",VLOOKUP(Tabla_Consulta_desde_QuickBooks_Data_64_Bit_QRemote[[#This Row],[SalesOrderLineItemRefFullName]],Hoja1!A:E,5,FALSE),"")*-Tabla_Consulta_desde_QuickBooks_Data_64_Bit_QRemote[[#This Row],[SalesOrderLineAmount]],"") ->  | AB38: =IF(COUNTIF(wms!E:E,Tabla_Consulta_desde_QuickBooks_Data_64_Bit_QRemote[[#This Row],[RefNumber]])>0,"OK","FALTA") -> FALTA
A39: 2025-06-02 | B39: 29054 | C39: ARMIJOS MONTESINOS RAQUEL | D39: FACTURACION COLABORADOR OLE | E39: 6 | F39: 705424000147 | G39: P.T:110209 | H39: AJÍ CON TOMATE DE ÁRBOL OLE 180G | I39: Bodega Producto Terminado | J39: 1 | K39: UN | L39: 0.82 | M39: 0.82 | N39: UNIDAD SALSA | O39: 0 | P39: 6.01 | Q39: 6.91 | R39: IVA EN VENTAS 15% | S39: =IFERROR(IF(Tabla_Consulta_desde_QuickBooks_Data_64_Bit_QRemote[[#This Row],[SalesOrderLineUnitOfMeasure]]="un",Tabla_Consulta_desde_QuickBooks_Data_64_Bit_QRemote[[#This Row],[SalesOrderLineQuantity]],Tabla_Consulta_desde_QuickBooks_Data_64_Bit_QRemote[[#This Row],[SalesOrderLineQuantity]]/MID(Tabla_Consulta_desde_QuickBooks_Data_64_Bit_QRemote[[#This Row],[SalesOrderLineUnitOfMeasure]],2,2)),0) -> 1 | T39: =IFERROR(IF(Tabla_Consulta_desde_QuickBooks_Data_64_Bit_QRemote[[#This Row],[SalesOrderLineUnitOfMeasure]]="un",Tabla_Consulta_desde_QuickBooks_Data_64_Bit_QRemote[[#This Row],[SalesOrderLineInvoiced]],Tabla_Consulta_desde_QuickBooks_Data_64_Bit_QRemote[[#This Row],[SalesOrderLineInvoiced]]/MID(Tabla_Consulta_desde_QuickBooks_Data_64_Bit_QRemote[[#This Row],[SalesOrderLineUnitOfMeasure]],2,2)),0) -> 0 | U39: =+Tabla_Consulta_desde_QuickBooks_Data_64_Bit_QRemote[[#This Row],[facturado]]-Tabla_Consulta_desde_QuickBooks_Data_64_Bit_QRemote[[#This Row],[pide]] -> -1 | V39: =IF(Tabla_Consulta_desde_QuickBooks_Data_64_Bit_QRemote[[#This Row],[diferecia]]=0,"ok","diferen") -> diferen | W39: =IFERROR(INDEX(um!A:C,MATCH(Tabla_Consulta_desde_QuickBooks_Data_64_Bit_QRemote[[#This Row],[SalesOrderLineItemRefFullName]],um!A:A,0),3),"") -> X24 | X39: =IFERROR(IF(OR(Tabla_Consulta_desde_QuickBooks_Data_64_Bit_QRemote[[#This Row],[SalesOrderLineUnitOfMeasure]]="UN",Tabla_Consulta_desde_QuickBooks_Data_64_Bit_QRemote[[#This Row],[SalesOrderLineUnitOfMeasure]]=Tabla_Consulta_desde_QuickBooks_Data_64_Bit_QRemote[[#This Row],[U/M]]),"","ERROR"),"") ->  | Y39: =+WEEKNUM(Tabla_Consulta_desde_QuickBooks_Data_64_Bit_QRemote[[#This Row],[TxnDate]]) -> 23 | Z39: =+Tabla_Consulta_desde_QuickBooks_Data_64_Bit_QRemote[[#This Row],[SalesOrderLineRate]]*Tabla_Consulta_desde_QuickBooks_Data_64_Bit_QRemote[[#This Row],[SalesOrderLineInvoiced]] -> 0 | AA39: =+IFERROR(IF(Tabla_Consulta_desde_QuickBooks_Data_64_Bit_QRemote[[#This Row],[CustomerRefFullName]]="GRUVALCORP SA",VLOOKUP(Tabla_Consulta_desde_QuickBooks_Data_64_Bit_QRemote[[#This Row],[SalesOrderLineItemRefFullName]],Hoja1!A:E,5,FALSE),"")*-Tabla_Consulta_desde_QuickBooks_Data_64_Bit_QRemote[[#This Row],[SalesOrderLineAmount]],"") ->  | AB39: =IF(COUNTIF(wms!E:E,Tabla_Consulta_desde_QuickBooks_Data_64_Bit_QRemote[[#This Row],[RefNumber]])>0,"OK","FALTA") -> FALTA
A40: 2025-06-02 | B40: 29054 | C40: ARMIJOS MONTESINOS RAQUEL | D40: FACTURACION COLABORADOR OLE | E40: 7 | G40: INFOADICIONAL | H40: FACTURACION COLABORADOR OLE | L40: 0 | M40: 0 | O40: 0 | P40: 6.01 | Q40: 6.91 | R40: IVA EN VENTAS 15% | S40: =IFERROR(IF(Tabla_Consulta_desde_QuickBooks_Data_64_Bit_QRemote[[#This Row],[SalesOrderLineUnitOfMeasure]]="un",Tabla_Consulta_desde_QuickBooks_Data_64_Bit_QRemote[[#This Row],[SalesOrderLineQuantity]],Tabla_Consulta_desde_QuickBooks_Data_64_Bit_QRemote[[#This Row],[SalesOrderLineQuantity]]/MID(Tabla_Consulta_desde_QuickBooks_Data_64_Bit_QRemote[[#This Row],[SalesOrderLineUnitOfMeasure]],2,2)),0) -> 0 | T40: =IFERROR(IF(Tabla_Consulta_desde_QuickBooks_Data_64_Bit_QRemote[[#This Row],[SalesOrderLineUnitOfMeasure]]="un",Tabla_Consulta_desde_QuickBooks_Data_64_Bit_QRemote[[#This Row],[SalesOrderLineInvoiced]],Tabla_Consulta_desde_QuickBooks_Data_64_Bit_QRemote[[#This Row],[SalesOrderLineInvoiced]]/MID(Tabla_Consulta_desde_QuickBooks_Data_64_Bit_QRemote[[#This Row],[SalesOrderLineUnitOfMeasure]],2,2)),0) -> 0 | U40: =+Tabla_Consulta_desde_QuickBooks_Data_64_Bit_QRemote[[#This Row],[facturado]]-Tabla_Consulta_desde_QuickBooks_Data_64_Bit_QRemote[[#This Row],[pide]] -> 0 | V40: =IF(Tabla_Consulta_desde_QuickBooks_Data_64_Bit_QRemote[[#This Row],[diferecia]]=0,"ok","diferen") -> ok | W40: =IFERROR(INDEX(um!A:C,MATCH(Tabla_Consulta_desde_QuickBooks_Data_64_Bit_QRemote[[#This Row],[SalesOrderLineItemRefFullName]],um!A:A,0),3),"") ->  | X40: =IFERROR(IF(OR(Tabla_Consulta_desde_QuickBooks_Data_64_Bit_QRemote[[#This Row],[SalesOrderLineUnitOfMeasure]]="UN",Tabla_Consulta_desde_QuickBooks_Data_64_Bit_QRemote[[#This Row],[SalesOrderLineUnitOfMeasure]]=Tabla_Consulta_desde_QuickBooks_Data_64_Bit_QRemote[[#This Row],[U/M]]),"","ERROR"),"") ->  | Y40: =+WEEKNUM(Tabla_Consulta_desde_QuickBooks_Data_64_Bit_QRemote[[#This Row],[TxnDate]]) -> 23 | Z40: =+Tabla_Consulta_desde_QuickBooks_Data_64_Bit_QRemote[[#This Row],[SalesOrderLineRate]]*Tabla_Consulta_desde_QuickBooks_Data_64_Bit_QRemote[[#This Row],[SalesOrderLineInvoiced]] -> 0 | AA40: =+IFERROR(IF(Tabla_Consulta_desde_QuickBooks_Data_64_Bit_QRemote[[#This Row],[CustomerRefFullName]]="GRUVALCORP SA",VLOOKUP(Tabla_Consulta_desde_QuickBooks_Data_64_Bit_QRemote[[#This Row],[SalesOrderLineItemRefFullName]],Hoja1!A:E,5,FALSE),"")*-Tabla_Consulta_desde_QuickBooks_Data_64_Bit_QRemote[[#This Row],[SalesOrderLineAmount]],"") ->  | AB40: =IF(COUNTIF(wms!E:E,Tabla_Consulta_desde_QuickBooks_Data_64_Bit_QRemote[[#This Row],[RefNumber]])>0,"OK","FALTA") -> FALTA
A41: 2025-06-02 | B41: 29056 | C41: YARAD YAMILE | D41: FACTURACION COLABORADOR OLE | E41: 1 | F41: 7862112523289 | G41: PT:221008 | H41: CHEDARITOS OLE 90G | I41: Bodega Producto Terminado | J41: 6 | K41: UN | L41: 0.22 | M41: 1.32 | N41: UNIDAD SNCKS | O41: 0 | P41: 19.79 | Q41: 22.76 | R41: IVA EN VENTAS 15% | S41: =IFERROR(IF(Tabla_Consulta_desde_QuickBooks_Data_64_Bit_QRemote[[#This Row],[SalesOrderLineUnitOfMeasure]]="un",Tabla_Consulta_desde_QuickBooks_Data_64_Bit_QRemote[[#This Row],[SalesOrderLineQuantity]],Tabla_Consulta_desde_QuickBooks_Data_64_Bit_QRemote[[#This Row],[SalesOrderLineQuantity]]/MID(Tabla_Consulta_desde_QuickBooks_Data_64_Bit_QRemote[[#This Row],[SalesOrderLineUnitOfMeasure]],2,2)),0) -> 6 | T41: =IFERROR(IF(Tabla_Consulta_desde_QuickBooks_Data_64_Bit_QRemote[[#This Row],[SalesOrderLineUnitOfMeasure]]="un",Tabla_Consulta_desde_QuickBooks_Data_64_Bit_QRemote[[#This Row],[SalesOrderLineInvoiced]],Tabla_Consulta_desde_QuickBooks_Data_64_Bit_QRemote[[#This Row],[SalesOrderLineInvoiced]]/MID(Tabla_Consulta_desde_QuickBooks_Data_64_Bit_QRemote[[#This Row],[SalesOrderLineUnitOfMeasure]],2,2)),0) -> 0 | U41: =+Tabla_Consulta_desde_QuickBooks_Data_64_Bit_QRemote[[#This Row],[facturado]]-Tabla_Consulta_desde_QuickBooks_Data_64_Bit_QRemote[[#This Row],[pide]] -> -6 | V41: =IF(Tabla_Consulta_desde_QuickBooks_Data_64_Bit_QRemote[[#This Row],[diferecia]]=0,"ok","diferen") -> diferen | W41: =IFERROR(INDEX(um!A:C,MATCH(Tabla_Consulta_desde_QuickBooks_Data_64_Bit_QRemote[[#This Row],[SalesOrderLineItemRefFullName]],um!A:A,0),3),"") -> X10 | X41: =IFERROR(IF(OR(Tabla_Consulta_desde_QuickBooks_Data_64_Bit_QRemote[[#This Row],[SalesOrderLineUnitOfMeasure]]="UN",Tabla_Consulta_desde_QuickBooks_Data_64_Bit_QRemote[[#This Row],[SalesOrderLineUnitOfMeasure]]=Tabla_Consulta_desde_QuickBooks_Data_64_Bit_QRemote[[#This Row],[U/M]]),"","ERROR"),"") ->  | Y41: =+WEEKNUM(Tabla_Consulta_desde_QuickBooks_Data_64_Bit_QRemote[[#This Row],[TxnDate]]) -> 23 | Z41: =+Tabla_Consulta_desde_QuickBooks_Data_64_Bit_QRemote[[#This Row],[SalesOrderLineRate]]*Tabla_Consulta_desde_QuickBooks_Data_64_Bit_QRemote[[#This Row],[SalesOrderLineInvoiced]] -> 0 | AA41: =+IFERROR(IF(Tabla_Consulta_desde_QuickBooks_Data_64_Bit_QRemote[[#This Row],[CustomerRefFullName]]="GRUVALCORP SA",VLOOKUP(Tabla_Consulta_desde_QuickBooks_Data_64_Bit_QRemote[[#This Row],[SalesOrderLineItemRefFullName]],Hoja1!A:E,5,FALSE),"")*-Tabla_Consulta_desde_QuickBooks_Data_64_Bit_QRemote[[#This Row],[SalesOrderLineAmount]],"") ->  | AB41: =IF(COUNTIF(wms!E:E,Tabla_Consulta_desde_QuickBooks_Data_64_Bit_QRemote[[#This Row],[RefNumber]])>0,"OK","FALTA") -> FALTA
A42: 2025-06-02 | B42: 29056 | C42: YARAD YAMILE | D42: FACTURACION COLABORADOR OLE | E42: 2 | F42: 7861042564607 | G42: PT:220112 | H42: TRIANGULITO DE MAÍZ QUESO SMX 350G | I42: Bodega Producto Terminado | J42: 4 | K42: UN | L42: 0.97 | M42: 3.88 | N42: UNIDAD SNCKS | O42: 0 | P42: 19.79 | Q42: 22.76 | R42: IVA EN VENTAS 15% | S42: =IFERROR(IF(Tabla_Consulta_desde_QuickBooks_Data_64_Bit_QRemote[[#This Row],[SalesOrderLineUnitOfMeasure]]="un",Tabla_Consulta_desde_QuickBooks_Data_64_Bit_QRemote[[#This Row],[SalesOrderLineQuantity]],Tabla_Consulta_desde_QuickBooks_Data_64_Bit_QRemote[[#This Row],[SalesOrderLineQuantity]]/MID(Tabla_Consulta_desde_QuickBooks_Data_64_Bit_QRemote[[#This Row],[SalesOrderLineUnitOfMeasure]],2,2)),0) -> 4 | T42: =IFERROR(IF(Tabla_Consulta_desde_QuickBooks_Data_64_Bit_QRemote[[#This Row],[SalesOrderLineUnitOfMeasure]]="un",Tabla_Consulta_desde_QuickBooks_Data_64_Bit_QRemote[[#This Row],[SalesOrderLineInvoiced]],Tabla_Consulta_desde_QuickBooks_Data_64_Bit_QRemote[[#This Row],[SalesOrderLineInvoiced]]/MID(Tabla_Consulta_desde_QuickBooks_Data_64_Bit_QRemote[[#This Row],[SalesOrderLineUnitOfMeasure]],2,2)),0) -> 0 | U42: =+Tabla_Consulta_desde_QuickBooks_Data_64_Bit_QRemote[[#This Row],[facturado]]-Tabla_Consulta_desde_QuickBooks_Data_64_Bit_QRemote[[#This Row],[pide]] -> -4 | V42: =IF(Tabla_Consulta_desde_QuickBooks_Data_64_Bit_QRemote[[#This Row],[diferecia]]=0,"ok","diferen") -> diferen | W42: =IFERROR(INDEX(um!A:C,MATCH(Tabla_Consulta_desde_QuickBooks_Data_64_Bit_QRemote[[#This Row],[SalesOrderLineItemRefFullName]],um!A:A,0),3),"") -> X 6 | X42: =IFERROR(IF(OR(Tabla_Consulta_desde_QuickBooks_Data_64_Bit_QRemote[[#This Row],[SalesOrderLineUnitOfMeasure]]="UN",Tabla_Consulta_desde_QuickBooks_Data_64_Bit_QRemote[[#This Row],[SalesOrderLineUnitOfMeasure]]=Tabla_Consulta_desde_QuickBooks_Data_64_Bit_QRemote[[#This Row],[U/M]]),"","ERROR"),"") ->  | Y42: =+WEEKNUM(Tabla_Consulta_desde_QuickBooks_Data_64_Bit_QRemote[[#This Row],[TxnDate]]) -> 23 | Z42: =+Tabla_Consulta_desde_QuickBooks_Data_64_Bit_QRemote[[#This Row],[SalesOrderLineRate]]*Tabla_Consulta_desde_QuickBooks_Data_64_Bit_QRemote[[#This Row],[SalesOrderLineInvoiced]] -> 0 | AA42: =+IFERROR(IF(Tabla_Consulta_desde_QuickBooks_Data_64_Bit_QRemote[[#This Row],[CustomerRefFullName]]="GRUVALCORP SA",VLOOKUP(Tabla_Consulta_desde_QuickBooks_Data_64_Bit_QRemote[[#This Row],[SalesOrderLineItemRefFullName]],Hoja1!A:E,5,FALSE),"")*-Tabla_Consulta_desde_QuickBooks_Data_64_Bit_QRemote[[#This Row],[SalesOrderLineAmount]],"") ->  | AB42: =IF(COUNTIF(wms!E:E,Tabla_Consulta_desde_QuickBooks_Data_64_Bit_QRemote[[#This Row],[RefNumber]])>0,"OK","FALTA") -> FALTA
A43: 2025-06-02 | B43: 29056 | C43: YARAD YAMILE | D43: FACTURACION COLABORADOR OLE | E43: 3 | F43: 7861223803235 | G43: PT:220140 | H43: TRIANGULITO DE MAÍZ LIMÓN AKI 150G | I43: Bodega Producto Terminado | J43: 2 | K43: UN | L43: 0.5 | M43: 1 | N43: UNIDAD SNCKS | O43: 0 | P43: 19.79 | Q43: 22.76 | R43: IVA EN VENTAS 15% | S43: =IFERROR(IF(Tabla_Consulta_desde_QuickBooks_Data_64_Bit_QRemote[[#This Row],[SalesOrderLineUnitOfMeasure]]="un",Tabla_Consulta_desde_QuickBooks_Data_64_Bit_QRemote[[#This Row],[SalesOrderLineQuantity]],Tabla_Consulta_desde_QuickBooks_Data_64_Bit_QRemote[[#This Row],[SalesOrderLineQuantity]]/MID(Tabla_Consulta_desde_QuickBooks_Data_64_Bit_QRemote[[#This Row],[SalesOrderLineUnitOfMeasure]],2,2)),0) -> 2 | T43: =IFERROR(IF(Tabla_Consulta_desde_QuickBooks_Data_64_Bit_QRemote[[#This Row],[SalesOrderLineUnitOfMeasure]]="un",Tabla_Consulta_desde_QuickBooks_Data_64_Bit_QRemote[[#This Row],[SalesOrderLineInvoiced]],Tabla_Consulta_desde_QuickBooks_Data_64_Bit_QRemote[[#This Row],[SalesOrderLineInvoiced]]/MID(Tabla_Consulta_desde_QuickBooks_Data_64_Bit_QRemote[[#This Row],[SalesOrderLineUnitOfMeasure]],2,2)),0) -> 0 | U43: =+Tabla_Consulta_desde_QuickBooks_Data_64_Bit_QRemote[[#This Row],[facturado]]-Tabla_Consulta_desde_QuickBooks_Data_64_Bit_QRemote[[#This Row],[pide]] -> -2 | V43: =IF(Tabla_Consulta_desde_QuickBooks_Data_64_Bit_QRemote[[#This Row],[diferecia]]=0,"ok","diferen") -> diferen | W43: =IFERROR(INDEX(um!A:C,MATCH(Tabla_Consulta_desde_QuickBooks_Data_64_Bit_QRemote[[#This Row],[SalesOrderLineItemRefFullName]],um!A:A,0),3),"") -> X12 | X43: =IFERROR(IF(OR(Tabla_Consulta_desde_QuickBooks_Data_64_Bit_QRemote[[#This Row],[SalesOrderLineUnitOfMeasure]]="UN",Tabla_Consulta_desde_QuickBooks_Data_64_Bit_QRemote[[#This Row],[SalesOrderLineUnitOfMeasure]]=Tabla_Consulta_desde_QuickBooks_Data_64_Bit_QRemote[[#This Row],[U/M]]),"","ERROR"),"") ->  | Y43: =+WEEKNUM(Tabla_Consulta_desde_QuickBooks_Data_64_Bit_QRemote[[#This Row],[TxnDate]]) -> 23 | Z43: =+Tabla_Consulta_desde_QuickBooks_Data_64_Bit_QRemote[[#This Row],[SalesOrderLineRate]]*Tabla_Consulta_desde_QuickBooks_Data_64_Bit_QRemote[[#This Row],[SalesOrderLineInvoiced]] -> 0 | AA43: =+IFERROR(IF(Tabla_Consulta_desde_QuickBooks_Data_64_Bit_QRemote[[#This Row],[CustomerRefFullName]]="GRUVALCORP SA",VLOOKUP(Tabla_Consulta_desde_QuickBooks_Data_64_Bit_QRemote[[#This Row],[SalesOrderLineItemRefFullName]],Hoja1!A:E,5,FALSE),"")*-Tabla_Consulta_desde_QuickBooks_Data_64_Bit_QRemote[[#This Row],[SalesOrderLineAmount]],"") ->  | AB43: =IF(COUNTIF(wms!E:E,Tabla_Consulta_desde_QuickBooks_Data_64_Bit_QRemote[[#This Row],[RefNumber]])>0,"OK","FALTA") -> FALTA
A44: 2025-06-02 | B44: 29056 | C44: YARAD YAMILE | D44: FACTURACION COLABORADOR OLE | E44: 4 | F44: 7862112522794 | G44: P.T:311605 | H44: SALSA CHICKEN DIPPIN OLE 200G | I44: Bodega Producto Terminado | J44: 3 | K44: UN | L44: 0.74 | M44: 2.22 | N44: UNIDAD SALSA | O44: 0 | P44: 19.79 | Q44: 22.76 | R44: IVA EN VENTAS 15% | S44: =IFERROR(IF(Tabla_Consulta_desde_QuickBooks_Data_64_Bit_QRemote[[#This Row],[SalesOrderLineUnitOfMeasure]]="un",Tabla_Consulta_desde_QuickBooks_Data_64_Bit_QRemote[[#This Row],[SalesOrderLineQuantity]],Tabla_Consulta_desde_QuickBooks_Data_64_Bit_QRemote[[#This Row],[SalesOrderLineQuantity]]/MID(Tabla_Consulta_desde_QuickBooks_Data_64_Bit_QRemote[[#This Row],[SalesOrderLineUnitOfMeasure]],2,2)),0) -> 3 | T44: =IFERROR(IF(Tabla_Consulta_desde_QuickBooks_Data_64_Bit_QRemote[[#This Row],[SalesOrderLineUnitOfMeasure]]="un",Tabla_Consulta_desde_QuickBooks_Data_64_Bit_QRemote[[#This Row],[SalesOrderLineInvoiced]],Tabla_Consulta_desde_QuickBooks_Data_64_Bit_QRemote[[#This Row],[SalesOrderLineInvoiced]]/MID(Tabla_Consulta_desde_QuickBooks_Data_64_Bit_QRemote[[#This Row],[SalesOrderLineUnitOfMeasure]],2,2)),0) -> 0 | U44: =+Tabla_Consulta_desde_QuickBooks_Data_64_Bit_QRemote[[#This Row],[facturado]]-Tabla_Consulta_desde_QuickBooks_Data_64_Bit_QRemote[[#This Row],[pide]] -> -3 | V44: =IF(Tabla_Consulta_desde_QuickBooks_Data_64_Bit_QRemote[[#This Row],[diferecia]]=0,"ok","diferen") -> diferen | W44: =IFERROR(INDEX(um!A:C,MATCH(Tabla_Consulta_desde_QuickBooks_Data_64_Bit_QRemote[[#This Row],[SalesOrderLineItemRefFullName]],um!A:A,0),3),"") -> X24 | X44: =IFERROR(IF(OR(Tabla_Consulta_desde_QuickBooks_Data_64_Bit_QRemote[[#This Row],[SalesOrderLineUnitOfMeasure]]="UN",Tabla_Consulta_desde_QuickBooks_Data_64_Bit_QRemote[[#This Row],[SalesOrderLineUnitOfMeasure]]=Tabla_Consulta_desde_QuickBooks_Data_64_Bit_QRemote[[#This Row],[U/M]]),"","ERROR"),"") ->  | Y44: =+WEEKNUM(Tabla_Consulta_desde_QuickBooks_Data_64_Bit_QRemote[[#This Row],[TxnDate]]) -> 23 | Z44: =+Tabla_Consulta_desde_QuickBooks_Data_64_Bit_QRemote[[#This Row],[SalesOrderLineRate]]*Tabla_Consulta_desde_QuickBooks_Data_64_Bit_QRemote[[#This Row],[SalesOrderLineInvoiced]] -> 0 | AA44: =+IFERROR(IF(Tabla_Consulta_desde_QuickBooks_Data_64_Bit_QRemote[[#This Row],[CustomerRefFullName]]="GRUVALCORP SA",VLOOKUP(Tabla_Consulta_desde_QuickBooks_Data_64_Bit_QRemote[[#This Row],[SalesOrderLineItemRefFullName]],Hoja1!A:E,5,FALSE),"")*-Tabla_Consulta_desde_QuickBooks_Data_64_Bit_QRemote[[#This Row],[SalesOrderLineAmount]],"") ->  | AB44: =IF(COUNTIF(wms!E:E,Tabla_Consulta_desde_QuickBooks_Data_64_Bit_QRemote[[#This Row],[RefNumber]])>0,"OK","FALTA") -> FALTA
A45: 2025-06-02 | B45: 29056 | C45: YARAD YAMILE | D45: FACTURACION COLABORADOR OLE | E45: 5 | F45: 705424000116 | G45: P.T:110248 | H45: AJÍ CON MARACUYA OLE 185G - EXP | I45: Bodega Producto Terminado | J45: 3 | K45: UN | L45: 0.82 | M45: 2.46 | N45: UNIDAD SALSA | O45: 0 | P45: 19.79 | Q45: 22.76 | R45: IVA EN VENTAS 15% | S45: =IFERROR(IF(Tabla_Consulta_desde_QuickBooks_Data_64_Bit_QRemote[[#This Row],[SalesOrderLineUnitOfMeasure]]="un",Tabla_Consulta_desde_QuickBooks_Data_64_Bit_QRemote[[#This Row],[SalesOrderLineQuantity]],Tabla_Consulta_desde_QuickBooks_Data_64_Bit_QRemote[[#This Row],[SalesOrderLineQuantity]]/MID(Tabla_Consulta_desde_QuickBooks_Data_64_Bit_QRemote[[#This Row],[SalesOrderLineUnitOfMeasure]],2,2)),0) -> 3 | T45: =IFERROR(IF(Tabla_Consulta_desde_QuickBooks_Data_64_Bit_QRemote[[#This Row],[SalesOrderLineUnitOfMeasure]]="un",Tabla_Consulta_desde_QuickBooks_Data_64_Bit_QRemote[[#This Row],[SalesOrderLineInvoiced]],Tabla_Consulta_desde_QuickBooks_Data_64_Bit_QRemote[[#This Row],[SalesOrderLineInvoiced]]/MID(Tabla_Consulta_desde_QuickBooks_Data_64_Bit_QRemote[[#This Row],[SalesOrderLineUnitOfMeasure]],2,2)),0) -> 0 | U45: =+Tabla_Consulta_desde_QuickBooks_Data_64_Bit_QRemote[[#This Row],[facturado]]-Tabla_Consulta_desde_QuickBooks_Data_64_Bit_QRemote[[#This Row],[pide]] -> -3 | V45: =IF(Tabla_Consulta_desde_QuickBooks_Data_64_Bit_QRemote[[#This Row],[diferecia]]=0,"ok","diferen") -> diferen | W45: =IFERROR(INDEX(um!A:C,MATCH(Tabla_Consulta_desde_QuickBooks_Data_64_Bit_QRemote[[#This Row],[SalesOrderLineItemRefFullName]],um!A:A,0),3),"") ->  | X45: =IFERROR(IF(OR(Tabla_Consulta_desde_QuickBooks_Data_64_Bit_QRemote[[#This Row],[SalesOrderLineUnitOfMeasure]]="UN",Tabla_Consulta_desde_QuickBooks_Data_64_Bit_QRemote[[#This Row],[SalesOrderLineUnitOfMeasure]]=Tabla_Consulta_desde_QuickBooks_Data_64_Bit_QRemote[[#This Row],[U/M]]),"","ERROR"),"") ->  | Y45: =+WEEKNUM(Tabla_Consulta_desde_QuickBooks_Data_64_Bit_QRemote[[#This Row],[TxnDate]]) -> 23 | Z45: =+Tabla_Consulta_desde_QuickBooks_Data_64_Bit_QRemote[[#This Row],[SalesOrderLineRate]]*Tabla_Consulta_desde_QuickBooks_Data_64_Bit_QRemote[[#This Row],[SalesOrderLineInvoiced]] -> 0 | AA45: =+IFERROR(IF(Tabla_Consulta_desde_QuickBooks_Data_64_Bit_QRemote[[#This Row],[CustomerRefFullName]]="GRUVALCORP SA",VLOOKUP(Tabla_Consulta_desde_QuickBooks_Data_64_Bit_QRemote[[#This Row],[SalesOrderLineItemRefFullName]],Hoja1!A:E,5,FALSE),"")*-Tabla_Consulta_desde_QuickBooks_Data_64_Bit_QRemote[[#This Row],[SalesOrderLineAmount]],"") ->  | AB45: =IF(COUNTIF(wms!E:E,Tabla_Consulta_desde_QuickBooks_Data_64_Bit_QRemote[[#This Row],[RefNumber]])>0,"OK","FALTA") -> FALTA
A46: 2025-06-02 | B46: 29056 | C46: YARAD YAMILE | D46: FACTURACION COLABORADOR OLE | E46: 6 | F46: 705424000147 | G46: P.T:110249 | H46: AJÍ CON TOMATE DE ÁRBOL OLE 180G - EXP | I46: Bodega Producto Terminado | J46: 1 | K46: UN | L46: 0.82 | M46: 0.82 | N46: UNIDAD SALSA | O46: 0 | P46: 19.79 | Q46: 22.76 | R46: IVA EN VENTAS 15% | S46: =IFERROR(IF(Tabla_Consulta_desde_QuickBooks_Data_64_Bit_QRemote[[#This Row],[SalesOrderLineUnitOfMeasure]]="un",Tabla_Consulta_desde_QuickBooks_Data_64_Bit_QRemote[[#This Row],[SalesOrderLineQuantity]],Tabla_Consulta_desde_QuickBooks_Data_64_Bit_QRemote[[#This Row],[SalesOrderLineQuantity]]/MID(Tabla_Consulta_desde_QuickBooks_Data_64_Bit_QRemote[[#This Row],[SalesOrderLineUnitOfMeasure]],2,2)),0) -> 1 | T46: =IFERROR(IF(Tabla_Consulta_desde_QuickBooks_Data_64_Bit_QRemote[[#This Row],[SalesOrderLineUnitOfMeasure]]="un",Tabla_Consulta_desde_QuickBooks_Data_64_Bit_QRemote[[#This Row],[SalesOrderLineInvoiced]],Tabla_Consulta_desde_QuickBooks_Data_64_Bit_QRemote[[#This Row],[SalesOrderLineInvoiced]]/MID(Tabla_Consulta_desde_QuickBooks_Data_64_Bit_QRemote[[#This Row],[SalesOrderLineUnitOfMeasure]],2,2)),0) -> 0 | U46: =+Tabla_Consulta_desde_QuickBooks_Data_64_Bit_QRemote[[#This Row],[facturado]]-Tabla_Consulta_desde_QuickBooks_Data_64_Bit_QRemote[[#This Row],[pide]] -> -1 | V46: =IF(Tabla_Consulta_desde_QuickBooks_Data_64_Bit_QRemote[[#This Row],[diferecia]]=0,"ok","diferen") -> diferen | W46: =IFERROR(INDEX(um!A:C,MATCH(Tabla_Consulta_desde_QuickBooks_Data_64_Bit_QRemote[[#This Row],[SalesOrderLineItemRefFullName]],um!A:A,0),3),"") ->  | X46: =IFERROR(IF(OR(Tabla_Consulta_desde_QuickBooks_Data_64_Bit_QRemote[[#This Row],[SalesOrderLineUnitOfMeasure]]="UN",Tabla_Consulta_desde_QuickBooks_Data_64_Bit_QRemote[[#This Row],[SalesOrderLineUnitOfMeasure]]=Tabla_Consulta_desde_QuickBooks_Data_64_Bit_QRemote[[#This Row],[U/M]]),"","ERROR"),"") ->  | Y46: =+WEEKNUM(Tabla_Consulta_desde_QuickBooks_Data_64_Bit_QRemote[[#This Row],[TxnDate]]) -> 23 | Z46: =+Tabla_Consulta_desde_QuickBooks_Data_64_Bit_QRemote[[#This Row],[SalesOrderLineRate]]*Tabla_Consulta_desde_QuickBooks_Data_64_Bit_QRemote[[#This Row],[SalesOrderLineInvoiced]] -> 0 | AA46: =+IFERROR(IF(Tabla_Consulta_desde_QuickBooks_Data_64_Bit_QRemote[[#This Row],[CustomerRefFullName]]="GRUVALCORP SA",VLOOKUP(Tabla_Consulta_desde_QuickBooks_Data_64_Bit_QRemote[[#This Row],[SalesOrderLineItemRefFullName]],Hoja1!A:E,5,FALSE),"")*-Tabla_Consulta_desde_QuickBooks_Data_64_Bit_QRemote[[#This Row],[SalesOrderLineAmount]],"") ->  | AB46: =IF(COUNTIF(wms!E:E,Tabla_Consulta_desde_QuickBooks_Data_64_Bit_QRemote[[#This Row],[RefNumber]])>0,"OK","FALTA") -> FALTA
A47: 2025-06-02 | B47: 29056 | C47: YARAD YAMILE | D47: FACTURACION COLABORADOR OLE | E47: 7 | F47: 7862112522725 | G47: P.T:110708 | H47: SALSA MARINARA OLE 300G | I47: Bodega Producto Terminado | J47: 2 | K47: UN | L47: 0.85 | M47: 1.7 | N47: UNIDAD SALSA | O47: 0 | P47: 19.79 | Q47: 22.76 | R47: IVA EN VENTAS 15% | S47: =IFERROR(IF(Tabla_Consulta_desde_QuickBooks_Data_64_Bit_QRemote[[#This Row],[SalesOrderLineUnitOfMeasure]]="un",Tabla_Consulta_desde_QuickBooks_Data_64_Bit_QRemote[[#This Row],[SalesOrderLineQuantity]],Tabla_Consulta_desde_QuickBooks_Data_64_Bit_QRemote[[#This Row],[SalesOrderLineQuantity]]/MID(Tabla_Consulta_desde_QuickBooks_Data_64_Bit_QRemote[[#This Row],[SalesOrderLineUnitOfMeasure]],2,2)),0) -> 2 | T47: =IFERROR(IF(Tabla_Consulta_desde_QuickBooks_Data_64_Bit_QRemote[[#This Row],[SalesOrderLineUnitOfMeasure]]="un",Tabla_Consulta_desde_QuickBooks_Data_64_Bit_QRemote[[#This Row],[SalesOrderLineInvoiced]],Tabla_Consulta_desde_QuickBooks_Data_64_Bit_QRemote[[#This Row],[SalesOrderLineInvoiced]]/MID(Tabla_Consulta_desde_QuickBooks_Data_64_Bit_QRemote[[#This Row],[SalesOrderLineUnitOfMeasure]],2,2)),0) -> 0 | U47: =+Tabla_Consulta_desde_QuickBooks_Data_64_Bit_QRemote[[#This Row],[facturado]]-Tabla_Consulta_desde_QuickBooks_Data_64_Bit_QRemote[[#This Row],[pide]] -> -2 | V47: =IF(Tabla_Consulta_desde_QuickBooks_Data_64_Bit_QRemote[[#This Row],[diferecia]]=0,"ok","diferen") -> diferen | W47: =IFERROR(INDEX(um!A:C,MATCH(Tabla_Consulta_desde_QuickBooks_Data_64_Bit_QRemote[[#This Row],[SalesOrderLineItemRefFullName]],um!A:A,0),3),"") -> X12 | X47: =IFERROR(IF(OR(Tabla_Consulta_desde_QuickBooks_Data_64_Bit_QRemote[[#This Row],[SalesOrderLineUnitOfMeasure]]="UN",Tabla_Consulta_desde_QuickBooks_Data_64_Bit_QRemote[[#This Row],[SalesOrderLineUnitOfMeasure]]=Tabla_Consulta_desde_QuickBooks_Data_64_Bit_QRemote[[#This Row],[U/M]]),"","ERROR"),"") ->  | Y47: =+WEEKNUM(Tabla_Consulta_desde_QuickBooks_Data_64_Bit_QRemote[[#This Row],[TxnDate]]) -> 23 | Z47: =+Tabla_Consulta_desde_QuickBooks_Data_64_Bit_QRemote[[#This Row],[SalesOrderLineRate]]*Tabla_Consulta_desde_QuickBooks_Data_64_Bit_QRemote[[#This Row],[SalesOrderLineInvoiced]] -> 0 | AA47: =+IFERROR(IF(Tabla_Consulta_desde_QuickBooks_Data_64_Bit_QRemote[[#This Row],[CustomerRefFullName]]="GRUVALCORP SA",VLOOKUP(Tabla_Consulta_desde_QuickBooks_Data_64_Bit_QRemote[[#This Row],[SalesOrderLineItemRefFullName]],Hoja1!A:E,5,FALSE),"")*-Tabla_Consulta_desde_QuickBooks_Data_64_Bit_QRemote[[#This Row],[SalesOrderLineAmount]],"") ->  | AB47: =IF(COUNTIF(wms!E:E,Tabla_Consulta_desde_QuickBooks_Data_64_Bit_QRemote[[#This Row],[RefNumber]])>0,"OK","FALTA") -> FALTA
A48: 2025-06-02 | B48: 29056 | C48: YARAD YAMILE | D48: FACTURACION COLABORADOR OLE | E48: 8 | F48: 853394001678 | G48: P.T:110501 | H48: CHOCHOS EN SALMUERA MAMATERE 500G | I48: Bodega Producto Terminado | J48: 3 | K48: UN | L48: 1.36 | M48: 4.08 | N48: UNIDAD SALSA | O48: 0 | P48: 19.79 | Q48: 22.76 | R48: IVA EN VENTAS 15% | S48: =IFERROR(IF(Tabla_Consulta_desde_QuickBooks_Data_64_Bit_QRemote[[#This Row],[SalesOrderLineUnitOfMeasure]]="un",Tabla_Consulta_desde_QuickBooks_Data_64_Bit_QRemote[[#This Row],[SalesOrderLineQuantity]],Tabla_Consulta_desde_QuickBooks_Data_64_Bit_QRemote[[#This Row],[SalesOrderLineQuantity]]/MID(Tabla_Consulta_desde_QuickBooks_Data_64_Bit_QRemote[[#This Row],[SalesOrderLineUnitOfMeasure]],2,2)),0) -> 3 | T48: =IFERROR(IF(Tabla_Consulta_desde_QuickBooks_Data_64_Bit_QRemote[[#This Row],[SalesOrderLineUnitOfMeasure]]="un",Tabla_Consulta_desde_QuickBooks_Data_64_Bit_QRemote[[#This Row],[SalesOrderLineInvoiced]],Tabla_Consulta_desde_QuickBooks_Data_64_Bit_QRemote[[#This Row],[SalesOrderLineInvoiced]]/MID(Tabla_Consulta_desde_QuickBooks_Data_64_Bit_QRemote[[#This Row],[SalesOrderLineUnitOfMeasure]],2,2)),0) -> 0 | U48: =+Tabla_Consulta_desde_QuickBooks_Data_64_Bit_QRemote[[#This Row],[facturado]]-Tabla_Consulta_desde_QuickBooks_Data_64_Bit_QRemote[[#This Row],[pide]] -> -3 | V48: =IF(Tabla_Consulta_desde_QuickBooks_Data_64_Bit_QRemote[[#This Row],[diferecia]]=0,"ok","diferen") -> diferen | W48: =IFERROR(INDEX(um!A:C,MATCH(Tabla_Consulta_desde_QuickBooks_Data_64_Bit_QRemote[[#This Row],[SalesOrderLineItemRefFullName]],um!A:A,0),3),"") -> X12 | X48: =IFERROR(IF(OR(Tabla_Consulta_desde_QuickBooks_Data_64_Bit_QRemote[[#This Row],[SalesOrderLineUnitOfMeasure]]="UN",Tabla_Consulta_desde_QuickBooks_Data_64_Bit_QRemote[[#This Row],[SalesOrderLineUnitOfMeasure]]=Tabla_Consulta_desde_QuickBooks_Data_64_Bit_QRemote[[#This Row],[U/M]]),"","ERROR"),"") ->  | Y48: =+WEEKNUM(Tabla_Consulta_desde_QuickBooks_Data_64_Bit_QRemote[[#This Row],[TxnDate]]) -> 23 | Z48: =+Tabla_Consulta_desde_QuickBooks_Data_64_Bit_QRemote[[#This Row],[SalesOrderLineRate]]*Tabla_Consulta_desde_QuickBooks_Data_64_Bit_QRemote[[#This Row],[SalesOrderLineInvoiced]] -> 0 | AA48: =+IFERROR(IF(Tabla_Consulta_desde_QuickBooks_Data_64_Bit_QRemote[[#This Row],[CustomerRefFullName]]="GRUVALCORP SA",VLOOKUP(Tabla_Consulta_desde_QuickBooks_Data_64_Bit_QRemote[[#This Row],[SalesOrderLineItemRefFullName]],Hoja1!A:E,5,FALSE),"")*-Tabla_Consulta_desde_QuickBooks_Data_64_Bit_QRemote[[#This Row],[SalesOrderLineAmount]],"") ->  | AB48: =IF(COUNTIF(wms!E:E,Tabla_Consulta_desde_QuickBooks_Data_64_Bit_QRemote[[#This Row],[RefNumber]])>0,"OK","FALTA") -> FALTA
A49: 2025-06-02 | B49: 29056 | C49: YARAD YAMILE | D49: FACTURACION COLABORADOR OLE | E49: 9 | F49: 7862112520240 | G49: P.T:310112 | H49: TAPENADE MIX ACEITUNAS OLE 185G | I49: Bodega Producto Terminado | J49: 3 | K49: UN | L49: 0.77 | M49: 2.31 | N49: UNIDAD SALSA | O49: 0 | P49: 19.79 | Q49: 22.76 | R49: IVA EN VENTAS 15% | S49: =IFERROR(IF(Tabla_Consulta_desde_QuickBooks_Data_64_Bit_QRemote[[#This Row],[SalesOrderLineUnitOfMeasure]]="un",Tabla_Consulta_desde_QuickBooks_Data_64_Bit_QRemote[[#This Row],[SalesOrderLineQuantity]],Tabla_Consulta_desde_QuickBooks_Data_64_Bit_QRemote[[#This Row],[SalesOrderLineQuantity]]/MID(Tabla_Consulta_desde_QuickBooks_Data_64_Bit_QRemote[[#This Row],[SalesOrderLineUnitOfMeasure]],2,2)),0) -> 3 | T49: =IFERROR(IF(Tabla_Consulta_desde_QuickBooks_Data_64_Bit_QRemote[[#This Row],[SalesOrderLineUnitOfMeasure]]="un",Tabla_Consulta_desde_QuickBooks_Data_64_Bit_QRemote[[#This Row],[SalesOrderLineInvoiced]],Tabla_Consulta_desde_QuickBooks_Data_64_Bit_QRemote[[#This Row],[SalesOrderLineInvoiced]]/MID(Tabla_Consulta_desde_QuickBooks_Data_64_Bit_QRemote[[#This Row],[SalesOrderLineUnitOfMeasure]],2,2)),0) -> 0 | U49: =+Tabla_Consulta_desde_QuickBooks_Data_64_Bit_QRemote[[#This Row],[facturado]]-Tabla_Consulta_desde_QuickBooks_Data_64_Bit_QRemote[[#This Row],[pide]] -> -3 | V49: =IF(Tabla_Consulta_desde_QuickBooks_Data_64_Bit_QRemote[[#This Row],[diferecia]]=0,"ok","diferen") -> diferen | W49: =IFERROR(INDEX(um!A:C,MATCH(Tabla_Consulta_desde_QuickBooks_Data_64_Bit_QRemote[[#This Row],[SalesOrderLineItemRefFullName]],um!A:A,0),3),"") -> X12 | X49: =IFERROR(IF(OR(Tabla_Consulta_desde_QuickBooks_Data_64_Bit_QRemote[[#This Row],[SalesOrderLineUnitOfMeasure]]="UN",Tabla_Consulta_desde_QuickBooks_Data_64_Bit_QRemote[[#This Row],[SalesOrderLineUnitOfMeasure]]=Tabla_Consulta_desde_QuickBooks_Data_64_Bit_QRemote[[#This Row],[U/M]]),"","ERROR"),"") ->  | Y49: =+WEEKNUM(Tabla_Consulta_desde_QuickBooks_Data_64_Bit_QRemote[[#This Row],[TxnDate]]) -> 23 | Z49: =+Tabla_Consulta_desde_QuickBooks_Data_64_Bit_QRemote[[#This Row],[SalesOrderLineRate]]*Tabla_Consulta_desde_QuickBooks_Data_64_Bit_QRemote[[#This Row],[SalesOrderLineInvoiced]] -> 0 | AA49: =+IFERROR(IF(Tabla_Consulta_desde_QuickBooks_Data_64_Bit_QRemote[[#This Row],[CustomerRefFullName]]="GRUVALCORP SA",VLOOKUP(Tabla_Consulta_desde_QuickBooks_Data_64_Bit_QRemote[[#This Row],[SalesOrderLineItemRefFullName]],Hoja1!A:E,5,FALSE),"")*-Tabla_Consulta_desde_QuickBooks_Data_64_Bit_QRemote[[#This Row],[SalesOrderLineAmount]],"") ->  | AB49: =IF(COUNTIF(wms!E:E,Tabla_Consulta_desde_QuickBooks_Data_64_Bit_QRemote[[#This Row],[RefNumber]])>0,"OK","FALTA") -> FALTA
A50: 2025-06-02 | B50: 29056 | C50: YARAD YAMILE | D50: FACTURACION COLABORADOR OLE | E50: 10 | G50: INFOADICIONAL | H50: FACTURACION COLABORADOR OLE | L50: 0 | M50: 0 | O50: 0 | P50: 19.79 | Q50: 22.76 | R50: IVA EN VENTAS 15% | S50: =IFERROR(IF(Tabla_Consulta_desde_QuickBooks_Data_64_Bit_QRemote[[#This Row],[SalesOrderLineUnitOfMeasure]]="un",Tabla_Consulta_desde_QuickBooks_Data_64_Bit_QRemote[[#This Row],[SalesOrderLineQuantity]],Tabla_Consulta_desde_QuickBooks_Data_64_Bit_QRemote[[#This Row],[SalesOrderLineQuantity]]/MID(Tabla_Consulta_desde_QuickBooks_Data_64_Bit_QRemote[[#This Row],[SalesOrderLineUnitOfMeasure]],2,2)),0) -> 0 | T50: =IFERROR(IF(Tabla_Consulta_desde_QuickBooks_Data_64_Bit_QRemote[[#This Row],[SalesOrderLineUnitOfMeasure]]="un",Tabla_Consulta_desde_QuickBooks_Data_64_Bit_QRemote[[#This Row],[SalesOrderLineInvoiced]],Tabla_Consulta_desde_QuickBooks_Data_64_Bit_QRemote[[#This Row],[SalesOrderLineInvoiced]]/MID(Tabla_Consulta_desde_QuickBooks_Data_64_Bit_QRemote[[#This Row],[SalesOrderLineUnitOfMeasure]],2,2)),0) -> 0 | U50: =+Tabla_Consulta_desde_QuickBooks_Data_64_Bit_QRemote[[#This Row],[facturado]]-Tabla_Consulta_desde_QuickBooks_Data_64_Bit_QRemote[[#This Row],[pide]] -> 0 | V50: =IF(Tabla_Consulta_desde_QuickBooks_Data_64_Bit_QRemote[[#This Row],[diferecia]]=0,"ok","diferen") -> ok | W50: =IFERROR(INDEX(um!A:C,MATCH(Tabla_Consulta_desde_QuickBooks_Data_64_Bit_QRemote[[#This Row],[SalesOrderLineItemRefFullName]],um!A:A,0),3),"") ->  | X50: =IFERROR(IF(OR(Tabla_Consulta_desde_QuickBooks_Data_64_Bit_QRemote[[#This Row],[SalesOrderLineUnitOfMeasure]]="UN",Tabla_Consulta_desde_QuickBooks_Data_64_Bit_QRemote[[#This Row],[SalesOrderLineUnitOfMeasure]]=Tabla_Consulta_desde_QuickBooks_Data_64_Bit_QRemote[[#This Row],[U/M]]),"","ERROR"),"") ->  | Y50: =+WEEKNUM(Tabla_Consulta_desde_QuickBooks_Data_64_Bit_QRemote[[#This Row],[TxnDate]]) -> 23 | Z50: =+Tabla_Consulta_desde_QuickBooks_Data_64_Bit_QRemote[[#This Row],[SalesOrderLineRate]]*Tabla_Consulta_desde_QuickBooks_Data_64_Bit_QRemote[[#This Row],[SalesOrderLineInvoiced]] -> 0 | AA50: =+IFERROR(IF(Tabla_Consulta_desde_QuickBooks_Data_64_Bit_QRemote[[#This Row],[CustomerRefFullName]]="GRUVALCORP SA",VLOOKUP(Tabla_Consulta_desde_QuickBooks_Data_64_Bit_QRemote[[#This Row],[SalesOrderLineItemRefFullName]],Hoja1!A:E,5,FALSE),"")*-Tabla_Consulta_desde_QuickBooks_Data_64_Bit_QRemote[[#This Row],[SalesOrderLineAmount]],"") ->  | AB50: =IF(COUNTIF(wms!E:E,Tabla_Consulta_desde_QuickBooks_Data_64_Bit_QRemote[[#This Row],[RefNumber]])>0,"OK","FALTA") -> FALTA
A51: 2025-06-02 | B51: 29070 | C51: MORPHO-TRAVEL ECUADOR S.A. | D51: OC-117942 | E51: 1 | F51: 705424000116 | G51: P.T:110207 | H51: AJÍ CON MARACUYA OLE 185G | I51: Bodega Producto Terminado | J51: 24 | K51: X24 | L51: 1.53 | M51: 36.72 | N51: UNIDAD SALSA | O51: 0 | P51: 36.72 | Q51: 42.23 | R51: IVA EN VENTAS 15% | S51: =IFERROR(IF(Tabla_Consulta_desde_QuickBooks_Data_64_Bit_QRemote[[#This Row],[SalesOrderLineUnitOfMeasure]]="un",Tabla_Consulta_desde_QuickBooks_Data_64_Bit_QRemote[[#This Row],[SalesOrderLineQuantity]],Tabla_Consulta_desde_QuickBooks_Data_64_Bit_QRemote[[#This Row],[SalesOrderLineQuantity]]/MID(Tabla_Consulta_desde_QuickBooks_Data_64_Bit_QRemote[[#This Row],[SalesOrderLineUnitOfMeasure]],2,2)),0) -> 1 | T51: =IFERROR(IF(Tabla_Consulta_desde_QuickBooks_Data_64_Bit_QRemote[[#This Row],[SalesOrderLineUnitOfMeasure]]="un",Tabla_Consulta_desde_QuickBooks_Data_64_Bit_QRemote[[#This Row],[SalesOrderLineInvoiced]],Tabla_Consulta_desde_QuickBooks_Data_64_Bit_QRemote[[#This Row],[SalesOrderLineInvoiced]]/MID(Tabla_Consulta_desde_QuickBooks_Data_64_Bit_QRemote[[#This Row],[SalesOrderLineUnitOfMeasure]],2,2)),0) -> 0 | U51: =+Tabla_Consulta_desde_QuickBooks_Data_64_Bit_QRemote[[#This Row],[facturado]]-Tabla_Consulta_desde_QuickBooks_Data_64_Bit_QRemote[[#This Row],[pide]] -> -1 | V51: =IF(Tabla_Consulta_desde_QuickBooks_Data_64_Bit_QRemote[[#This Row],[diferecia]]=0,"ok","diferen") -> diferen | W51: =IFERROR(INDEX(um!A:C,MATCH(Tabla_Consulta_desde_QuickBooks_Data_64_Bit_QRemote[[#This Row],[SalesOrderLineItemRefFullName]],um!A:A,0),3),"") -> X24 | X51: =IFERROR(IF(OR(Tabla_Consulta_desde_QuickBooks_Data_64_Bit_QRemote[[#This Row],[SalesOrderLineUnitOfMeasure]]="UN",Tabla_Consulta_desde_QuickBooks_Data_64_Bit_QRemote[[#This Row],[SalesOrderLineUnitOfMeasure]]=Tabla_Consulta_desde_QuickBooks_Data_64_Bit_QRemote[[#This Row],[U/M]]),"","ERROR"),"") ->  | Y51: =+WEEKNUM(Tabla_Consulta_desde_QuickBooks_Data_64_Bit_QRemote[[#This Row],[TxnDate]]) -> 23 | Z51: =+Tabla_Consulta_desde_QuickBooks_Data_64_Bit_QRemote[[#This Row],[SalesOrderLineRate]]*Tabla_Consulta_desde_QuickBooks_Data_64_Bit_QRemote[[#This Row],[SalesOrderLineInvoiced]] -> 0 | AA51: =+IFERROR(IF(Tabla_Consulta_desde_QuickBooks_Data_64_Bit_QRemote[[#This Row],[CustomerRefFullName]]="GRUVALCORP SA",VLOOKUP(Tabla_Consulta_desde_QuickBooks_Data_64_Bit_QRemote[[#This Row],[SalesOrderLineItemRefFullName]],Hoja1!A:E,5,FALSE),"")*-Tabla_Consulta_desde_QuickBooks_Data_64_Bit_QRemote[[#This Row],[SalesOrderLineAmount]],"") ->  | AB51: =IF(COUNTIF(wms!E:E,Tabla_Consulta_desde_QuickBooks_Data_64_Bit_QRemote[[#This Row],[RefNumber]])>0,"OK","FALTA") -> OK
A52: 2025-06-02 | B52: 29070 | C52: MORPHO-TRAVEL ECUADOR S.A. | D52: OC-117942 | E52: 2 | G52: INFOADICIONAL | H52: OC-117942 AVENIDA FELIPE PEZO CAMPUZANO Y 3ER PEAJE COMPLEJO DE BODEGAS LA CARLOTA, BODEGA 5 GUAYAQUIL | L52: 0 | M52: 0 | O52: 0 | P52: 36.72 | Q52: 42.23 | R52: IVA EN VENTAS 15% | S52: =IFERROR(IF(Tabla_Consulta_desde_QuickBooks_Data_64_Bit_QRemote[[#This Row],[SalesOrderLineUnitOfMeasure]]="un",Tabla_Consulta_desde_QuickBooks_Data_64_Bit_QRemote[[#This Row],[SalesOrderLineQuantity]],Tabla_Consulta_desde_QuickBooks_Data_64_Bit_QRemote[[#This Row],[SalesOrderLineQuantity]]/MID(Tabla_Consulta_desde_QuickBooks_Data_64_Bit_QRemote[[#This Row],[SalesOrderLineUnitOfMeasure]],2,2)),0) -> 0 | T52: =IFERROR(IF(Tabla_Consulta_desde_QuickBooks_Data_64_Bit_QRemote[[#This Row],[SalesOrderLineUnitOfMeasure]]="un",Tabla_Consulta_desde_QuickBooks_Data_64_Bit_QRemote[[#This Row],[SalesOrderLineInvoiced]],Tabla_Consulta_desde_QuickBooks_Data_64_Bit_QRemote[[#This Row],[SalesOrderLineInvoiced]]/MID(Tabla_Consulta_desde_QuickBooks_Data_64_Bit_QRemote[[#This Row],[SalesOrderLineUnitOfMeasure]],2,2)),0) -> 0 | U52: =+Tabla_Consulta_desde_QuickBooks_Data_64_Bit_QRemote[[#This Row],[facturado]]-Tabla_Consulta_desde_QuickBooks_Data_64_Bit_QRemote[[#This Row],[pide]] -> 0 | V52: =IF(Tabla_Consulta_desde_QuickBooks_Data_64_Bit_QRemote[[#This Row],[diferecia]]=0,"ok","diferen") -> ok | W52: =IFERROR(INDEX(um!A:C,MATCH(Tabla_Consulta_desde_QuickBooks_Data_64_Bit_QRemote[[#This Row],[SalesOrderLineItemRefFullName]],um!A:A,0),3),"") ->  | X52: =IFERROR(IF(OR(Tabla_Consulta_desde_QuickBooks_Data_64_Bit_QRemote[[#This Row],[SalesOrderLineUnitOfMeasure]]="UN",Tabla_Consulta_desde_QuickBooks_Data_64_Bit_QRemote[[#This Row],[SalesOrderLineUnitOfMeasure]]=Tabla_Consulta_desde_QuickBooks_Data_64_Bit_QRemote[[#This Row],[U/M]]),"","ERROR"),"") ->  | Y52: =+WEEKNUM(Tabla_Consulta_desde_QuickBooks_Data_64_Bit_QRemote[[#This Row],[TxnDate]]) -> 23 | Z52: =+Tabla_Consulta_desde_QuickBooks_Data_64_Bit_QRemote[[#This Row],[SalesOrderLineRate]]*Tabla_Consulta_desde_QuickBooks_Data_64_Bit_QRemote[[#This Row],[SalesOrderLineInvoiced]] -> 0 | AA52: =+IFERROR(IF(Tabla_Consulta_desde_QuickBooks_Data_64_Bit_QRemote[[#This Row],[CustomerRefFullName]]="GRUVALCORP SA",VLOOKUP(Tabla_Consulta_desde_QuickBooks_Data_64_Bit_QRemote[[#This Row],[SalesOrderLineItemRefFullName]],Hoja1!A:E,5,FALSE),"")*-Tabla_Consulta_desde_QuickBooks_Data_64_Bit_QRemote[[#This Row],[SalesOrderLineAmount]],"") ->  | AB52: =IF(COUNTIF(wms!E:E,Tabla_Consulta_desde_QuickBooks_Data_64_Bit_QRemote[[#This Row],[RefNumber]])>0,"OK","FALTA") -> OK
A53: 2025-06-02 | B53: 29072 | C53: IBD-FOOD-SERVICE CIA.LTDA. | D53: IBD- QUITO | E53: 1 | F53: 2614100000006 | G53: P.T:110604 | H53: JALAPEÑO VERDES ENCURTIDOS OLE 4100G | I53: Bodega Producto Terminado | J53: 4 | K53: UN | L53: 13.54 | M53: 54.16 | N53: UNIDAD SALSA | O53: 4 | P53: 671.8 | Q53: 772.57 | R53: IVA EN VENTAS 15% | S53: =IFERROR(IF(Tabla_Consulta_desde_QuickBooks_Data_64_Bit_QRemote[[#This Row],[SalesOrderLineUnitOfMeasure]]="un",Tabla_Consulta_desde_QuickBooks_Data_64_Bit_QRemote[[#This Row],[SalesOrderLineQuantity]],Tabla_Consulta_desde_QuickBooks_Data_64_Bit_QRemote[[#This Row],[SalesOrderLineQuantity]]/MID(Tabla_Consulta_desde_QuickBooks_Data_64_Bit_QRemote[[#This Row],[SalesOrderLineUnitOfMeasure]],2,2)),0) -> 4 | T53: =IFERROR(IF(Tabla_Consulta_desde_QuickBooks_Data_64_Bit_QRemote[[#This Row],[SalesOrderLineUnitOfMeasure]]="un",Tabla_Consulta_desde_QuickBooks_Data_64_Bit_QRemote[[#This Row],[SalesOrderLineInvoiced]],Tabla_Consulta_desde_QuickBooks_Data_64_Bit_QRemote[[#This Row],[SalesOrderLineInvoiced]]/MID(Tabla_Consulta_desde_QuickBooks_Data_64_Bit_QRemote[[#This Row],[SalesOrderLineUnitOfMeasure]],2,2)),0) -> 4 | U53: =+Tabla_Consulta_desde_QuickBooks_Data_64_Bit_QRemote[[#This Row],[facturado]]-Tabla_Consulta_desde_QuickBooks_Data_64_Bit_QRemote[[#This Row],[pide]] -> 0 | V53: =IF(Tabla_Consulta_desde_QuickBooks_Data_64_Bit_QRemote[[#This Row],[diferecia]]=0,"ok","diferen") -> ok | W53: =IFERROR(INDEX(um!A:C,MATCH(Tabla_Consulta_desde_QuickBooks_Data_64_Bit_QRemote[[#This Row],[SalesOrderLineItemRefFullName]],um!A:A,0),3),"") -> X4 | X53: =IFERROR(IF(OR(Tabla_Consulta_desde_QuickBooks_Data_64_Bit_QRemote[[#This Row],[SalesOrderLineUnitOfMeasure]]="UN",Tabla_Consulta_desde_QuickBooks_Data_64_Bit_QRemote[[#This Row],[SalesOrderLineUnitOfMeasure]]=Tabla_Consulta_desde_QuickBooks_Data_64_Bit_QRemote[[#This Row],[U/M]]),"","ERROR"),"") ->  | Y53: =+WEEKNUM(Tabla_Consulta_desde_QuickBooks_Data_64_Bit_QRemote[[#This Row],[TxnDate]]) -> 23 | Z53: =+Tabla_Consulta_desde_QuickBooks_Data_64_Bit_QRemote[[#This Row],[SalesOrderLineRate]]*Tabla_Consulta_desde_QuickBooks_Data_64_Bit_QRemote[[#This Row],[SalesOrderLineInvoiced]] -> 54.16 | AA53: =+IFERROR(IF(Tabla_Consulta_desde_QuickBooks_Data_64_Bit_QRemote[[#This Row],[CustomerRefFullName]]="GRUVALCORP SA",VLOOKUP(Tabla_Consulta_desde_QuickBooks_Data_64_Bit_QRemote[[#This Row],[SalesOrderLineItemRefFullName]],Hoja1!A:E,5,FALSE),"")*-Tabla_Consulta_desde_QuickBooks_Data_64_Bit_QRemote[[#This Row],[SalesOrderLineAmount]],"") ->  | AB53: =IF(COUNTIF(wms!E:E,Tabla_Consulta_desde_QuickBooks_Data_64_Bit_QRemote[[#This Row],[RefNumber]])>0,"OK","FALTA") -> OK
A54: 2025-06-02 | B54: 29072 | C54: IBD-FOOD-SERVICE CIA.LTDA. | D54: IBD- QUITO | E54: 2 | F54: 7862112521766 | G54: P.T:110717 | H54: TERIYAKI SALSA ASIATICA OLE 4100G | I54: Bodega Producto Terminado | J54: 12 | K54: UN | L54: 16.06 | M54: 192.72 | N54: UNIDAD SALSA | O54: 12 | P54: 671.8 | Q54: 772.57 | R54: IVA EN VENTAS 15% | S54: =IFERROR(IF(Tabla_Consulta_desde_QuickBooks_Data_64_Bit_QRemote[[#This Row],[SalesOrderLineUnitOfMeasure]]="un",Tabla_Consulta_desde_QuickBooks_Data_64_Bit_QRemote[[#This Row],[SalesOrderLineQuantity]],Tabla_Consulta_desde_QuickBooks_Data_64_Bit_QRemote[[#This Row],[SalesOrderLineQuantity]]/MID(Tabla_Consulta_desde_QuickBooks_Data_64_Bit_QRemote[[#This Row],[SalesOrderLineUnitOfMeasure]],2,2)),0) -> 12 | T54: =IFERROR(IF(Tabla_Consulta_desde_QuickBooks_Data_64_Bit_QRemote[[#This Row],[SalesOrderLineUnitOfMeasure]]="un",Tabla_Consulta_desde_QuickBooks_Data_64_Bit_QRemote[[#This Row],[SalesOrderLineInvoiced]],Tabla_Consulta_desde_QuickBooks_Data_64_Bit_QRemote[[#This Row],[SalesOrderLineInvoiced]]/MID(Tabla_Consulta_desde_QuickBooks_Data_64_Bit_QRemote[[#This Row],[SalesOrderLineUnitOfMeasure]],2,2)),0) -> 12 | U54: =+Tabla_Consulta_desde_QuickBooks_Data_64_Bit_QRemote[[#This Row],[facturado]]-Tabla_Consulta_desde_QuickBooks_Data_64_Bit_QRemote[[#This Row],[pide]] -> 0 | V54: =IF(Tabla_Consulta_desde_QuickBooks_Data_64_Bit_QRemote[[#This Row],[diferecia]]=0,"ok","diferen") -> ok | W54: =IFERROR(INDEX(um!A:C,MATCH(Tabla_Consulta_desde_QuickBooks_Data_64_Bit_QRemote[[#This Row],[SalesOrderLineItemRefFullName]],um!A:A,0),3),"") ->  | X54: =IFERROR(IF(OR(Tabla_Consulta_desde_QuickBooks_Data_64_Bit_QRemote[[#This Row],[SalesOrderLineUnitOfMeasure]]="UN",Tabla_Consulta_desde_QuickBooks_Data_64_Bit_QRemote[[#This Row],[SalesOrderLineUnitOfMeasure]]=Tabla_Consulta_desde_QuickBooks_Data_64_Bit_QRemote[[#This Row],[U/M]]),"","ERROR"),"") ->  | Y54: =+WEEKNUM(Tabla_Consulta_desde_QuickBooks_Data_64_Bit_QRemote[[#This Row],[TxnDate]]) -> 23 | Z54: =+Tabla_Consulta_desde_QuickBooks_Data_64_Bit_QRemote[[#This Row],[SalesOrderLineRate]]*Tabla_Consulta_desde_QuickBooks_Data_64_Bit_QRemote[[#This Row],[SalesOrderLineInvoiced]] -> 192.72 | AA54: =+IFERROR(IF(Tabla_Consulta_desde_QuickBooks_Data_64_Bit_QRemote[[#This Row],[CustomerRefFullName]]="GRUVALCORP SA",VLOOKUP(Tabla_Consulta_desde_QuickBooks_Data_64_Bit_QRemote[[#This Row],[SalesOrderLineItemRefFullName]],Hoja1!A:E,5,FALSE),"")*-Tabla_Consulta_desde_QuickBooks_Data_64_Bit_QRemote[[#This Row],[SalesOrderLineAmount]],"") ->  | AB54: =IF(COUNTIF(wms!E:E,Tabla_Consulta_desde_QuickBooks_Data_64_Bit_QRemote[[#This Row],[RefNumber]])>0,"OK","FALTA") -> OK
A55: 2025-06-02 | B55: 29072 | C55: IBD-FOOD-SERVICE CIA.LTDA. | D55: IBD- QUITO | E55: 3 | F55: 7862112520417 | G55: P.T:110607 | H55: JALAPEÑO VERDES ENCURTIDOS OLE 1000G | I55: Bodega Producto Terminado | J55: 4 | K55: UN | L55: 3.6 | M55: 14.4 | N55: UNIDAD SALSA | O55: 4 | P55: 671.8 | Q55: 772.57 | R55: IVA EN VENTAS 15% | S55: =IFERROR(IF(Tabla_Consulta_desde_QuickBooks_Data_64_Bit_QRemote[[#This Row],[SalesOrderLineUnitOfMeasure]]="un",Tabla_Consulta_desde_QuickBooks_Data_64_Bit_QRemote[[#This Row],[SalesOrderLineQuantity]],Tabla_Consulta_desde_QuickBooks_Data_64_Bit_QRemote[[#This Row],[SalesOrderLineQuantity]]/MID(Tabla_Consulta_desde_QuickBooks_Data_64_Bit_QRemote[[#This Row],[SalesOrderLineUnitOfMeasure]],2,2)),0) -> 4 | T55: =IFERROR(IF(Tabla_Consulta_desde_QuickBooks_Data_64_Bit_QRemote[[#This Row],[SalesOrderLineUnitOfMeasure]]="un",Tabla_Consulta_desde_QuickBooks_Data_64_Bit_QRemote[[#This Row],[SalesOrderLineInvoiced]],Tabla_Consulta_desde_QuickBooks_Data_64_Bit_QRemote[[#This Row],[SalesOrderLineInvoiced]]/MID(Tabla_Consulta_desde_QuickBooks_Data_64_Bit_QRemote[[#This Row],[SalesOrderLineUnitOfMeasure]],2,2)),0) -> 4 | U55: =+Tabla_Consulta_desde_QuickBooks_Data_64_Bit_QRemote[[#This Row],[facturado]]-Tabla_Consulta_desde_QuickBooks_Data_64_Bit_QRemote[[#This Row],[pide]] -> 0 | V55: =IF(Tabla_Consulta_desde_QuickBooks_Data_64_Bit_QRemote[[#This Row],[diferecia]]=0,"ok","diferen") -> ok | W55: =IFERROR(INDEX(um!A:C,MATCH(Tabla_Consulta_desde_QuickBooks_Data_64_Bit_QRemote[[#This Row],[SalesOrderLineItemRefFullName]],um!A:A,0),3),"") ->  | X55: =IFERROR(IF(OR(Tabla_Consulta_desde_QuickBooks_Data_64_Bit_QRemote[[#This Row],[SalesOrderLineUnitOfMeasure]]="UN",Tabla_Consulta_desde_QuickBooks_Data_64_Bit_QRemote[[#This Row],[SalesOrderLineUnitOfMeasure]]=Tabla_Consulta_desde_QuickBooks_Data_64_Bit_QRemote[[#This Row],[U/M]]),"","ERROR"),"") ->  | Y55: =+WEEKNUM(Tabla_Consulta_desde_QuickBooks_Data_64_Bit_QRemote[[#This Row],[TxnDate]]) -> 23 | Z55: =+Tabla_Consulta_desde_QuickBooks_Data_64_Bit_QRemote[[#This Row],[SalesOrderLineRate]]*Tabla_Consulta_desde_QuickBooks_Data_64_Bit_QRemote[[#This Row],[SalesOrderLineInvoiced]] -> 14.4 | AA55: =+IFERROR(IF(Tabla_Consulta_desde_QuickBooks_Data_64_Bit_QRemote[[#This Row],[CustomerRefFullName]]="GRUVALCORP SA",VLOOKUP(Tabla_Consulta_desde_QuickBooks_Data_64_Bit_QRemote[[#This Row],[SalesOrderLineItemRefFullName]],Hoja1!A:E,5,FALSE),"")*-Tabla_Consulta_desde_QuickBooks_Data_64_Bit_QRemote[[#This Row],[SalesOrderLineAmount]],"") ->  | AB55: =IF(COUNTIF(wms!E:E,Tabla_Consulta_desde_QuickBooks_Data_64_Bit_QRemote[[#This Row],[RefNumber]])>0,"OK","FALTA") -> OK
A56: 2025-06-02 | B56: 29072 | C56: IBD-FOOD-SERVICE CIA.LTDA. | D56: IBD- QUITO | E56: 4 | F56: 7861000227513 | G56: P.T:110603 | H56: JALAPEÑO ROJOS Y VERDES OLE 200G | I56: Bodega Producto Terminado | J56: 240 | K56: X24 | L56: 1.61 | M56: 386.4 | N56: UNIDAD SALSA | O56: 240 | P56: 671.8 | Q56: 772.57 | R56: IVA EN VENTAS 15% | S56: =IFERROR(IF(Tabla_Consulta_desde_QuickBooks_Data_64_Bit_QRemote[[#This Row],[SalesOrderLineUnitOfMeasure]]="un",Tabla_Consulta_desde_QuickBooks_Data_64_Bit_QRemote[[#This Row],[SalesOrderLineQuantity]],Tabla_Consulta_desde_QuickBooks_Data_64_Bit_QRemote[[#This Row],[SalesOrderLineQuantity]]/MID(Tabla_Consulta_desde_QuickBooks_Data_64_Bit_QRemote[[#This Row],[SalesOrderLineUnitOfMeasure]],2,2)),0) -> 10 | T56: =IFERROR(IF(Tabla_Consulta_desde_QuickBooks_Data_64_Bit_QRemote[[#This Row],[SalesOrderLineUnitOfMeasure]]="un",Tabla_Consulta_desde_QuickBooks_Data_64_Bit_QRemote[[#This Row],[SalesOrderLineInvoiced]],Tabla_Consulta_desde_QuickBooks_Data_64_Bit_QRemote[[#This Row],[SalesOrderLineInvoiced]]/MID(Tabla_Consulta_desde_QuickBooks_Data_64_Bit_QRemote[[#This Row],[SalesOrderLineUnitOfMeasure]],2,2)),0) -> 10 | U56: =+Tabla_Consulta_desde_QuickBooks_Data_64_Bit_QRemote[[#This Row],[facturado]]-Tabla_Consulta_desde_QuickBooks_Data_64_Bit_QRemote[[#This Row],[pide]] -> 0 | V56: =IF(Tabla_Consulta_desde_QuickBooks_Data_64_Bit_QRemote[[#This Row],[diferecia]]=0,"ok","diferen") -> ok | W56: =IFERROR(INDEX(um!A:C,MATCH(Tabla_Consulta_desde_QuickBooks_Data_64_Bit_QRemote[[#This Row],[SalesOrderLineItemRefFullName]],um!A:A,0),3),"") -> X24 | X56: =IFERROR(IF(OR(Tabla_Consulta_desde_QuickBooks_Data_64_Bit_QRemote[[#This Row],[SalesOrderLineUnitOfMeasure]]="UN",Tabla_Consulta_desde_QuickBooks_Data_64_Bit_QRemote[[#This Row],[SalesOrderLineUnitOfMeasure]]=Tabla_Consulta_desde_QuickBooks_Data_64_Bit_QRemote[[#This Row],[U/M]]),"","ERROR"),"") ->  | Y56: =+WEEKNUM(Tabla_Consulta_desde_QuickBooks_Data_64_Bit_QRemote[[#This Row],[TxnDate]]) -> 23 | Z56: =+Tabla_Consulta_desde_QuickBooks_Data_64_Bit_QRemote[[#This Row],[SalesOrderLineRate]]*Tabla_Consulta_desde_QuickBooks_Data_64_Bit_QRemote[[#This Row],[SalesOrderLineInvoiced]] -> 386.4 | AA56: =+IFERROR(IF(Tabla_Consulta_desde_QuickBooks_Data_64_Bit_QRemote[[#This Row],[CustomerRefFullName]]="GRUVALCORP SA",VLOOKUP(Tabla_Consulta_desde_QuickBooks_Data_64_Bit_QRemote[[#This Row],[SalesOrderLineItemRefFullName]],Hoja1!A:E,5,FALSE),"")*-Tabla_Consulta_desde_QuickBooks_Data_64_Bit_QRemote[[#This Row],[SalesOrderLineAmount]],"") ->  | AB56: =IF(COUNTIF(wms!E:E,Tabla_Consulta_desde_QuickBooks_Data_64_Bit_QRemote[[#This Row],[RefNumber]])>0,"OK","FALTA") -> OK
A57: 2025-06-02 | B57: 29072 | C57: IBD-FOOD-SERVICE CIA.LTDA. | D57: IBD- QUITO | E57: 5 | F57: 7862112522169 | G57: P.T:110734 | H57: DIP ORIGINAL ROASTED TOMATES ASADOS OLE 220G | I57: Bodega Producto Terminado | J57: 12 | K57: X12 | L57: 1.21 | M57: 14.52 | N57: UNIDAD SALSA | O57: 12 | P57: 671.8 | Q57: 772.57 | R57: IVA EN VENTAS 15% | S57: =IFERROR(IF(Tabla_Consulta_desde_QuickBooks_Data_64_Bit_QRemote[[#This Row],[SalesOrderLineUnitOfMeasure]]="un",Tabla_Consulta_desde_QuickBooks_Data_64_Bit_QRemote[[#This Row],[SalesOrderLineQuantity]],Tabla_Consulta_desde_QuickBooks_Data_64_Bit_QRemote[[#This Row],[SalesOrderLineQuantity]]/MID(Tabla_Consulta_desde_QuickBooks_Data_64_Bit_QRemote[[#This Row],[SalesOrderLineUnitOfMeasure]],2,2)),0) -> 1 | T57: =IFERROR(IF(Tabla_Consulta_desde_QuickBooks_Data_64_Bit_QRemote[[#This Row],[SalesOrderLineUnitOfMeasure]]="un",Tabla_Consulta_desde_QuickBooks_Data_64_Bit_QRemote[[#This Row],[SalesOrderLineInvoiced]],Tabla_Consulta_desde_QuickBooks_Data_64_Bit_QRemote[[#This Row],[SalesOrderLineInvoiced]]/MID(Tabla_Consulta_desde_QuickBooks_Data_64_Bit_QRemote[[#This Row],[SalesOrderLineUnitOfMeasure]],2,2)),0) -> 1 | U57: =+Tabla_Consulta_desde_QuickBooks_Data_64_Bit_QRemote[[#This Row],[facturado]]-Tabla_Consulta_desde_QuickBooks_Data_64_Bit_QRemote[[#This Row],[pide]] -> 0 | V57: =IF(Tabla_Consulta_desde_QuickBooks_Data_64_Bit_QRemote[[#This Row],[diferecia]]=0,"ok","diferen") -> ok | W57: =IFERROR(INDEX(um!A:C,MATCH(Tabla_Consulta_desde_QuickBooks_Data_64_Bit_QRemote[[#This Row],[SalesOrderLineItemRefFullName]],um!A:A,0),3),"") -> X12 | X57: =IFERROR(IF(OR(Tabla_Consulta_desde_QuickBooks_Data_64_Bit_QRemote[[#This Row],[SalesOrderLineUnitOfMeasure]]="UN",Tabla_Consulta_desde_QuickBooks_Data_64_Bit_QRemote[[#This Row],[SalesOrderLineUnitOfMeasure]]=Tabla_Consulta_desde_QuickBooks_Data_64_Bit_QRemote[[#This Row],[U/M]]),"","ERROR"),"") ->  | Y57: =+WEEKNUM(Tabla_Consulta_desde_QuickBooks_Data_64_Bit_QRemote[[#This Row],[TxnDate]]) -> 23 | Z57: =+Tabla_Consulta_desde_QuickBooks_Data_64_Bit_QRemote[[#This Row],[SalesOrderLineRate]]*Tabla_Consulta_desde_QuickBooks_Data_64_Bit_QRemote[[#This Row],[SalesOrderLineInvoiced]] -> 14.52 | AA57: =+IFERROR(IF(Tabla_Consulta_desde_QuickBooks_Data_64_Bit_QRemote[[#This Row],[CustomerRefFullName]]="GRUVALCORP SA",VLOOKUP(Tabla_Consulta_desde_QuickBooks_Data_64_Bit_QRemote[[#This Row],[SalesOrderLineItemRefFullName]],Hoja1!A:E,5,FALSE),"")*-Tabla_Consulta_desde_QuickBooks_Data_64_Bit_QRemote[[#This Row],[SalesOrderLineAmount]],"") ->  | AB57: =IF(COUNTIF(wms!E:E,Tabla_Consulta_desde_QuickBooks_Data_64_Bit_QRemote[[#This Row],[RefNumber]])>0,"OK","FALTA") -> OK
A58: 2025-06-02 | B58: 29072 | C58: IBD-FOOD-SERVICE CIA.LTDA. | D58: IBD- QUITO | E58: 6 | F58: 7862112522442 | G58: PT:220133 | H58: TOTOPOS QUESO RANCHERO OLE 120G | I58: Bodega Producto Terminado | J58: 12 | K58: X12 | L58: 0.8 | M58: 9.6 | N58: UNIDAD SNCKS | O58: 12 | P58: 671.8 | Q58: 772.57 | R58: IVA EN VENTAS 15% | S58: =IFERROR(IF(Tabla_Consulta_desde_QuickBooks_Data_64_Bit_QRemote[[#This Row],[SalesOrderLineUnitOfMeasure]]="un",Tabla_Consulta_desde_QuickBooks_Data_64_Bit_QRemote[[#This Row],[SalesOrderLineQuantity]],Tabla_Consulta_desde_QuickBooks_Data_64_Bit_QRemote[[#This Row],[SalesOrderLineQuantity]]/MID(Tabla_Consulta_desde_QuickBooks_Data_64_Bit_QRemote[[#This Row],[SalesOrderLineUnitOfMeasure]],2,2)),0) -> 1 | T58: =IFERROR(IF(Tabla_Consulta_desde_QuickBooks_Data_64_Bit_QRemote[[#This Row],[SalesOrderLineUnitOfMeasure]]="un",Tabla_Consulta_desde_QuickBooks_Data_64_Bit_QRemote[[#This Row],[SalesOrderLineInvoiced]],Tabla_Consulta_desde_QuickBooks_Data_64_Bit_QRemote[[#This Row],[SalesOrderLineInvoiced]]/MID(Tabla_Consulta_desde_QuickBooks_Data_64_Bit_QRemote[[#This Row],[SalesOrderLineUnitOfMeasure]],2,2)),0) -> 1 | U58: =+Tabla_Consulta_desde_QuickBooks_Data_64_Bit_QRemote[[#This Row],[facturado]]-Tabla_Consulta_desde_QuickBooks_Data_64_Bit_QRemote[[#This Row],[pide]] -> 0 | V58: =IF(Tabla_Consulta_desde_QuickBooks_Data_64_Bit_QRemote[[#This Row],[diferecia]]=0,"ok","diferen") -> ok | W58: =IFERROR(INDEX(um!A:C,MATCH(Tabla_Consulta_desde_QuickBooks_Data_64_Bit_QRemote[[#This Row],[SalesOrderLineItemRefFullName]],um!A:A,0),3),"") -> X12 | X58: =IFERROR(IF(OR(Tabla_Consulta_desde_QuickBooks_Data_64_Bit_QRemote[[#This Row],[SalesOrderLineUnitOfMeasure]]="UN",Tabla_Consulta_desde_QuickBooks_Data_64_Bit_QRemote[[#This Row],[SalesOrderLineUnitOfMeasure]]=Tabla_Consulta_desde_QuickBooks_Data_64_Bit_QRemote[[#This Row],[U/M]]),"","ERROR"),"") ->  | Y58: =+WEEKNUM(Tabla_Consulta_desde_QuickBooks_Data_64_Bit_QRemote[[#This Row],[TxnDate]]) -> 23 | Z58: =+Tabla_Consulta_desde_QuickBooks_Data_64_Bit_QRemote[[#This Row],[SalesOrderLineRate]]*Tabla_Consulta_desde_QuickBooks_Data_64_Bit_QRemote[[#This Row],[SalesOrderLineInvoiced]] -> 9.6 | AA58: =+IFERROR(IF(Tabla_Consulta_desde_QuickBooks_Data_64_Bit_QRemote[[#This Row],[CustomerRefFullName]]="GRUVALCORP SA",VLOOKUP(Tabla_Consulta_desde_QuickBooks_Data_64_Bit_QRemote[[#This Row],[SalesOrderLineItemRefFullName]],Hoja1!A:E,5,FALSE),"")*-Tabla_Consulta_desde_QuickBooks_Data_64_Bit_QRemote[[#This Row],[SalesOrderLineAmount]],"") ->  | AB58: =IF(COUNTIF(wms!E:E,Tabla_Consulta_desde_QuickBooks_Data_64_Bit_QRemote[[#This Row],[RefNumber]])>0,"OK","FALTA") -> OK
A59: 2025-06-02 | B59: 29072 | C59: IBD-FOOD-SERVICE CIA.LTDA. | D59: IBD- QUITO | E59: 7 | G59: INFOADICIONAL | H59: IBD- QUITO | L59: 0 | M59: 0 | O59: 1 | P59: 671.8 | Q59: 772.57 | R59: IVA EN VENTAS 15% | S59: =IFERROR(IF(Tabla_Consulta_desde_QuickBooks_Data_64_Bit_QRemote[[#This Row],[SalesOrderLineUnitOfMeasure]]="un",Tabla_Consulta_desde_QuickBooks_Data_64_Bit_QRemote[[#This Row],[SalesOrderLineQuantity]],Tabla_Consulta_desde_QuickBooks_Data_64_Bit_QRemote[[#This Row],[SalesOrderLineQuantity]]/MID(Tabla_Consulta_desde_QuickBooks_Data_64_Bit_QRemote[[#This Row],[SalesOrderLineUnitOfMeasure]],2,2)),0) -> 0 | T59: =IFERROR(IF(Tabla_Consulta_desde_QuickBooks_Data_64_Bit_QRemote[[#This Row],[SalesOrderLineUnitOfMeasure]]="un",Tabla_Consulta_desde_QuickBooks_Data_64_Bit_QRemote[[#This Row],[SalesOrderLineInvoiced]],Tabla_Consulta_desde_QuickBooks_Data_64_Bit_QRemote[[#This Row],[SalesOrderLineInvoiced]]/MID(Tabla_Consulta_desde_QuickBooks_Data_64_Bit_QRemote[[#This Row],[SalesOrderLineUnitOfMeasure]],2,2)),0) -> 0 | U59: =+Tabla_Consulta_desde_QuickBooks_Data_64_Bit_QRemote[[#This Row],[facturado]]-Tabla_Consulta_desde_QuickBooks_Data_64_Bit_QRemote[[#This Row],[pide]] -> 0 | V59: =IF(Tabla_Consulta_desde_QuickBooks_Data_64_Bit_QRemote[[#This Row],[diferecia]]=0,"ok","diferen") -> ok | W59: =IFERROR(INDEX(um!A:C,MATCH(Tabla_Consulta_desde_QuickBooks_Data_64_Bit_QRemote[[#This Row],[SalesOrderLineItemRefFullName]],um!A:A,0),3),"") ->  | X59: =IFERROR(IF(OR(Tabla_Consulta_desde_QuickBooks_Data_64_Bit_QRemote[[#This Row],[SalesOrderLineUnitOfMeasure]]="UN",Tabla_Consulta_desde_QuickBooks_Data_64_Bit_QRemote[[#This Row],[SalesOrderLineUnitOfMeasure]]=Tabla_Consulta_desde_QuickBooks_Data_64_Bit_QRemote[[#This Row],[U/M]]),"","ERROR"),"") ->  | Y59: =+WEEKNUM(Tabla_Consulta_desde_QuickBooks_Data_64_Bit_QRemote[[#This Row],[TxnDate]]) -> 23 | Z59: =+Tabla_Consulta_desde_QuickBooks_Data_64_Bit_QRemote[[#This Row],[SalesOrderLineRate]]*Tabla_Consulta_desde_QuickBooks_Data_64_Bit_QRemote[[#This Row],[SalesOrderLineInvoiced]] -> 0 | AA59: =+IFERROR(IF(Tabla_Consulta_desde_QuickBooks_Data_64_Bit_QRemote[[#This Row],[CustomerRefFullName]]="GRUVALCORP SA",VLOOKUP(Tabla_Consulta_desde_QuickBooks_Data_64_Bit_QRemote[[#This Row],[SalesOrderLineItemRefFullName]],Hoja1!A:E,5,FALSE),"")*-Tabla_Consulta_desde_QuickBooks_Data_64_Bit_QRemote[[#This Row],[SalesOrderLineAmount]],"") ->  | AB59: =IF(COUNTIF(wms!E:E,Tabla_Consulta_desde_QuickBooks_Data_64_Bit_QRemote[[#This Row],[RefNumber]])>0,"OK","FALTA") -> OK
A60: 2025-06-02 | B60: 29074 | C60: LOST-GRILL ECUADOR S.A.S. | D60: REPUBLICA DEL SALVADOR Y NACIONES UNIDAS, FRENTE AL HOTEL SHERATON | E60: 1 | F60: 7862112520738 | G60: P.T:110309 | H60: SALSA BBQ ORIGINAL OLE 4100G | I60: Bodega Producto Terminado | J60: 6 | K60: UN | L60: 13.13 | M60: 78.78 | N60: UNIDAD SALSA | O60: 6 | P60: 78.78 | Q60: 90.6 | R60: IVA EN VENTAS 15% | S60: =IFERROR(IF(Tabla_Consulta_desde_QuickBooks_Data_64_Bit_QRemote[[#This Row],[SalesOrderLineUnitOfMeasure]]="un",Tabla_Consulta_desde_QuickBooks_Data_64_Bit_QRemote[[#This Row],[SalesOrderLineQuantity]],Tabla_Consulta_desde_QuickBooks_Data_64_Bit_QRemote[[#This Row],[SalesOrderLineQuantity]]/MID(Tabla_Consulta_desde_QuickBooks_Data_64_Bit_QRemote[[#This Row],[SalesOrderLineUnitOfMeasure]],2,2)),0) -> 6 | T60: =IFERROR(IF(Tabla_Consulta_desde_QuickBooks_Data_64_Bit_QRemote[[#This Row],[SalesOrderLineUnitOfMeasure]]="un",Tabla_Consulta_desde_QuickBooks_Data_64_Bit_QRemote[[#This Row],[SalesOrderLineInvoiced]],Tabla_Consulta_desde_QuickBooks_Data_64_Bit_QRemote[[#This Row],[SalesOrderLineInvoiced]]/MID(Tabla_Consulta_desde_QuickBooks_Data_64_Bit_QRemote[[#This Row],[SalesOrderLineUnitOfMeasure]],2,2)),0) -> 6 | U60: =+Tabla_Consulta_desde_QuickBooks_Data_64_Bit_QRemote[[#This Row],[facturado]]-Tabla_Consulta_desde_QuickBooks_Data_64_Bit_QRemote[[#This Row],[pide]] -> 0 | V60: =IF(Tabla_Consulta_desde_QuickBooks_Data_64_Bit_QRemote[[#This Row],[diferecia]]=0,"ok","diferen") -> ok | W60: =IFERROR(INDEX(um!A:C,MATCH(Tabla_Consulta_desde_QuickBooks_Data_64_Bit_QRemote[[#This Row],[SalesOrderLineItemRefFullName]],um!A:A,0),3),"") ->  | X60: =IFERROR(IF(OR(Tabla_Consulta_desde_QuickBooks_Data_64_Bit_QRemote[[#This Row],[SalesOrderLineUnitOfMeasure]]="UN",Tabla_Consulta_desde_QuickBooks_Data_64_Bit_QRemote[[#This Row],[SalesOrderLineUnitOfMeasure]]=Tabla_Consulta_desde_QuickBooks_Data_64_Bit_QRemote[[#This Row],[U/M]]),"","ERROR"),"") ->  | Y60: =+WEEKNUM(Tabla_Consulta_desde_QuickBooks_Data_64_Bit_QRemote[[#This Row],[TxnDate]]) -> 23 | Z60: =+Tabla_Consulta_desde_QuickBooks_Data_64_Bit_QRemote[[#This Row],[SalesOrderLineRate]]*Tabla_Consulta_desde_QuickBooks_Data_64_Bit_QRemote[[#This Row],[SalesOrderLineInvoiced]] -> 78.78 | AA60: =+IFERROR(IF(Tabla_Consulta_desde_QuickBooks_Data_64_Bit_QRemote[[#This Row],[CustomerRefFullName]]="GRUVALCORP SA",VLOOKUP(Tabla_Consulta_desde_QuickBooks_Data_64_Bit_QRemote[[#This Row],[SalesOrderLineItemRefFullName]],Hoja1!A:E,5,FALSE),"")*-Tabla_Consulta_desde_QuickBooks_Data_64_Bit_QRemote[[#This Row],[SalesOrderLineAmount]],"") ->  | AB60: =IF(COUNTIF(wms!E:E,Tabla_Consulta_desde_QuickBooks_Data_64_Bit_QRemote[[#This Row],[RefNumber]])>0,"OK","FALTA") -> OK
A61: 2025-06-02 | B61: 29074 | C61: LOST-GRILL ECUADOR S.A.S. | D61: REPUBLICA DEL SALVADOR Y NACIONES UNIDAS, FRENTE AL HOTEL SHERATON | E61: 2 | G61: INFOADICIONAL | H61: UIO REPUBLICA DEL SALVADOR Y NACIONES UNIDAS, FRENTE AL HOTEL SHERATON QUITO | L61: 0 | M61: 0 | O61: 1 | P61: 78.78 | Q61: 90.6 | R61: IVA EN VENTAS 15% | S61: =IFERROR(IF(Tabla_Consulta_desde_QuickBooks_Data_64_Bit_QRemote[[#This Row],[SalesOrderLineUnitOfMeasure]]="un",Tabla_Consulta_desde_QuickBooks_Data_64_Bit_QRemote[[#This Row],[SalesOrderLineQuantity]],Tabla_Consulta_desde_QuickBooks_Data_64_Bit_QRemote[[#This Row],[SalesOrderLineQuantity]]/MID(Tabla_Consulta_desde_QuickBooks_Data_64_Bit_QRemote[[#This Row],[SalesOrderLineUnitOfMeasure]],2,2)),0) -> 0 | T61: =IFERROR(IF(Tabla_Consulta_desde_QuickBooks_Data_64_Bit_QRemote[[#This Row],[SalesOrderLineUnitOfMeasure]]="un",Tabla_Consulta_desde_QuickBooks_Data_64_Bit_QRemote[[#This Row],[SalesOrderLineInvoiced]],Tabla_Consulta_desde_QuickBooks_Data_64_Bit_QRemote[[#This Row],[SalesOrderLineInvoiced]]/MID(Tabla_Consulta_desde_QuickBooks_Data_64_Bit_QRemote[[#This Row],[SalesOrderLineUnitOfMeasure]],2,2)),0) -> 0 | U61: =+Tabla_Consulta_desde_QuickBooks_Data_64_Bit_QRemote[[#This Row],[facturado]]-Tabla_Consulta_desde_QuickBooks_Data_64_Bit_QRemote[[#This Row],[pide]] -> 0 | V61: =IF(Tabla_Consulta_desde_QuickBooks_Data_64_Bit_QRemote[[#This Row],[diferecia]]=0,"ok","diferen") -> ok | W61: =IFERROR(INDEX(um!A:C,MATCH(Tabla_Consulta_desde_QuickBooks_Data_64_Bit_QRemote[[#This Row],[SalesOrderLineItemRefFullName]],um!A:A,0),3),"") ->  | X61: =IFERROR(IF(OR(Tabla_Consulta_desde_QuickBooks_Data_64_Bit_QRemote[[#This Row],[SalesOrderLineUnitOfMeasure]]="UN",Tabla_Consulta_desde_QuickBooks_Data_64_Bit_QRemote[[#This Row],[SalesOrderLineUnitOfMeasure]]=Tabla_Consulta_desde_QuickBooks_Data_64_Bit_QRemote[[#This Row],[U/M]]),"","ERROR"),"") ->  | Y61: =+WEEKNUM(Tabla_Consulta_desde_QuickBooks_Data_64_Bit_QRemote[[#This Row],[TxnDate]]) -> 23 | Z61: =+Tabla_Consulta_desde_QuickBooks_Data_64_Bit_QRemote[[#This Row],[SalesOrderLineRate]]*Tabla_Consulta_desde_QuickBooks_Data_64_Bit_QRemote[[#This Row],[SalesOrderLineInvoiced]] -> 0 | AA61: =+IFERROR(IF(Tabla_Consulta_desde_QuickBooks_Data_64_Bit_QRemote[[#This Row],[CustomerRefFullName]]="GRUVALCORP SA",VLOOKUP(Tabla_Consulta_desde_QuickBooks_Data_64_Bit_QRemote[[#This Row],[SalesOrderLineItemRefFullName]],Hoja1!A:E,5,FALSE),"")*-Tabla_Consulta_desde_QuickBooks_Data_64_Bit_QRemote[[#This Row],[SalesOrderLineAmount]],"") ->  | AB61: =IF(COUNTIF(wms!E:E,Tabla_Consulta_desde_QuickBooks_Data_64_Bit_QRemote[[#This Row],[RefNumber]])>0,"OK","FALTA") -> OK
A62: 2025-06-02 | B62: 29075 | C62: TIENDAS TUTI TTDE S.A. | D62: OC4500200555 QUITO SUR | E62: 1 | F62: 2500000002694 | G62: P.T:110735 | H62: SALSA DE TOMATE RICHE DP 200G | I62: Bodega Producto Terminado | J62: 7920 | K62: X48 | L62: 0.39 | M62: 3088.8 | N62: UNIDAD SALSA | O62: 7920 | P62: 3088.8 | Q62: 3552.12 | R62: IVA EN VENTAS 15% | S62: =IFERROR(IF(Tabla_Consulta_desde_QuickBooks_Data_64_Bit_QRemote[[#This Row],[SalesOrderLineUnitOfMeasure]]="un",Tabla_Consulta_desde_QuickBooks_Data_64_Bit_QRemote[[#This Row],[SalesOrderLineQuantity]],Tabla_Consulta_desde_QuickBooks_Data_64_Bit_QRemote[[#This Row],[SalesOrderLineQuantity]]/MID(Tabla_Consulta_desde_QuickBooks_Data_64_Bit_QRemote[[#This Row],[SalesOrderLineUnitOfMeasure]],2,2)),0) -> 165 | T62: =IFERROR(IF(Tabla_Consulta_desde_QuickBooks_Data_64_Bit_QRemote[[#This Row],[SalesOrderLineUnitOfMeasure]]="un",Tabla_Consulta_desde_QuickBooks_Data_64_Bit_QRemote[[#This Row],[SalesOrderLineInvoiced]],Tabla_Consulta_desde_QuickBooks_Data_64_Bit_QRemote[[#This Row],[SalesOrderLineInvoiced]]/MID(Tabla_Consulta_desde_QuickBooks_Data_64_Bit_QRemote[[#This Row],[SalesOrderLineUnitOfMeasure]],2,2)),0) -> 165 | U62: =+Tabla_Consulta_desde_QuickBooks_Data_64_Bit_QRemote[[#This Row],[facturado]]-Tabla_Consulta_desde_QuickBooks_Data_64_Bit_QRemote[[#This Row],[pide]] -> 0 | V62: =IF(Tabla_Consulta_desde_QuickBooks_Data_64_Bit_QRemote[[#This Row],[diferecia]]=0,"ok","diferen") -> ok | W62: =IFERROR(INDEX(um!A:C,MATCH(Tabla_Consulta_desde_QuickBooks_Data_64_Bit_QRemote[[#This Row],[SalesOrderLineItemRefFullName]],um!A:A,0),3),"") -> X48 | X62: =IFERROR(IF(OR(Tabla_Consulta_desde_QuickBooks_Data_64_Bit_QRemote[[#This Row],[SalesOrderLineUnitOfMeasure]]="UN",Tabla_Consulta_desde_QuickBooks_Data_64_Bit_QRemote[[#This Row],[SalesOrderLineUnitOfMeasure]]=Tabla_Consulta_desde_QuickBooks_Data_64_Bit_QRemote[[#This Row],[U/M]]),"","ERROR"),"") ->  | Y62: =+WEEKNUM(Tabla_Consulta_desde_QuickBooks_Data_64_Bit_QRemote[[#This Row],[TxnDate]]) -> 23 | Z62: =+Tabla_Consulta_desde_QuickBooks_Data_64_Bit_QRemote[[#This Row],[SalesOrderLineRate]]*Tabla_Consulta_desde_QuickBooks_Data_64_Bit_QRemote[[#This Row],[SalesOrderLineInvoiced]] -> 3088.8 | AA62: =+IFERROR(IF(Tabla_Consulta_desde_QuickBooks_Data_64_Bit_QRemote[[#This Row],[CustomerRefFullName]]="GRUVALCORP SA",VLOOKUP(Tabla_Consulta_desde_QuickBooks_Data_64_Bit_QRemote[[#This Row],[SalesOrderLineItemRefFullName]],Hoja1!A:E,5,FALSE),"")*-Tabla_Consulta_desde_QuickBooks_Data_64_Bit_QRemote[[#This Row],[SalesOrderLineAmount]],"") ->  | AB62: =IF(COUNTIF(wms!E:E,Tabla_Consulta_desde_QuickBooks_Data_64_Bit_QRemote[[#This Row],[RefNumber]])>0,"OK","FALTA") -> FALTA
A63: 2025-06-02 | B63: 29075 | C63: TIENDAS TUTI TTDE S.A. | D63: OC4500200555 QUITO SUR | E63: 2 | G63: INFOADICIONAL | H63: OC4500200555 QUITO SUR | L63: 0 | M63: 0 | O63: 1 | P63: 3088.8 | Q63: 3552.12 | R63: IVA EN VENTAS 15% | S63: =IFERROR(IF(Tabla_Consulta_desde_QuickBooks_Data_64_Bit_QRemote[[#This Row],[SalesOrderLineUnitOfMeasure]]="un",Tabla_Consulta_desde_QuickBooks_Data_64_Bit_QRemote[[#This Row],[SalesOrderLineQuantity]],Tabla_Consulta_desde_QuickBooks_Data_64_Bit_QRemote[[#This Row],[SalesOrderLineQuantity]]/MID(Tabla_Consulta_desde_QuickBooks_Data_64_Bit_QRemote[[#This Row],[SalesOrderLineUnitOfMeasure]],2,2)),0) -> 0 | T63: =IFERROR(IF(Tabla_Consulta_desde_QuickBooks_Data_64_Bit_QRemote[[#This Row],[SalesOrderLineUnitOfMeasure]]="un",Tabla_Consulta_desde_QuickBooks_Data_64_Bit_QRemote[[#This Row],[SalesOrderLineInvoiced]],Tabla_Consulta_desde_QuickBooks_Data_64_Bit_QRemote[[#This Row],[SalesOrderLineInvoiced]]/MID(Tabla_Consulta_desde_QuickBooks_Data_64_Bit_QRemote[[#This Row],[SalesOrderLineUnitOfMeasure]],2,2)),0) -> 0 | U63: =+Tabla_Consulta_desde_QuickBooks_Data_64_Bit_QRemote[[#This Row],[facturado]]-Tabla_Consulta_desde_QuickBooks_Data_64_Bit_QRemote[[#This Row],[pide]] -> 0 | V63: =IF(Tabla_Consulta_desde_QuickBooks_Data_64_Bit_QRemote[[#This Row],[diferecia]]=0,"ok","diferen") -> ok | W63: =IFERROR(INDEX(um!A:C,MATCH(Tabla_Consulta_desde_QuickBooks_Data_64_Bit_QRemote[[#This Row],[SalesOrderLineItemRefFullName]],um!A:A,0),3),"") ->  | X63: =IFERROR(IF(OR(Tabla_Consulta_desde_QuickBooks_Data_64_Bit_QRemote[[#This Row],[SalesOrderLineUnitOfMeasure]]="UN",Tabla_Consulta_desde_QuickBooks_Data_64_Bit_QRemote[[#This Row],[SalesOrderLineUnitOfMeasure]]=Tabla_Consulta_desde_QuickBooks_Data_64_Bit_QRemote[[#This Row],[U/M]]),"","ERROR"),"") ->  | Y63: =+WEEKNUM(Tabla_Consulta_desde_QuickBooks_Data_64_Bit_QRemote[[#This Row],[TxnDate]]) -> 23 | Z63: =+Tabla_Consulta_desde_QuickBooks_Data_64_Bit_QRemote[[#This Row],[SalesOrderLineRate]]*Tabla_Consulta_desde_QuickBooks_Data_64_Bit_QRemote[[#This Row],[SalesOrderLineInvoiced]] -> 0 | AA63: =+IFERROR(IF(Tabla_Consulta_desde_QuickBooks_Data_64_Bit_QRemote[[#This Row],[CustomerRefFullName]]="GRUVALCORP SA",VLOOKUP(Tabla_Consulta_desde_QuickBooks_Data_64_Bit_QRemote[[#This Row],[SalesOrderLineItemRefFullName]],Hoja1!A:E,5,FALSE),"")*-Tabla_Consulta_desde_QuickBooks_Data_64_Bit_QRemote[[#This Row],[SalesOrderLineAmount]],"") ->  | AB63: =IF(COUNTIF(wms!E:E,Tabla_Consulta_desde_QuickBooks_Data_64_Bit_QRemote[[#This Row],[RefNumber]])>0,"OK","FALTA") -> FALTA
A64: 2025-06-02 | B64: 29076 | C64: TIENDAS TUTI TTDE S.A. | D64: OC4500200432 QUITO NORTE | E64: 1 | F64: 2500000002694 | G64: P.T:110735 | H64: SALSA DE TOMATE RICHE DP 200G | I64: Bodega Producto Terminado | J64: 2592 | K64: X48 | L64: 0.39 | M64: 1010.88 | N64: UNIDAD SALSA | O64: 2592 | P64: 1010.88 | Q64: 1162.51 | R64: IVA EN VENTAS 15% | S64: =IFERROR(IF(Tabla_Consulta_desde_QuickBooks_Data_64_Bit_QRemote[[#This Row],[SalesOrderLineUnitOfMeasure]]="un",Tabla_Consulta_desde_QuickBooks_Data_64_Bit_QRemote[[#This Row],[SalesOrderLineQuantity]],Tabla_Consulta_desde_QuickBooks_Data_64_Bit_QRemote[[#This Row],[SalesOrderLineQuantity]]/MID(Tabla_Consulta_desde_QuickBooks_Data_64_Bit_QRemote[[#This Row],[SalesOrderLineUnitOfMeasure]],2,2)),0) -> 54 | T64: =IFERROR(IF(Tabla_Consulta_desde_QuickBooks_Data_64_Bit_QRemote[[#This Row],[SalesOrderLineUnitOfMeasure]]="un",Tabla_Consulta_desde_QuickBooks_Data_64_Bit_QRemote[[#This Row],[SalesOrderLineInvoiced]],Tabla_Consulta_desde_QuickBooks_Data_64_Bit_QRemote[[#This Row],[SalesOrderLineInvoiced]]/MID(Tabla_Consulta_desde_QuickBooks_Data_64_Bit_QRemote[[#This Row],[SalesOrderLineUnitOfMeasure]],2,2)),0) -> 54 | U64: =+Tabla_Consulta_desde_QuickBooks_Data_64_Bit_QRemote[[#This Row],[facturado]]-Tabla_Consulta_desde_QuickBooks_Data_64_Bit_QRemote[[#This Row],[pide]] -> 0 | V64: =IF(Tabla_Consulta_desde_QuickBooks_Data_64_Bit_QRemote[[#This Row],[diferecia]]=0,"ok","diferen") -> ok | W64: =IFERROR(INDEX(um!A:C,MATCH(Tabla_Consulta_desde_QuickBooks_Data_64_Bit_QRemote[[#This Row],[SalesOrderLineItemRefFullName]],um!A:A,0),3),"") -> X48 | X64: =IFERROR(IF(OR(Tabla_Consulta_desde_QuickBooks_Data_64_Bit_QRemote[[#This Row],[SalesOrderLineUnitOfMeasure]]="UN",Tabla_Consulta_desde_QuickBooks_Data_64_Bit_QRemote[[#This Row],[SalesOrderLineUnitOfMeasure]]=Tabla_Consulta_desde_QuickBooks_Data_64_Bit_QRemote[[#This Row],[U/M]]),"","ERROR"),"") ->  | Y64: =+WEEKNUM(Tabla_Consulta_desde_QuickBooks_Data_64_Bit_QRemote[[#This Row],[TxnDate]]) -> 23 | Z64: =+Tabla_Consulta_desde_QuickBooks_Data_64_Bit_QRemote[[#This Row],[SalesOrderLineRate]]*Tabla_Consulta_desde_QuickBooks_Data_64_Bit_QRemote[[#This Row],[SalesOrderLineInvoiced]] -> 1010.88 | AA64: =+IFERROR(IF(Tabla_Consulta_desde_QuickBooks_Data_64_Bit_QRemote[[#This Row],[CustomerRefFullName]]="GRUVALCORP SA",VLOOKUP(Tabla_Consulta_desde_QuickBooks_Data_64_Bit_QRemote[[#This Row],[SalesOrderLineItemRefFullName]],Hoja1!A:E,5,FALSE),"")*-Tabla_Consulta_desde_QuickBooks_Data_64_Bit_QRemote[[#This Row],[SalesOrderLineAmount]],"") ->  | AB64: =IF(COUNTIF(wms!E:E,Tabla_Consulta_desde_QuickBooks_Data_64_Bit_QRemote[[#This Row],[RefNumber]])>0,"OK","FALTA") -> FALTA
A65: 2025-06-02 | B65: 29076 | C65: TIENDAS TUTI TTDE S.A. | D65: OC4500200432 QUITO NORTE | E65: 2 | G65: INFOADICIONAL | H65: OC4500200432 QUITO NORTE | L65: 0 | M65: 0 | O65: 1 | P65: 1010.88 | Q65: 1162.51 | R65: IVA EN VENTAS 15% | S65: =IFERROR(IF(Tabla_Consulta_desde_QuickBooks_Data_64_Bit_QRemote[[#This Row],[SalesOrderLineUnitOfMeasure]]="un",Tabla_Consulta_desde_QuickBooks_Data_64_Bit_QRemote[[#This Row],[SalesOrderLineQuantity]],Tabla_Consulta_desde_QuickBooks_Data_64_Bit_QRemote[[#This Row],[SalesOrderLineQuantity]]/MID(Tabla_Consulta_desde_QuickBooks_Data_64_Bit_QRemote[[#This Row],[SalesOrderLineUnitOfMeasure]],2,2)),0) -> 0 | T65: =IFERROR(IF(Tabla_Consulta_desde_QuickBooks_Data_64_Bit_QRemote[[#This Row],[SalesOrderLineUnitOfMeasure]]="un",Tabla_Consulta_desde_QuickBooks_Data_64_Bit_QRemote[[#This Row],[SalesOrderLineInvoiced]],Tabla_Consulta_desde_QuickBooks_Data_64_Bit_QRemote[[#This Row],[SalesOrderLineInvoiced]]/MID(Tabla_Consulta_desde_QuickBooks_Data_64_Bit_QRemote[[#This Row],[SalesOrderLineUnitOfMeasure]],2,2)),0) -> 0 | U65: =+Tabla_Consulta_desde_QuickBooks_Data_64_Bit_QRemote[[#This Row],[facturado]]-Tabla_Consulta_desde_QuickBooks_Data_64_Bit_QRemote[[#This Row],[pide]] -> 0 | V65: =IF(Tabla_Consulta_desde_QuickBooks_Data_64_Bit_QRemote[[#This Row],[diferecia]]=0,"ok","diferen") -> ok | W65: =IFERROR(INDEX(um!A:C,MATCH(Tabla_Consulta_desde_QuickBooks_Data_64_Bit_QRemote[[#This Row],[SalesOrderLineItemRefFullName]],um!A:A,0),3),"") ->  | X65: =IFERROR(IF(OR(Tabla_Consulta_desde_QuickBooks_Data_64_Bit_QRemote[[#This Row],[SalesOrderLineUnitOfMeasure]]="UN",Tabla_Consulta_desde_QuickBooks_Data_64_Bit_QRemote[[#This Row],[SalesOrderLineUnitOfMeasure]]=Tabla_Consulta_desde_QuickBooks_Data_64_Bit_QRemote[[#This Row],[U/M]]),"","ERROR"),"") ->  | Y65: =+WEEKNUM(Tabla_Consulta_desde_QuickBooks_Data_64_Bit_QRemote[[#This Row],[TxnDate]]) -> 23 | Z65: =+Tabla_Consulta_desde_QuickBooks_Data_64_Bit_QRemote[[#This Row],[SalesOrderLineRate]]*Tabla_Consulta_desde_QuickBooks_Data_64_Bit_QRemote[[#This Row],[SalesOrderLineInvoiced]] -> 0 | AA65: =+IFERROR(IF(Tabla_Consulta_desde_QuickBooks_Data_64_Bit_QRemote[[#This Row],[CustomerRefFullName]]="GRUVALCORP SA",VLOOKUP(Tabla_Consulta_desde_QuickBooks_Data_64_Bit_QRemote[[#This Row],[SalesOrderLineItemRefFullName]],Hoja1!A:E,5,FALSE),"")*-Tabla_Consulta_desde_QuickBooks_Data_64_Bit_QRemote[[#This Row],[SalesOrderLineAmount]],"") ->  | AB65: =IF(COUNTIF(wms!E:E,Tabla_Consulta_desde_QuickBooks_Data_64_Bit_QRemote[[#This Row],[RefNumber]])>0,"OK","FALTA") -> FALTA
A66: 2025-06-02 | B66: 29077 | C66: TIENDAS TUTI TTDE S.A. | D66: OC4500199318 MONTECRISTI | E66: 1 | F66: 2500000006135 | G66: P.T:110715 | H66: SALSA PARA SPAGHETTI RUSTICA RICHE DP 400G | I66: Bodega Producto Terminado | J66: 1320 | K66: X24 | L66: 0.8 | M66: 1056 | N66: UNIDAD SALSA | O66: 1320 | P66: 2112 | Q66: 2428.8 | R66: IVA EN VENTAS 15% | S66: =IFERROR(IF(Tabla_Consulta_desde_QuickBooks_Data_64_Bit_QRemote[[#This Row],[SalesOrderLineUnitOfMeasure]]="un",Tabla_Consulta_desde_QuickBooks_Data_64_Bit_QRemote[[#This Row],[SalesOrderLineQuantity]],Tabla_Consulta_desde_QuickBooks_Data_64_Bit_QRemote[[#This Row],[SalesOrderLineQuantity]]/MID(Tabla_Consulta_desde_QuickBooks_Data_64_Bit_QRemote[[#This Row],[SalesOrderLineUnitOfMeasure]],2,2)),0) -> 55 | T66: =IFERROR(IF(Tabla_Consulta_desde_QuickBooks_Data_64_Bit_QRemote[[#This Row],[SalesOrderLineUnitOfMeasure]]="un",Tabla_Consulta_desde_QuickBooks_Data_64_Bit_QRemote[[#This Row],[SalesOrderLineInvoiced]],Tabla_Consulta_desde_QuickBooks_Data_64_Bit_QRemote[[#This Row],[SalesOrderLineInvoiced]]/MID(Tabla_Consulta_desde_QuickBooks_Data_64_Bit_QRemote[[#This Row],[SalesOrderLineUnitOfMeasure]],2,2)),0) -> 55 | U66: =+Tabla_Consulta_desde_QuickBooks_Data_64_Bit_QRemote[[#This Row],[facturado]]-Tabla_Consulta_desde_QuickBooks_Data_64_Bit_QRemote[[#This Row],[pide]] -> 0 | V66: =IF(Tabla_Consulta_desde_QuickBooks_Data_64_Bit_QRemote[[#This Row],[diferecia]]=0,"ok","diferen") -> ok | W66: =IFERROR(INDEX(um!A:C,MATCH(Tabla_Consulta_desde_QuickBooks_Data_64_Bit_QRemote[[#This Row],[SalesOrderLineItemRefFullName]],um!A:A,0),3),"") -> X24 | X66: =IFERROR(IF(OR(Tabla_Consulta_desde_QuickBooks_Data_64_Bit_QRemote[[#This Row],[SalesOrderLineUnitOfMeasure]]="UN",Tabla_Consulta_desde_QuickBooks_Data_64_Bit_QRemote[[#This Row],[SalesOrderLineUnitOfMeasure]]=Tabla_Consulta_desde_QuickBooks_Data_64_Bit_QRemote[[#This Row],[U/M]]),"","ERROR"),"") ->  | Y66: =+WEEKNUM(Tabla_Consulta_desde_QuickBooks_Data_64_Bit_QRemote[[#This Row],[TxnDate]]) -> 23 | Z66: =+Tabla_Consulta_desde_QuickBooks_Data_64_Bit_QRemote[[#This Row],[SalesOrderLineRate]]*Tabla_Consulta_desde_QuickBooks_Data_64_Bit_QRemote[[#This Row],[SalesOrderLineInvoiced]] -> 1056 | AA66: =+IFERROR(IF(Tabla_Consulta_desde_QuickBooks_Data_64_Bit_QRemote[[#This Row],[CustomerRefFullName]]="GRUVALCORP SA",VLOOKUP(Tabla_Consulta_desde_QuickBooks_Data_64_Bit_QRemote[[#This Row],[SalesOrderLineItemRefFullName]],Hoja1!A:E,5,FALSE),"")*-Tabla_Consulta_desde_QuickBooks_Data_64_Bit_QRemote[[#This Row],[SalesOrderLineAmount]],"") ->  | AB66: =IF(COUNTIF(wms!E:E,Tabla_Consulta_desde_QuickBooks_Data_64_Bit_QRemote[[#This Row],[RefNumber]])>0,"OK","FALTA") -> FALTA
A67: 2025-06-02 | B67: 29077 | C67: TIENDAS TUTI TTDE S.A. | D67: OC4500199318 MONTECRISTI | E67: 2 | F67: 7862112520714 | G67: P.T:110308 | H67: SALSA BBQ RICHE DP 200G | I67: Bodega Producto Terminado | J67: 2640 | K67: X48 | L67: 0.4 | M67: 1056 | N67: UNIDAD SALSA | O67: 2640 | P67: 2112 | Q67: 2428.8 | R67: IVA EN VENTAS 15% | S67: =IFERROR(IF(Tabla_Consulta_desde_QuickBooks_Data_64_Bit_QRemote[[#This Row],[SalesOrderLineUnitOfMeasure]]="un",Tabla_Consulta_desde_QuickBooks_Data_64_Bit_QRemote[[#This Row],[SalesOrderLineQuantity]],Tabla_Consulta_desde_QuickBooks_Data_64_Bit_QRemote[[#This Row],[SalesOrderLineQuantity]]/MID(Tabla_Consulta_desde_QuickBooks_Data_64_Bit_QRemote[[#This Row],[SalesOrderLineUnitOfMeasure]],2,2)),0) -> 55 | T67: =IFERROR(IF(Tabla_Consulta_desde_QuickBooks_Data_64_Bit_QRemote[[#This Row],[SalesOrderLineUnitOfMeasure]]="un",Tabla_Consulta_desde_QuickBooks_Data_64_Bit_QRemote[[#This Row],[SalesOrderLineInvoiced]],Tabla_Consulta_desde_QuickBooks_Data_64_Bit_QRemote[[#This Row],[SalesOrderLineInvoiced]]/MID(Tabla_Consulta_desde_QuickBooks_Data_64_Bit_QRemote[[#This Row],[SalesOrderLineUnitOfMeasure]],2,2)),0) -> 55 | U67: =+Tabla_Consulta_desde_QuickBooks_Data_64_Bit_QRemote[[#This Row],[facturado]]-Tabla_Consulta_desde_QuickBooks_Data_64_Bit_QRemote[[#This Row],[pide]] -> 0 | V67: =IF(Tabla_Consulta_desde_QuickBooks_Data_64_Bit_QRemote[[#This Row],[diferecia]]=0,"ok","diferen") -> ok | W67: =IFERROR(INDEX(um!A:C,MATCH(Tabla_Consulta_desde_QuickBooks_Data_64_Bit_QRemote[[#This Row],[SalesOrderLineItemRefFullName]],um!A:A,0),3),"") -> X48 | X67: =IFERROR(IF(OR(Tabla_Consulta_desde_QuickBooks_Data_64_Bit_QRemote[[#This Row],[SalesOrderLineUnitOfMeasure]]="UN",Tabla_Consulta_desde_QuickBooks_Data_64_Bit_QRemote[[#This Row],[SalesOrderLineUnitOfMeasure]]=Tabla_Consulta_desde_QuickBooks_Data_64_Bit_QRemote[[#This Row],[U/M]]),"","ERROR"),"") ->  | Y67: =+WEEKNUM(Tabla_Consulta_desde_QuickBooks_Data_64_Bit_QRemote[[#This Row],[TxnDate]]) -> 23 | Z67: =+Tabla_Consulta_desde_QuickBooks_Data_64_Bit_QRemote[[#This Row],[SalesOrderLineRate]]*Tabla_Consulta_desde_QuickBooks_Data_64_Bit_QRemote[[#This Row],[SalesOrderLineInvoiced]] -> 1056 | AA67: =+IFERROR(IF(Tabla_Consulta_desde_QuickBooks_Data_64_Bit_QRemote[[#This Row],[CustomerRefFullName]]="GRUVALCORP SA",VLOOKUP(Tabla_Consulta_desde_QuickBooks_Data_64_Bit_QRemote[[#This Row],[SalesOrderLineItemRefFullName]],Hoja1!A:E,5,FALSE),"")*-Tabla_Consulta_desde_QuickBooks_Data_64_Bit_QRemote[[#This Row],[SalesOrderLineAmount]],"") ->  | AB67: =IF(COUNTIF(wms!E:E,Tabla_Consulta_desde_QuickBooks_Data_64_Bit_QRemote[[#This Row],[RefNumber]])>0,"OK","FALTA") -> FALTA
A68: 2025-06-02 | B68: 29077 | C68: TIENDAS TUTI TTDE S.A. | D68: OC4500199318 MONTECRISTI | E68: 3 | G68: INFOADICIONAL | H68: OC4500199318 MONTECRISTI | L68: 0 | M68: 0 | O68: 1 | P68: 2112 | Q68: 2428.8 | R68: IVA EN VENTAS 15% | S68: =IFERROR(IF(Tabla_Consulta_desde_QuickBooks_Data_64_Bit_QRemote[[#This Row],[SalesOrderLineUnitOfMeasure]]="un",Tabla_Consulta_desde_QuickBooks_Data_64_Bit_QRemote[[#This Row],[SalesOrderLineQuantity]],Tabla_Consulta_desde_QuickBooks_Data_64_Bit_QRemote[[#This Row],[SalesOrderLineQuantity]]/MID(Tabla_Consulta_desde_QuickBooks_Data_64_Bit_QRemote[[#This Row],[SalesOrderLineUnitOfMeasure]],2,2)),0) -> 0 | T68: =IFERROR(IF(Tabla_Consulta_desde_QuickBooks_Data_64_Bit_QRemote[[#This Row],[SalesOrderLineUnitOfMeasure]]="un",Tabla_Consulta_desde_QuickBooks_Data_64_Bit_QRemote[[#This Row],[SalesOrderLineInvoiced]],Tabla_Consulta_desde_QuickBooks_Data_64_Bit_QRemote[[#This Row],[SalesOrderLineInvoiced]]/MID(Tabla_Consulta_desde_QuickBooks_Data_64_Bit_QRemote[[#This Row],[SalesOrderLineUnitOfMeasure]],2,2)),0) -> 0 | U68: =+Tabla_Consulta_desde_QuickBooks_Data_64_Bit_QRemote[[#This Row],[facturado]]-Tabla_Consulta_desde_QuickBooks_Data_64_Bit_QRemote[[#This Row],[pide]] -> 0 | V68: =IF(Tabla_Consulta_desde_QuickBooks_Data_64_Bit_QRemote[[#This Row],[diferecia]]=0,"ok","diferen") -> ok | W68: =IFERROR(INDEX(um!A:C,MATCH(Tabla_Consulta_desde_QuickBooks_Data_64_Bit_QRemote[[#This Row],[SalesOrderLineItemRefFullName]],um!A:A,0),3),"") ->  | X68: =IFERROR(IF(OR(Tabla_Consulta_desde_QuickBooks_Data_64_Bit_QRemote[[#This Row],[SalesOrderLineUnitOfMeasure]]="UN",Tabla_Consulta_desde_QuickBooks_Data_64_Bit_QRemote[[#This Row],[SalesOrderLineUnitOfMeasure]]=Tabla_Consulta_desde_QuickBooks_Data_64_Bit_QRemote[[#This Row],[U/M]]),"","ERROR"),"") ->  | Y68: =+WEEKNUM(Tabla_Consulta_desde_QuickBooks_Data_64_Bit_QRemote[[#This Row],[TxnDate]]) -> 23 | Z68: =+Tabla_Consulta_desde_QuickBooks_Data_64_Bit_QRemote[[#This Row],[SalesOrderLineRate]]*Tabla_Consulta_desde_QuickBooks_Data_64_Bit_QRemote[[#This Row],[SalesOrderLineInvoiced]] -> 0 | AA68: =+IFERROR(IF(Tabla_Consulta_desde_QuickBooks_Data_64_Bit_QRemote[[#This Row],[CustomerRefFullName]]="GRUVALCORP SA",VLOOKUP(Tabla_Consulta_desde_QuickBooks_Data_64_Bit_QRemote[[#This Row],[SalesOrderLineItemRefFullName]],Hoja1!A:E,5,FALSE),"")*-Tabla_Consulta_desde_QuickBooks_Data_64_Bit_QRemote[[#This Row],[SalesOrderLineAmount]],"") ->  | AB68: =IF(COUNTIF(wms!E:E,Tabla_Consulta_desde_QuickBooks_Data_64_Bit_QRemote[[#This Row],[RefNumber]])>0,"OK","FALTA") -> FALTA
A69: 2025-06-02 | B69: 29078 | C69: MEGA SANTAMARIA S.A | D69: OC23934839 | E69: 1 | F69: 7862112522473 | G69: PT:220134 | H69: TOTOPOS MICHELADA OLE 120G | I69: Bodega Producto Terminado | J69: 96 | K69: X12 | L69: 0.98 | M69: 94.08 | N69: UNIDAD SNCKS | O69: 96 | P69: 1089.97 | Q69: 1253.47 | R69: IVA EN VENTAS 15% | S69: =IFERROR(IF(Tabla_Consulta_desde_QuickBooks_Data_64_Bit_QRemote[[#This Row],[SalesOrderLineUnitOfMeasure]]="un",Tabla_Consulta_desde_QuickBooks_Data_64_Bit_QRemote[[#This Row],[SalesOrderLineQuantity]],Tabla_Consulta_desde_QuickBooks_Data_64_Bit_QRemote[[#This Row],[SalesOrderLineQuantity]]/MID(Tabla_Consulta_desde_QuickBooks_Data_64_Bit_QRemote[[#This Row],[SalesOrderLineUnitOfMeasure]],2,2)),0) -> 8 | T69: =IFERROR(IF(Tabla_Consulta_desde_QuickBooks_Data_64_Bit_QRemote[[#This Row],[SalesOrderLineUnitOfMeasure]]="un",Tabla_Consulta_desde_QuickBooks_Data_64_Bit_QRemote[[#This Row],[SalesOrderLineInvoiced]],Tabla_Consulta_desde_QuickBooks_Data_64_Bit_QRemote[[#This Row],[SalesOrderLineInvoiced]]/MID(Tabla_Consulta_desde_QuickBooks_Data_64_Bit_QRemote[[#This Row],[SalesOrderLineUnitOfMeasure]],2,2)),0) -> 8 | U69: =+Tabla_Consulta_desde_QuickBooks_Data_64_Bit_QRemote[[#This Row],[facturado]]-Tabla_Consulta_desde_QuickBooks_Data_64_Bit_QRemote[[#This Row],[pide]] -> 0 | V69: =IF(Tabla_Consulta_desde_QuickBooks_Data_64_Bit_QRemote[[#This Row],[diferecia]]=0,"ok","diferen") -> ok | W69: =IFERROR(INDEX(um!A:C,MATCH(Tabla_Consulta_desde_QuickBooks_Data_64_Bit_QRemote[[#This Row],[SalesOrderLineItemRefFullName]],um!A:A,0),3),"") -> X12 | X69: =IFERROR(IF(OR(Tabla_Consulta_desde_QuickBooks_Data_64_Bit_QRemote[[#This Row],[SalesOrderLineUnitOfMeasure]]="UN",Tabla_Consulta_desde_QuickBooks_Data_64_Bit_QRemote[[#This Row],[SalesOrderLineUnitOfMeasure]]=Tabla_Consulta_desde_QuickBooks_Data_64_Bit_QRemote[[#This Row],[U/M]]),"","ERROR"),"") ->  | Y69: =+WEEKNUM(Tabla_Consulta_desde_QuickBooks_Data_64_Bit_QRemote[[#This Row],[TxnDate]]) -> 23 | Z69: =+Tabla_Consulta_desde_QuickBooks_Data_64_Bit_QRemote[[#This Row],[SalesOrderLineRate]]*Tabla_Consulta_desde_QuickBooks_Data_64_Bit_QRemote[[#This Row],[SalesOrderLineInvoiced]] -> 94.08 | AA69: =+IFERROR(IF(Tabla_Consulta_desde_QuickBooks_Data_64_Bit_QRemote[[#This Row],[CustomerRefFullName]]="GRUVALCORP SA",VLOOKUP(Tabla_Consulta_desde_QuickBooks_Data_64_Bit_QRemote[[#This Row],[SalesOrderLineItemRefFullName]],Hoja1!A:E,5,FALSE),"")*-Tabla_Consulta_desde_QuickBooks_Data_64_Bit_QRemote[[#This Row],[SalesOrderLineAmount]],"") ->  | AB69: =IF(COUNTIF(wms!E:E,Tabla_Consulta_desde_QuickBooks_Data_64_Bit_QRemote[[#This Row],[RefNumber]])>0,"OK","FALTA") -> OK
A70: 2025-06-02 | B70: 29078 | C70: MEGA SANTAMARIA S.A | D70: OC23934839 | E70: 2 | F70: 7862112522367 | G70: PT:220132 | H70: TOTOPOS NATURAL OLE 300G | I70: Bodega Producto Terminado | J70: 120 | K70: X12 | L70: 1.73 | M70: 207.6 | N70: UNIDAD SNCKS | O70: 120 | P70: 1089.97 | Q70: 1253.47 | R70: IVA EN VENTAS 15% | S70: =IFERROR(IF(Tabla_Consulta_desde_QuickBooks_Data_64_Bit_QRemote[[#This Row],[SalesOrderLineUnitOfMeasure]]="un",Tabla_Consulta_desde_QuickBooks_Data_64_Bit_QRemote[[#This Row],[SalesOrderLineQuantity]],Tabla_Consulta_desde_QuickBooks_Data_64_Bit_QRemote[[#This Row],[SalesOrderLineQuantity]]/MID(Tabla_Consulta_desde_QuickBooks_Data_64_Bit_QRemote[[#This Row],[SalesOrderLineUnitOfMeasure]],2,2)),0) -> 10 | T70: =IFERROR(IF(Tabla_Consulta_desde_QuickBooks_Data_64_Bit_QRemote[[#This Row],[SalesOrderLineUnitOfMeasure]]="un",Tabla_Consulta_desde_QuickBooks_Data_64_Bit_QRemote[[#This Row],[SalesOrderLineInvoiced]],Tabla_Consulta_desde_QuickBooks_Data_64_Bit_QRemote[[#This Row],[SalesOrderLineInvoiced]]/MID(Tabla_Consulta_desde_QuickBooks_Data_64_Bit_QRemote[[#This Row],[SalesOrderLineUnitOfMeasure]],2,2)),0) -> 10 | U70: =+Tabla_Consulta_desde_QuickBooks_Data_64_Bit_QRemote[[#This Row],[facturado]]-Tabla_Consulta_desde_QuickBooks_Data_64_Bit_QRemote[[#This Row],[pide]] -> 0 | V70: =IF(Tabla_Consulta_desde_QuickBooks_Data_64_Bit_QRemote[[#This Row],[diferecia]]=0,"ok","diferen") -> ok | W70: =IFERROR(INDEX(um!A:C,MATCH(Tabla_Consulta_desde_QuickBooks_Data_64_Bit_QRemote[[#This Row],[SalesOrderLineItemRefFullName]],um!A:A,0),3),"") -> X12 | X70: =IFERROR(IF(OR(Tabla_Consulta_desde_QuickBooks_Data_64_Bit_QRemote[[#This Row],[SalesOrderLineUnitOfMeasure]]="UN",Tabla_Consulta_desde_QuickBooks_Data_64_Bit_QRemote[[#This Row],[SalesOrderLineUnitOfMeasure]]=Tabla_Consulta_desde_QuickBooks_Data_64_Bit_QRemote[[#This Row],[U/M]]),"","ERROR"),"") ->  | Y70: =+WEEKNUM(Tabla_Consulta_desde_QuickBooks_Data_64_Bit_QRemote[[#This Row],[TxnDate]]) -> 23 | Z70: =+Tabla_Consulta_desde_QuickBooks_Data_64_Bit_QRemote[[#This Row],[SalesOrderLineRate]]*Tabla_Consulta_desde_QuickBooks_Data_64_Bit_QRemote[[#This Row],[SalesOrderLineInvoiced]] -> 207.6 | AA70: =+IFERROR(IF(Tabla_Consulta_desde_QuickBooks_Data_64_Bit_QRemote[[#This Row],[CustomerRefFullName]]="GRUVALCORP SA",VLOOKUP(Tabla_Consulta_desde_QuickBooks_Data_64_Bit_QRemote[[#This Row],[SalesOrderLineItemRefFullName]],Hoja1!A:E,5,FALSE),"")*-Tabla_Consulta_desde_QuickBooks_Data_64_Bit_QRemote[[#This Row],[SalesOrderLineAmount]],"") ->  | AB70: =IF(COUNTIF(wms!E:E,Tabla_Consulta_desde_QuickBooks_Data_64_Bit_QRemote[[#This Row],[RefNumber]])>0,"OK","FALTA") -> OK
A71: 2025-06-02 | B71: 29078 | C71: MEGA SANTAMARIA S.A | D71: OC23934839 | E71: 3 | F71: 7862112523036 | G71: P.T:110746 | H71: SALSA PICANTE JALAPEÑO OLE 100G | I71: Bodega Producto Terminado | J71: 240 | K71: X12 | L71: 0.62 | M71: 148.8 | N71: UNIDAD SALSA | O71: 240 | P71: 1089.97 | Q71: 1253.47 | R71: IVA EN VENTAS 15% | S71: =IFERROR(IF(Tabla_Consulta_desde_QuickBooks_Data_64_Bit_QRemote[[#This Row],[SalesOrderLineUnitOfMeasure]]="un",Tabla_Consulta_desde_QuickBooks_Data_64_Bit_QRemote[[#This Row],[SalesOrderLineQuantity]],Tabla_Consulta_desde_QuickBooks_Data_64_Bit_QRemote[[#This Row],[SalesOrderLineQuantity]]/MID(Tabla_Consulta_desde_QuickBooks_Data_64_Bit_QRemote[[#This Row],[SalesOrderLineUnitOfMeasure]],2,2)),0) -> 20 | T71: =IFERROR(IF(Tabla_Consulta_desde_QuickBooks_Data_64_Bit_QRemote[[#This Row],[SalesOrderLineUnitOfMeasure]]="un",Tabla_Consulta_desde_QuickBooks_Data_64_Bit_QRemote[[#This Row],[SalesOrderLineInvoiced]],Tabla_Consulta_desde_QuickBooks_Data_64_Bit_QRemote[[#This Row],[SalesOrderLineInvoiced]]/MID(Tabla_Consulta_desde_QuickBooks_Data_64_Bit_QRemote[[#This Row],[SalesOrderLineUnitOfMeasure]],2,2)),0) -> 20 | U71: =+Tabla_Consulta_desde_QuickBooks_Data_64_Bit_QRemote[[#This Row],[facturado]]-Tabla_Consulta_desde_QuickBooks_Data_64_Bit_QRemote[[#This Row],[pide]] -> 0 | V71: =IF(Tabla_Consulta_desde_QuickBooks_Data_64_Bit_QRemote[[#This Row],[diferecia]]=0,"ok","diferen") -> ok | W71: =IFERROR(INDEX(um!A:C,MATCH(Tabla_Consulta_desde_QuickBooks_Data_64_Bit_QRemote[[#This Row],[SalesOrderLineItemRefFullName]],um!A:A,0),3),"") -> X12 | X71: =IFERROR(IF(OR(Tabla_Consulta_desde_QuickBooks_Data_64_Bit_QRemote[[#This Row],[SalesOrderLineUnitOfMeasure]]="UN",Tabla_Consulta_desde_QuickBooks_Data_64_Bit_QRemote[[#This Row],[SalesOrderLineUnitOfMeasure]]=Tabla_Consulta_desde_QuickBooks_Data_64_Bit_QRemote[[#This Row],[U/M]]),"","ERROR"),"") ->  | Y71: =+WEEKNUM(Tabla_Consulta_desde_QuickBooks_Data_64_Bit_QRemote[[#This Row],[TxnDate]]) -> 23 | Z71: =+Tabla_Consulta_desde_QuickBooks_Data_64_Bit_QRemote[[#This Row],[SalesOrderLineRate]]*Tabla_Consulta_desde_QuickBooks_Data_64_Bit_QRemote[[#This Row],[SalesOrderLineInvoiced]] -> 148.8 | AA71: =+IFERROR(IF(Tabla_Consulta_desde_QuickBooks_Data_64_Bit_QRemote[[#This Row],[CustomerRefFullName]]="GRUVALCORP SA",VLOOKUP(Tabla_Consulta_desde_QuickBooks_Data_64_Bit_QRemote[[#This Row],[SalesOrderLineItemRefFullName]],Hoja1!A:E,5,FALSE),"")*-Tabla_Consulta_desde_QuickBooks_Data_64_Bit_QRemote[[#This Row],[SalesOrderLineAmount]],"") ->  | AB71: =IF(COUNTIF(wms!E:E,Tabla_Consulta_desde_QuickBooks_Data_64_Bit_QRemote[[#This Row],[RefNumber]])>0,"OK","FALTA") -> OK
A72: 2025-06-02 | B72: 29078 | C72: MEGA SANTAMARIA S.A | D72: OC23934839 | E72: 4 | F72: 7862112523043 | G72: P.T:110745 | H72: SALSA PICANTE HABANERO OLE 100G | I72: Bodega Producto Terminado | J72: 288 | K72: X12 | L72: 0.62 | M72: 178.56 | N72: UNIDAD SALSA | O72: 288 | P72: 1089.97 | Q72: 1253.47 | R72: IVA EN VENTAS 15% | S72: =IFERROR(IF(Tabla_Consulta_desde_QuickBooks_Data_64_Bit_QRemote[[#This Row],[SalesOrderLineUnitOfMeasure]]="un",Tabla_Consulta_desde_QuickBooks_Data_64_Bit_QRemote[[#This Row],[SalesOrderLineQuantity]],Tabla_Consulta_desde_QuickBooks_Data_64_Bit_QRemote[[#This Row],[SalesOrderLineQuantity]]/MID(Tabla_Consulta_desde_QuickBooks_Data_64_Bit_QRemote[[#This Row],[SalesOrderLineUnitOfMeasure]],2,2)),0) -> 24 | T72: =IFERROR(IF(Tabla_Consulta_desde_QuickBooks_Data_64_Bit_QRemote[[#This Row],[SalesOrderLineUnitOfMeasure]]="un",Tabla_Consulta_desde_QuickBooks_Data_64_Bit_QRemote[[#This Row],[SalesOrderLineInvoiced]],Tabla_Consulta_desde_QuickBooks_Data_64_Bit_QRemote[[#This Row],[SalesOrderLineInvoiced]]/MID(Tabla_Consulta_desde_QuickBooks_Data_64_Bit_QRemote[[#This Row],[SalesOrderLineUnitOfMeasure]],2,2)),0) -> 24 | U72: =+Tabla_Consulta_desde_QuickBooks_Data_64_Bit_QRemote[[#This Row],[facturado]]-Tabla_Consulta_desde_QuickBooks_Data_64_Bit_QRemote[[#This Row],[pide]] -> 0 | V72: =IF(Tabla_Consulta_desde_QuickBooks_Data_64_Bit_QRemote[[#This Row],[diferecia]]=0,"ok","diferen") -> ok | W72: =IFERROR(INDEX(um!A:C,MATCH(Tabla_Consulta_desde_QuickBooks_Data_64_Bit_QRemote[[#This Row],[SalesOrderLineItemRefFullName]],um!A:A,0),3),"") -> X12 | X72: =IFERROR(IF(OR(Tabla_Consulta_desde_QuickBooks_Data_64_Bit_QRemote[[#This Row],[SalesOrderLineUnitOfMeasure]]="UN",Tabla_Consulta_desde_QuickBooks_Data_64_Bit_QRemote[[#This Row],[SalesOrderLineUnitOfMeasure]]=Tabla_Consulta_desde_QuickBooks_Data_64_Bit_QRemote[[#This Row],[U/M]]),"","ERROR"),"") ->  | Y72: =+WEEKNUM(Tabla_Consulta_desde_QuickBooks_Data_64_Bit_QRemote[[#This Row],[TxnDate]]) -> 23 | Z72: =+Tabla_Consulta_desde_QuickBooks_Data_64_Bit_QRemote[[#This Row],[SalesOrderLineRate]]*Tabla_Consulta_desde_QuickBooks_Data_64_Bit_QRemote[[#This Row],[SalesOrderLineInvoiced]] -> 178.56 | AA72: =+IFERROR(IF(Tabla_Consulta_desde_QuickBooks_Data_64_Bit_QRemote[[#This Row],[CustomerRefFullName]]="GRUVALCORP SA",VLOOKUP(Tabla_Consulta_desde_QuickBooks_Data_64_Bit_QRemote[[#This Row],[SalesOrderLineItemRefFullName]],Hoja1!A:E,5,FALSE),"")*-Tabla_Consulta_desde_QuickBooks_Data_64_Bit_QRemote[[#This Row],[SalesOrderLineAmount]],"") ->  | AB72: =IF(COUNTIF(wms!E:E,Tabla_Consulta_desde_QuickBooks_Data_64_Bit_QRemote[[#This Row],[RefNumber]])>0,"OK","FALTA") -> OK
A73: 2025-06-02 | B73: 29078 | C73: MEGA SANTAMARIA S.A | D73: OC23934839 | E73: 5 | F73: 7862112522992 | G73: P.T:110300 | H73: SALSA BBQ PICANTE OLE 200G | I73: Bodega Producto Terminado | J73: 120 | K73: X12 | L73: 0.7 | M73: 84 | N73: UNIDAD SALSA | O73: 120 | P73: 1089.97 | Q73: 1253.47 | R73: IVA EN VENTAS 15% | S73: =IFERROR(IF(Tabla_Consulta_desde_QuickBooks_Data_64_Bit_QRemote[[#This Row],[SalesOrderLineUnitOfMeasure]]="un",Tabla_Consulta_desde_QuickBooks_Data_64_Bit_QRemote[[#This Row],[SalesOrderLineQuantity]],Tabla_Consulta_desde_QuickBooks_Data_64_Bit_QRemote[[#This Row],[SalesOrderLineQuantity]]/MID(Tabla_Consulta_desde_QuickBooks_Data_64_Bit_QRemote[[#This Row],[SalesOrderLineUnitOfMeasure]],2,2)),0) -> 10 | T73: =IFERROR(IF(Tabla_Consulta_desde_QuickBooks_Data_64_Bit_QRemote[[#This Row],[SalesOrderLineUnitOfMeasure]]="un",Tabla_Consulta_desde_QuickBooks_Data_64_Bit_QRemote[[#This Row],[SalesOrderLineInvoiced]],Tabla_Consulta_desde_QuickBooks_Data_64_Bit_QRemote[[#This Row],[SalesOrderLineInvoiced]]/MID(Tabla_Consulta_desde_QuickBooks_Data_64_Bit_QRemote[[#This Row],[SalesOrderLineUnitOfMeasure]],2,2)),0) -> 10 | U73: =+Tabla_Consulta_desde_QuickBooks_Data_64_Bit_QRemote[[#This Row],[facturado]]-Tabla_Consulta_desde_QuickBooks_Data_64_Bit_QRemote[[#This Row],[pide]] -> 0 | V73: =IF(Tabla_Consulta_desde_QuickBooks_Data_64_Bit_QRemote[[#This Row],[diferecia]]=0,"ok","diferen") -> ok | W73: =IFERROR(INDEX(um!A:C,MATCH(Tabla_Consulta_desde_QuickBooks_Data_64_Bit_QRemote[[#This Row],[SalesOrderLineItemRefFullName]],um!A:A,0),3),"") -> X12 | X73: =IFERROR(IF(OR(Tabla_Consulta_desde_QuickBooks_Data_64_Bit_QRemote[[#This Row],[SalesOrderLineUnitOfMeasure]]="UN",Tabla_Consulta_desde_QuickBooks_Data_64_Bit_QRemote[[#This Row],[SalesOrderLineUnitOfMeasure]]=Tabla_Consulta_desde_QuickBooks_Data_64_Bit_QRemote[[#This Row],[U/M]]),"","ERROR"),"") ->  | Y73: =+WEEKNUM(Tabla_Consulta_desde_QuickBooks_Data_64_Bit_QRemote[[#This Row],[TxnDate]]) -> 23 | Z73: =+Tabla_Consulta_desde_QuickBooks_Data_64_Bit_QRemote[[#This Row],[SalesOrderLineRate]]*Tabla_Consulta_desde_QuickBooks_Data_64_Bit_QRemote[[#This Row],[SalesOrderLineInvoiced]] -> 84 | AA73: =+IFERROR(IF(Tabla_Consulta_desde_QuickBooks_Data_64_Bit_QRemote[[#This Row],[CustomerRefFullName]]="GRUVALCORP SA",VLOOKUP(Tabla_Consulta_desde_QuickBooks_Data_64_Bit_QRemote[[#This Row],[SalesOrderLineItemRefFullName]],Hoja1!A:E,5,FALSE),"")*-Tabla_Consulta_desde_QuickBooks_Data_64_Bit_QRemote[[#This Row],[SalesOrderLineAmount]],"") ->  | AB73: =IF(COUNTIF(wms!E:E,Tabla_Consulta_desde_QuickBooks_Data_64_Bit_QRemote[[#This Row],[RefNumber]])>0,"OK","FALTA") -> OK
A74: 2025-06-02 | B74: 29078 | C74: MEGA SANTAMARIA S.A | D74: OC23934839 | E74: 6 | F74: 705424000147 | G74: P.T:110209 | H74: AJÍ CON TOMATE DE ÁRBOL OLE 180G | I74: Bodega Producto Terminado | J74: 72 | K74: X24 | L74: 1.45389 | M74: 104.68 | N74: UNIDAD SALSA | O74: 72 | P74: 1089.97 | Q74: 1253.47 | R74: IVA EN VENTAS 15% | S74: =IFERROR(IF(Tabla_Consulta_desde_QuickBooks_Data_64_Bit_QRemote[[#This Row],[SalesOrderLineUnitOfMeasure]]="un",Tabla_Consulta_desde_QuickBooks_Data_64_Bit_QRemote[[#This Row],[SalesOrderLineQuantity]],Tabla_Consulta_desde_QuickBooks_Data_64_Bit_QRemote[[#This Row],[SalesOrderLineQuantity]]/MID(Tabla_Consulta_desde_QuickBooks_Data_64_Bit_QRemote[[#This Row],[SalesOrderLineUnitOfMeasure]],2,2)),0) -> 3 | T74: =IFERROR(IF(Tabla_Consulta_desde_QuickBooks_Data_64_Bit_QRemote[[#This Row],[SalesOrderLineUnitOfMeasure]]="un",Tabla_Consulta_desde_QuickBooks_Data_64_Bit_QRemote[[#This Row],[SalesOrderLineInvoiced]],Tabla_Consulta_desde_QuickBooks_Data_64_Bit_QRemote[[#This Row],[SalesOrderLineInvoiced]]/MID(Tabla_Consulta_desde_QuickBooks_Data_64_Bit_QRemote[[#This Row],[SalesOrderLineUnitOfMeasure]],2,2)),0) -> 3 | U74: =+Tabla_Consulta_desde_QuickBooks_Data_64_Bit_QRemote[[#This Row],[facturado]]-Tabla_Consulta_desde_QuickBooks_Data_64_Bit_QRemote[[#This Row],[pide]] -> 0 | V74: =IF(Tabla_Consulta_desde_QuickBooks_Data_64_Bit_QRemote[[#This Row],[diferecia]]=0,"ok","diferen") -> ok | W74: =IFERROR(INDEX(um!A:C,MATCH(Tabla_Consulta_desde_QuickBooks_Data_64_Bit_QRemote[[#This Row],[SalesOrderLineItemRefFullName]],um!A:A,0),3),"") -> X24 | X74: =IFERROR(IF(OR(Tabla_Consulta_desde_QuickBooks_Data_64_Bit_QRemote[[#This Row],[SalesOrderLineUnitOfMeasure]]="UN",Tabla_Consulta_desde_QuickBooks_Data_64_Bit_QRemote[[#This Row],[SalesOrderLineUnitOfMeasure]]=Tabla_Consulta_desde_QuickBooks_Data_64_Bit_QRemote[[#This Row],[U/M]]),"","ERROR"),"") ->  | Y74: =+WEEKNUM(Tabla_Consulta_desde_QuickBooks_Data_64_Bit_QRemote[[#This Row],[TxnDate]]) -> 23 | Z74: =+Tabla_Consulta_desde_QuickBooks_Data_64_Bit_QRemote[[#This Row],[SalesOrderLineRate]]*Tabla_Consulta_desde_QuickBooks_Data_64_Bit_QRemote[[#This Row],[SalesOrderLineInvoiced]] -> 104.68008 | AA74: =+IFERROR(IF(Tabla_Consulta_desde_QuickBooks_Data_64_Bit_QRemote[[#This Row],[CustomerRefFullName]]="GRUVALCORP SA",VLOOKUP(Tabla_Consulta_desde_QuickBooks_Data_64_Bit_QRemote[[#This Row],[SalesOrderLineItemRefFullName]],Hoja1!A:E,5,FALSE),"")*-Tabla_Consulta_desde_QuickBooks_Data_64_Bit_QRemote[[#This Row],[SalesOrderLineAmount]],"") ->  | AB74: =IF(COUNTIF(wms!E:E,Tabla_Consulta_desde_QuickBooks_Data_64_Bit_QRemote[[#This Row],[RefNumber]])>0,"OK","FALTA") -> OK
A75: 2025-06-02 | B75: 29078 | C75: MEGA SANTAMARIA S.A | D75: OC23934839 | E75: 7 | F75: 7862112522244 | G75: P.T:110736 | H75: TERIYAKI SALSA ASIATICA OLE 300G | I75: Bodega Producto Terminado | J75: 132 | K75: X12 | L75: 2.0625 | M75: 272.25 | N75: UNIDAD SALSA | O75: 132 | P75: 1089.97 | Q75: 1253.47 | R75: IVA EN VENTAS 15% | S75: =IFERROR(IF(Tabla_Consulta_desde_QuickBooks_Data_64_Bit_QRemote[[#This Row],[SalesOrderLineUnitOfMeasure]]="un",Tabla_Consulta_desde_QuickBooks_Data_64_Bit_QRemote[[#This Row],[SalesOrderLineQuantity]],Tabla_Consulta_desde_QuickBooks_Data_64_Bit_QRemote[[#This Row],[SalesOrderLineQuantity]]/MID(Tabla_Consulta_desde_QuickBooks_Data_64_Bit_QRemote[[#This Row],[SalesOrderLineUnitOfMeasure]],2,2)),0) -> 11 | T75: =IFERROR(IF(Tabla_Consulta_desde_QuickBooks_Data_64_Bit_QRemote[[#This Row],[SalesOrderLineUnitOfMeasure]]="un",Tabla_Consulta_desde_QuickBooks_Data_64_Bit_QRemote[[#This Row],[SalesOrderLineInvoiced]],Tabla_Consulta_desde_QuickBooks_Data_64_Bit_QRemote[[#This Row],[SalesOrderLineInvoiced]]/MID(Tabla_Consulta_desde_QuickBooks_Data_64_Bit_QRemote[[#This Row],[SalesOrderLineUnitOfMeasure]],2,2)),0) -> 11 | U75: =+Tabla_Consulta_desde_QuickBooks_Data_64_Bit_QRemote[[#This Row],[facturado]]-Tabla_Consulta_desde_QuickBooks_Data_64_Bit_QRemote[[#This Row],[pide]] -> 0 | V75: =IF(Tabla_Consulta_desde_QuickBooks_Data_64_Bit_QRemote[[#This Row],[diferecia]]=0,"ok","diferen") -> ok | W75: =IFERROR(INDEX(um!A:C,MATCH(Tabla_Consulta_desde_QuickBooks_Data_64_Bit_QRemote[[#This Row],[SalesOrderLineItemRefFullName]],um!A:A,0),3),"") -> X12 | X75: =IFERROR(IF(OR(Tabla_Consulta_desde_QuickBooks_Data_64_Bit_QRemote[[#This Row],[SalesOrderLineUnitOfMeasure]]="UN",Tabla_Consulta_desde_QuickBooks_Data_64_Bit_QRemote[[#This Row],[SalesOrderLineUnitOfMeasure]]=Tabla_Consulta_desde_QuickBooks_Data_64_Bit_QRemote[[#This Row],[U/M]]),"","ERROR"),"") ->  | Y75: =+WEEKNUM(Tabla_Consulta_desde_QuickBooks_Data_64_Bit_QRemote[[#This Row],[TxnDate]]) -> 23 | Z75: =+Tabla_Consulta_desde_QuickBooks_Data_64_Bit_QRemote[[#This Row],[SalesOrderLineRate]]*Tabla_Consulta_desde_QuickBooks_Data_64_Bit_QRemote[[#This Row],[SalesOrderLineInvoiced]] -> 272.25 | AA75: =+IFERROR(IF(Tabla_Consulta_desde_QuickBooks_Data_64_Bit_QRemote[[#This Row],[CustomerRefFullName]]="GRUVALCORP SA",VLOOKUP(Tabla_Consulta_desde_QuickBooks_Data_64_Bit_QRemote[[#This Row],[SalesOrderLineItemRefFullName]],Hoja1!A:E,5,FALSE),"")*-Tabla_Consulta_desde_QuickBooks_Data_64_Bit_QRemote[[#This Row],[SalesOrderLineAmount]],"") ->  | AB75: =IF(COUNTIF(wms!E:E,Tabla_Consulta_desde_QuickBooks_Data_64_Bit_QRemote[[#This Row],[RefNumber]])>0,"OK","FALTA") -> OK
A76: 2025-06-02 | B76: 29078 | C76: MEGA SANTAMARIA S.A | D76: OC23934839 | E76: 8 | G76: INFOADICIONAL | H76: OC23934839 | L76: 0 | M76: 0 | O76: 1 | P76: 1089.97 | Q76: 1253.47 | R76: IVA EN VENTAS 15% | S76: =IFERROR(IF(Tabla_Consulta_desde_QuickBooks_Data_64_Bit_QRemote[[#This Row],[SalesOrderLineUnitOfMeasure]]="un",Tabla_Consulta_desde_QuickBooks_Data_64_Bit_QRemote[[#This Row],[SalesOrderLineQuantity]],Tabla_Consulta_desde_QuickBooks_Data_64_Bit_QRemote[[#This Row],[SalesOrderLineQuantity]]/MID(Tabla_Consulta_desde_QuickBooks_Data_64_Bit_QRemote[[#This Row],[SalesOrderLineUnitOfMeasure]],2,2)),0) -> 0 | T76: =IFERROR(IF(Tabla_Consulta_desde_QuickBooks_Data_64_Bit_QRemote[[#This Row],[SalesOrderLineUnitOfMeasure]]="un",Tabla_Consulta_desde_QuickBooks_Data_64_Bit_QRemote[[#This Row],[SalesOrderLineInvoiced]],Tabla_Consulta_desde_QuickBooks_Data_64_Bit_QRemote[[#This Row],[SalesOrderLineInvoiced]]/MID(Tabla_Consulta_desde_QuickBooks_Data_64_Bit_QRemote[[#This Row],[SalesOrderLineUnitOfMeasure]],2,2)),0) -> 0 | U76: =+Tabla_Consulta_desde_QuickBooks_Data_64_Bit_QRemote[[#This Row],[facturado]]-Tabla_Consulta_desde_QuickBooks_Data_64_Bit_QRemote[[#This Row],[pide]] -> 0 | V76: =IF(Tabla_Consulta_desde_QuickBooks_Data_64_Bit_QRemote[[#This Row],[diferecia]]=0,"ok","diferen") -> ok | W76: =IFERROR(INDEX(um!A:C,MATCH(Tabla_Consulta_desde_QuickBooks_Data_64_Bit_QRemote[[#This Row],[SalesOrderLineItemRefFullName]],um!A:A,0),3),"") ->  | X76: =IFERROR(IF(OR(Tabla_Consulta_desde_QuickBooks_Data_64_Bit_QRemote[[#This Row],[SalesOrderLineUnitOfMeasure]]="UN",Tabla_Consulta_desde_QuickBooks_Data_64_Bit_QRemote[[#This Row],[SalesOrderLineUnitOfMeasure]]=Tabla_Consulta_desde_QuickBooks_Data_64_Bit_QRemote[[#This Row],[U/M]]),"","ERROR"),"") ->  | Y76: =+WEEKNUM(Tabla_Consulta_desde_QuickBooks_Data_64_Bit_QRemote[[#This Row],[TxnDate]]) -> 23 | Z76: =+Tabla_Consulta_desde_QuickBooks_Data_64_Bit_QRemote[[#This Row],[SalesOrderLineRate]]*Tabla_Consulta_desde_QuickBooks_Data_64_Bit_QRemote[[#This Row],[SalesOrderLineInvoiced]] -> 0 | AA76: =+IFERROR(IF(Tabla_Consulta_desde_QuickBooks_Data_64_Bit_QRemote[[#This Row],[CustomerRefFullName]]="GRUVALCORP SA",VLOOKUP(Tabla_Consulta_desde_QuickBooks_Data_64_Bit_QRemote[[#This Row],[SalesOrderLineItemRefFullName]],Hoja1!A:E,5,FALSE),"")*-Tabla_Consulta_desde_QuickBooks_Data_64_Bit_QRemote[[#This Row],[SalesOrderLineAmount]],"") ->  | AB76: =IF(COUNTIF(wms!E:E,Tabla_Consulta_desde_QuickBooks_Data_64_Bit_QRemote[[#This Row],[RefNumber]])>0,"OK","FALTA") -> OK
A77: 2025-06-02 | B77: 29079 | C77: LOJANO CHAPA WILSON PATRICIO | D77: CUENCA | E77: 1 | F77: 7862112521599 | G77: P.T:110214 | H77: SALSA AJÍ MANABA OLE 300G | I77: Bodega Producto Terminado | J77: 48 | K77: X12 | L77: 1.72 | M77: 82.56 | N77: UNIDAD SALSA | O77: 48 | P77: 289.74 | Q77: 333.2 | R77: IVA EN VENTAS 15% | S77: =IFERROR(IF(Tabla_Consulta_desde_QuickBooks_Data_64_Bit_QRemote[[#This Row],[SalesOrderLineUnitOfMeasure]]="un",Tabla_Consulta_desde_QuickBooks_Data_64_Bit_QRemote[[#This Row],[SalesOrderLineQuantity]],Tabla_Consulta_desde_QuickBooks_Data_64_Bit_QRemote[[#This Row],[SalesOrderLineQuantity]]/MID(Tabla_Consulta_desde_QuickBooks_Data_64_Bit_QRemote[[#This Row],[SalesOrderLineUnitOfMeasure]],2,2)),0) -> 4 | T77: =IFERROR(IF(Tabla_Consulta_desde_QuickBooks_Data_64_Bit_QRemote[[#This Row],[SalesOrderLineUnitOfMeasure]]="un",Tabla_Consulta_desde_QuickBooks_Data_64_Bit_QRemote[[#This Row],[SalesOrderLineInvoiced]],Tabla_Consulta_desde_QuickBooks_Data_64_Bit_QRemote[[#This Row],[SalesOrderLineInvoiced]]/MID(Tabla_Consulta_desde_QuickBooks_Data_64_Bit_QRemote[[#This Row],[SalesOrderLineUnitOfMeasure]],2,2)),0) -> 4 | U77: =+Tabla_Consulta_desde_QuickBooks_Data_64_Bit_QRemote[[#This Row],[facturado]]-Tabla_Consulta_desde_QuickBooks_Data_64_Bit_QRemote[[#This Row],[pide]] -> 0 | V77: =IF(Tabla_Consulta_desde_QuickBooks_Data_64_Bit_QRemote[[#This Row],[diferecia]]=0,"ok","diferen") -> ok | W77: =IFERROR(INDEX(um!A:C,MATCH(Tabla_Consulta_desde_QuickBooks_Data_64_Bit_QRemote[[#This Row],[SalesOrderLineItemRefFullName]],um!A:A,0),3),"") -> X12 | X77: =IFERROR(IF(OR(Tabla_Consulta_desde_QuickBooks_Data_64_Bit_QRemote[[#This Row],[SalesOrderLineUnitOfMeasure]]="UN",Tabla_Consulta_desde_QuickBooks_Data_64_Bit_QRemote[[#This Row],[SalesOrderLineUnitOfMeasure]]=Tabla_Consulta_desde_QuickBooks_Data_64_Bit_QRemote[[#This Row],[U/M]]),"","ERROR"),"") ->  | Y77: =+WEEKNUM(Tabla_Consulta_desde_QuickBooks_Data_64_Bit_QRemote[[#This Row],[TxnDate]]) -> 23 | Z77: =+Tabla_Consulta_desde_QuickBooks_Data_64_Bit_QRemote[[#This Row],[SalesOrderLineRate]]*Tabla_Consulta_desde_QuickBooks_Data_64_Bit_QRemote[[#This Row],[SalesOrderLineInvoiced]] -> 82.56 | AA77: =+IFERROR(IF(Tabla_Consulta_desde_QuickBooks_Data_64_Bit_QRemote[[#This Row],[CustomerRefFullName]]="GRUVALCORP SA",VLOOKUP(Tabla_Consulta_desde_QuickBooks_Data_64_Bit_QRemote[[#This Row],[SalesOrderLineItemRefFullName]],Hoja1!A:E,5,FALSE),"")*-Tabla_Consulta_desde_QuickBooks_Data_64_Bit_QRemote[[#This Row],[SalesOrderLineAmount]],"") ->  | AB77: =IF(COUNTIF(wms!E:E,Tabla_Consulta_desde_QuickBooks_Data_64_Bit_QRemote[[#This Row],[RefNumber]])>0,"OK","FALTA") -> OK
A78: 2025-06-02 | B78: 29079 | C78: LOJANO CHAPA WILSON PATRICIO | D78: CUENCA | E78: 2 | F78: 7862112522497 | G78: P.T:110801 | H78: SALSA BBQ ORIGINAL OLE DP 200G | I78: Bodega Producto Terminado | J78: 48 | K78: X12 | L78: 0.71 | M78: 34.08 | N78: UNIDAD SALSA | O78: 48 | P78: 289.74 | Q78: 333.2 | R78: IVA EN VENTAS 15% | S78: =IFERROR(IF(Tabla_Consulta_desde_QuickBooks_Data_64_Bit_QRemote[[#This Row],[SalesOrderLineUnitOfMeasure]]="un",Tabla_Consulta_desde_QuickBooks_Data_64_Bit_QRemote[[#This Row],[SalesOrderLineQuantity]],Tabla_Consulta_desde_QuickBooks_Data_64_Bit_QRemote[[#This Row],[SalesOrderLineQuantity]]/MID(Tabla_Consulta_desde_QuickBooks_Data_64_Bit_QRemote[[#This Row],[SalesOrderLineUnitOfMeasure]],2,2)),0) -> 4 | T78: =IFERROR(IF(Tabla_Consulta_desde_QuickBooks_Data_64_Bit_QRemote[[#This Row],[SalesOrderLineUnitOfMeasure]]="un",Tabla_Consulta_desde_QuickBooks_Data_64_Bit_QRemote[[#This Row],[SalesOrderLineInvoiced]],Tabla_Consulta_desde_QuickBooks_Data_64_Bit_QRemote[[#This Row],[SalesOrderLineInvoiced]]/MID(Tabla_Consulta_desde_QuickBooks_Data_64_Bit_QRemote[[#This Row],[SalesOrderLineUnitOfMeasure]],2,2)),0) -> 4 | U78: =+Tabla_Consulta_desde_QuickBooks_Data_64_Bit_QRemote[[#This Row],[facturado]]-Tabla_Consulta_desde_QuickBooks_Data_64_Bit_QRemote[[#This Row],[pide]] -> 0 | V78: =IF(Tabla_Consulta_desde_QuickBooks_Data_64_Bit_QRemote[[#This Row],[diferecia]]=0,"ok","diferen") -> ok | W78: =IFERROR(INDEX(um!A:C,MATCH(Tabla_Consulta_desde_QuickBooks_Data_64_Bit_QRemote[[#This Row],[SalesOrderLineItemRefFullName]],um!A:A,0),3),"") -> X12 | X78: =IFERROR(IF(OR(Tabla_Consulta_desde_QuickBooks_Data_64_Bit_QRemote[[#This Row],[SalesOrderLineUnitOfMeasure]]="UN",Tabla_Consulta_desde_QuickBooks_Data_64_Bit_QRemote[[#This Row],[SalesOrderLineUnitOfMeasure]]=Tabla_Consulta_desde_QuickBooks_Data_64_Bit_QRemote[[#This Row],[U/M]]),"","ERROR"),"") ->  | Y78: =+WEEKNUM(Tabla_Consulta_desde_QuickBooks_Data_64_Bit_QRemote[[#This Row],[TxnDate]]) -> 23 | Z78: =+Tabla_Consulta_desde_QuickBooks_Data_64_Bit_QRemote[[#This Row],[SalesOrderLineRate]]*Tabla_Consulta_desde_QuickBooks_Data_64_Bit_QRemote[[#This Row],[SalesOrderLineInvoiced]] -> 34.08 | AA78: =+IFERROR(IF(Tabla_Consulta_desde_QuickBooks_Data_64_Bit_QRemote[[#This Row],[CustomerRefFullName]]="GRUVALCORP SA",VLOOKUP(Tabla_Consulta_desde_QuickBooks_Data_64_Bit_QRemote[[#This Row],[SalesOrderLineItemRefFullName]],Hoja1!A:E,5,FALSE),"")*-Tabla_Consulta_desde_QuickBooks_Data_64_Bit_QRemote[[#This Row],[SalesOrderLineAmount]],"") ->  | AB78: =IF(COUNTIF(wms!E:E,Tabla_Consulta_desde_QuickBooks_Data_64_Bit_QRemote[[#This Row],[RefNumber]])>0,"OK","FALTA") -> OK
A79: 2025-06-02 | B79: 29079 | C79: LOJANO CHAPA WILSON PATRICIO | D79: CUENCA | E79: 3 | F79: 7862112522183 | G79: P.T:110733 | H79: SALSA GUACAMOLE OLE 220G | I79: Bodega Producto Terminado | J79: 24 | K79: X12 | L79: 1.45 | M79: 34.8 | N79: UNIDAD SALSA | O79: 24 | P79: 289.74 | Q79: 333.2 | R79: IVA EN VENTAS 15% | S79: =IFERROR(IF(Tabla_Consulta_desde_QuickBooks_Data_64_Bit_QRemote[[#This Row],[SalesOrderLineUnitOfMeasure]]="un",Tabla_Consulta_desde_QuickBooks_Data_64_Bit_QRemote[[#This Row],[SalesOrderLineQuantity]],Tabla_Consulta_desde_QuickBooks_Data_64_Bit_QRemote[[#This Row],[SalesOrderLineQuantity]]/MID(Tabla_Consulta_desde_QuickBooks_Data_64_Bit_QRemote[[#This Row],[SalesOrderLineUnitOfMeasure]],2,2)),0) -> 2 | T79: =IFERROR(IF(Tabla_Consulta_desde_QuickBooks_Data_64_Bit_QRemote[[#This Row],[SalesOrderLineUnitOfMeasure]]="un",Tabla_Consulta_desde_QuickBooks_Data_64_Bit_QRemote[[#This Row],[SalesOrderLineInvoiced]],Tabla_Consulta_desde_QuickBooks_Data_64_Bit_QRemote[[#This Row],[SalesOrderLineInvoiced]]/MID(Tabla_Consulta_desde_QuickBooks_Data_64_Bit_QRemote[[#This Row],[SalesOrderLineUnitOfMeasure]],2,2)),0) -> 2 | U79: =+Tabla_Consulta_desde_QuickBooks_Data_64_Bit_QRemote[[#This Row],[facturado]]-Tabla_Consulta_desde_QuickBooks_Data_64_Bit_QRemote[[#This Row],[pide]] -> 0 | V79: =IF(Tabla_Consulta_desde_QuickBooks_Data_64_Bit_QRemote[[#This Row],[diferecia]]=0,"ok","diferen") -> ok | W79: =IFERROR(INDEX(um!A:C,MATCH(Tabla_Consulta_desde_QuickBooks_Data_64_Bit_QRemote[[#This Row],[SalesOrderLineItemRefFullName]],um!A:A,0),3),"") -> X12 | X79: =IFERROR(IF(OR(Tabla_Consulta_desde_QuickBooks_Data_64_Bit_QRemote[[#This Row],[SalesOrderLineUnitOfMeasure]]="UN",Tabla_Consulta_desde_QuickBooks_Data_64_Bit_QRemote[[#This Row],[SalesOrderLineUnitOfMeasure]]=Tabla_Consulta_desde_QuickBooks_Data_64_Bit_QRemote[[#This Row],[U/M]]),"","ERROR"),"") ->  | Y79: =+WEEKNUM(Tabla_Consulta_desde_QuickBooks_Data_64_Bit_QRemote[[#This Row],[TxnDate]]) -> 23 | Z79: =+Tabla_Consulta_desde_QuickBooks_Data_64_Bit_QRemote[[#This Row],[SalesOrderLineRate]]*Tabla_Consulta_desde_QuickBooks_Data_64_Bit_QRemote[[#This Row],[SalesOrderLineInvoiced]] -> 34.8 | AA79: =+IFERROR(IF(Tabla_Consulta_desde_QuickBooks_Data_64_Bit_QRemote[[#This Row],[CustomerRefFullName]]="GRUVALCORP SA",VLOOKUP(Tabla_Consulta_desde_QuickBooks_Data_64_Bit_QRemote[[#This Row],[SalesOrderLineItemRefFullName]],Hoja1!A:E,5,FALSE),"")*-Tabla_Consulta_desde_QuickBooks_Data_64_Bit_QRemote[[#This Row],[SalesOrderLineAmount]],"") ->  | AB79: =IF(COUNTIF(wms!E:E,Tabla_Consulta_desde_QuickBooks_Data_64_Bit_QRemote[[#This Row],[RefNumber]])>0,"OK","FALTA") -> OK
A80: 2025-06-02 | B80: 29079 | C80: LOJANO CHAPA WILSON PATRICIO | D80: CUENCA | E80: 4 | F80: 7862112522244 | G80: P.T:110736 | H80: TERIYAKI SALSA ASIATICA OLE 300G | I80: Bodega Producto Terminado | J80: 24 | K80: X12 | L80: 1.74 | M80: 41.76 | N80: UNIDAD SALSA | O80: 24 | P80: 289.74 | Q80: 333.2 | R80: IVA EN VENTAS 15% | S80: =IFERROR(IF(Tabla_Consulta_desde_QuickBooks_Data_64_Bit_QRemote[[#This Row],[SalesOrderLineUnitOfMeasure]]="un",Tabla_Consulta_desde_QuickBooks_Data_64_Bit_QRemote[[#This Row],[SalesOrderLineQuantity]],Tabla_Consulta_desde_QuickBooks_Data_64_Bit_QRemote[[#This Row],[SalesOrderLineQuantity]]/MID(Tabla_Consulta_desde_QuickBooks_Data_64_Bit_QRemote[[#This Row],[SalesOrderLineUnitOfMeasure]],2,2)),0) -> 2 | T80: =IFERROR(IF(Tabla_Consulta_desde_QuickBooks_Data_64_Bit_QRemote[[#This Row],[SalesOrderLineUnitOfMeasure]]="un",Tabla_Consulta_desde_QuickBooks_Data_64_Bit_QRemote[[#This Row],[SalesOrderLineInvoiced]],Tabla_Consulta_desde_QuickBooks_Data_64_Bit_QRemote[[#This Row],[SalesOrderLineInvoiced]]/MID(Tabla_Consulta_desde_QuickBooks_Data_64_Bit_QRemote[[#This Row],[SalesOrderLineUnitOfMeasure]],2,2)),0) -> 2 | U80: =+Tabla_Consulta_desde_QuickBooks_Data_64_Bit_QRemote[[#This Row],[facturado]]-Tabla_Consulta_desde_QuickBooks_Data_64_Bit_QRemote[[#This Row],[pide]] -> 0 | V80: =IF(Tabla_Consulta_desde_QuickBooks_Data_64_Bit_QRemote[[#This Row],[diferecia]]=0,"ok","diferen") -> ok | W80: =IFERROR(INDEX(um!A:C,MATCH(Tabla_Consulta_desde_QuickBooks_Data_64_Bit_QRemote[[#This Row],[SalesOrderLineItemRefFullName]],um!A:A,0),3),"") -> X12 | X80: =IFERROR(IF(OR(Tabla_Consulta_desde_QuickBooks_Data_64_Bit_QRemote[[#This Row],[SalesOrderLineUnitOfMeasure]]="UN",Tabla_Consulta_desde_QuickBooks_Data_64_Bit_QRemote[[#This Row],[SalesOrderLineUnitOfMeasure]]=Tabla_Consulta_desde_QuickBooks_Data_64_Bit_QRemote[[#This Row],[U/M]]),"","ERROR"),"") ->  | Y80: =+WEEKNUM(Tabla_Consulta_desde_QuickBooks_Data_64_Bit_QRemote[[#This Row],[TxnDate]]) -> 23 | Z80: =+Tabla_Consulta_desde_QuickBooks_Data_64_Bit_QRemote[[#This Row],[SalesOrderLineRate]]*Tabla_Consulta_desde_QuickBooks_Data_64_Bit_QRemote[[#This Row],[SalesOrderLineInvoiced]] -> 41.76 | AA80: =+IFERROR(IF(Tabla_Consulta_desde_QuickBooks_Data_64_Bit_QRemote[[#This Row],[CustomerRefFullName]]="GRUVALCORP SA",VLOOKUP(Tabla_Consulta_desde_QuickBooks_Data_64_Bit_QRemote[[#This Row],[SalesOrderLineItemRefFullName]],Hoja1!A:E,5,FALSE),"")*-Tabla_Consulta_desde_QuickBooks_Data_64_Bit_QRemote[[#This Row],[SalesOrderLineAmount]],"") ->  | AB80: =IF(COUNTIF(wms!E:E,Tabla_Consulta_desde_QuickBooks_Data_64_Bit_QRemote[[#This Row],[RefNumber]])>0,"OK","FALTA") -> OK
A81: 2025-06-02 | B81: 29079 | C81: LOJANO CHAPA WILSON PATRICIO | D81: CUENCA | E81: 5 | F81: 7862112522794 | G81: P.T:311605 | H81: SALSA CHICKEN DIPPIN OLE 200G | I81: Bodega Producto Terminado | J81: 24 | K81: X24 | L81: 1.12 | M81: 26.88 | N81: UNIDAD SALSA | O81: 24 | P81: 289.74 | Q81: 333.2 | R81: IVA EN VENTAS 15% | S81: =IFERROR(IF(Tabla_Consulta_desde_QuickBooks_Data_64_Bit_QRemote[[#This Row],[SalesOrderLineUnitOfMeasure]]="un",Tabla_Consulta_desde_QuickBooks_Data_64_Bit_QRemote[[#This Row],[SalesOrderLineQuantity]],Tabla_Consulta_desde_QuickBooks_Data_64_Bit_QRemote[[#This Row],[SalesOrderLineQuantity]]/MID(Tabla_Consulta_desde_QuickBooks_Data_64_Bit_QRemote[[#This Row],[SalesOrderLineUnitOfMeasure]],2,2)),0) -> 1 | T81: =IFERROR(IF(Tabla_Consulta_desde_QuickBooks_Data_64_Bit_QRemote[[#This Row],[SalesOrderLineUnitOfMeasure]]="un",Tabla_Consulta_desde_QuickBooks_Data_64_Bit_QRemote[[#This Row],[SalesOrderLineInvoiced]],Tabla_Consulta_desde_QuickBooks_Data_64_Bit_QRemote[[#This Row],[SalesOrderLineInvoiced]]/MID(Tabla_Consulta_desde_QuickBooks_Data_64_Bit_QRemote[[#This Row],[SalesOrderLineUnitOfMeasure]],2,2)),0) -> 1 | U81: =+Tabla_Consulta_desde_QuickBooks_Data_64_Bit_QRemote[[#This Row],[facturado]]-Tabla_Consulta_desde_QuickBooks_Data_64_Bit_QRemote[[#This Row],[pide]] -> 0 | V81: =IF(Tabla_Consulta_desde_QuickBooks_Data_64_Bit_QRemote[[#This Row],[diferecia]]=0,"ok","diferen") -> ok | W81: =IFERROR(INDEX(um!A:C,MATCH(Tabla_Consulta_desde_QuickBooks_Data_64_Bit_QRemote[[#This Row],[SalesOrderLineItemRefFullName]],um!A:A,0),3),"") -> X24 | X81: =IFERROR(IF(OR(Tabla_Consulta_desde_QuickBooks_Data_64_Bit_QRemote[[#This Row],[SalesOrderLineUnitOfMeasure]]="UN",Tabla_Consulta_desde_QuickBooks_Data_64_Bit_QRemote[[#This Row],[SalesOrderLineUnitOfMeasure]]=Tabla_Consulta_desde_QuickBooks_Data_64_Bit_QRemote[[#This Row],[U/M]]),"","ERROR"),"") ->  | Y81: =+WEEKNUM(Tabla_Consulta_desde_QuickBooks_Data_64_Bit_QRemote[[#This Row],[TxnDate]]) -> 23 | Z81: =+Tabla_Consulta_desde_QuickBooks_Data_64_Bit_QRemote[[#This Row],[SalesOrderLineRate]]*Tabla_Consulta_desde_QuickBooks_Data_64_Bit_QRemote[[#This Row],[SalesOrderLineInvoiced]] -> 26.88 | AA81: =+IFERROR(IF(Tabla_Consulta_desde_QuickBooks_Data_64_Bit_QRemote[[#This Row],[CustomerRefFullName]]="GRUVALCORP SA",VLOOKUP(Tabla_Consulta_desde_QuickBooks_Data_64_Bit_QRemote[[#This Row],[SalesOrderLineItemRefFullName]],Hoja1!A:E,5,FALSE),"")*-Tabla_Consulta_desde_QuickBooks_Data_64_Bit_QRemote[[#This Row],[SalesOrderLineAmount]],"") ->  | AB81: =IF(COUNTIF(wms!E:E,Tabla_Consulta_desde_QuickBooks_Data_64_Bit_QRemote[[#This Row],[RefNumber]])>0,"OK","FALTA") -> OK
A82: 2025-06-02 | B82: 29079 | C82: LOJANO CHAPA WILSON PATRICIO | D82: CUENCA | E82: 6 | F82: 7862112523104 | G82: P.T:110804 | H82: SALSA CHAMOY OLE 275G | I82: Bodega Producto Terminado | J82: 12 | K82: X12 | L82: 1.67 | M82: 20.04 | N82: UNIDAD SALSA | O82: 12 | P82: 289.74 | Q82: 333.2 | R82: IVA EN VENTAS 15% | S82: =IFERROR(IF(Tabla_Consulta_desde_QuickBooks_Data_64_Bit_QRemote[[#This Row],[SalesOrderLineUnitOfMeasure]]="un",Tabla_Consulta_desde_QuickBooks_Data_64_Bit_QRemote[[#This Row],[SalesOrderLineQuantity]],Tabla_Consulta_desde_QuickBooks_Data_64_Bit_QRemote[[#This Row],[SalesOrderLineQuantity]]/MID(Tabla_Consulta_desde_QuickBooks_Data_64_Bit_QRemote[[#This Row],[SalesOrderLineUnitOfMeasure]],2,2)),0) -> 1 | T82: =IFERROR(IF(Tabla_Consulta_desde_QuickBooks_Data_64_Bit_QRemote[[#This Row],[SalesOrderLineUnitOfMeasure]]="un",Tabla_Consulta_desde_QuickBooks_Data_64_Bit_QRemote[[#This Row],[SalesOrderLineInvoiced]],Tabla_Consulta_desde_QuickBooks_Data_64_Bit_QRemote[[#This Row],[SalesOrderLineInvoiced]]/MID(Tabla_Consulta_desde_QuickBooks_Data_64_Bit_QRemote[[#This Row],[SalesOrderLineUnitOfMeasure]],2,2)),0) -> 1 | U82: =+Tabla_Consulta_desde_QuickBooks_Data_64_Bit_QRemote[[#This Row],[facturado]]-Tabla_Consulta_desde_QuickBooks_Data_64_Bit_QRemote[[#This Row],[pide]] -> 0 | V82: =IF(Tabla_Consulta_desde_QuickBooks_Data_64_Bit_QRemote[[#This Row],[diferecia]]=0,"ok","diferen") -> ok | W82: =IFERROR(INDEX(um!A:C,MATCH(Tabla_Consulta_desde_QuickBooks_Data_64_Bit_QRemote[[#This Row],[SalesOrderLineItemRefFullName]],um!A:A,0),3),"") -> X12 | X82: =IFERROR(IF(OR(Tabla_Consulta_desde_QuickBooks_Data_64_Bit_QRemote[[#This Row],[SalesOrderLineUnitOfMeasure]]="UN",Tabla_Consulta_desde_QuickBooks_Data_64_Bit_QRemote[[#This Row],[SalesOrderLineUnitOfMeasure]]=Tabla_Consulta_desde_QuickBooks_Data_64_Bit_QRemote[[#This Row],[U/M]]),"","ERROR"),"") ->  | Y82: =+WEEKNUM(Tabla_Consulta_desde_QuickBooks_Data_64_Bit_QRemote[[#This Row],[TxnDate]]) -> 23 | Z82: =+Tabla_Consulta_desde_QuickBooks_Data_64_Bit_QRemote[[#This Row],[SalesOrderLineRate]]*Tabla_Consulta_desde_QuickBooks_Data_64_Bit_QRemote[[#This Row],[SalesOrderLineInvoiced]] -> 20.04 | AA82: =+IFERROR(IF(Tabla_Consulta_desde_QuickBooks_Data_64_Bit_QRemote[[#This Row],[CustomerRefFullName]]="GRUVALCORP SA",VLOOKUP(Tabla_Consulta_desde_QuickBooks_Data_64_Bit_QRemote[[#This Row],[SalesOrderLineItemRefFullName]],Hoja1!A:E,5,FALSE),"")*-Tabla_Consulta_desde_QuickBooks_Data_64_Bit_QRemote[[#This Row],[SalesOrderLineAmount]],"") ->  | AB82: =IF(COUNTIF(wms!E:E,Tabla_Consulta_desde_QuickBooks_Data_64_Bit_QRemote[[#This Row],[RefNumber]])>0,"OK","FALTA") -> OK
A83: 2025-06-02 | B83: 29079 | C83: LOJANO CHAPA WILSON PATRICIO | D83: CUENCA | E83: 7 | F83: 7862112523265 | G83: PT:220143 | H83: TOTOPOS NATURAL MINI OLE 45G | I83: Bodega Producto Terminado | J83: 60 | K83: X30 | L83: 0.33 | M83: 19.8 | N83: UNIDAD SNCKS | O83: 60 | P83: 289.74 | Q83: 333.2 | R83: IVA EN VENTAS 15% | S83: =IFERROR(IF(Tabla_Consulta_desde_QuickBooks_Data_64_Bit_QRemote[[#This Row],[SalesOrderLineUnitOfMeasure]]="un",Tabla_Consulta_desde_QuickBooks_Data_64_Bit_QRemote[[#This Row],[SalesOrderLineQuantity]],Tabla_Consulta_desde_QuickBooks_Data_64_Bit_QRemote[[#This Row],[SalesOrderLineQuantity]]/MID(Tabla_Consulta_desde_QuickBooks_Data_64_Bit_QRemote[[#This Row],[SalesOrderLineUnitOfMeasure]],2,2)),0) -> 2 | T83: =IFERROR(IF(Tabla_Consulta_desde_QuickBooks_Data_64_Bit_QRemote[[#This Row],[SalesOrderLineUnitOfMeasure]]="un",Tabla_Consulta_desde_QuickBooks_Data_64_Bit_QRemote[[#This Row],[SalesOrderLineInvoiced]],Tabla_Consulta_desde_QuickBooks_Data_64_Bit_QRemote[[#This Row],[SalesOrderLineInvoiced]]/MID(Tabla_Consulta_desde_QuickBooks_Data_64_Bit_QRemote[[#This Row],[SalesOrderLineUnitOfMeasure]],2,2)),0) -> 2 | U83: =+Tabla_Consulta_desde_QuickBooks_Data_64_Bit_QRemote[[#This Row],[facturado]]-Tabla_Consulta_desde_QuickBooks_Data_64_Bit_QRemote[[#This Row],[pide]] -> 0 | V83: =IF(Tabla_Consulta_desde_QuickBooks_Data_64_Bit_QRemote[[#This Row],[diferecia]]=0,"ok","diferen") -> ok | W83: =IFERROR(INDEX(um!A:C,MATCH(Tabla_Consulta_desde_QuickBooks_Data_64_Bit_QRemote[[#This Row],[SalesOrderLineItemRefFullName]],um!A:A,0),3),"") -> X30 | X83: =IFERROR(IF(OR(Tabla_Consulta_desde_QuickBooks_Data_64_Bit_QRemote[[#This Row],[SalesOrderLineUnitOfMeasure]]="UN",Tabla_Consulta_desde_QuickBooks_Data_64_Bit_QRemote[[#This Row],[SalesOrderLineUnitOfMeasure]]=Tabla_Consulta_desde_QuickBooks_Data_64_Bit_QRemote[[#This Row],[U/M]]),"","ERROR"),"") ->  | Y83: =+WEEKNUM(Tabla_Consulta_desde_QuickBooks_Data_64_Bit_QRemote[[#This Row],[TxnDate]]) -> 23 | Z83: =+Tabla_Consulta_desde_QuickBooks_Data_64_Bit_QRemote[[#This Row],[SalesOrderLineRate]]*Tabla_Consulta_desde_QuickBooks_Data_64_Bit_QRemote[[#This Row],[SalesOrderLineInvoiced]] -> 19.8 | AA83: =+IFERROR(IF(Tabla_Consulta_desde_QuickBooks_Data_64_Bit_QRemote[[#This Row],[CustomerRefFullName]]="GRUVALCORP SA",VLOOKUP(Tabla_Consulta_desde_QuickBooks_Data_64_Bit_QRemote[[#This Row],[SalesOrderLineItemRefFullName]],Hoja1!A:E,5,FALSE),"")*-Tabla_Consulta_desde_QuickBooks_Data_64_Bit_QRemote[[#This Row],[SalesOrderLineAmount]],"") ->  | AB83: =IF(COUNTIF(wms!E:E,Tabla_Consulta_desde_QuickBooks_Data_64_Bit_QRemote[[#This Row],[RefNumber]])>0,"OK","FALTA") -> OK
A84: 2025-06-02 | B84: 29079 | C84: LOJANO CHAPA WILSON PATRICIO | D84: CUENCA | E84: 8 | F84: 7862112523258 | G84: PT:220142 | H84: TOTOPOS SABOR GUACAMOLE OLE 45G | I84: Bodega Producto Terminado | J84: 30 | K84: X30 | L84: 0.33 | M84: 9.9 | N84: UNIDAD SNCKS | O84: 30 | P84: 289.74 | Q84: 333.2 | R84: IVA EN VENTAS 15% | S84: =IFERROR(IF(Tabla_Consulta_desde_QuickBooks_Data_64_Bit_QRemote[[#This Row],[SalesOrderLineUnitOfMeasure]]="un",Tabla_Consulta_desde_QuickBooks_Data_64_Bit_QRemote[[#This Row],[SalesOrderLineQuantity]],Tabla_Consulta_desde_QuickBooks_Data_64_Bit_QRemote[[#This Row],[SalesOrderLineQuantity]]/MID(Tabla_Consulta_desde_QuickBooks_Data_64_Bit_QRemote[[#This Row],[SalesOrderLineUnitOfMeasure]],2,2)),0) -> 1 | T84: =IFERROR(IF(Tabla_Consulta_desde_QuickBooks_Data_64_Bit_QRemote[[#This Row],[SalesOrderLineUnitOfMeasure]]="un",Tabla_Consulta_desde_QuickBooks_Data_64_Bit_QRemote[[#This Row],[SalesOrderLineInvoiced]],Tabla_Consulta_desde_QuickBooks_Data_64_Bit_QRemote[[#This Row],[SalesOrderLineInvoiced]]/MID(Tabla_Consulta_desde_QuickBooks_Data_64_Bit_QRemote[[#This Row],[SalesOrderLineUnitOfMeasure]],2,2)),0) -> 1 | U84: =+Tabla_Consulta_desde_QuickBooks_Data_64_Bit_QRemote[[#This Row],[facturado]]-Tabla_Consulta_desde_QuickBooks_Data_64_Bit_QRemote[[#This Row],[pide]] -> 0 | V84: =IF(Tabla_Consulta_desde_QuickBooks_Data_64_Bit_QRemote[[#This Row],[diferecia]]=0,"ok","diferen") -> ok | W84: =IFERROR(INDEX(um!A:C,MATCH(Tabla_Consulta_desde_QuickBooks_Data_64_Bit_QRemote[[#This Row],[SalesOrderLineItemRefFullName]],um!A:A,0),3),"") -> X30 | X84: =IFERROR(IF(OR(Tabla_Consulta_desde_QuickBooks_Data_64_Bit_QRemote[[#This Row],[SalesOrderLineUnitOfMeasure]]="UN",Tabla_Consulta_desde_QuickBooks_Data_64_Bit_QRemote[[#This Row],[SalesOrderLineUnitOfMeasure]]=Tabla_Consulta_desde_QuickBooks_Data_64_Bit_QRemote[[#This Row],[U/M]]),"","ERROR"),"") ->  | Y84: =+WEEKNUM(Tabla_Consulta_desde_QuickBooks_Data_64_Bit_QRemote[[#This Row],[TxnDate]]) -> 23 | Z84: =+Tabla_Consulta_desde_QuickBooks_Data_64_Bit_QRemote[[#This Row],[SalesOrderLineRate]]*Tabla_Consulta_desde_QuickBooks_Data_64_Bit_QRemote[[#This Row],[SalesOrderLineInvoiced]] -> 9.9 | AA84: =+IFERROR(IF(Tabla_Consulta_desde_QuickBooks_Data_64_Bit_QRemote[[#This Row],[CustomerRefFullName]]="GRUVALCORP SA",VLOOKUP(Tabla_Consulta_desde_QuickBooks_Data_64_Bit_QRemote[[#This Row],[SalesOrderLineItemRefFullName]],Hoja1!A:E,5,FALSE),"")*-Tabla_Consulta_desde_QuickBooks_Data_64_Bit_QRemote[[#This Row],[SalesOrderLineAmount]],"") ->  | AB84: =IF(COUNTIF(wms!E:E,Tabla_Consulta_desde_QuickBooks_Data_64_Bit_QRemote[[#This Row],[RefNumber]])>0,"OK","FALTA") -> OK
A85: 2025-06-02 | B85: 29079 | C85: LOJANO CHAPA WILSON PATRICIO | D85: CUENCA | E85: 9 | F85: 7862112522442 | G85: PT:220133 | H85: TOTOPOS QUESO RANCHERO OLE 120G | I85: Bodega Producto Terminado | J85: 12 | K85: X12 | L85: 0.83 | M85: 9.96 | N85: UNIDAD SNCKS | O85: 12 | P85: 289.74 | Q85: 333.2 | R85: IVA EN VENTAS 15% | S85: =IFERROR(IF(Tabla_Consulta_desde_QuickBooks_Data_64_Bit_QRemote[[#This Row],[SalesOrderLineUnitOfMeasure]]="un",Tabla_Consulta_desde_QuickBooks_Data_64_Bit_QRemote[[#This Row],[SalesOrderLineQuantity]],Tabla_Consulta_desde_QuickBooks_Data_64_Bit_QRemote[[#This Row],[SalesOrderLineQuantity]]/MID(Tabla_Consulta_desde_QuickBooks_Data_64_Bit_QRemote[[#This Row],[SalesOrderLineUnitOfMeasure]],2,2)),0) -> 1 | T85: =IFERROR(IF(Tabla_Consulta_desde_QuickBooks_Data_64_Bit_QRemote[[#This Row],[SalesOrderLineUnitOfMeasure]]="un",Tabla_Consulta_desde_QuickBooks_Data_64_Bit_QRemote[[#This Row],[SalesOrderLineInvoiced]],Tabla_Consulta_desde_QuickBooks_Data_64_Bit_QRemote[[#This Row],[SalesOrderLineInvoiced]]/MID(Tabla_Consulta_desde_QuickBooks_Data_64_Bit_QRemote[[#This Row],[SalesOrderLineUnitOfMeasure]],2,2)),0) -> 1 | U85: =+Tabla_Consulta_desde_QuickBooks_Data_64_Bit_QRemote[[#This Row],[facturado]]-Tabla_Consulta_desde_QuickBooks_Data_64_Bit_QRemote[[#This Row],[pide]] -> 0 | V85: =IF(Tabla_Consulta_desde_QuickBooks_Data_64_Bit_QRemote[[#This Row],[diferecia]]=0,"ok","diferen") -> ok | W85: =IFERROR(INDEX(um!A:C,MATCH(Tabla_Consulta_desde_QuickBooks_Data_64_Bit_QRemote[[#This Row],[SalesOrderLineItemRefFullName]],um!A:A,0),3),"") -> X12 | X85: =IFERROR(IF(OR(Tabla_Consulta_desde_QuickBooks_Data_64_Bit_QRemote[[#This Row],[SalesOrderLineUnitOfMeasure]]="UN",Tabla_Consulta_desde_QuickBooks_Data_64_Bit_QRemote[[#This Row],[SalesOrderLineUnitOfMeasure]]=Tabla_Consulta_desde_QuickBooks_Data_64_Bit_QRemote[[#This Row],[U/M]]),"","ERROR"),"") ->  | Y85: =+WEEKNUM(Tabla_Consulta_desde_QuickBooks_Data_64_Bit_QRemote[[#This Row],[TxnDate]]) -> 23 | Z85: =+Tabla_Consulta_desde_QuickBooks_Data_64_Bit_QRemote[[#This Row],[SalesOrderLineRate]]*Tabla_Consulta_desde_QuickBooks_Data_64_Bit_QRemote[[#This Row],[SalesOrderLineInvoiced]] -> 9.96 | AA85: =+IFERROR(IF(Tabla_Consulta_desde_QuickBooks_Data_64_Bit_QRemote[[#This Row],[CustomerRefFullName]]="GRUVALCORP SA",VLOOKUP(Tabla_Consulta_desde_QuickBooks_Data_64_Bit_QRemote[[#This Row],[SalesOrderLineItemRefFullName]],Hoja1!A:E,5,FALSE),"")*-Tabla_Consulta_desde_QuickBooks_Data_64_Bit_QRemote[[#This Row],[SalesOrderLineAmount]],"") ->  | AB85: =IF(COUNTIF(wms!E:E,Tabla_Consulta_desde_QuickBooks_Data_64_Bit_QRemote[[#This Row],[RefNumber]])>0,"OK","FALTA") -> OK
A86: 2025-06-02 | B86: 29079 | C86: LOJANO CHAPA WILSON PATRICIO | D86: CUENCA | E86: 10 | F86: 7862112522473 | G86: PT:220134 | H86: TOTOPOS MICHELADA OLE 120G | I86: Bodega Producto Terminado | J86: 12 | K86: X12 | L86: 0.83 | M86: 9.96 | N86: UNIDAD SNCKS | O86: 12 | P86: 289.74 | Q86: 333.2 | R86: IVA EN VENTAS 15% | S86: =IFERROR(IF(Tabla_Consulta_desde_QuickBooks_Data_64_Bit_QRemote[[#This Row],[SalesOrderLineUnitOfMeasure]]="un",Tabla_Consulta_desde_QuickBooks_Data_64_Bit_QRemote[[#This Row],[SalesOrderLineQuantity]],Tabla_Consulta_desde_QuickBooks_Data_64_Bit_QRemote[[#This Row],[SalesOrderLineQuantity]]/MID(Tabla_Consulta_desde_QuickBooks_Data_64_Bit_QRemote[[#This Row],[SalesOrderLineUnitOfMeasure]],2,2)),0) -> 1 | T86: =IFERROR(IF(Tabla_Consulta_desde_QuickBooks_Data_64_Bit_QRemote[[#This Row],[SalesOrderLineUnitOfMeasure]]="un",Tabla_Consulta_desde_QuickBooks_Data_64_Bit_QRemote[[#This Row],[SalesOrderLineInvoiced]],Tabla_Consulta_desde_QuickBooks_Data_64_Bit_QRemote[[#This Row],[SalesOrderLineInvoiced]]/MID(Tabla_Consulta_desde_QuickBooks_Data_64_Bit_QRemote[[#This Row],[SalesOrderLineUnitOfMeasure]],2,2)),0) -> 1 | U86: =+Tabla_Consulta_desde_QuickBooks_Data_64_Bit_QRemote[[#This Row],[facturado]]-Tabla_Consulta_desde_QuickBooks_Data_64_Bit_QRemote[[#This Row],[pide]] -> 0 | V86: =IF(Tabla_Consulta_desde_QuickBooks_Data_64_Bit_QRemote[[#This Row],[diferecia]]=0,"ok","diferen") -> ok | W86: =IFERROR(INDEX(um!A:C,MATCH(Tabla_Consulta_desde_QuickBooks_Data_64_Bit_QRemote[[#This Row],[SalesOrderLineItemRefFullName]],um!A:A,0),3),"") -> X12 | X86: =IFERROR(IF(OR(Tabla_Consulta_desde_QuickBooks_Data_64_Bit_QRemote[[#This Row],[SalesOrderLineUnitOfMeasure]]="UN",Tabla_Consulta_desde_QuickBooks_Data_64_Bit_QRemote[[#This Row],[SalesOrderLineUnitOfMeasure]]=Tabla_Consulta_desde_QuickBooks_Data_64_Bit_QRemote[[#This Row],[U/M]]),"","ERROR"),"") ->  | Y86: =+WEEKNUM(Tabla_Consulta_desde_QuickBooks_Data_64_Bit_QRemote[[#This Row],[TxnDate]]) -> 23 | Z86: =+Tabla_Consulta_desde_QuickBooks_Data_64_Bit_QRemote[[#This Row],[SalesOrderLineRate]]*Tabla_Consulta_desde_QuickBooks_Data_64_Bit_QRemote[[#This Row],[SalesOrderLineInvoiced]] -> 9.96 | AA86: =+IFERROR(IF(Tabla_Consulta_desde_QuickBooks_Data_64_Bit_QRemote[[#This Row],[CustomerRefFullName]]="GRUVALCORP SA",VLOOKUP(Tabla_Consulta_desde_QuickBooks_Data_64_Bit_QRemote[[#This Row],[SalesOrderLineItemRefFullName]],Hoja1!A:E,5,FALSE),"")*-Tabla_Consulta_desde_QuickBooks_Data_64_Bit_QRemote[[#This Row],[SalesOrderLineAmount]],"") ->  | AB86: =IF(COUNTIF(wms!E:E,Tabla_Consulta_desde_QuickBooks_Data_64_Bit_QRemote[[#This Row],[RefNumber]])>0,"OK","FALTA") -> OK
A87: 2025-06-02 | B87: 29079 | C87: LOJANO CHAPA WILSON PATRICIO | D87: CUENCA | E87: 11 | G87: INFOADICIONAL | H87: CUENCA | L87: 0 | M87: 0 | O87: 1 | P87: 289.74 | Q87: 333.2 | R87: IVA EN VENTAS 15% | S87: =IFERROR(IF(Tabla_Consulta_desde_QuickBooks_Data_64_Bit_QRemote[[#This Row],[SalesOrderLineUnitOfMeasure]]="un",Tabla_Consulta_desde_QuickBooks_Data_64_Bit_QRemote[[#This Row],[SalesOrderLineQuantity]],Tabla_Consulta_desde_QuickBooks_Data_64_Bit_QRemote[[#This Row],[SalesOrderLineQuantity]]/MID(Tabla_Consulta_desde_QuickBooks_Data_64_Bit_QRemote[[#This Row],[SalesOrderLineUnitOfMeasure]],2,2)),0) -> 0 | T87: =IFERROR(IF(Tabla_Consulta_desde_QuickBooks_Data_64_Bit_QRemote[[#This Row],[SalesOrderLineUnitOfMeasure]]="un",Tabla_Consulta_desde_QuickBooks_Data_64_Bit_QRemote[[#This Row],[SalesOrderLineInvoiced]],Tabla_Consulta_desde_QuickBooks_Data_64_Bit_QRemote[[#This Row],[SalesOrderLineInvoiced]]/MID(Tabla_Consulta_desde_QuickBooks_Data_64_Bit_QRemote[[#This Row],[SalesOrderLineUnitOfMeasure]],2,2)),0) -> 0 | U87: =+Tabla_Consulta_desde_QuickBooks_Data_64_Bit_QRemote[[#This Row],[facturado]]-Tabla_Consulta_desde_QuickBooks_Data_64_Bit_QRemote[[#This Row],[pide]] -> 0 | V87: =IF(Tabla_Consulta_desde_QuickBooks_Data_64_Bit_QRemote[[#This Row],[diferecia]]=0,"ok","diferen") -> ok | W87: =IFERROR(INDEX(um!A:C,MATCH(Tabla_Consulta_desde_QuickBooks_Data_64_Bit_QRemote[[#This Row],[SalesOrderLineItemRefFullName]],um!A:A,0),3),"") ->  | X87: =IFERROR(IF(OR(Tabla_Consulta_desde_QuickBooks_Data_64_Bit_QRemote[[#This Row],[SalesOrderLineUnitOfMeasure]]="UN",Tabla_Consulta_desde_QuickBooks_Data_64_Bit_QRemote[[#This Row],[SalesOrderLineUnitOfMeasure]]=Tabla_Consulta_desde_QuickBooks_Data_64_Bit_QRemote[[#This Row],[U/M]]),"","ERROR"),"") ->  | Y87: =+WEEKNUM(Tabla_Consulta_desde_QuickBooks_Data_64_Bit_QRemote[[#This Row],[TxnDate]]) -> 23 | Z87: =+Tabla_Consulta_desde_QuickBooks_Data_64_Bit_QRemote[[#This Row],[SalesOrderLineRate]]*Tabla_Consulta_desde_QuickBooks_Data_64_Bit_QRemote[[#This Row],[SalesOrderLineInvoiced]] -> 0 | AA87: =+IFERROR(IF(Tabla_Consulta_desde_QuickBooks_Data_64_Bit_QRemote[[#This Row],[CustomerRefFullName]]="GRUVALCORP SA",VLOOKUP(Tabla_Consulta_desde_QuickBooks_Data_64_Bit_QRemote[[#This Row],[SalesOrderLineItemRefFullName]],Hoja1!A:E,5,FALSE),"")*-Tabla_Consulta_desde_QuickBooks_Data_64_Bit_QRemote[[#This Row],[SalesOrderLineAmount]],"") ->  | AB87: =IF(COUNTIF(wms!E:E,Tabla_Consulta_desde_QuickBooks_Data_64_Bit_QRemote[[#This Row],[RefNumber]])>0,"OK","FALTA") -> OK
A88: 2025-06-02 | B88: 29080 | C88: DELIVERY HERO DMART ECUADOR S.A. | D88: PO091586 SOLCA | E88: 1 | F88: 7862112522169 | G88: P.T:110734 | H88: DIP ORIGINAL ROASTED TOMATES ASADOS OLE 220G | I88: Bodega Producto Terminado | J88: 12 | K88: X12 | L88: 1.47 | M88: 17.64 | N88: UNIDAD SALSA | O88: 12 | P88: 116.4 | Q88: 133.86 | R88: IVA EN VENTAS 15% | S88: =IFERROR(IF(Tabla_Consulta_desde_QuickBooks_Data_64_Bit_QRemote[[#This Row],[SalesOrderLineUnitOfMeasure]]="un",Tabla_Consulta_desde_QuickBooks_Data_64_Bit_QRemote[[#This Row],[SalesOrderLineQuantity]],Tabla_Consulta_desde_QuickBooks_Data_64_Bit_QRemote[[#This Row],[SalesOrderLineQuantity]]/MID(Tabla_Consulta_desde_QuickBooks_Data_64_Bit_QRemote[[#This Row],[SalesOrderLineUnitOfMeasure]],2,2)),0) -> 1 | T88: =IFERROR(IF(Tabla_Consulta_desde_QuickBooks_Data_64_Bit_QRemote[[#This Row],[SalesOrderLineUnitOfMeasure]]="un",Tabla_Consulta_desde_QuickBooks_Data_64_Bit_QRemote[[#This Row],[SalesOrderLineInvoiced]],Tabla_Consulta_desde_QuickBooks_Data_64_Bit_QRemote[[#This Row],[SalesOrderLineInvoiced]]/MID(Tabla_Consulta_desde_QuickBooks_Data_64_Bit_QRemote[[#This Row],[SalesOrderLineUnitOfMeasure]],2,2)),0) -> 1 | U88: =+Tabla_Consulta_desde_QuickBooks_Data_64_Bit_QRemote[[#This Row],[facturado]]-Tabla_Consulta_desde_QuickBooks_Data_64_Bit_QRemote[[#This Row],[pide]] -> 0 | V88: =IF(Tabla_Consulta_desde_QuickBooks_Data_64_Bit_QRemote[[#This Row],[diferecia]]=0,"ok","diferen") -> ok | W88: =IFERROR(INDEX(um!A:C,MATCH(Tabla_Consulta_desde_QuickBooks_Data_64_Bit_QRemote[[#This Row],[SalesOrderLineItemRefFullName]],um!A:A,0),3),"") -> X12 | X88: =IFERROR(IF(OR(Tabla_Consulta_desde_QuickBooks_Data_64_Bit_QRemote[[#This Row],[SalesOrderLineUnitOfMeasure]]="UN",Tabla_Consulta_desde_QuickBooks_Data_64_Bit_QRemote[[#This Row],[SalesOrderLineUnitOfMeasure]]=Tabla_Consulta_desde_QuickBooks_Data_64_Bit_QRemote[[#This Row],[U/M]]),"","ERROR"),"") ->  | Y88: =+WEEKNUM(Tabla_Consulta_desde_QuickBooks_Data_64_Bit_QRemote[[#This Row],[TxnDate]]) -> 23 | Z88: =+Tabla_Consulta_desde_QuickBooks_Data_64_Bit_QRemote[[#This Row],[SalesOrderLineRate]]*Tabla_Consulta_desde_QuickBooks_Data_64_Bit_QRemote[[#This Row],[SalesOrderLineInvoiced]] -> 17.64 | AA88: =+IFERROR(IF(Tabla_Consulta_desde_QuickBooks_Data_64_Bit_QRemote[[#This Row],[CustomerRefFullName]]="GRUVALCORP SA",VLOOKUP(Tabla_Consulta_desde_QuickBooks_Data_64_Bit_QRemote[[#This Row],[SalesOrderLineItemRefFullName]],Hoja1!A:E,5,FALSE),"")*-Tabla_Consulta_desde_QuickBooks_Data_64_Bit_QRemote[[#This Row],[SalesOrderLineAmount]],"") ->  | AB88: =IF(COUNTIF(wms!E:E,Tabla_Consulta_desde_QuickBooks_Data_64_Bit_QRemote[[#This Row],[RefNumber]])>0,"OK","FALTA") -> OK
A89: 2025-06-02 | B89: 29080 | C89: DELIVERY HERO DMART ECUADOR S.A. | D89: PO091586 SOLCA | E89: 2 | F89: 7861000227513 | G89: P.T:110603 | H89: JALAPEÑO ROJOS Y VERDES OLE 200G | I89: Bodega Producto Terminado | J89: 12 | K89: UN | L89: 1.91 | M89: 22.92 | N89: UNIDAD SALSA | O89: 12 | P89: 116.4 | Q89: 133.86 | R89: IVA EN VENTAS 15% | S89: =IFERROR(IF(Tabla_Consulta_desde_QuickBooks_Data_64_Bit_QRemote[[#This Row],[SalesOrderLineUnitOfMeasure]]="un",Tabla_Consulta_desde_QuickBooks_Data_64_Bit_QRemote[[#This Row],[SalesOrderLineQuantity]],Tabla_Consulta_desde_QuickBooks_Data_64_Bit_QRemote[[#This Row],[SalesOrderLineQuantity]]/MID(Tabla_Consulta_desde_QuickBooks_Data_64_Bit_QRemote[[#This Row],[SalesOrderLineUnitOfMeasure]],2,2)),0) -> 12 | T89: =IFERROR(IF(Tabla_Consulta_desde_QuickBooks_Data_64_Bit_QRemote[[#This Row],[SalesOrderLineUnitOfMeasure]]="un",Tabla_Consulta_desde_QuickBooks_Data_64_Bit_QRemote[[#This Row],[SalesOrderLineInvoiced]],Tabla_Consulta_desde_QuickBooks_Data_64_Bit_QRemote[[#This Row],[SalesOrderLineInvoiced]]/MID(Tabla_Consulta_desde_QuickBooks_Data_64_Bit_QRemote[[#This Row],[SalesOrderLineUnitOfMeasure]],2,2)),0) -> 12 | U89: =+Tabla_Consulta_desde_QuickBooks_Data_64_Bit_QRemote[[#This Row],[facturado]]-Tabla_Consulta_desde_QuickBooks_Data_64_Bit_QRemote[[#This Row],[pide]] -> 0 | V89: =IF(Tabla_Consulta_desde_QuickBooks_Data_64_Bit_QRemote[[#This Row],[diferecia]]=0,"ok","diferen") -> ok | W89: =IFERROR(INDEX(um!A:C,MATCH(Tabla_Consulta_desde_QuickBooks_Data_64_Bit_QRemote[[#This Row],[SalesOrderLineItemRefFullName]],um!A:A,0),3),"") -> X24 | X89: =IFERROR(IF(OR(Tabla_Consulta_desde_QuickBooks_Data_64_Bit_QRemote[[#This Row],[SalesOrderLineUnitOfMeasure]]="UN",Tabla_Consulta_desde_QuickBooks_Data_64_Bit_QRemote[[#This Row],[SalesOrderLineUnitOfMeasure]]=Tabla_Consulta_desde_QuickBooks_Data_64_Bit_QRemote[[#This Row],[U/M]]),"","ERROR"),"") ->  | Y89: =+WEEKNUM(Tabla_Consulta_desde_QuickBooks_Data_64_Bit_QRemote[[#This Row],[TxnDate]]) -> 23 | Z89: =+Tabla_Consulta_desde_QuickBooks_Data_64_Bit_QRemote[[#This Row],[SalesOrderLineRate]]*Tabla_Consulta_desde_QuickBooks_Data_64_Bit_QRemote[[#This Row],[SalesOrderLineInvoiced]] -> 22.92 | AA89: =+IFERROR(IF(Tabla_Consulta_desde_QuickBooks_Data_64_Bit_QRemote[[#This Row],[CustomerRefFullName]]="GRUVALCORP SA",VLOOKUP(Tabla_Consulta_desde_QuickBooks_Data_64_Bit_QRemote[[#This Row],[SalesOrderLineItemRefFullName]],Hoja1!A:E,5,FALSE),"")*-Tabla_Consulta_desde_QuickBooks_Data_64_Bit_QRemote[[#This Row],[SalesOrderLineAmount]],"") ->  | AB89: =IF(COUNTIF(wms!E:E,Tabla_Consulta_desde_QuickBooks_Data_64_Bit_QRemote[[#This Row],[RefNumber]])>0,"OK","FALTA") -> OK
A90: 2025-06-02 | B90: 29080 | C90: DELIVERY HERO DMART ECUADOR S.A. | D90: PO091586 SOLCA | E90: 3 | F90: 7862112522497 | G90: P.T:110801 | H90: SALSA BBQ ORIGINAL OLE DP 200G | I90: Bodega Producto Terminado | J90: 12 | K90: X12 | L90: 0.84 | M90: 10.08 | N90: UNIDAD SALSA | O90: 12 | P90: 116.4 | Q90: 133.86 | R90: IVA EN VENTAS 15% | S90: =IFERROR(IF(Tabla_Consulta_desde_QuickBooks_Data_64_Bit_QRemote[[#This Row],[SalesOrderLineUnitOfMeasure]]="un",Tabla_Consulta_desde_QuickBooks_Data_64_Bit_QRemote[[#This Row],[SalesOrderLineQuantity]],Tabla_Consulta_desde_QuickBooks_Data_64_Bit_QRemote[[#This Row],[SalesOrderLineQuantity]]/MID(Tabla_Consulta_desde_QuickBooks_Data_64_Bit_QRemote[[#This Row],[SalesOrderLineUnitOfMeasure]],2,2)),0) -> 1 | T90: =IFERROR(IF(Tabla_Consulta_desde_QuickBooks_Data_64_Bit_QRemote[[#This Row],[SalesOrderLineUnitOfMeasure]]="un",Tabla_Consulta_desde_QuickBooks_Data_64_Bit_QRemote[[#This Row],[SalesOrderLineInvoiced]],Tabla_Consulta_desde_QuickBooks_Data_64_Bit_QRemote[[#This Row],[SalesOrderLineInvoiced]]/MID(Tabla_Consulta_desde_QuickBooks_Data_64_Bit_QRemote[[#This Row],[SalesOrderLineUnitOfMeasure]],2,2)),0) -> 1 | U90: =+Tabla_Consulta_desde_QuickBooks_Data_64_Bit_QRemote[[#This Row],[facturado]]-Tabla_Consulta_desde_QuickBooks_Data_64_Bit_QRemote[[#This Row],[pide]] -> 0 | V90: =IF(Tabla_Consulta_desde_QuickBooks_Data_64_Bit_QRemote[[#This Row],[diferecia]]=0,"ok","diferen") -> ok | W90: =IFERROR(INDEX(um!A:C,MATCH(Tabla_Consulta_desde_QuickBooks_Data_64_Bit_QRemote[[#This Row],[SalesOrderLineItemRefFullName]],um!A:A,0),3),"") -> X12 | X90: =IFERROR(IF(OR(Tabla_Consulta_desde_QuickBooks_Data_64_Bit_QRemote[[#This Row],[SalesOrderLineUnitOfMeasure]]="UN",Tabla_Consulta_desde_QuickBooks_Data_64_Bit_QRemote[[#This Row],[SalesOrderLineUnitOfMeasure]]=Tabla_Consulta_desde_QuickBooks_Data_64_Bit_QRemote[[#This Row],[U/M]]),"","ERROR"),"") ->  | Y90: =+WEEKNUM(Tabla_Consulta_desde_QuickBooks_Data_64_Bit_QRemote[[#This Row],[TxnDate]]) -> 23 | Z90: =+Tabla_Consulta_desde_QuickBooks_Data_64_Bit_QRemote[[#This Row],[SalesOrderLineRate]]*Tabla_Consulta_desde_QuickBooks_Data_64_Bit_QRemote[[#This Row],[SalesOrderLineInvoiced]] -> 10.08 | AA90: =+IFERROR(IF(Tabla_Consulta_desde_QuickBooks_Data_64_Bit_QRemote[[#This Row],[CustomerRefFullName]]="GRUVALCORP SA",VLOOKUP(Tabla_Consulta_desde_QuickBooks_Data_64_Bit_QRemote[[#This Row],[SalesOrderLineItemRefFullName]],Hoja1!A:E,5,FALSE),"")*-Tabla_Consulta_desde_QuickBooks_Data_64_Bit_QRemote[[#This Row],[SalesOrderLineAmount]],"") ->  | AB90: =IF(COUNTIF(wms!E:E,Tabla_Consulta_desde_QuickBooks_Data_64_Bit_QRemote[[#This Row],[RefNumber]])>0,"OK","FALTA") -> OK
A91: 2025-06-02 | B91: 29080 | C91: DELIVERY HERO DMART ECUADOR S.A. | D91: PO091586 SOLCA | E91: 4 | F91: 7862112522442 | G91: PT:220133 | H91: TOTOPOS QUESO RANCHERO OLE 120G | I91: Bodega Producto Terminado | J91: 12 | K91: X12 | L91: 0.99 | M91: 11.88 | N91: UNIDAD SNCKS | O91: 12 | P91: 116.4 | Q91: 133.86 | R91: IVA EN VENTAS 15% | S91: =IFERROR(IF(Tabla_Consulta_desde_QuickBooks_Data_64_Bit_QRemote[[#This Row],[SalesOrderLineUnitOfMeasure]]="un",Tabla_Consulta_desde_QuickBooks_Data_64_Bit_QRemote[[#This Row],[SalesOrderLineQuantity]],Tabla_Consulta_desde_QuickBooks_Data_64_Bit_QRemote[[#This Row],[SalesOrderLineQuantity]]/MID(Tabla_Consulta_desde_QuickBooks_Data_64_Bit_QRemote[[#This Row],[SalesOrderLineUnitOfMeasure]],2,2)),0) -> 1 | T91: =IFERROR(IF(Tabla_Consulta_desde_QuickBooks_Data_64_Bit_QRemote[[#This Row],[SalesOrderLineUnitOfMeasure]]="un",Tabla_Consulta_desde_QuickBooks_Data_64_Bit_QRemote[[#This Row],[SalesOrderLineInvoiced]],Tabla_Consulta_desde_QuickBooks_Data_64_Bit_QRemote[[#This Row],[SalesOrderLineInvoiced]]/MID(Tabla_Consulta_desde_QuickBooks_Data_64_Bit_QRemote[[#This Row],[SalesOrderLineUnitOfMeasure]],2,2)),0) -> 1 | U91: =+Tabla_Consulta_desde_QuickBooks_Data_64_Bit_QRemote[[#This Row],[facturado]]-Tabla_Consulta_desde_QuickBooks_Data_64_Bit_QRemote[[#This Row],[pide]] -> 0 | V91: =IF(Tabla_Consulta_desde_QuickBooks_Data_64_Bit_QRemote[[#This Row],[diferecia]]=0,"ok","diferen") -> ok | W91: =IFERROR(INDEX(um!A:C,MATCH(Tabla_Consulta_desde_QuickBooks_Data_64_Bit_QRemote[[#This Row],[SalesOrderLineItemRefFullName]],um!A:A,0),3),"") -> X12 | X91: =IFERROR(IF(OR(Tabla_Consulta_desde_QuickBooks_Data_64_Bit_QRemote[[#This Row],[SalesOrderLineUnitOfMeasure]]="UN",Tabla_Consulta_desde_QuickBooks_Data_64_Bit_QRemote[[#This Row],[SalesOrderLineUnitOfMeasure]]=Tabla_Consulta_desde_QuickBooks_Data_64_Bit_QRemote[[#This Row],[U/M]]),"","ERROR"),"") ->  | Y91: =+WEEKNUM(Tabla_Consulta_desde_QuickBooks_Data_64_Bit_QRemote[[#This Row],[TxnDate]]) -> 23 | Z91: =+Tabla_Consulta_desde_QuickBooks_Data_64_Bit_QRemote[[#This Row],[SalesOrderLineRate]]*Tabla_Consulta_desde_QuickBooks_Data_64_Bit_QRemote[[#This Row],[SalesOrderLineInvoiced]] -> 11.88 | AA91: =+IFERROR(IF(Tabla_Consulta_desde_QuickBooks_Data_64_Bit_QRemote[[#This Row],[CustomerRefFullName]]="GRUVALCORP SA",VLOOKUP(Tabla_Consulta_desde_QuickBooks_Data_64_Bit_QRemote[[#This Row],[SalesOrderLineItemRefFullName]],Hoja1!A:E,5,FALSE),"")*-Tabla_Consulta_desde_QuickBooks_Data_64_Bit_QRemote[[#This Row],[SalesOrderLineAmount]],"") ->  | AB91: =IF(COUNTIF(wms!E:E,Tabla_Consulta_desde_QuickBooks_Data_64_Bit_QRemote[[#This Row],[RefNumber]])>0,"OK","FALTA") -> OK
A92: 2025-06-02 | B92: 29080 | C92: DELIVERY HERO DMART ECUADOR S.A. | D92: PO091586 SOLCA | E92: 5 | F92: 7862112522367 | G92: PT:220132 | H92: TOTOPOS NATURAL OLE 300G | I92: Bodega Producto Terminado | J92: 24 | K92: X12 | L92: 1.75 | M92: 42 | N92: UNIDAD SNCKS | O92: 24 | P92: 116.4 | Q92: 133.86 | R92: IVA EN VENTAS 15% | S92: =IFERROR(IF(Tabla_Consulta_desde_QuickBooks_Data_64_Bit_QRemote[[#This Row],[SalesOrderLineUnitOfMeasure]]="un",Tabla_Consulta_desde_QuickBooks_Data_64_Bit_QRemote[[#This Row],[SalesOrderLineQuantity]],Tabla_Consulta_desde_QuickBooks_Data_64_Bit_QRemote[[#This Row],[SalesOrderLineQuantity]]/MID(Tabla_Consulta_desde_QuickBooks_Data_64_Bit_QRemote[[#This Row],[SalesOrderLineUnitOfMeasure]],2,2)),0) -> 2 | T92: =IFERROR(IF(Tabla_Consulta_desde_QuickBooks_Data_64_Bit_QRemote[[#This Row],[SalesOrderLineUnitOfMeasure]]="un",Tabla_Consulta_desde_QuickBooks_Data_64_Bit_QRemote[[#This Row],[SalesOrderLineInvoiced]],Tabla_Consulta_desde_QuickBooks_Data_64_Bit_QRemote[[#This Row],[SalesOrderLineInvoiced]]/MID(Tabla_Consulta_desde_QuickBooks_Data_64_Bit_QRemote[[#This Row],[SalesOrderLineUnitOfMeasure]],2,2)),0) -> 2 | U92: =+Tabla_Consulta_desde_QuickBooks_Data_64_Bit_QRemote[[#This Row],[facturado]]-Tabla_Consulta_desde_QuickBooks_Data_64_Bit_QRemote[[#This Row],[pide]] -> 0 | V92: =IF(Tabla_Consulta_desde_QuickBooks_Data_64_Bit_QRemote[[#This Row],[diferecia]]=0,"ok","diferen") -> ok | W92: =IFERROR(INDEX(um!A:C,MATCH(Tabla_Consulta_desde_QuickBooks_Data_64_Bit_QRemote[[#This Row],[SalesOrderLineItemRefFullName]],um!A:A,0),3),"") -> X12 | X92: =IFERROR(IF(OR(Tabla_Consulta_desde_QuickBooks_Data_64_Bit_QRemote[[#This Row],[SalesOrderLineUnitOfMeasure]]="UN",Tabla_Consulta_desde_QuickBooks_Data_64_Bit_QRemote[[#This Row],[SalesOrderLineUnitOfMeasure]]=Tabla_Consulta_desde_QuickBooks_Data_64_Bit_QRemote[[#This Row],[U/M]]),"","ERROR"),"") ->  | Y92: =+WEEKNUM(Tabla_Consulta_desde_QuickBooks_Data_64_Bit_QRemote[[#This Row],[TxnDate]]) -> 23 | Z92: =+Tabla_Consulta_desde_QuickBooks_Data_64_Bit_QRemote[[#This Row],[SalesOrderLineRate]]*Tabla_Consulta_desde_QuickBooks_Data_64_Bit_QRemote[[#This Row],[SalesOrderLineInvoiced]] -> 42 | AA92: =+IFERROR(IF(Tabla_Consulta_desde_QuickBooks_Data_64_Bit_QRemote[[#This Row],[CustomerRefFullName]]="GRUVALCORP SA",VLOOKUP(Tabla_Consulta_desde_QuickBooks_Data_64_Bit_QRemote[[#This Row],[SalesOrderLineItemRefFullName]],Hoja1!A:E,5,FALSE),"")*-Tabla_Consulta_desde_QuickBooks_Data_64_Bit_QRemote[[#This Row],[SalesOrderLineAmount]],"") ->  | AB92: =IF(COUNTIF(wms!E:E,Tabla_Consulta_desde_QuickBooks_Data_64_Bit_QRemote[[#This Row],[RefNumber]])>0,"OK","FALTA") -> OK
A93: 2025-06-02 | B93: 29080 | C93: DELIVERY HERO DMART ECUADOR S.A. | D93: PO091586 SOLCA | E93: 6 | F93: 7862112522473 | G93: PT:220134 | H93: TOTOPOS MICHELADA OLE 120G | I93: Bodega Producto Terminado | J93: 12 | K93: X12 | L93: 0.99 | M93: 11.88 | N93: UNIDAD SNCKS | O93: 12 | P93: 116.4 | Q93: 133.86 | R93: IVA EN VENTAS 15% | S93: =IFERROR(IF(Tabla_Consulta_desde_QuickBooks_Data_64_Bit_QRemote[[#This Row],[SalesOrderLineUnitOfMeasure]]="un",Tabla_Consulta_desde_QuickBooks_Data_64_Bit_QRemote[[#This Row],[SalesOrderLineQuantity]],Tabla_Consulta_desde_QuickBooks_Data_64_Bit_QRemote[[#This Row],[SalesOrderLineQuantity]]/MID(Tabla_Consulta_desde_QuickBooks_Data_64_Bit_QRemote[[#This Row],[SalesOrderLineUnitOfMeasure]],2,2)),0) -> 1 | T93: =IFERROR(IF(Tabla_Consulta_desde_QuickBooks_Data_64_Bit_QRemote[[#This Row],[SalesOrderLineUnitOfMeasure]]="un",Tabla_Consulta_desde_QuickBooks_Data_64_Bit_QRemote[[#This Row],[SalesOrderLineInvoiced]],Tabla_Consulta_desde_QuickBooks_Data_64_Bit_QRemote[[#This Row],[SalesOrderLineInvoiced]]/MID(Tabla_Consulta_desde_QuickBooks_Data_64_Bit_QRemote[[#This Row],[SalesOrderLineUnitOfMeasure]],2,2)),0) -> 1 | U93: =+Tabla_Consulta_desde_QuickBooks_Data_64_Bit_QRemote[[#This Row],[facturado]]-Tabla_Consulta_desde_QuickBooks_Data_64_Bit_QRemote[[#This Row],[pide]] -> 0 | V93: =IF(Tabla_Consulta_desde_QuickBooks_Data_64_Bit_QRemote[[#This Row],[diferecia]]=0,"ok","diferen") -> ok | W93: =IFERROR(INDEX(um!A:C,MATCH(Tabla_Consulta_desde_QuickBooks_Data_64_Bit_QRemote[[#This Row],[SalesOrderLineItemRefFullName]],um!A:A,0),3),"") -> X12 | X93: =IFERROR(IF(OR(Tabla_Consulta_desde_QuickBooks_Data_64_Bit_QRemote[[#This Row],[SalesOrderLineUnitOfMeasure]]="UN",Tabla_Consulta_desde_QuickBooks_Data_64_Bit_QRemote[[#This Row],[SalesOrderLineUnitOfMeasure]]=Tabla_Consulta_desde_QuickBooks_Data_64_Bit_QRemote[[#This Row],[U/M]]),"","ERROR"),"") ->  | Y93: =+WEEKNUM(Tabla_Consulta_desde_QuickBooks_Data_64_Bit_QRemote[[#This Row],[TxnDate]]) -> 23 | Z93: =+Tabla_Consulta_desde_QuickBooks_Data_64_Bit_QRemote[[#This Row],[SalesOrderLineRate]]*Tabla_Consulta_desde_QuickBooks_Data_64_Bit_QRemote[[#This Row],[SalesOrderLineInvoiced]] -> 11.88 | AA93: =+IFERROR(IF(Tabla_Consulta_desde_QuickBooks_Data_64_Bit_QRemote[[#This Row],[CustomerRefFullName]]="GRUVALCORP SA",VLOOKUP(Tabla_Consulta_desde_QuickBooks_Data_64_Bit_QRemote[[#This Row],[SalesOrderLineItemRefFullName]],Hoja1!A:E,5,FALSE),"")*-Tabla_Consulta_desde_QuickBooks_Data_64_Bit_QRemote[[#This Row],[SalesOrderLineAmount]],"") ->  | AB93: =IF(COUNTIF(wms!E:E,Tabla_Consulta_desde_QuickBooks_Data_64_Bit_QRemote[[#This Row],[RefNumber]])>0,"OK","FALTA") -> OK
A94: 2025-06-02 | B94: 29080 | C94: DELIVERY HERO DMART ECUADOR S.A. | D94: PO091586 SOLCA | E94: 7 | G94: INFOADICIONAL | H94: PO091586 SOLCA | L94: 0 | M94: 0 | O94: 1 | P94: 116.4 | Q94: 133.86 | R94: IVA EN VENTAS 15% | S94: =IFERROR(IF(Tabla_Consulta_desde_QuickBooks_Data_64_Bit_QRemote[[#This Row],[SalesOrderLineUnitOfMeasure]]="un",Tabla_Consulta_desde_QuickBooks_Data_64_Bit_QRemote[[#This Row],[SalesOrderLineQuantity]],Tabla_Consulta_desde_QuickBooks_Data_64_Bit_QRemote[[#This Row],[SalesOrderLineQuantity]]/MID(Tabla_Consulta_desde_QuickBooks_Data_64_Bit_QRemote[[#This Row],[SalesOrderLineUnitOfMeasure]],2,2)),0) -> 0 | T94: =IFERROR(IF(Tabla_Consulta_desde_QuickBooks_Data_64_Bit_QRemote[[#This Row],[SalesOrderLineUnitOfMeasure]]="un",Tabla_Consulta_desde_QuickBooks_Data_64_Bit_QRemote[[#This Row],[SalesOrderLineInvoiced]],Tabla_Consulta_desde_QuickBooks_Data_64_Bit_QRemote[[#This Row],[SalesOrderLineInvoiced]]/MID(Tabla_Consulta_desde_QuickBooks_Data_64_Bit_QRemote[[#This Row],[SalesOrderLineUnitOfMeasure]],2,2)),0) -> 0 | U94: =+Tabla_Consulta_desde_QuickBooks_Data_64_Bit_QRemote[[#This Row],[facturado]]-Tabla_Consulta_desde_QuickBooks_Data_64_Bit_QRemote[[#This Row],[pide]] -> 0 | V94: =IF(Tabla_Consulta_desde_QuickBooks_Data_64_Bit_QRemote[[#This Row],[diferecia]]=0,"ok","diferen") -> ok | W94: =IFERROR(INDEX(um!A:C,MATCH(Tabla_Consulta_desde_QuickBooks_Data_64_Bit_QRemote[[#This Row],[SalesOrderLineItemRefFullName]],um!A:A,0),3),"") ->  | X94: =IFERROR(IF(OR(Tabla_Consulta_desde_QuickBooks_Data_64_Bit_QRemote[[#This Row],[SalesOrderLineUnitOfMeasure]]="UN",Tabla_Consulta_desde_QuickBooks_Data_64_Bit_QRemote[[#This Row],[SalesOrderLineUnitOfMeasure]]=Tabla_Consulta_desde_QuickBooks_Data_64_Bit_QRemote[[#This Row],[U/M]]),"","ERROR"),"") ->  | Y94: =+WEEKNUM(Tabla_Consulta_desde_QuickBooks_Data_64_Bit_QRemote[[#This Row],[TxnDate]]) -> 23 | Z94: =+Tabla_Consulta_desde_QuickBooks_Data_64_Bit_QRemote[[#This Row],[SalesOrderLineRate]]*Tabla_Consulta_desde_QuickBooks_Data_64_Bit_QRemote[[#This Row],[SalesOrderLineInvoiced]] -> 0 | AA94: =+IFERROR(IF(Tabla_Consulta_desde_QuickBooks_Data_64_Bit_QRemote[[#This Row],[CustomerRefFullName]]="GRUVALCORP SA",VLOOKUP(Tabla_Consulta_desde_QuickBooks_Data_64_Bit_QRemote[[#This Row],[SalesOrderLineItemRefFullName]],Hoja1!A:E,5,FALSE),"")*-Tabla_Consulta_desde_QuickBooks_Data_64_Bit_QRemote[[#This Row],[SalesOrderLineAmount]],"") ->  | AB94: =IF(COUNTIF(wms!E:E,Tabla_Consulta_desde_QuickBooks_Data_64_Bit_QRemote[[#This Row],[RefNumber]])>0,"OK","FALTA") -> OK
A95: 2025-06-02 | B95: 29081 | C95: ALIDULCAF S.A.S. | D95: DULCREMO ENVIAR MANABI POR ENETSA | E95: 1 | F95: 7862112521926 | G95: P.T:111202 | H95: TOMATE DESHIDRATADO EN ACEITE OLE 625G | I95: Bodega Producto Terminado | J95: 48 | K95: X12 | L95: 8.56 | M95: 410.88 | N95: UNIDAD SALSA | O95: 48 | P95: 452.54 | Q95: 519.9 | R95: IVA EN VENTAS 15% | S95: =IFERROR(IF(Tabla_Consulta_desde_QuickBooks_Data_64_Bit_QRemote[[#This Row],[SalesOrderLineUnitOfMeasure]]="un",Tabla_Consulta_desde_QuickBooks_Data_64_Bit_QRemote[[#This Row],[SalesOrderLineQuantity]],Tabla_Consulta_desde_QuickBooks_Data_64_Bit_QRemote[[#This Row],[SalesOrderLineQuantity]]/MID(Tabla_Consulta_desde_QuickBooks_Data_64_Bit_QRemote[[#This Row],[SalesOrderLineUnitOfMeasure]],2,2)),0) -> 4 | T95: =IFERROR(IF(Tabla_Consulta_desde_QuickBooks_Data_64_Bit_QRemote[[#This Row],[SalesOrderLineUnitOfMeasure]]="un",Tabla_Consulta_desde_QuickBooks_Data_64_Bit_QRemote[[#This Row],[SalesOrderLineInvoiced]],Tabla_Consulta_desde_QuickBooks_Data_64_Bit_QRemote[[#This Row],[SalesOrderLineInvoiced]]/MID(Tabla_Consulta_desde_QuickBooks_Data_64_Bit_QRemote[[#This Row],[SalesOrderLineUnitOfMeasure]],2,2)),0) -> 4 | U95: =+Tabla_Consulta_desde_QuickBooks_Data_64_Bit_QRemote[[#This Row],[facturado]]-Tabla_Consulta_desde_QuickBooks_Data_64_Bit_QRemote[[#This Row],[pide]] -> 0 | V95: =IF(Tabla_Consulta_desde_QuickBooks_Data_64_Bit_QRemote[[#This Row],[diferecia]]=0,"ok","diferen") -> ok | W95: =IFERROR(INDEX(um!A:C,MATCH(Tabla_Consulta_desde_QuickBooks_Data_64_Bit_QRemote[[#This Row],[SalesOrderLineItemRefFullName]],um!A:A,0),3),"") -> X12 | X95: =IFERROR(IF(OR(Tabla_Consulta_desde_QuickBooks_Data_64_Bit_QRemote[[#This Row],[SalesOrderLineUnitOfMeasure]]="UN",Tabla_Consulta_desde_QuickBooks_Data_64_Bit_QRemote[[#This Row],[SalesOrderLineUnitOfMeasure]]=Tabla_Consulta_desde_QuickBooks_Data_64_Bit_QRemote[[#This Row],[U/M]]),"","ERROR"),"") ->  | Y95: =+WEEKNUM(Tabla_Consulta_desde_QuickBooks_Data_64_Bit_QRemote[[#This Row],[TxnDate]]) -> 23 | Z95: =+Tabla_Consulta_desde_QuickBooks_Data_64_Bit_QRemote[[#This Row],[SalesOrderLineRate]]*Tabla_Consulta_desde_QuickBooks_Data_64_Bit_QRemote[[#This Row],[SalesOrderLineInvoiced]] -> 410.88 | AA95: =+IFERROR(IF(Tabla_Consulta_desde_QuickBooks_Data_64_Bit_QRemote[[#This Row],[CustomerRefFullName]]="GRUVALCORP SA",VLOOKUP(Tabla_Consulta_desde_QuickBooks_Data_64_Bit_QRemote[[#This Row],[SalesOrderLineItemRefFullName]],Hoja1!A:E,5,FALSE),"")*-Tabla_Consulta_desde_QuickBooks_Data_64_Bit_QRemote[[#This Row],[SalesOrderLineAmount]],"") ->  | AB95: =IF(COUNTIF(wms!E:E,Tabla_Consulta_desde_QuickBooks_Data_64_Bit_QRemote[[#This Row],[RefNumber]])>0,"OK","FALTA") -> OK
A96: 2025-06-02 | B96: 29081 | C96: ALIDULCAF S.A.S. | D96: DULCREMO ENVIAR MANABI POR ENETSA | E96: 2 | F96: 705424000352 | G96: P.T:110608 | H96: JALAPEÑO ROJOS Y VERDES OLE 370G | I96: Bodega Producto Terminado | J96: 12 | K96: X12 | L96: 3.18 | M96: 38.16 | N96: UNIDAD SALSA | O96: 12 | P96: 452.54 | Q96: 519.9 | R96: IVA EN VENTAS 15% | S96: =IFERROR(IF(Tabla_Consulta_desde_QuickBooks_Data_64_Bit_QRemote[[#This Row],[SalesOrderLineUnitOfMeasure]]="un",Tabla_Consulta_desde_QuickBooks_Data_64_Bit_QRemote[[#This Row],[SalesOrderLineQuantity]],Tabla_Consulta_desde_QuickBooks_Data_64_Bit_QRemote[[#This Row],[SalesOrderLineQuantity]]/MID(Tabla_Consulta_desde_QuickBooks_Data_64_Bit_QRemote[[#This Row],[SalesOrderLineUnitOfMeasure]],2,2)),0) -> 1 | T96: =IFERROR(IF(Tabla_Consulta_desde_QuickBooks_Data_64_Bit_QRemote[[#This Row],[SalesOrderLineUnitOfMeasure]]="un",Tabla_Consulta_desde_QuickBooks_Data_64_Bit_QRemote[[#This Row],[SalesOrderLineInvoiced]],Tabla_Consulta_desde_QuickBooks_Data_64_Bit_QRemote[[#This Row],[SalesOrderLineInvoiced]]/MID(Tabla_Consulta_desde_QuickBooks_Data_64_Bit_QRemote[[#This Row],[SalesOrderLineUnitOfMeasure]],2,2)),0) -> 1 | U96: =+Tabla_Consulta_desde_QuickBooks_Data_64_Bit_QRemote[[#This Row],[facturado]]-Tabla_Consulta_desde_QuickBooks_Data_64_Bit_QRemote[[#This Row],[pide]] -> 0 | V96: =IF(Tabla_Consulta_desde_QuickBooks_Data_64_Bit_QRemote[[#This Row],[diferecia]]=0,"ok","diferen") -> ok | W96: =IFERROR(INDEX(um!A:C,MATCH(Tabla_Consulta_desde_QuickBooks_Data_64_Bit_QRemote[[#This Row],[SalesOrderLineItemRefFullName]],um!A:A,0),3),"") -> X12 | X96: =IFERROR(IF(OR(Tabla_Consulta_desde_QuickBooks_Data_64_Bit_QRemote[[#This Row],[SalesOrderLineUnitOfMeasure]]="UN",Tabla_Consulta_desde_QuickBooks_Data_64_Bit_QRemote[[#This Row],[SalesOrderLineUnitOfMeasure]]=Tabla_Consulta_desde_QuickBooks_Data_64_Bit_QRemote[[#This Row],[U/M]]),"","ERROR"),"") ->  | Y96: =+WEEKNUM(Tabla_Consulta_desde_QuickBooks_Data_64_Bit_QRemote[[#This Row],[TxnDate]]) -> 23 | Z96: =+Tabla_Consulta_desde_QuickBooks_Data_64_Bit_QRemote[[#This Row],[SalesOrderLineRate]]*Tabla_Consulta_desde_QuickBooks_Data_64_Bit_QRemote[[#This Row],[SalesOrderLineInvoiced]] -> 38.16 | AA96: =+IFERROR(IF(Tabla_Consulta_desde_QuickBooks_Data_64_Bit_QRemote[[#This Row],[CustomerRefFullName]]="GRUVALCORP SA",VLOOKUP(Tabla_Consulta_desde_QuickBooks_Data_64_Bit_QRemote[[#This Row],[SalesOrderLineItemRefFullName]],Hoja1!A:E,5,FALSE),"")*-Tabla_Consulta_desde_QuickBooks_Data_64_Bit_QRemote[[#This Row],[SalesOrderLineAmount]],"") ->  | AB96: =IF(COUNTIF(wms!E:E,Tabla_Consulta_desde_QuickBooks_Data_64_Bit_QRemote[[#This Row],[RefNumber]])>0,"OK","FALTA") -> OK
A97: 2025-06-02 | B97: 29081 | C97: ALIDULCAF S.A.S. | D97: DULCREMO ENVIAR MANABI POR ENETSA | E97: 3 | F97: FLETE MERCADERIA | G97: SERV:310:LOG - Flete Mercaderia | H97: LOG - Flete Mercaderia | L97: 3.5 | M97: 3.5 | O97: 1 | P97: 452.54 | Q97: 519.9 | R97: IVA EN VENTAS 15% | S97: =IFERROR(IF(Tabla_Consulta_desde_QuickBooks_Data_64_Bit_QRemote[[#This Row],[SalesOrderLineUnitOfMeasure]]="un",Tabla_Consulta_desde_QuickBooks_Data_64_Bit_QRemote[[#This Row],[SalesOrderLineQuantity]],Tabla_Consulta_desde_QuickBooks_Data_64_Bit_QRemote[[#This Row],[SalesOrderLineQuantity]]/MID(Tabla_Consulta_desde_QuickBooks_Data_64_Bit_QRemote[[#This Row],[SalesOrderLineUnitOfMeasure]],2,2)),0) -> 0 | T97: =IFERROR(IF(Tabla_Consulta_desde_QuickBooks_Data_64_Bit_QRemote[[#This Row],[SalesOrderLineUnitOfMeasure]]="un",Tabla_Consulta_desde_QuickBooks_Data_64_Bit_QRemote[[#This Row],[SalesOrderLineInvoiced]],Tabla_Consulta_desde_QuickBooks_Data_64_Bit_QRemote[[#This Row],[SalesOrderLineInvoiced]]/MID(Tabla_Consulta_desde_QuickBooks_Data_64_Bit_QRemote[[#This Row],[SalesOrderLineUnitOfMeasure]],2,2)),0) -> 0 | U97: =+Tabla_Consulta_desde_QuickBooks_Data_64_Bit_QRemote[[#This Row],[facturado]]-Tabla_Consulta_desde_QuickBooks_Data_64_Bit_QRemote[[#This Row],[pide]] -> 0 | V97: =IF(Tabla_Consulta_desde_QuickBooks_Data_64_Bit_QRemote[[#This Row],[diferecia]]=0,"ok","diferen") -> ok | W97: =IFERROR(INDEX(um!A:C,MATCH(Tabla_Consulta_desde_QuickBooks_Data_64_Bit_QRemote[[#This Row],[SalesOrderLineItemRefFullName]],um!A:A,0),3),"") ->  | X97: =IFERROR(IF(OR(Tabla_Consulta_desde_QuickBooks_Data_64_Bit_QRemote[[#This Row],[SalesOrderLineUnitOfMeasure]]="UN",Tabla_Consulta_desde_QuickBooks_Data_64_Bit_QRemote[[#This Row],[SalesOrderLineUnitOfMeasure]]=Tabla_Consulta_desde_QuickBooks_Data_64_Bit_QRemote[[#This Row],[U/M]]),"","ERROR"),"") ->  | Y97: =+WEEKNUM(Tabla_Consulta_desde_QuickBooks_Data_64_Bit_QRemote[[#This Row],[TxnDate]]) -> 23 | Z97: =+Tabla_Consulta_desde_QuickBooks_Data_64_Bit_QRemote[[#This Row],[SalesOrderLineRate]]*Tabla_Consulta_desde_QuickBooks_Data_64_Bit_QRemote[[#This Row],[SalesOrderLineInvoiced]] -> 3.5 | AA97: =+IFERROR(IF(Tabla_Consulta_desde_QuickBooks_Data_64_Bit_QRemote[[#This Row],[CustomerRefFullName]]="GRUVALCORP SA",VLOOKUP(Tabla_Consulta_desde_QuickBooks_Data_64_Bit_QRemote[[#This Row],[SalesOrderLineItemRefFullName]],Hoja1!A:E,5,FALSE),"")*-Tabla_Consulta_desde_QuickBooks_Data_64_Bit_QRemote[[#This Row],[SalesOrderLineAmount]],"") ->  | AB97: =IF(COUNTIF(wms!E:E,Tabla_Consulta_desde_QuickBooks_Data_64_Bit_QRemote[[#This Row],[RefNumber]])>0,"OK","FALTA") -> OK
A98: 2025-06-02 | B98: 29081 | C98: ALIDULCAF S.A.S. | D98: DULCREMO ENVIAR MANABI POR ENETSA | E98: 4 | G98: INFOADICIONAL | H98: DULCREMO ENVIAR MANABI POR ENETSA OC10534 | L98: 0 | M98: 0 | O98: 1 | P98: 452.54 | Q98: 519.9 | R98: IVA EN VENTAS 15% | S98: =IFERROR(IF(Tabla_Consulta_desde_QuickBooks_Data_64_Bit_QRemote[[#This Row],[SalesOrderLineUnitOfMeasure]]="un",Tabla_Consulta_desde_QuickBooks_Data_64_Bit_QRemote[[#This Row],[SalesOrderLineQuantity]],Tabla_Consulta_desde_QuickBooks_Data_64_Bit_QRemote[[#This Row],[SalesOrderLineQuantity]]/MID(Tabla_Consulta_desde_QuickBooks_Data_64_Bit_QRemote[[#This Row],[SalesOrderLineUnitOfMeasure]],2,2)),0) -> 0 | T98: =IFERROR(IF(Tabla_Consulta_desde_QuickBooks_Data_64_Bit_QRemote[[#This Row],[SalesOrderLineUnitOfMeasure]]="un",Tabla_Consulta_desde_QuickBooks_Data_64_Bit_QRemote[[#This Row],[SalesOrderLineInvoiced]],Tabla_Consulta_desde_QuickBooks_Data_64_Bit_QRemote[[#This Row],[SalesOrderLineInvoiced]]/MID(Tabla_Consulta_desde_QuickBooks_Data_64_Bit_QRemote[[#This Row],[SalesOrderLineUnitOfMeasure]],2,2)),0) -> 0 | U98: =+Tabla_Consulta_desde_QuickBooks_Data_64_Bit_QRemote[[#This Row],[facturado]]-Tabla_Consulta_desde_QuickBooks_Data_64_Bit_QRemote[[#This Row],[pide]] -> 0 | V98: =IF(Tabla_Consulta_desde_QuickBooks_Data_64_Bit_QRemote[[#This Row],[diferecia]]=0,"ok","diferen") -> ok | W98: =IFERROR(INDEX(um!A:C,MATCH(Tabla_Consulta_desde_QuickBooks_Data_64_Bit_QRemote[[#This Row],[SalesOrderLineItemRefFullName]],um!A:A,0),3),"") ->  | X98: =IFERROR(IF(OR(Tabla_Consulta_desde_QuickBooks_Data_64_Bit_QRemote[[#This Row],[SalesOrderLineUnitOfMeasure]]="UN",Tabla_Consulta_desde_QuickBooks_Data_64_Bit_QRemote[[#This Row],[SalesOrderLineUnitOfMeasure]]=Tabla_Consulta_desde_QuickBooks_Data_64_Bit_QRemote[[#This Row],[U/M]]),"","ERROR"),"") ->  | Y98: =+WEEKNUM(Tabla_Consulta_desde_QuickBooks_Data_64_Bit_QRemote[[#This Row],[TxnDate]]) -> 23 | Z98: =+Tabla_Consulta_desde_QuickBooks_Data_64_Bit_QRemote[[#This Row],[SalesOrderLineRate]]*Tabla_Consulta_desde_QuickBooks_Data_64_Bit_QRemote[[#This Row],[SalesOrderLineInvoiced]] -> 0 | AA98: =+IFERROR(IF(Tabla_Consulta_desde_QuickBooks_Data_64_Bit_QRemote[[#This Row],[CustomerRefFullName]]="GRUVALCORP SA",VLOOKUP(Tabla_Consulta_desde_QuickBooks_Data_64_Bit_QRemote[[#This Row],[SalesOrderLineItemRefFullName]],Hoja1!A:E,5,FALSE),"")*-Tabla_Consulta_desde_QuickBooks_Data_64_Bit_QRemote[[#This Row],[SalesOrderLineAmount]],"") ->  | AB98: =IF(COUNTIF(wms!E:E,Tabla_Consulta_desde_QuickBooks_Data_64_Bit_QRemote[[#This Row],[RefNumber]])>0,"OK","FALTA") -> OK
A99: 2025-06-02 | B99: 29082 | C99: RUKITO S.A.S. | D99: SOLICITUD OLE PREGO | E99: 1 | F99: 7862112520738 | G99: P.T:110309 | H99: SALSA BBQ ORIGINAL OLE 4100G | I99: Bodega Producto Terminado | J99: 90 | K99: UN | L99: 10.85 | M99: 976.5 | N99: UNIDAD SALSA | O99: 0 | P99: 1054.94 | Q99: 1213.18 | R99: IVA EN VENTAS 15% | S99: =IFERROR(IF(Tabla_Consulta_desde_QuickBooks_Data_64_Bit_QRemote[[#This Row],[SalesOrderLineUnitOfMeasure]]="un",Tabla_Consulta_desde_QuickBooks_Data_64_Bit_QRemote[[#This Row],[SalesOrderLineQuantity]],Tabla_Consulta_desde_QuickBooks_Data_64_Bit_QRemote[[#This Row],[SalesOrderLineQuantity]]/MID(Tabla_Consulta_desde_QuickBooks_Data_64_Bit_QRemote[[#This Row],[SalesOrderLineUnitOfMeasure]],2,2)),0) -> 90 | T99: =IFERROR(IF(Tabla_Consulta_desde_QuickBooks_Data_64_Bit_QRemote[[#This Row],[SalesOrderLineUnitOfMeasure]]="un",Tabla_Consulta_desde_QuickBooks_Data_64_Bit_QRemote[[#This Row],[SalesOrderLineInvoiced]],Tabla_Consulta_desde_QuickBooks_Data_64_Bit_QRemote[[#This Row],[SalesOrderLineInvoiced]]/MID(Tabla_Consulta_desde_QuickBooks_Data_64_Bit_QRemote[[#This Row],[SalesOrderLineUnitOfMeasure]],2,2)),0) -> 0 | U99: =+Tabla_Consulta_desde_QuickBooks_Data_64_Bit_QRemote[[#This Row],[facturado]]-Tabla_Consulta_desde_QuickBooks_Data_64_Bit_QRemote[[#This Row],[pide]] -> -90 | V99: =IF(Tabla_Consulta_desde_QuickBooks_Data_64_Bit_QRemote[[#This Row],[diferecia]]=0,"ok","diferen") -> diferen | W99: =IFERROR(INDEX(um!A:C,MATCH(Tabla_Consulta_desde_QuickBooks_Data_64_Bit_QRemote[[#This Row],[SalesOrderLineItemRefFullName]],um!A:A,0),3),"") ->  | X99: =IFERROR(IF(OR(Tabla_Consulta_desde_QuickBooks_Data_64_Bit_QRemote[[#This Row],[SalesOrderLineUnitOfMeasure]]="UN",Tabla_Consulta_desde_QuickBooks_Data_64_Bit_QRemote[[#This Row],[SalesOrderLineUnitOfMeasure]]=Tabla_Consulta_desde_QuickBooks_Data_64_Bit_QRemote[[#This Row],[U/M]]),"","ERROR"),"") ->  | Y99: =+WEEKNUM(Tabla_Consulta_desde_QuickBooks_Data_64_Bit_QRemote[[#This Row],[TxnDate]]) -> 23 | Z99: =+Tabla_Consulta_desde_QuickBooks_Data_64_Bit_QRemote[[#This Row],[SalesOrderLineRate]]*Tabla_Consulta_desde_QuickBooks_Data_64_Bit_QRemote[[#This Row],[SalesOrderLineInvoiced]] -> 0 | AA99: =+IFERROR(IF(Tabla_Consulta_desde_QuickBooks_Data_64_Bit_QRemote[[#This Row],[CustomerRefFullName]]="GRUVALCORP SA",VLOOKUP(Tabla_Consulta_desde_QuickBooks_Data_64_Bit_QRemote[[#This Row],[SalesOrderLineItemRefFullName]],Hoja1!A:E,5,FALSE),"")*-Tabla_Consulta_desde_QuickBooks_Data_64_Bit_QRemote[[#This Row],[SalesOrderLineAmount]],"") ->  | AB99: =IF(COUNTIF(wms!E:E,Tabla_Consulta_desde_QuickBooks_Data_64_Bit_QRemote[[#This Row],[RefNumber]])>0,"OK","FALTA") -> OK
A100: 2025-06-02 | B100: 29082 | C100: RUKITO S.A.S. | D100: SOLICITUD OLE PREGO | E100: 2 | F100: 705424000116 | G100: P.T:110207 | H100: AJÍ CON MARACUYA OLE 185G | I100: Bodega Producto Terminado | J100: 24 | K100: X24 | L100: 1.34 | M100: 32.16 | N100: UNIDAD SALSA | O100: 0 | P100: 1054.94 | Q100: 1213.18 | R100: IVA EN VENTAS 15% | S100: =IFERROR(IF(Tabla_Consulta_desde_QuickBooks_Data_64_Bit_QRemote[[#This Row],[SalesOrderLineUnitOfMeasure]]="un",Tabla_Consulta_desde_QuickBooks_Data_64_Bit_QRemote[[#This Row],[SalesOrderLineQuantity]],Tabla_Consulta_desde_QuickBooks_Data_64_Bit_QRemote[[#This Row],[SalesOrderLineQuantity]]/MID(Tabla_Consulta_desde_QuickBooks_Data_64_Bit_QRemote[[#This Row],[SalesOrderLineUnitOfMeasure]],2,2)),0) -> 1 | T100: =IFERROR(IF(Tabla_Consulta_desde_QuickBooks_Data_64_Bit_QRemote[[#This Row],[SalesOrderLineUnitOfMeasure]]="un",Tabla_Consulta_desde_QuickBooks_Data_64_Bit_QRemote[[#This Row],[SalesOrderLineInvoiced]],Tabla_Consulta_desde_QuickBooks_Data_64_Bit_QRemote[[#This Row],[SalesOrderLineInvoiced]]/MID(Tabla_Consulta_desde_QuickBooks_Data_64_Bit_QRemote[[#This Row],[SalesOrderLineUnitOfMeasure]],2,2)),0) -> 0 | U100: =+Tabla_Consulta_desde_QuickBooks_Data_64_Bit_QRemote[[#This Row],[facturado]]-Tabla_Consulta_desde_QuickBooks_Data_64_Bit_QRemote[[#This Row],[pide]] -> -1 | V100: =IF(Tabla_Consulta_desde_QuickBooks_Data_64_Bit_QRemote[[#This Row],[diferecia]]=0,"ok","diferen") -> diferen | W100: =IFERROR(INDEX(um!A:C,MATCH(Tabla_Consulta_desde_QuickBooks_Data_64_Bit_QRemote[[#This Row],[SalesOrderLineItemRefFullName]],um!A:A,0),3),"") -> X24 | X100: =IFERROR(IF(OR(Tabla_Consulta_desde_QuickBooks_Data_64_Bit_QRemote[[#This Row],[SalesOrderLineUnitOfMeasure]]="UN",Tabla_Consulta_desde_QuickBooks_Data_64_Bit_QRemote[[#This Row],[SalesOrderLineUnitOfMeasure]]=Tabla_Consulta_desde_QuickBooks_Data_64_Bit_QRemote[[#This Row],[U/M]]),"","ERROR"),"") ->  | Y100: =+WEEKNUM(Tabla_Consulta_desde_QuickBooks_Data_64_Bit_QRemote[[#This Row],[TxnDate]]) -> 23 | Z100: =+Tabla_Consulta_desde_QuickBooks_Data_64_Bit_QRemote[[#This Row],[SalesOrderLineRate]]*Tabla_Consulta_desde_QuickBooks_Data_64_Bit_QRemote[[#This Row],[SalesOrderLineInvoiced]] -> 0 | AA100: =+IFERROR(IF(Tabla_Consulta_desde_QuickBooks_Data_64_Bit_QRemote[[#This Row],[CustomerRefFullName]]="GRUVALCORP SA",VLOOKUP(Tabla_Consulta_desde_QuickBooks_Data_64_Bit_QRemote[[#This Row],[SalesOrderLineItemRefFullName]],Hoja1!A:E,5,FALSE),"")*-Tabla_Consulta_desde_QuickBooks_Data_64_Bit_QRemote[[#This Row],[SalesOrderLineAmount]],"") ->  | AB100: =IF(COUNTIF(wms!E:E,Tabla_Consulta_desde_QuickBooks_Data_64_Bit_QRemote[[#This Row],[RefNumber]])>0,"OK","FALTA") -> OK
A101: 2025-06-02 | B101: 29082 | C101: RUKITO S.A.S. | D101: SOLICITUD OLE PREGO | E101: 3 | F101: 7862112520691 | G101: P.T:110221 | H101: AJÍ CON TOMATE DE ÁRBOL OLE 4100G | I101: Bodega Producto Terminado | J101: 4 | K101: UN | L101: 11.57 | M101: 46.28 | N101: UNIDAD SALSA | O101: 0 | P101: 1054.94 | Q101: 1213.18 | R101: IVA EN VENTAS 15% | S101: =IFERROR(IF(Tabla_Consulta_desde_QuickBooks_Data_64_Bit_QRemote[[#This Row],[SalesOrderLineUnitOfMeasure]]="un",Tabla_Consulta_desde_QuickBooks_Data_64_Bit_QRemote[[#This Row],[SalesOrderLineQuantity]],Tabla_Consulta_desde_QuickBooks_Data_64_Bit_QRemote[[#This Row],[SalesOrderLineQuantity]]/MID(Tabla_Consulta_desde_QuickBooks_Data_64_Bit_QRemote[[#This Row],[SalesOrderLineUnitOfMeasure]],2,2)),0) -> 4 | T101: =IFERROR(IF(Tabla_Consulta_desde_QuickBooks_Data_64_Bit_QRemote[[#This Row],[SalesOrderLineUnitOfMeasure]]="un",Tabla_Consulta_desde_QuickBooks_Data_64_Bit_QRemote[[#This Row],[SalesOrderLineInvoiced]],Tabla_Consulta_desde_QuickBooks_Data_64_Bit_QRemote[[#This Row],[SalesOrderLineInvoiced]]/MID(Tabla_Consulta_desde_QuickBooks_Data_64_Bit_QRemote[[#This Row],[SalesOrderLineUnitOfMeasure]],2,2)),0) -> 0 | U101: =+Tabla_Consulta_desde_QuickBooks_Data_64_Bit_QRemote[[#This Row],[facturado]]-Tabla_Consulta_desde_QuickBooks_Data_64_Bit_QRemote[[#This Row],[pide]] -> -4 | V101: =IF(Tabla_Consulta_desde_QuickBooks_Data_64_Bit_QRemote[[#This Row],[diferecia]]=0,"ok","diferen") -> diferen | W101: =IFERROR(INDEX(um!A:C,MATCH(Tabla_Consulta_desde_QuickBooks_Data_64_Bit_QRemote[[#This Row],[SalesOrderLineItemRefFullName]],um!A:A,0),3),"") ->  | X101: =IFERROR(IF(OR(Tabla_Consulta_desde_QuickBooks_Data_64_Bit_QRemote[[#This Row],[SalesOrderLineUnitOfMeasure]]="UN",Tabla_Consulta_desde_QuickBooks_Data_64_Bit_QRemote[[#This Row],[SalesOrderLineUnitOfMeasure]]=Tabla_Consulta_desde_QuickBooks_Data_64_Bit_QRemote[[#This Row],[U/M]]),"","ERROR"),"") ->  | Y101: =+WEEKNUM(Tabla_Consulta_desde_QuickBooks_Data_64_Bit_QRemote[[#This Row],[TxnDate]]) -> 23 | Z101: =+Tabla_Consulta_desde_QuickBooks_Data_64_Bit_QRemote[[#This Row],[SalesOrderLineRate]]*Tabla_Consulta_desde_QuickBooks_Data_64_Bit_QRemote[[#This Row],[SalesOrderLineInvoiced]] -> 0 | AA101: =+IFERROR(IF(Tabla_Consulta_desde_QuickBooks_Data_64_Bit_QRemote[[#This Row],[CustomerRefFullName]]="GRUVALCORP SA",VLOOKUP(Tabla_Consulta_desde_QuickBooks_Data_64_Bit_QRemote[[#This Row],[SalesOrderLineItemRefFullName]],Hoja1!A:E,5,FALSE),"")*-Tabla_Consulta_desde_QuickBooks_Data_64_Bit_QRemote[[#This Row],[SalesOrderLineAmount]],"") ->  | AB101: =IF(COUNTIF(wms!E:E,Tabla_Consulta_desde_QuickBooks_Data_64_Bit_QRemote[[#This Row],[RefNumber]])>0,"OK","FALTA") -> OK
A102: 2025-06-02 | B102: 29082 | C102: RUKITO S.A.S. | D102: SOLICITUD OLE PREGO | E102: 4 | G102: INFOADICIONAL | H102: SOLICITUD OLE PREGO Andrea C Valencia Celular 0999901416 | L102: 0 | M102: 0 | O102: 0 | P102: 1054.94 | Q102: 1213.18 | R102: IVA EN VENTAS 15% | S102: =IFERROR(IF(Tabla_Consulta_desde_QuickBooks_Data_64_Bit_QRemote[[#This Row],[SalesOrderLineUnitOfMeasure]]="un",Tabla_Consulta_desde_QuickBooks_Data_64_Bit_QRemote[[#This Row],[SalesOrderLineQuantity]],Tabla_Consulta_desde_QuickBooks_Data_64_Bit_QRemote[[#This Row],[SalesOrderLineQuantity]]/MID(Tabla_Consulta_desde_QuickBooks_Data_64_Bit_QRemote[[#This Row],[SalesOrderLineUnitOfMeasure]],2,2)),0) -> 0 | T102: =IFERROR(IF(Tabla_Consulta_desde_QuickBooks_Data_64_Bit_QRemote[[#This Row],[SalesOrderLineUnitOfMeasure]]="un",Tabla_Consulta_desde_QuickBooks_Data_64_Bit_QRemote[[#This Row],[SalesOrderLineInvoiced]],Tabla_Consulta_desde_QuickBooks_Data_64_Bit_QRemote[[#This Row],[SalesOrderLineInvoiced]]/MID(Tabla_Consulta_desde_QuickBooks_Data_64_Bit_QRemote[[#This Row],[SalesOrderLineUnitOfMeasure]],2,2)),0) -> 0 | U102: =+Tabla_Consulta_desde_QuickBooks_Data_64_Bit_QRemote[[#This Row],[facturado]]-Tabla_Consulta_desde_QuickBooks_Data_64_Bit_QRemote[[#This Row],[pide]] -> 0 | V102: =IF(Tabla_Consulta_desde_QuickBooks_Data_64_Bit_QRemote[[#This Row],[diferecia]]=0,"ok","diferen") -> ok | W102: =IFERROR(INDEX(um!A:C,MATCH(Tabla_Consulta_desde_QuickBooks_Data_64_Bit_QRemote[[#This Row],[SalesOrderLineItemRefFullName]],um!A:A,0),3),"") ->  | X102: =IFERROR(IF(OR(Tabla_Consulta_desde_QuickBooks_Data_64_Bit_QRemote[[#This Row],[SalesOrderLineUnitOfMeasure]]="UN",Tabla_Consulta_desde_QuickBooks_Data_64_Bit_QRemote[[#This Row],[SalesOrderLineUnitOfMeasure]]=Tabla_Consulta_desde_QuickBooks_Data_64_Bit_QRemote[[#This Row],[U/M]]),"","ERROR"),"") ->  | Y102: =+WEEKNUM(Tabla_Consulta_desde_QuickBooks_Data_64_Bit_QRemote[[#This Row],[TxnDate]]) -> 23 | Z102: =+Tabla_Consulta_desde_QuickBooks_Data_64_Bit_QRemote[[#This Row],[SalesOrderLineRate]]*Tabla_Consulta_desde_QuickBooks_Data_64_Bit_QRemote[[#This Row],[SalesOrderLineInvoiced]] -> 0 | AA102: =+IFERROR(IF(Tabla_Consulta_desde_QuickBooks_Data_64_Bit_QRemote[[#This Row],[CustomerRefFullName]]="GRUVALCORP SA",VLOOKUP(Tabla_Consulta_desde_QuickBooks_Data_64_Bit_QRemote[[#This Row],[SalesOrderLineItemRefFullName]],Hoja1!A:E,5,FALSE),"")*-Tabla_Consulta_desde_QuickBooks_Data_64_Bit_QRemote[[#This Row],[SalesOrderLineAmount]],"") ->  | AB102: =IF(COUNTIF(wms!E:E,Tabla_Consulta_desde_QuickBooks_Data_64_Bit_QRemote[[#This Row],[RefNumber]])>0,"OK","FALTA") -> OK
A103: 2025-06-02 | B103: 29083 | C103: PRODUCTOS OLE DEL ECUADOR PRODUCTOSOLE C | D103: Marketing-María Fernanda PROAÑO -Mariel | E103: 1 | F103: 7862112523258 | G103: PT:220142 | H103: TOTOPOS SABOR GUACAMOLE OLE 45G | I103: Bodega Producto Terminado | J103: 700 | K103: UN | L103: 0.23 | M103: 161 | N103: UNIDAD SNCKS | O103: 700 | P103: 161 | Q103: 185.15 | R103: IVA EN VENTAS 15% | S103: =IFERROR(IF(Tabla_Consulta_desde_QuickBooks_Data_64_Bit_QRemote[[#This Row],[SalesOrderLineUnitOfMeasure]]="un",Tabla_Consulta_desde_QuickBooks_Data_64_Bit_QRemote[[#This Row],[SalesOrderLineQuantity]],Tabla_Consulta_desde_QuickBooks_Data_64_Bit_QRemote[[#This Row],[SalesOrderLineQuantity]]/MID(Tabla_Consulta_desde_QuickBooks_Data_64_Bit_QRemote[[#This Row],[SalesOrderLineUnitOfMeasure]],2,2)),0) -> 700 | T103: =IFERROR(IF(Tabla_Consulta_desde_QuickBooks_Data_64_Bit_QRemote[[#This Row],[SalesOrderLineUnitOfMeasure]]="un",Tabla_Consulta_desde_QuickBooks_Data_64_Bit_QRemote[[#This Row],[SalesOrderLineInvoiced]],Tabla_Consulta_desde_QuickBooks_Data_64_Bit_QRemote[[#This Row],[SalesOrderLineInvoiced]]/MID(Tabla_Consulta_desde_QuickBooks_Data_64_Bit_QRemote[[#This Row],[SalesOrderLineUnitOfMeasure]],2,2)),0) -> 700 | U103: =+Tabla_Consulta_desde_QuickBooks_Data_64_Bit_QRemote[[#This Row],[facturado]]-Tabla_Consulta_desde_QuickBooks_Data_64_Bit_QRemote[[#This Row],[pide]] -> 0 | V103: =IF(Tabla_Consulta_desde_QuickBooks_Data_64_Bit_QRemote[[#This Row],[diferecia]]=0,"ok","diferen") -> ok | W103: =IFERROR(INDEX(um!A:C,MATCH(Tabla_Consulta_desde_QuickBooks_Data_64_Bit_QRemote[[#This Row],[SalesOrderLineItemRefFullName]],um!A:A,0),3),"") -> X30 | X103: =IFERROR(IF(OR(Tabla_Consulta_desde_QuickBooks_Data_64_Bit_QRemote[[#This Row],[SalesOrderLineUnitOfMeasure]]="UN",Tabla_Consulta_desde_QuickBooks_Data_64_Bit_QRemote[[#This Row],[SalesOrderLineUnitOfMeasure]]=Tabla_Consulta_desde_QuickBooks_Data_64_Bit_QRemote[[#This Row],[U/M]]),"","ERROR"),"") ->  | Y103: =+WEEKNUM(Tabla_Consulta_desde_QuickBooks_Data_64_Bit_QRemote[[#This Row],[TxnDate]]) -> 23 | Z103: =+Tabla_Consulta_desde_QuickBooks_Data_64_Bit_QRemote[[#This Row],[SalesOrderLineRate]]*Tabla_Consulta_desde_QuickBooks_Data_64_Bit_QRemote[[#This Row],[SalesOrderLineInvoiced]] -> 161 | AA103: =+IFERROR(IF(Tabla_Consulta_desde_QuickBooks_Data_64_Bit_QRemote[[#This Row],[CustomerRefFullName]]="GRUVALCORP SA",VLOOKUP(Tabla_Consulta_desde_QuickBooks_Data_64_Bit_QRemote[[#This Row],[SalesOrderLineItemRefFullName]],Hoja1!A:E,5,FALSE),"")*-Tabla_Consulta_desde_QuickBooks_Data_64_Bit_QRemote[[#This Row],[SalesOrderLineAmount]],"") ->  | AB103: =IF(COUNTIF(wms!E:E,Tabla_Consulta_desde_QuickBooks_Data_64_Bit_QRemote[[#This Row],[RefNumber]])>0,"OK","FALTA") -> OK
A104: 2025-06-02 | B104: 29083 | C104: PRODUCTOS OLE DEL ECUADOR PRODUCTOSOLE C | D104: Marketing-María Fernanda PROAÑO -Mariel | E104: 2 | G104: INFOADICIONAL | H104: Marketing-María Fernanda PROAÑO -Mariel Trediciones Cia. Ltda (RUTA COLEGIAL) Plaza del Rancho local # 45 Miravalle - Tanda 9:00- 1:30 / 3:00- 5:00 0996293019 | L104: 0 | M104: 0 | O104: 1 | P104: 161 | Q104: 185.15 | R104: IVA EN VENTAS 15% | S104: =IFERROR(IF(Tabla_Consulta_desde_QuickBooks_Data_64_Bit_QRemote[[#This Row],[SalesOrderLineUnitOfMeasure]]="un",Tabla_Consulta_desde_QuickBooks_Data_64_Bit_QRemote[[#This Row],[SalesOrderLineQuantity]],Tabla_Consulta_desde_QuickBooks_Data_64_Bit_QRemote[[#This Row],[SalesOrderLineQuantity]]/MID(Tabla_Consulta_desde_QuickBooks_Data_64_Bit_QRemote[[#This Row],[SalesOrderLineUnitOfMeasure]],2,2)),0) -> 0 | T104: =IFERROR(IF(Tabla_Consulta_desde_QuickBooks_Data_64_Bit_QRemote[[#This Row],[SalesOrderLineUnitOfMeasure]]="un",Tabla_Consulta_desde_QuickBooks_Data_64_Bit_QRemote[[#This Row],[SalesOrderLineInvoiced]],Tabla_Consulta_desde_QuickBooks_Data_64_Bit_QRemote[[#This Row],[SalesOrderLineInvoiced]]/MID(Tabla_Consulta_desde_QuickBooks_Data_64_Bit_QRemote[[#This Row],[SalesOrderLineUnitOfMeasure]],2,2)),0) -> 0 | U104: =+Tabla_Consulta_desde_QuickBooks_Data_64_Bit_QRemote[[#This Row],[facturado]]-Tabla_Consulta_desde_QuickBooks_Data_64_Bit_QRemote[[#This Row],[pide]] -> 0 | V104: =IF(Tabla_Consulta_desde_QuickBooks_Data_64_Bit_QRemote[[#This Row],[diferecia]]=0,"ok","diferen") -> ok | W104: =IFERROR(INDEX(um!A:C,MATCH(Tabla_Consulta_desde_QuickBooks_Data_64_Bit_QRemote[[#This Row],[SalesOrderLineItemRefFullName]],um!A:A,0),3),"") ->  | X104: =IFERROR(IF(OR(Tabla_Consulta_desde_QuickBooks_Data_64_Bit_QRemote[[#This Row],[SalesOrderLineUnitOfMeasure]]="UN",Tabla_Consulta_desde_QuickBooks_Data_64_Bit_QRemote[[#This Row],[SalesOrderLineUnitOfMeasure]]=Tabla_Consulta_desde_QuickBooks_Data_64_Bit_QRemote[[#This Row],[U/M]]),"","ERROR"),"") ->  | Y104: =+WEEKNUM(Tabla_Consulta_desde_QuickBooks_Data_64_Bit_QRemote[[#This Row],[TxnDate]]) -> 23 | Z104: =+Tabla_Consulta_desde_QuickBooks_Data_64_Bit_QRemote[[#This Row],[SalesOrderLineRate]]*Tabla_Consulta_desde_QuickBooks_Data_64_Bit_QRemote[[#This Row],[SalesOrderLineInvoiced]] -> 0 | AA104: =+IFERROR(IF(Tabla_Consulta_desde_QuickBooks_Data_64_Bit_QRemote[[#This Row],[CustomerRefFullName]]="GRUVALCORP SA",VLOOKUP(Tabla_Consulta_desde_QuickBooks_Data_64_Bit_QRemote[[#This Row],[SalesOrderLineItemRefFullName]],Hoja1!A:E,5,FALSE),"")*-Tabla_Consulta_desde_QuickBooks_Data_64_Bit_QRemote[[#This Row],[SalesOrderLineAmount]],"") ->  | AB104: =IF(COUNTIF(wms!E:E,Tabla_Consulta_desde_QuickBooks_Data_64_Bit_QRemote[[#This Row],[RefNumber]])>0,"OK","FALTA") -> OK
A105: 2025-06-02 | B105: 29084 | C105: PRODUCTOS OLE DEL ECUADOR PRODUCTOSOLE C | D105: Marketing-CAPEX -Mariel | E105: 1 | F105: 705424000116 | G105: P.T:110207 | H105: AJÍ CON MARACUYA OLE 185G | I105: Bodega Producto Terminado | J105: 5 | K105: UN | L105: 0.96 | M105: 4.8 | N105: UNIDAD SALSA | O105: 5 | P105: 83.9 | Q105: 96.49 | R105: IVA EN VENTAS 15% | S105: =IFERROR(IF(Tabla_Consulta_desde_QuickBooks_Data_64_Bit_QRemote[[#This Row],[SalesOrderLineUnitOfMeasure]]="un",Tabla_Consulta_desde_QuickBooks_Data_64_Bit_QRemote[[#This Row],[SalesOrderLineQuantity]],Tabla_Consulta_desde_QuickBooks_Data_64_Bit_QRemote[[#This Row],[SalesOrderLineQuantity]]/MID(Tabla_Consulta_desde_QuickBooks_Data_64_Bit_QRemote[[#This Row],[SalesOrderLineUnitOfMeasure]],2,2)),0) -> 5 | T105: =IFERROR(IF(Tabla_Consulta_desde_QuickBooks_Data_64_Bit_QRemote[[#This Row],[SalesOrderLineUnitOfMeasure]]="un",Tabla_Consulta_desde_QuickBooks_Data_64_Bit_QRemote[[#This Row],[SalesOrderLineInvoiced]],Tabla_Consulta_desde_QuickBooks_Data_64_Bit_QRemote[[#This Row],[SalesOrderLineInvoiced]]/MID(Tabla_Consulta_desde_QuickBooks_Data_64_Bit_QRemote[[#This Row],[SalesOrderLineUnitOfMeasure]],2,2)),0) -> 5 | U105: =+Tabla_Consulta_desde_QuickBooks_Data_64_Bit_QRemote[[#This Row],[facturado]]-Tabla_Consulta_desde_QuickBooks_Data_64_Bit_QRemote[[#This Row],[pide]] -> 0 | V105: =IF(Tabla_Consulta_desde_QuickBooks_Data_64_Bit_QRemote[[#This Row],[diferecia]]=0,"ok","diferen") -> ok | W105: =IFERROR(INDEX(um!A:C,MATCH(Tabla_Consulta_desde_QuickBooks_Data_64_Bit_QRemote[[#This Row],[SalesOrderLineItemRefFullName]],um!A:A,0),3),"") -> X24 | X105: =IFERROR(IF(OR(Tabla_Consulta_desde_QuickBooks_Data_64_Bit_QRemote[[#This Row],[SalesOrderLineUnitOfMeasure]]="UN",Tabla_Consulta_desde_QuickBooks_Data_64_Bit_QRemote[[#This Row],[SalesOrderLineUnitOfMeasure]]=Tabla_Consulta_desde_QuickBooks_Data_64_Bit_QRemote[[#This Row],[U/M]]),"","ERROR"),"") ->  | Y105: =+WEEKNUM(Tabla_Consulta_desde_QuickBooks_Data_64_Bit_QRemote[[#This Row],[TxnDate]]) -> 23 | Z105: =+Tabla_Consulta_desde_QuickBooks_Data_64_Bit_QRemote[[#This Row],[SalesOrderLineRate]]*Tabla_Consulta_desde_QuickBooks_Data_64_Bit_QRemote[[#This Row],[SalesOrderLineInvoiced]] -> 4.8 | AA105: =+IFERROR(IF(Tabla_Consulta_desde_QuickBooks_Data_64_Bit_QRemote[[#This Row],[CustomerRefFullName]]="GRUVALCORP SA",VLOOKUP(Tabla_Consulta_desde_QuickBooks_Data_64_Bit_QRemote[[#This Row],[SalesOrderLineItemRefFullName]],Hoja1!A:E,5,FALSE),"")*-Tabla_Consulta_desde_QuickBooks_Data_64_Bit_QRemote[[#This Row],[SalesOrderLineAmount]],"") ->  | AB105: =IF(COUNTIF(wms!E:E,Tabla_Consulta_desde_QuickBooks_Data_64_Bit_QRemote[[#This Row],[RefNumber]])>0,"OK","FALTA") -> OK
A106: 2025-06-02 | B106: 29084 | C106: PRODUCTOS OLE DEL ECUADOR PRODUCTOSOLE C | D106: Marketing-CAPEX -Mariel | E106: 2 | F106: 7862112523227 | G106: P.T:110313 | H106: SALSA BBQ WHISKY Y MIEL OLE 430G | I106: Bodega Producto Terminado | J106: 5 | K106: UN | L106: 1.4 | M106: 7 | N106: UNIDAD SALSA | O106: 5 | P106: 83.9 | Q106: 96.49 | R106: IVA EN VENTAS 15% | S106: =IFERROR(IF(Tabla_Consulta_desde_QuickBooks_Data_64_Bit_QRemote[[#This Row],[SalesOrderLineUnitOfMeasure]]="un",Tabla_Consulta_desde_QuickBooks_Data_64_Bit_QRemote[[#This Row],[SalesOrderLineQuantity]],Tabla_Consulta_desde_QuickBooks_Data_64_Bit_QRemote[[#This Row],[SalesOrderLineQuantity]]/MID(Tabla_Consulta_desde_QuickBooks_Data_64_Bit_QRemote[[#This Row],[SalesOrderLineUnitOfMeasure]],2,2)),0) -> 5 | T106: =IFERROR(IF(Tabla_Consulta_desde_QuickBooks_Data_64_Bit_QRemote[[#This Row],[SalesOrderLineUnitOfMeasure]]="un",Tabla_Consulta_desde_QuickBooks_Data_64_Bit_QRemote[[#This Row],[SalesOrderLineInvoiced]],Tabla_Consulta_desde_QuickBooks_Data_64_Bit_QRemote[[#This Row],[SalesOrderLineInvoiced]]/MID(Tabla_Consulta_desde_QuickBooks_Data_64_Bit_QRemote[[#This Row],[SalesOrderLineUnitOfMeasure]],2,2)),0) -> 5 | U106: =+Tabla_Consulta_desde_QuickBooks_Data_64_Bit_QRemote[[#This Row],[facturado]]-Tabla_Consulta_desde_QuickBooks_Data_64_Bit_QRemote[[#This Row],[pide]] -> 0 | V106: =IF(Tabla_Consulta_desde_QuickBooks_Data_64_Bit_QRemote[[#This Row],[diferecia]]=0,"ok","diferen") -> ok | W106: =IFERROR(INDEX(um!A:C,MATCH(Tabla_Consulta_desde_QuickBooks_Data_64_Bit_QRemote[[#This Row],[SalesOrderLineItemRefFullName]],um!A:A,0),3),"") -> X12 | X106: =IFERROR(IF(OR(Tabla_Consulta_desde_QuickBooks_Data_64_Bit_QRemote[[#This Row],[SalesOrderLineUnitOfMeasure]]="UN",Tabla_Consulta_desde_QuickBooks_Data_64_Bit_QRemote[[#This Row],[SalesOrderLineUnitOfMeasure]]=Tabla_Consulta_desde_QuickBooks_Data_64_Bit_QRemote[[#This Row],[U/M]]),"","ERROR"),"") ->  | Y106: =+WEEKNUM(Tabla_Consulta_desde_QuickBooks_Data_64_Bit_QRemote[[#This Row],[TxnDate]]) -> 23 | Z106: =+Tabla_Consulta_desde_QuickBooks_Data_64_Bit_QRemote[[#This Row],[SalesOrderLineRate]]*Tabla_Consulta_desde_QuickBooks_Data_64_Bit_QRemote[[#This Row],[SalesOrderLineInvoiced]] -> 7 | AA106: =+IFERROR(IF(Tabla_Consulta_desde_QuickBooks_Data_64_Bit_QRemote[[#This Row],[CustomerRefFullName]]="GRUVALCORP SA",VLOOKUP(Tabla_Consulta_desde_QuickBooks_Data_64_Bit_QRemote[[#This Row],[SalesOrderLineItemRefFullName]],Hoja1!A:E,5,FALSE),"")*-Tabla_Consulta_desde_QuickBooks_Data_64_Bit_QRemote[[#This Row],[SalesOrderLineAmount]],"") ->  | AB106: =IF(COUNTIF(wms!E:E,Tabla_Consulta_desde_QuickBooks_Data_64_Bit_QRemote[[#This Row],[RefNumber]])>0,"OK","FALTA") -> OK
A107: 2025-06-02 | B107: 29084 | C107: PRODUCTOS OLE DEL ECUADOR PRODUCTOSOLE C | D107: Marketing-CAPEX -Mariel | E107: 3 | F107: 7862112523234 | G107: P.T:110730 | H107: CHIMICHURRI HAWAIANO OLE 230G | I107: Bodega Producto Terminado | J107: 5 | K107: UN | L107: 1.47 | M107: 7.35 | N107: UNIDAD SALSA | O107: 5 | P107: 83.9 | Q107: 96.49 | R107: IVA EN VENTAS 15% | S107: =IFERROR(IF(Tabla_Consulta_desde_QuickBooks_Data_64_Bit_QRemote[[#This Row],[SalesOrderLineUnitOfMeasure]]="un",Tabla_Consulta_desde_QuickBooks_Data_64_Bit_QRemote[[#This Row],[SalesOrderLineQuantity]],Tabla_Consulta_desde_QuickBooks_Data_64_Bit_QRemote[[#This Row],[SalesOrderLineQuantity]]/MID(Tabla_Consulta_desde_QuickBooks_Data_64_Bit_QRemote[[#This Row],[SalesOrderLineUnitOfMeasure]],2,2)),0) -> 5 | T107: =IFERROR(IF(Tabla_Consulta_desde_QuickBooks_Data_64_Bit_QRemote[[#This Row],[SalesOrderLineUnitOfMeasure]]="un",Tabla_Consulta_desde_QuickBooks_Data_64_Bit_QRemote[[#This Row],[SalesOrderLineInvoiced]],Tabla_Consulta_desde_QuickBooks_Data_64_Bit_QRemote[[#This Row],[SalesOrderLineInvoiced]]/MID(Tabla_Consulta_desde_QuickBooks_Data_64_Bit_QRemote[[#This Row],[SalesOrderLineUnitOfMeasure]],2,2)),0) -> 5 | U107: =+Tabla_Consulta_desde_QuickBooks_Data_64_Bit_QRemote[[#This Row],[facturado]]-Tabla_Consulta_desde_QuickBooks_Data_64_Bit_QRemote[[#This Row],[pide]] -> 0 | V107: =IF(Tabla_Consulta_desde_QuickBooks_Data_64_Bit_QRemote[[#This Row],[diferecia]]=0,"ok","diferen") -> ok | W107: =IFERROR(INDEX(um!A:C,MATCH(Tabla_Consulta_desde_QuickBooks_Data_64_Bit_QRemote[[#This Row],[SalesOrderLineItemRefFullName]],um!A:A,0),3),"") -> X12 | X107: =IFERROR(IF(OR(Tabla_Consulta_desde_QuickBooks_Data_64_Bit_QRemote[[#This Row],[SalesOrderLineUnitOfMeasure]]="UN",Tabla_Consulta_desde_QuickBooks_Data_64_Bit_QRemote[[#This Row],[SalesOrderLineUnitOfMeasure]]=Tabla_Consulta_desde_QuickBooks_Data_64_Bit_QRemote[[#This Row],[U/M]]),"","ERROR"),"") ->  | Y107: =+WEEKNUM(Tabla_Consulta_desde_QuickBooks_Data_64_Bit_QRemote[[#This Row],[TxnDate]]) -> 23 | Z107: =+Tabla_Consulta_desde_QuickBooks_Data_64_Bit_QRemote[[#This Row],[SalesOrderLineRate]]*Tabla_Consulta_desde_QuickBooks_Data_64_Bit_QRemote[[#This Row],[SalesOrderLineInvoiced]] -> 7.35 | AA107: =+IFERROR(IF(Tabla_Consulta_desde_QuickBooks_Data_64_Bit_QRemote[[#This Row],[CustomerRefFullName]]="GRUVALCORP SA",VLOOKUP(Tabla_Consulta_desde_QuickBooks_Data_64_Bit_QRemote[[#This Row],[SalesOrderLineItemRefFullName]],Hoja1!A:E,5,FALSE),"")*-Tabla_Consulta_desde_QuickBooks_Data_64_Bit_QRemote[[#This Row],[SalesOrderLineAmount]],"") ->  | AB107: =IF(COUNTIF(wms!E:E,Tabla_Consulta_desde_QuickBooks_Data_64_Bit_QRemote[[#This Row],[RefNumber]])>0,"OK","FALTA") -> OK
A108: 2025-06-02 | B108: 29084 | C108: PRODUCTOS OLE DEL ECUADOR PRODUCTOSOLE C | D108: Marketing-CAPEX -Mariel | E108: 4 | F108: 7862112522985 | G108: P.T:110704 | H108: DIP DE FREJOL OLE 230G | I108: Bodega Producto Terminado | J108: 5 | K108: UN | L108: 1.02 | M108: 5.1 | N108: UNIDAD SALSA | O108: 5 | P108: 83.9 | Q108: 96.49 | R108: IVA EN VENTAS 15% | S108: =IFERROR(IF(Tabla_Consulta_desde_QuickBooks_Data_64_Bit_QRemote[[#This Row],[SalesOrderLineUnitOfMeasure]]="un",Tabla_Consulta_desde_QuickBooks_Data_64_Bit_QRemote[[#This Row],[SalesOrderLineQuantity]],Tabla_Consulta_desde_QuickBooks_Data_64_Bit_QRemote[[#This Row],[SalesOrderLineQuantity]]/MID(Tabla_Consulta_desde_QuickBooks_Data_64_Bit_QRemote[[#This Row],[SalesOrderLineUnitOfMeasure]],2,2)),0) -> 5 | T108: =IFERROR(IF(Tabla_Consulta_desde_QuickBooks_Data_64_Bit_QRemote[[#This Row],[SalesOrderLineUnitOfMeasure]]="un",Tabla_Consulta_desde_QuickBooks_Data_64_Bit_QRemote[[#This Row],[SalesOrderLineInvoiced]],Tabla_Consulta_desde_QuickBooks_Data_64_Bit_QRemote[[#This Row],[SalesOrderLineInvoiced]]/MID(Tabla_Consulta_desde_QuickBooks_Data_64_Bit_QRemote[[#This Row],[SalesOrderLineUnitOfMeasure]],2,2)),0) -> 5 | U108: =+Tabla_Consulta_desde_QuickBooks_Data_64_Bit_QRemote[[#This Row],[facturado]]-Tabla_Consulta_desde_QuickBooks_Data_64_Bit_QRemote[[#This Row],[pide]] -> 0 | V108: =IF(Tabla_Consulta_desde_QuickBooks_Data_64_Bit_QRemote[[#This Row],[diferecia]]=0,"ok","diferen") -> ok | W108: =IFERROR(INDEX(um!A:C,MATCH(Tabla_Consulta_desde_QuickBooks_Data_64_Bit_QRemote[[#This Row],[SalesOrderLineItemRefFullName]],um!A:A,0),3),"") -> X12 | X108: =IFERROR(IF(OR(Tabla_Consulta_desde_QuickBooks_Data_64_Bit_QRemote[[#This Row],[SalesOrderLineUnitOfMeasure]]="UN",Tabla_Consulta_desde_QuickBooks_Data_64_Bit_QRemote[[#This Row],[SalesOrderLineUnitOfMeasure]]=Tabla_Consulta_desde_QuickBooks_Data_64_Bit_QRemote[[#This Row],[U/M]]),"","ERROR"),"") ->  | Y108: =+WEEKNUM(Tabla_Consulta_desde_QuickBooks_Data_64_Bit_QRemote[[#This Row],[TxnDate]]) -> 23 | Z108: =+Tabla_Consulta_desde_QuickBooks_Data_64_Bit_QRemote[[#This Row],[SalesOrderLineRate]]*Tabla_Consulta_desde_QuickBooks_Data_64_Bit_QRemote[[#This Row],[SalesOrderLineInvoiced]] -> 5.1 | AA108: =+IFERROR(IF(Tabla_Consulta_desde_QuickBooks_Data_64_Bit_QRemote[[#This Row],[CustomerRefFullName]]="GRUVALCORP SA",VLOOKUP(Tabla_Consulta_desde_QuickBooks_Data_64_Bit_QRemote[[#This Row],[SalesOrderLineItemRefFullName]],Hoja1!A:E,5,FALSE),"")*-Tabla_Consulta_desde_QuickBooks_Data_64_Bit_QRemote[[#This Row],[SalesOrderLineAmount]],"") ->  | AB108: =IF(COUNTIF(wms!E:E,Tabla_Consulta_desde_QuickBooks_Data_64_Bit_QRemote[[#This Row],[RefNumber]])>0,"OK","FALTA") -> OK
A109: 2025-06-02 | B109: 29084 | C109: PRODUCTOS OLE DEL ECUADOR PRODUCTOSOLE C | D109: Marketing-CAPEX -Mariel | E109: 5 | F109: 7862112522725 | G109: P.T:110708 | H109: SALSA MARINARA OLE 300G | I109: Bodega Producto Terminado | J109: 5 | K109: UN | L109: 0.99 | M109: 4.95 | N109: UNIDAD SALSA | O109: 5 | P109: 83.9 | Q109: 96.49 | R109: IVA EN VENTAS 15% | S109: =IFERROR(IF(Tabla_Consulta_desde_QuickBooks_Data_64_Bit_QRemote[[#This Row],[SalesOrderLineUnitOfMeasure]]="un",Tabla_Consulta_desde_QuickBooks_Data_64_Bit_QRemote[[#This Row],[SalesOrderLineQuantity]],Tabla_Consulta_desde_QuickBooks_Data_64_Bit_QRemote[[#This Row],[SalesOrderLineQuantity]]/MID(Tabla_Consulta_desde_QuickBooks_Data_64_Bit_QRemote[[#This Row],[SalesOrderLineUnitOfMeasure]],2,2)),0) -> 5 | T109: =IFERROR(IF(Tabla_Consulta_desde_QuickBooks_Data_64_Bit_QRemote[[#This Row],[SalesOrderLineUnitOfMeasure]]="un",Tabla_Consulta_desde_QuickBooks_Data_64_Bit_QRemote[[#This Row],[SalesOrderLineInvoiced]],Tabla_Consulta_desde_QuickBooks_Data_64_Bit_QRemote[[#This Row],[SalesOrderLineInvoiced]]/MID(Tabla_Consulta_desde_QuickBooks_Data_64_Bit_QRemote[[#This Row],[SalesOrderLineUnitOfMeasure]],2,2)),0) -> 5 | U109: =+Tabla_Consulta_desde_QuickBooks_Data_64_Bit_QRemote[[#This Row],[facturado]]-Tabla_Consulta_desde_QuickBooks_Data_64_Bit_QRemote[[#This Row],[pide]] -> 0 | V109: =IF(Tabla_Consulta_desde_QuickBooks_Data_64_Bit_QRemote[[#This Row],[diferecia]]=0,"ok","diferen") -> ok | W109: =IFERROR(INDEX(um!A:C,MATCH(Tabla_Consulta_desde_QuickBooks_Data_64_Bit_QRemote[[#This Row],[SalesOrderLineItemRefFullName]],um!A:A,0),3),"") -> X12 | X109: =IFERROR(IF(OR(Tabla_Consulta_desde_QuickBooks_Data_64_Bit_QRemote[[#This Row],[SalesOrderLineUnitOfMeasure]]="UN",Tabla_Consulta_desde_QuickBooks_Data_64_Bit_QRemote[[#This Row],[SalesOrderLineUnitOfMeasure]]=Tabla_Consulta_desde_QuickBooks_Data_64_Bit_QRemote[[#This Row],[U/M]]),"","ERROR"),"") ->  | Y109: =+WEEKNUM(Tabla_Consulta_desde_QuickBooks_Data_64_Bit_QRemote[[#This Row],[TxnDate]]) -> 23 | Z109: =+Tabla_Consulta_desde_QuickBooks_Data_64_Bit_QRemote[[#This Row],[SalesOrderLineRate]]*Tabla_Consulta_desde_QuickBooks_Data_64_Bit_QRemote[[#This Row],[SalesOrderLineInvoiced]] -> 4.95 | AA109: =+IFERROR(IF(Tabla_Consulta_desde_QuickBooks_Data_64_Bit_QRemote[[#This Row],[CustomerRefFullName]]="GRUVALCORP SA",VLOOKUP(Tabla_Consulta_desde_QuickBooks_Data_64_Bit_QRemote[[#This Row],[SalesOrderLineItemRefFullName]],Hoja1!A:E,5,FALSE),"")*-Tabla_Consulta_desde_QuickBooks_Data_64_Bit_QRemote[[#This Row],[SalesOrderLineAmount]],"") ->  | AB109: =IF(COUNTIF(wms!E:E,Tabla_Consulta_desde_QuickBooks_Data_64_Bit_QRemote[[#This Row],[RefNumber]])>0,"OK","FALTA") -> OK
A110: 2025-06-02 | B110: 29084 | C110: PRODUCTOS OLE DEL ECUADOR PRODUCTOSOLE C | D110: Marketing-CAPEX -Mariel | E110: 6 | F110: 7862112523104 | G110: P.T:110804 | H110: SALSA CHAMOY OLE 275G | I110: Bodega Producto Terminado | J110: 5 | K110: UN | L110: 1.12 | M110: 5.6 | N110: UNIDAD SALSA | O110: 5 | P110: 83.9 | Q110: 96.49 | R110: IVA EN VENTAS 15% | S110: =IFERROR(IF(Tabla_Consulta_desde_QuickBooks_Data_64_Bit_QRemote[[#This Row],[SalesOrderLineUnitOfMeasure]]="un",Tabla_Consulta_desde_QuickBooks_Data_64_Bit_QRemote[[#This Row],[SalesOrderLineQuantity]],Tabla_Consulta_desde_QuickBooks_Data_64_Bit_QRemote[[#This Row],[SalesOrderLineQuantity]]/MID(Tabla_Consulta_desde_QuickBooks_Data_64_Bit_QRemote[[#This Row],[SalesOrderLineUnitOfMeasure]],2,2)),0) -> 5 | T110: =IFERROR(IF(Tabla_Consulta_desde_QuickBooks_Data_64_Bit_QRemote[[#This Row],[SalesOrderLineUnitOfMeasure]]="un",Tabla_Consulta_desde_QuickBooks_Data_64_Bit_QRemote[[#This Row],[SalesOrderLineInvoiced]],Tabla_Consulta_desde_QuickBooks_Data_64_Bit_QRemote[[#This Row],[SalesOrderLineInvoiced]]/MID(Tabla_Consulta_desde_QuickBooks_Data_64_Bit_QRemote[[#This Row],[SalesOrderLineUnitOfMeasure]],2,2)),0) -> 5 | U110: =+Tabla_Consulta_desde_QuickBooks_Data_64_Bit_QRemote[[#This Row],[facturado]]-Tabla_Consulta_desde_QuickBooks_Data_64_Bit_QRemote[[#This Row],[pide]] -> 0 | V110: =IF(Tabla_Consulta_desde_QuickBooks_Data_64_Bit_QRemote[[#This Row],[diferecia]]=0,"ok","diferen") -> ok | W110: =IFERROR(INDEX(um!A:C,MATCH(Tabla_Consulta_desde_QuickBooks_Data_64_Bit_QRemote[[#This Row],[SalesOrderLineItemRefFullName]],um!A:A,0),3),"") -> X12 | X110: =IFERROR(IF(OR(Tabla_Consulta_desde_QuickBooks_Data_64_Bit_QRemote[[#This Row],[SalesOrderLineUnitOfMeasure]]="UN",Tabla_Consulta_desde_QuickBooks_Data_64_Bit_QRemote[[#This Row],[SalesOrderLineUnitOfMeasure]]=Tabla_Consulta_desde_QuickBooks_Data_64_Bit_QRemote[[#This Row],[U/M]]),"","ERROR"),"") ->  | Y110: =+WEEKNUM(Tabla_Consulta_desde_QuickBooks_Data_64_Bit_QRemote[[#This Row],[TxnDate]]) -> 23 | Z110: =+Tabla_Consulta_desde_QuickBooks_Data_64_Bit_QRemote[[#This Row],[SalesOrderLineRate]]*Tabla_Consulta_desde_QuickBooks_Data_64_Bit_QRemote[[#This Row],[SalesOrderLineInvoiced]] -> 5.6 | AA110: =+IFERROR(IF(Tabla_Consulta_desde_QuickBooks_Data_64_Bit_QRemote[[#This Row],[CustomerRefFullName]]="GRUVALCORP SA",VLOOKUP(Tabla_Consulta_desde_QuickBooks_Data_64_Bit_QRemote[[#This Row],[SalesOrderLineItemRefFullName]],Hoja1!A:E,5,FALSE),"")*-Tabla_Consulta_desde_QuickBooks_Data_64_Bit_QRemote[[#This Row],[SalesOrderLineAmount]],"") ->  | AB110: =IF(COUNTIF(wms!E:E,Tabla_Consulta_desde_QuickBooks_Data_64_Bit_QRemote[[#This Row],[RefNumber]])>0,"OK","FALTA") -> OK
A111: 2025-06-02 | B111: 29084 | C111: PRODUCTOS OLE DEL ECUADOR PRODUCTOSOLE C | D111: Marketing-CAPEX -Mariel | E111: 7 | F111: 7862112522244 | G111: P.T:110736 | H111: TERIYAKI SALSA ASIATICA OLE 300G | I111: Bodega Producto Terminado | J111: 5 | K111: UN | L111: 1.34 | M111: 6.7 | N111: UNIDAD SALSA | O111: 5 | P111: 83.9 | Q111: 96.49 | R111: IVA EN VENTAS 15% | S111: =IFERROR(IF(Tabla_Consulta_desde_QuickBooks_Data_64_Bit_QRemote[[#This Row],[SalesOrderLineUnitOfMeasure]]="un",Tabla_Consulta_desde_QuickBooks_Data_64_Bit_QRemote[[#This Row],[SalesOrderLineQuantity]],Tabla_Consulta_desde_QuickBooks_Data_64_Bit_QRemote[[#This Row],[SalesOrderLineQuantity]]/MID(Tabla_Consulta_desde_QuickBooks_Data_64_Bit_QRemote[[#This Row],[SalesOrderLineUnitOfMeasure]],2,2)),0) -> 5 | T111: =IFERROR(IF(Tabla_Consulta_desde_QuickBooks_Data_64_Bit_QRemote[[#This Row],[SalesOrderLineUnitOfMeasure]]="un",Tabla_Consulta_desde_QuickBooks_Data_64_Bit_QRemote[[#This Row],[SalesOrderLineInvoiced]],Tabla_Consulta_desde_QuickBooks_Data_64_Bit_QRemote[[#This Row],[SalesOrderLineInvoiced]]/MID(Tabla_Consulta_desde_QuickBooks_Data_64_Bit_QRemote[[#This Row],[SalesOrderLineUnitOfMeasure]],2,2)),0) -> 5 | U111: =+Tabla_Consulta_desde_QuickBooks_Data_64_Bit_QRemote[[#This Row],[facturado]]-Tabla_Consulta_desde_QuickBooks_Data_64_Bit_QRemote[[#This Row],[pide]] -> 0 | V111: =IF(Tabla_Consulta_desde_QuickBooks_Data_64_Bit_QRemote[[#This Row],[diferecia]]=0,"ok","diferen") -> ok | W111: =IFERROR(INDEX(um!A:C,MATCH(Tabla_Consulta_desde_QuickBooks_Data_64_Bit_QRemote[[#This Row],[SalesOrderLineItemRefFullName]],um!A:A,0),3),"") -> X12 | X111: =IFERROR(IF(OR(Tabla_Consulta_desde_QuickBooks_Data_64_Bit_QRemote[[#This Row],[SalesOrderLineUnitOfMeasure]]="UN",Tabla_Consulta_desde_QuickBooks_Data_64_Bit_QRemote[[#This Row],[SalesOrderLineUnitOfMeasure]]=Tabla_Consulta_desde_QuickBooks_Data_64_Bit_QRemote[[#This Row],[U/M]]),"","ERROR"),"") ->  | Y111: =+WEEKNUM(Tabla_Consulta_desde_QuickBooks_Data_64_Bit_QRemote[[#This Row],[TxnDate]]) -> 23 | Z111: =+Tabla_Consulta_desde_QuickBooks_Data_64_Bit_QRemote[[#This Row],[SalesOrderLineRate]]*Tabla_Consulta_desde_QuickBooks_Data_64_Bit_QRemote[[#This Row],[SalesOrderLineInvoiced]] -> 6.7 | AA111: =+IFERROR(IF(Tabla_Consulta_desde_QuickBooks_Data_64_Bit_QRemote[[#This Row],[CustomerRefFullName]]="GRUVALCORP SA",VLOOKUP(Tabla_Consulta_desde_QuickBooks_Data_64_Bit_QRemote[[#This Row],[SalesOrderLineItemRefFullName]],Hoja1!A:E,5,FALSE),"")*-Tabla_Consulta_desde_QuickBooks_Data_64_Bit_QRemote[[#This Row],[SalesOrderLineAmount]],"") ->  | AB111: =IF(COUNTIF(wms!E:E,Tabla_Consulta_desde_QuickBooks_Data_64_Bit_QRemote[[#This Row],[RefNumber]])>0,"OK","FALTA") -> OK
A112: 2025-06-02 | B112: 29084 | C112: PRODUCTOS OLE DEL ECUADOR PRODUCTOSOLE C | D112: Marketing-CAPEX -Mariel | E112: 8 | F112: 7862112523128 | G112: P.T:311610 | H112: MIEL PICANTE OLE 350G | I112: Bodega Producto Terminado | J112: 5 | K112: UN | L112: 4 | M112: 20 | N112: UNIDAD SALSA | O112: 5 | P112: 83.9 | Q112: 96.49 | R112: IVA EN VENTAS 15% | S112: =IFERROR(IF(Tabla_Consulta_desde_QuickBooks_Data_64_Bit_QRemote[[#This Row],[SalesOrderLineUnitOfMeasure]]="un",Tabla_Consulta_desde_QuickBooks_Data_64_Bit_QRemote[[#This Row],[SalesOrderLineQuantity]],Tabla_Consulta_desde_QuickBooks_Data_64_Bit_QRemote[[#This Row],[SalesOrderLineQuantity]]/MID(Tabla_Consulta_desde_QuickBooks_Data_64_Bit_QRemote[[#This Row],[SalesOrderLineUnitOfMeasure]],2,2)),0) -> 5 | T112: =IFERROR(IF(Tabla_Consulta_desde_QuickBooks_Data_64_Bit_QRemote[[#This Row],[SalesOrderLineUnitOfMeasure]]="un",Tabla_Consulta_desde_QuickBooks_Data_64_Bit_QRemote[[#This Row],[SalesOrderLineInvoiced]],Tabla_Consulta_desde_QuickBooks_Data_64_Bit_QRemote[[#This Row],[SalesOrderLineInvoiced]]/MID(Tabla_Consulta_desde_QuickBooks_Data_64_Bit_QRemote[[#This Row],[SalesOrderLineUnitOfMeasure]],2,2)),0) -> 5 | U112: =+Tabla_Consulta_desde_QuickBooks_Data_64_Bit_QRemote[[#This Row],[facturado]]-Tabla_Consulta_desde_QuickBooks_Data_64_Bit_QRemote[[#This Row],[pide]] -> 0 | V112: =IF(Tabla_Consulta_desde_QuickBooks_Data_64_Bit_QRemote[[#This Row],[diferecia]]=0,"ok","diferen") -> ok | W112: =IFERROR(INDEX(um!A:C,MATCH(Tabla_Consulta_desde_QuickBooks_Data_64_Bit_QRemote[[#This Row],[SalesOrderLineItemRefFullName]],um!A:A,0),3),"") -> X12 | X112: =IFERROR(IF(OR(Tabla_Consulta_desde_QuickBooks_Data_64_Bit_QRemote[[#This Row],[SalesOrderLineUnitOfMeasure]]="UN",Tabla_Consulta_desde_QuickBooks_Data_64_Bit_QRemote[[#This Row],[SalesOrderLineUnitOfMeasure]]=Tabla_Consulta_desde_QuickBooks_Data_64_Bit_QRemote[[#This Row],[U/M]]),"","ERROR"),"") ->  | Y112: =+WEEKNUM(Tabla_Consulta_desde_QuickBooks_Data_64_Bit_QRemote[[#This Row],[TxnDate]]) -> 23 | Z112: =+Tabla_Consulta_desde_QuickBooks_Data_64_Bit_QRemote[[#This Row],[SalesOrderLineRate]]*Tabla_Consulta_desde_QuickBooks_Data_64_Bit_QRemote[[#This Row],[SalesOrderLineInvoiced]] -> 20 | AA112: =+IFERROR(IF(Tabla_Consulta_desde_QuickBooks_Data_64_Bit_QRemote[[#This Row],[CustomerRefFullName]]="GRUVALCORP SA",VLOOKUP(Tabla_Consulta_desde_QuickBooks_Data_64_Bit_QRemote[[#This Row],[SalesOrderLineItemRefFullName]],Hoja1!A:E,5,FALSE),"")*-Tabla_Consulta_desde_QuickBooks_Data_64_Bit_QRemote[[#This Row],[SalesOrderLineAmount]],"") ->  | AB112: =IF(COUNTIF(wms!E:E,Tabla_Consulta_desde_QuickBooks_Data_64_Bit_QRemote[[#This Row],[RefNumber]])>0,"OK","FALTA") -> OK
A113: 2025-06-02 | B113: 29084 | C113: PRODUCTOS OLE DEL ECUADOR PRODUCTOSOLE C | D113: Marketing-CAPEX -Mariel | E113: 9 | F113: 7862112522817 | G113: P.T:110737 | H113: SALSA DE TOMATE CASERA OLE DP 200G | I113: Bodega Producto Terminado | J113: 5 | K113: UN | L113: 0.47 | M113: 2.35 | N113: UNIDAD SALSA | O113: 5 | P113: 83.9 | Q113: 96.49 | R113: IVA EN VENTAS 15% | S113: =IFERROR(IF(Tabla_Consulta_desde_QuickBooks_Data_64_Bit_QRemote[[#This Row],[SalesOrderLineUnitOfMeasure]]="un",Tabla_Consulta_desde_QuickBooks_Data_64_Bit_QRemote[[#This Row],[SalesOrderLineQuantity]],Tabla_Consulta_desde_QuickBooks_Data_64_Bit_QRemote[[#This Row],[SalesOrderLineQuantity]]/MID(Tabla_Consulta_desde_QuickBooks_Data_64_Bit_QRemote[[#This Row],[SalesOrderLineUnitOfMeasure]],2,2)),0) -> 5 | T113: =IFERROR(IF(Tabla_Consulta_desde_QuickBooks_Data_64_Bit_QRemote[[#This Row],[SalesOrderLineUnitOfMeasure]]="un",Tabla_Consulta_desde_QuickBooks_Data_64_Bit_QRemote[[#This Row],[SalesOrderLineInvoiced]],Tabla_Consulta_desde_QuickBooks_Data_64_Bit_QRemote[[#This Row],[SalesOrderLineInvoiced]]/MID(Tabla_Consulta_desde_QuickBooks_Data_64_Bit_QRemote[[#This Row],[SalesOrderLineUnitOfMeasure]],2,2)),0) -> 5 | U113: =+Tabla_Consulta_desde_QuickBooks_Data_64_Bit_QRemote[[#This Row],[facturado]]-Tabla_Consulta_desde_QuickBooks_Data_64_Bit_QRemote[[#This Row],[pide]] -> 0 | V113: =IF(Tabla_Consulta_desde_QuickBooks_Data_64_Bit_QRemote[[#This Row],[diferecia]]=0,"ok","diferen") -> ok | W113: =IFERROR(INDEX(um!A:C,MATCH(Tabla_Consulta_desde_QuickBooks_Data_64_Bit_QRemote[[#This Row],[SalesOrderLineItemRefFullName]],um!A:A,0),3),"") -> X12 | X113: =IFERROR(IF(OR(Tabla_Consulta_desde_QuickBooks_Data_64_Bit_QRemote[[#This Row],[SalesOrderLineUnitOfMeasure]]="UN",Tabla_Consulta_desde_QuickBooks_Data_64_Bit_QRemote[[#This Row],[SalesOrderLineUnitOfMeasure]]=Tabla_Consulta_desde_QuickBooks_Data_64_Bit_QRemote[[#This Row],[U/M]]),"","ERROR"),"") ->  | Y113: =+WEEKNUM(Tabla_Consulta_desde_QuickBooks_Data_64_Bit_QRemote[[#This Row],[TxnDate]]) -> 23 | Z113: =+Tabla_Consulta_desde_QuickBooks_Data_64_Bit_QRemote[[#This Row],[SalesOrderLineRate]]*Tabla_Consulta_desde_QuickBooks_Data_64_Bit_QRemote[[#This Row],[SalesOrderLineInvoiced]] -> 2.35 | AA113: =+IFERROR(IF(Tabla_Consulta_desde_QuickBooks_Data_64_Bit_QRemote[[#This Row],[CustomerRefFullName]]="GRUVALCORP SA",VLOOKUP(Tabla_Consulta_desde_QuickBooks_Data_64_Bit_QRemote[[#This Row],[SalesOrderLineItemRefFullName]],Hoja1!A:E,5,FALSE),"")*-Tabla_Consulta_desde_QuickBooks_Data_64_Bit_QRemote[[#This Row],[SalesOrderLineAmount]],"") ->  | AB113: =IF(COUNTIF(wms!E:E,Tabla_Consulta_desde_QuickBooks_Data_64_Bit_QRemote[[#This Row],[RefNumber]])>0,"OK","FALTA") -> OK
A114: 2025-06-02 | B114: 29084 | C114: PRODUCTOS OLE DEL ECUADOR PRODUCTOSOLE C | D114: Marketing-CAPEX -Mariel | E114: 10 | F114: 7862112521407 | G114: P.T:310105 | H114: ACEITUNAS VERDES RELLENAS CON ALMENDRAS OLE 240G | I114: Bodega Producto Terminado | J114: 5 | K114: UN | L114: 2.27 | M114: 11.35 | N114: UNIDAD SALSA | O114: 5 | P114: 83.9 | Q114: 96.49 | R114: IVA EN VENTAS 15% | S114: =IFERROR(IF(Tabla_Consulta_desde_QuickBooks_Data_64_Bit_QRemote[[#This Row],[SalesOrderLineUnitOfMeasure]]="un",Tabla_Consulta_desde_QuickBooks_Data_64_Bit_QRemote[[#This Row],[SalesOrderLineQuantity]],Tabla_Consulta_desde_QuickBooks_Data_64_Bit_QRemote[[#This Row],[SalesOrderLineQuantity]]/MID(Tabla_Consulta_desde_QuickBooks_Data_64_Bit_QRemote[[#This Row],[SalesOrderLineUnitOfMeasure]],2,2)),0) -> 5 | T114: =IFERROR(IF(Tabla_Consulta_desde_QuickBooks_Data_64_Bit_QRemote[[#This Row],[SalesOrderLineUnitOfMeasure]]="un",Tabla_Consulta_desde_QuickBooks_Data_64_Bit_QRemote[[#This Row],[SalesOrderLineInvoiced]],Tabla_Consulta_desde_QuickBooks_Data_64_Bit_QRemote[[#This Row],[SalesOrderLineInvoiced]]/MID(Tabla_Consulta_desde_QuickBooks_Data_64_Bit_QRemote[[#This Row],[SalesOrderLineUnitOfMeasure]],2,2)),0) -> 5 | U114: =+Tabla_Consulta_desde_QuickBooks_Data_64_Bit_QRemote[[#This Row],[facturado]]-Tabla_Consulta_desde_QuickBooks_Data_64_Bit_QRemote[[#This Row],[pide]] -> 0 | V114: =IF(Tabla_Consulta_desde_QuickBooks_Data_64_Bit_QRemote[[#This Row],[diferecia]]=0,"ok","diferen") -> ok | W114: =IFERROR(INDEX(um!A:C,MATCH(Tabla_Consulta_desde_QuickBooks_Data_64_Bit_QRemote[[#This Row],[SalesOrderLineItemRefFullName]],um!A:A,0),3),"") -> X12 | X114: =IFERROR(IF(OR(Tabla_Consulta_desde_QuickBooks_Data_64_Bit_QRemote[[#This Row],[SalesOrderLineUnitOfMeasure]]="UN",Tabla_Consulta_desde_QuickBooks_Data_64_Bit_QRemote[[#This Row],[SalesOrderLineUnitOfMeasure]]=Tabla_Consulta_desde_QuickBooks_Data_64_Bit_QRemote[[#This Row],[U/M]]),"","ERROR"),"") ->  | Y114: =+WEEKNUM(Tabla_Consulta_desde_QuickBooks_Data_64_Bit_QRemote[[#This Row],[TxnDate]]) -> 23 | Z114: =+Tabla_Consulta_desde_QuickBooks_Data_64_Bit_QRemote[[#This Row],[SalesOrderLineRate]]*Tabla_Consulta_desde_QuickBooks_Data_64_Bit_QRemote[[#This Row],[SalesOrderLineInvoiced]] -> 11.35 | AA114: =+IFERROR(IF(Tabla_Consulta_desde_QuickBooks_Data_64_Bit_QRemote[[#This Row],[CustomerRefFullName]]="GRUVALCORP SA",VLOOKUP(Tabla_Consulta_desde_QuickBooks_Data_64_Bit_QRemote[[#This Row],[SalesOrderLineItemRefFullName]],Hoja1!A:E,5,FALSE),"")*-Tabla_Consulta_desde_QuickBooks_Data_64_Bit_QRemote[[#This Row],[SalesOrderLineAmount]],"") ->  | AB114: =IF(COUNTIF(wms!E:E,Tabla_Consulta_desde_QuickBooks_Data_64_Bit_QRemote[[#This Row],[RefNumber]])>0,"OK","FALTA") -> OK
A115: 2025-06-02 | B115: 29084 | C115: PRODUCTOS OLE DEL ECUADOR PRODUCTOSOLE C | D115: Marketing-CAPEX -Mariel | E115: 11 | F115: 7862112522367 | G115: PT:220132 | H115: TOTOPOS NATURAL OLE 300G | I115: Bodega Producto Terminado | J115: 5 | K115: UN | L115: 1.12 | M115: 5.6 | N115: UNIDAD SNCKS | O115: 5 | P115: 83.9 | Q115: 96.49 | R115: IVA EN VENTAS 15% | S115: =IFERROR(IF(Tabla_Consulta_desde_QuickBooks_Data_64_Bit_QRemote[[#This Row],[SalesOrderLineUnitOfMeasure]]="un",Tabla_Consulta_desde_QuickBooks_Data_64_Bit_QRemote[[#This Row],[SalesOrderLineQuantity]],Tabla_Consulta_desde_QuickBooks_Data_64_Bit_QRemote[[#This Row],[SalesOrderLineQuantity]]/MID(Tabla_Consulta_desde_QuickBooks_Data_64_Bit_QRemote[[#This Row],[SalesOrderLineUnitOfMeasure]],2,2)),0) -> 5 | T115: =IFERROR(IF(Tabla_Consulta_desde_QuickBooks_Data_64_Bit_QRemote[[#This Row],[SalesOrderLineUnitOfMeasure]]="un",Tabla_Consulta_desde_QuickBooks_Data_64_Bit_QRemote[[#This Row],[SalesOrderLineInvoiced]],Tabla_Consulta_desde_QuickBooks_Data_64_Bit_QRemote[[#This Row],[SalesOrderLineInvoiced]]/MID(Tabla_Consulta_desde_QuickBooks_Data_64_Bit_QRemote[[#This Row],[SalesOrderLineUnitOfMeasure]],2,2)),0) -> 5 | U115: =+Tabla_Consulta_desde_QuickBooks_Data_64_Bit_QRemote[[#This Row],[facturado]]-Tabla_Consulta_desde_QuickBooks_Data_64_Bit_QRemote[[#This Row],[pide]] -> 0 | V115: =IF(Tabla_Consulta_desde_QuickBooks_Data_64_Bit_QRemote[[#This Row],[diferecia]]=0,"ok","diferen") -> ok | W115: =IFERROR(INDEX(um!A:C,MATCH(Tabla_Consulta_desde_QuickBooks_Data_64_Bit_QRemote[[#This Row],[SalesOrderLineItemRefFullName]],um!A:A,0),3),"") -> X12 | X115: =IFERROR(IF(OR(Tabla_Consulta_desde_QuickBooks_Data_64_Bit_QRemote[[#This Row],[SalesOrderLineUnitOfMeasure]]="UN",Tabla_Consulta_desde_QuickBooks_Data_64_Bit_QRemote[[#This Row],[SalesOrderLineUnitOfMeasure]]=Tabla_Consulta_desde_QuickBooks_Data_64_Bit_QRemote[[#This Row],[U/M]]),"","ERROR"),"") ->  | Y115: =+WEEKNUM(Tabla_Consulta_desde_QuickBooks_Data_64_Bit_QRemote[[#This Row],[TxnDate]]) -> 23 | Z115: =+Tabla_Consulta_desde_QuickBooks_Data_64_Bit_QRemote[[#This Row],[SalesOrderLineRate]]*Tabla_Consulta_desde_QuickBooks_Data_64_Bit_QRemote[[#This Row],[SalesOrderLineInvoiced]] -> 5.6 | AA115: =+IFERROR(IF(Tabla_Consulta_desde_QuickBooks_Data_64_Bit_QRemote[[#This Row],[CustomerRefFullName]]="GRUVALCORP SA",VLOOKUP(Tabla_Consulta_desde_QuickBooks_Data_64_Bit_QRemote[[#This Row],[SalesOrderLineItemRefFullName]],Hoja1!A:E,5,FALSE),"")*-Tabla_Consulta_desde_QuickBooks_Data_64_Bit_QRemote[[#This Row],[SalesOrderLineAmount]],"") ->  | AB115: =IF(COUNTIF(wms!E:E,Tabla_Consulta_desde_QuickBooks_Data_64_Bit_QRemote[[#This Row],[RefNumber]])>0,"OK","FALTA") -> OK
